Workbook

Sheet Inputs
B1: Project Model Builder | F1: Date | G1: =TODAY() -> 2017-10-11
B3: DATES & TIMING | I3: TESTS
B4: Closing Date | C4: 2017-02-01 | I4: Cash In = Cash Out | L4: =IF('Cash Flow'!CL5=0,"OK", "ERROR") -> OK
B5: First Payment Date | C5: 2017-03-01 | I5: Asset Balance @ Maturity | L5: =IF('Cash Flow'!V366<1,"OK","ERROR") -> OK
B6: Day-Count System | C6: 30/360 | I6: Senior Debt @ Maturity | L6: =IF(FinalLoanBal<1,"OK","ERROR") -> OK
B7: Pmt Frequency | C7: Monthly | I7: Asset Principal Check | L7: =IF(ROUND(('Cash Flow'!N5+'Cash Flow'!Q5+'Cash Flow'!R5),0)=ROUND('Cash Flow'!V6,0),"OK","ERROR") -> OK
B10: ASSET INPUTS
B11: Description | C11: Original Principal Balance | D11: Current Principal Balance | E11: Asset Amort Type | F11: WA Fixed Rate | G11: Original Term | H11: Remaining Term | I11: Seasoning | J11: Floating Rate Curve | K11: Margin | L11: Periodic Cap/Floor | M11: Lifetime Cap | N11: Lifetime Floor | O11: Rate Reset Freq
B12: Asset Pool 1 | C12: 100000000 | D12: 100000000 | E12: Fixed | F12: 0.09 | G12: 360 | H12: 360 | I12: =OrgTerm1-RemTerm1 -> 0 | J12: 1-month LIBOR | K12: 0.015 | L12: 1 | M12: 1 | N12: 0 | O12: 1
B16: PREPAYMENT/DEFAULTS/RECOVERY INPUTS
B17: Description | C17: Prepay Curve | D17: Prepay Stress | E17: Gross Cumulative Loss | F17: Loss Stress | G17: Loss Timing Curve | H17: SDA Curves | J17: Recovery Rate | K17: Recovery Lag
B18: =AssetDes1 -> Asset Pool 1 | C18: SMM 2 | D18: 1 | E18: 0.1 | F18: 5 | G18: Timing Curve 3 | J18: 0.3 | K18: 5
B22: LIABILITY INPUTS
B23: Debt Description | C23: Advance Rate | D23: Liability Interest Type | E23: Floating Rate Curve | F23: Fixed Rate | G23: Loan Margin | H23: Fees | I23: Reserve Active | J23: Prin Allocation Type
B24: Senior Debt 1 | C24: 1.275889717 | D24: Floating | E24: 1-month LIBOR | G24: 0.01 | H24: 0.005 | I24: Yes | J24: Pro Rata
B25: Sub Loan | C25: =1-LiabAdvRate1 -> -0.2758897172 | D25: Floating | E25: Custom 1 | G25: 0 | H25: 0 | I25: No | J25: Pro Rata
B28: STRUCTURAL INPUTS | G28: Reporting Parameters
B29: Asset Based Fees | C29: 0.02 | D29: Swap Active | E29: Yes | G29: Scenario Name | I29: Base Case
B30: Reserve Account % | C30: 0.01 | D30: Swap Rate In | E30: 1-month LIBOR | G30: Beginning Snapshort Start | I30: 0
B31: Capture All XS Spd | C31: Yes | D31: Swap Rate Out | E31: Custom 1 | G31: Ending Snapshort Start | I31: 350
B32: Post-Default Trigger Month | C32: 3
B33: Default Trigger % | C33: 0.05
B36: SCENARIO GENERATOR
B37: Scenario | C37: Gross Loss | D37: Loss Timing | E37: Recovery
B38: 1 | C38: 0.01 | D38: Timing Curve 1 | E38: 0.5
B39: 2 | C39: 0.03 | D39: Timing Curve 1 | E39: 0.5
B40: 3 | C40: 0.05 | D40: Timing Curve 1 | E40: 0.5
B41: 4 | C41: 0.07 | D41: Timing Curve 1 | E41: 0.3
B42: 5 | C42: 0.1 | D42: Timing Curve 3 | E42: 0.3

Sheet Output
A1: =ProjName -> Project Model Builder | K1: =ScenName -> Base Case
A3: ASSET INPUTS | E3: LIABILITY INPUTS | H3: STRUCTURAL INPUTS | N3: RESULTS
A4: =Inputs!D11 -> Current Principal Balance | C4: =AssetCurBal1 -> 100000000 | E4: =Inputs!C23 -> Advance Rate | F4: =LiabAdvRate1 -> 1.275889717 | H4: =Inputs!C17 -> Prepay Curve | I4: =pdrPrepay1 -> SMM 2 | K4: =Inputs!B30 -> Reserve Account % | L4: =RsrvPercent -> 0.01 | N4: Req. Cr Enhmnt | O4: =1-F4 -> -0.2758897172
A5: =Inputs!E11 -> Asset Amort Type | C5: =AssetIntType1 -> Fixed | E5: =Inputs!E23 -> Floating Rate Curve | F5: =IF(LiabIntType1="Floating", LiabLoanIndex1,LiabFxdRate1) -> 1-month LIBOR | H5: =Inputs!E17 -> Gross Cumulative Loss | I5: =E14/C16 -> 0.5 | K5: =Inputs!B31 -> Capture All XS Spd | L5: =GlobalTrigger -> Yes | N5: Asset WA Life | O5: =SUMPRODUCT('Cash Flow'!CN7:CN366,'Cash Flow'!A7:A366)/SUM('Cash Flow'!CN7:CN366)/12 -> 9.584115244
A6: =IF(AssetIntType1="Fixed",Inputs!F11,"") -> WA Fixed Rate | C6: =AssetFxdRate1 -> 0.09 | E6: =Inputs!H23 -> Fees | F6: =LiabFees1 -> 0.005 | H6: =Inputs!F17 -> Loss Stress | I6: =pdrLossStress1 -> 5 | K6: =Inputs!B32 -> Post-Default Trigger Month | L6: =PostDefTriggerMo -> 3 | N6: Loan WA Life | O6: =SUMPRODUCT('Cash Flow'!CD7:CD366,'Cash Flow'!A7:A366)/SUM('Cash Flow'!CD7:CD366)/12 -> 8.577516017
A7: =IF(AssetIntType1="Floating",Inputs!J11,"") ->  | E7: =Inputs!G23 -> Loan Margin | F7: =LiabMarg1 -> 0.01 | H7: =Inputs!J17 -> Recovery Rate | I7: =pdrRecovRate1 -> 0.3 | N7: Note Bal @ Mat. | O7: =Inputs!L6 -> OK
A8: =Inputs!G11 -> Original Term | C8: =OrgTerm1 -> 360 | H8: =Inputs!K17 -> Recovery Lag | I8: =pdrRecovLag1 -> 5 | N8: Excess Released | O8: ='Cash Flow'!BZ5 -> 0
A9: =Inputs!H11 -> Remaining Term | C9: =RemTerm1 -> 360 | N9: Trigger Trip Period | O9: =MIN(IF('Cash Flow'!CO7:CO366,'Cash Flow'!A7:A366,1000)) -> 1
A11: CASH FLOW OUTPUT
C13: Beginning Balance | E13: ='Cash Flow'!N4 -> New Defaults | F13: ='Cash Flow'!R4 -> Actual Amort | H13: ='Cash Flow'!Q4 -> Voluntary Prepay | I13: ='Cash Flow'!T4 -> Actual Interest | K13: ='Cash Flow'!U4 -> Prinicipal Recovery | L13: ='Cash Flow'!AN4 -> Fees Paid | N13: ='Cash Flow'!CC4 -> Senior Interest | O13: ='Cash Flow'!CD4 -> Senior Principal | P13: ='Cash Flow'!CB4 -> Senior Loan EOP Balance
A14: Totals | E14: ='Cash Flow'!N5 -> 50000000 | F14: ='Cash Flow'!R7 -> 39408.13371 | H14: ='Cash Flow'!Q5 -> 16581878.65 | I14: ='Cash Flow'!T5 -> 0 | K14: ='Cash Flow'!U5 -> 0 | L14: ='Cash Flow'!AN5 -> 0 | N14: ='Cash Flow'!CC5 -> 0 | O14: ='Cash Flow'!CD5 -> 0
B15: Period
A16: Beginning Cash Flow | B16: =SnapshotStart -> 0 | C16: =OFFSET('Cash Flow'!$V$6,B16,0) -> 100000000 | E16: =OFFSET('Cash Flow'!$N$6,B16,0) -> 0 | F16: =OFFSET('Cash Flow'!$R$6,B16,0) -> 0 | H16: =OFFSET('Cash Flow'!$Q$6,B16,0) -> 0 | I16: =OFFSET('Cash Flow'!$T$6,B16,0) -> 0 | K16: =OFFSET('Cash Flow'!$U$6,B16,0) -> 0 | L16: =OFFSET('Cash Flow'!$AN$6,B16,0) -> 0 | N16: ='Cash Flow'!CC7 -> 382766.9152 | O16: ='Cash Flow'!CD7 -> 29007020.6 | P16: =OFFSET('Cash Flow'!$CB$6,B16,0) -> 127588971.7
B17: =B16+1 -> 1 | C17: =OFFSET('Cash Flow'!$V$6,B17,0) -> 98960658.1 | E17: =OFFSET('Cash Flow'!$N$6,B17,0) -> 833333.3333 | F17: =OFFSET('Cash Flow'!$R$6,B17,0) -> 39408.13371 | H17: =OFFSET('Cash Flow'!$Q$6,B17,0) -> 166600.4345 | I17: =OFFSET('Cash Flow'!$T$6,B17,0) -> 867708.3333 | K17: =OFFSET('Cash Flow'!$U$6,B17,0) -> 0 | L17: =OFFSET('Cash Flow'!$AN$6,B17,0) -> 219828.7382 | N17: ='Cash Flow'!CC8 -> 313153.7829 | O17: ='Cash Flow'!CD8 -> 772812.0481 | P17: =OFFSET('Cash Flow'!$CB$6,B17,0) -> 98581951.12
B18: =B17+1 -> 2 | C18: =OFFSET('Cash Flow'!$V$6,B18,0) -> 97923170.04 | E18: =OFFSET('Cash Flow'!$N$6,B18,0) -> 833333.3333 | F18: =OFFSET('Cash Flow'!$R$6,B18,0) -> 39351.95194 | H18: =OFFSET('Cash Flow'!$Q$6,B18,0) -> 164802.7691 | I18: =OFFSET('Cash Flow'!$T$6,B18,0) -> 858614.0917 | K18: =OFFSET('Cash Flow'!$U$6,B18,0) -> 0 | L18: =OFFSET('Cash Flow'!$AN$6,B18,0) -> 206010.2431 | N18: ='Cash Flow'!CC9 -> 315793.107 | O18: ='Cash Flow'!CD9 -> 731440.7909 | P18: =OFFSET('Cash Flow'!$CB$6,B18,0) -> 97809139.07
B19: 3 | C19: =OFFSET('Cash Flow'!$V$6,B19,0) -> 96887535.37 | E19: =OFFSET('Cash Flow'!$N$6,B19,0) -> 833333.3333 | F19: =OFFSET('Cash Flow'!$R$6,B19,0) -> 39292.33503 | H19: =OFFSET('Cash Flow'!$Q$6,B19,0) -> 163009.0061 | I19: =OFFSET('Cash Flow'!$T$6,B19,0) -> 849536.0712 | K19: =OFFSET('Cash Flow'!$U$6,B19,0) -> 0 | L19: =OFFSET('Cash Flow'!$AN$6,B19,0) -> 203959.0914 | N19: ='Cash Flow'!CC10 -> 318487.6586 | O19: ='Cash Flow'!CD10 -> 725061.6061 | P19: =OFFSET('Cash Flow'!$CB$6,B19,0) -> 97077698.28
B20: 4 | C20: =OFFSET('Cash Flow'!$V$6,B20,0) -> 95853753.65 | E20: =OFFSET('Cash Flow'!$N$6,B20,0) -> 833333.3333 | F20: =OFFSET('Cash Flow'!$R$6,B20,0) -> 39229.22956 | H20: =OFFSET('Cash Flow'!$Q$6,B20,0) -> 161219.1541 | I20: =OFFSET('Cash Flow'!$T$6,B20,0) -> 840474.2678 | K20: =OFFSET('Cash Flow'!$U$6,B20,0) -> 0 | L20: =OFFSET('Cash Flow'!$AN$6,B20,0) -> 201928.2666 | N20: ='Cash Flow'!CC11 -> 321127.2793 | O20: ='Cash Flow'!CD11 -> 718631.9874 | P20: =OFFSET('Cash Flow'!$CB$6,B20,0) -> 96352636.67
B21: 5 | C21: =OFFSET('Cash Flow'!$V$6,B21,0) -> 94821824.52 | E21: =OFFSET('Cash Flow'!$N$6,B21,0) -> 833333.3333 | F21: =OFFSET('Cash Flow'!$R$6,B21,0) -> 39162.5814 | H21: =OFFSET('Cash Flow'!$Q$6,B21,0) -> 159433.2222 | I21: =OFFSET('Cash Flow'!$T$6,B21,0) -> 831428.6778 | K21: =OFFSET('Cash Flow'!$U$6,B21,0) -> 0 | L21: =OFFSET('Cash Flow'!$AN$6,B21,0) -> 199903.188 | N21: ='Cash Flow'!CC12 -> 323713.1364 | O21: ='Cash Flow'!CD12 -> 962152.4029 | P21: =OFFSET('Cash Flow'!$CB$6,B21,0) -> 95634004.68
B22: 6 | C22: =OFFSET('Cash Flow'!$V$6,B22,0) -> 93791747.63 | E22: =OFFSET('Cash Flow'!$N$6,B22,0) -> 833333.3333 | F22: =OFFSET('Cash Flow'!$R$6,B22,0) -> 39092.33573 | H22: =OFFSET('Cash Flow'!$Q$6,B22,0) -> 157651.2193 | I22: =OFFSET('Cash Flow'!$T$6,B22,0) -> 822399.2978 | K22: =OFFSET('Cash Flow'!$U$6,B22,0) -> 250000 | L22: =OFFSET('Cash Flow'!$AN$6,B22,0) -> 197883.8761 | N22: ='Cash Flow'!CC13 -> 325387.1563 | O22: ='Cash Flow'!CD13 -> 956586.7056 | P22: =OFFSET('Cash Flow'!$CB$6,B22,0) -> 94671852.28
B23: 7 | C23: =OFFSET('Cash Flow'!$V$6,B23,0) -> 92763522.7 | E23: =OFFSET('Cash Flow'!$N$6,B23,0) -> 833333.3333 | F23: =OFFSET('Cash Flow'!$R$6,B23,0) -> 39018.43705 | H23: =OFFSET('Cash Flow'!$Q$6,B23,0) -> 155873.1548 | I23: =OFFSET('Cash Flow'!$T$6,B23,0) -> 813386.1251 | K23: =OFFSET('Cash Flow'!$U$6,B23,0) -> 250000 | L23: =OFFSET('Cash Flow'!$AN$6,B23,0) -> 195766.1845 | N23: ='Cash Flow'!CC14 -> 326980.3712 | O23: ='Cash Flow'!CD14 -> 951001.6883 | P23: =OFFSET('Cash Flow'!$CB$6,B23,0) -> 93715265.58
B24: 8 | C24: =OFFSET('Cash Flow'!$V$6,B24,0) -> 91737149.5 | E24: =OFFSET('Cash Flow'!$N$6,B24,0) -> 833333.3333 | F24: =OFFSET('Cash Flow'!$R$6,B24,0) -> 38940.8291 | H24: =OFFSET('Cash Flow'!$Q$6,B24,0) -> 154099.038 | I24: =OFFSET('Cash Flow'!$T$6,B24,0) -> 804389.157 | K24: =OFFSET('Cash Flow'!$U$6,B24,0) -> 250000 | L24: =OFFSET('Cash Flow'!$AN$6,B24,0) -> 193653.8985 | N24: ='Cash Flow'!CC15 -> 328493.7191 | O24: ='Cash Flow'!CD15 -> 945397.9933 | P24: =OFFSET('Cash Flow'!$CB$6,B24,0) -> 92764263.89
B25: 9 | C25: =OFFSET('Cash Flow'!$V$6,B25,0) -> 90712627.83 | E25: =OFFSET('Cash Flow'!$N$6,B25,0) -> 833333.3333 | F25: =OFFSET('Cash Flow'!$R$6,B25,0) -> 38859.45494 | H25: =OFFSET('Cash Flow'!$Q$6,B25,0) -> 152328.8786 | I25: =OFFSET('Cash Flow'!$T$6,B25,0) -> 795408.3915 | K25: =OFFSET('Cash Flow'!$U$6,B25,0) -> 250000 | L25: =OFFSET('Cash Flow'!$AN$6,B25,0) -> 191547.0258 | N25: ='Cash Flow'!CC16 -> 329928.1399 | O25: ='Cash Flow'!CD16 -> 939776.2391 | P25: =OFFSET('Cash Flow'!$CB$6,B25,0) -> 91818865.89
B26: 10 | C26: =OFFSET('Cash Flow'!$V$6,B26,0) -> 89689957.56 | E26: =OFFSET('Cash Flow'!$N$6,B26,0) -> 833333.3333 | F26: =OFFSET('Cash Flow'!$R$6,B26,0) -> 38774.25688 | H26: =OFFSET('Cash Flow'!$Q$6,B26,0) -> 150562.6864 | I26: =OFFSET('Cash Flow'!$T$6,B26,0) -> 786443.8269 | K26: =OFFSET('Cash Flow'!$U$6,B26,0) -> 250000 | L26: =OFFSET('Cash Flow'!$AN$6,B26,0) -> 189445.5738 | N26: ='Cash Flow'!CC17 -> 331284.5748 | O26: ='Cash Flow'!CD17 -> 934137.0212 | P26: =OFFSET('Cash Flow'!$CB$6,B26,0) -> 90879089.65
A28: Ending Cash Flow | B28: =SnapshotEnd -> 350 | C28: =OFFSET('Cash Flow'!$V$6,B28,0) -> 2629127.522 | E28: =OFFSET('Cash Flow'!$N$6,B28,0) -> 0 | F28: =OFFSET('Cash Flow'!$R$6,B28,0) -> 250573.6123 | H28: =OFFSET('Cash Flow'!$Q$6,B28,0) -> 418.6808406 | I28: =OFFSET('Cash Flow'!$T$6,B28,0) -> 25201.04838 | K28: =OFFSET('Cash Flow'!$U$6,B28,0) -> 0 | L28: =OFFSET('Cash Flow'!$AN$6,B28,0) -> 6317.964336 | N28: ='Cash Flow'!CC19 -> 338403.5353 | O28: ='Cash Flow'!CD19 -> 922453.6628 | P28: =OFFSET('Cash Flow'!$CB$6,B28,0) -> 3327606.268
B29: =B28+1 -> 351 | C29: =OFFSET('Cash Flow'!$V$6,B29,0) -> 2376056.181 | E29: =OFFSET('Cash Flow'!$N$6,B29,0) -> 0 | F29: =OFFSET('Cash Flow'!$R$6,B29,0) -> 252725.8855 | H29: =OFFSET('Cash Flow'!$Q$6,B29,0) -> 345.4557097 | I29: =OFFSET('Cash Flow'!$T$6,B29,0) -> 23004.86582 | K29: =OFFSET('Cash Flow'!$U$6,B29,0) -> 0 | L29: =OFFSET('Cash Flow'!$AN$6,B29,0) -> 5768.381815 | N29: ='Cash Flow'!CC20 -> 344073.211 | O29: ='Cash Flow'!CD20 -> 916408.0295 | P29: =OFFSET('Cash Flow'!$CB$6,B29,0) -> 3009487.727
B30: =B29+1 -> 352 | C30: =OFFSET('Cash Flow'!$V$6,B30,0) -> 2120877.294 | E30: =OFFSET('Cash Flow'!$N$6,B30,0) -> 0 | F30: =OFFSET('Cash Flow'!$R$6,B30,0) -> 254900.177 | H30: =OFFSET('Cash Flow'!$Q$6,B30,0) -> 278.7105025 | I30: =OFFSET('Cash Flow'!$T$6,B30,0) -> 20790.49158 | K30: =OFFSET('Cash Flow'!$U$6,B30,0) -> 0 | L30: =OFFSET('Cash Flow'!$AN$6,B30,0) -> 5214.046855 | N30: ='Cash Flow'!CC21 -> 349574.9514 | O30: ='Cash Flow'!CD21 -> 910344.9849 | P30: =OFFSET('Cash Flow'!$CB$6,B30,0) -> 2688236.166
B31: 353 | C31: =OFFSET('Cash Flow'!$V$6,B31,0) -> 1863561.905 | E31: =OFFSET('Cash Flow'!$N$6,B31,0) -> 0 | F31: =OFFSET('Cash Flow'!$R$6,B31,0) -> 257096.7677 | H31: =OFFSET('Cash Flow'!$Q$6,B31,0) -> 218.6207595 | I31: =OFFSET('Cash Flow'!$T$6,B31,0) -> 18557.67632 | K31: =OFFSET('Cash Flow'!$U$6,B31,0) -> 0 | L31: =OFFSET('Cash Flow'!$AN$6,B31,0) -> 4654.893892 | N31: ='Cash Flow'!CC22 -> 354910.7173 | O31: ='Cash Flow'!CD22 -> 904265.4581 | P31: =OFFSET('Cash Flow'!$CB$6,B31,0) -> 2363807.544
B32: 354 | C32: =OFFSET('Cash Flow'!$V$6,B32,0) -> 1604080.596 | E32: =OFFSET('Cash Flow'!$N$6,B32,0) -> 0 | F32: =OFFSET('Cash Flow'!$R$6,B32,0) -> 259315.9432 | H32: =OFFSET('Cash Flow'!$Q$6,B32,0) -> 165.3662245 | I32: =OFFSET('Cash Flow'!$T$6,B32,0) -> 16306.16667 | K32: =OFFSET('Cash Flow'!$U$6,B32,0) -> 0 | L32: =OFFSET('Cash Flow'!$AN$6,B32,0) -> 4090.856318 | N32: ='Cash Flow'!CC23 -> 360082.473 | O32: ='Cash Flow'!CD23 -> 898170.3355 | P32: =OFFSET('Cash Flow'!$CB$6,B32,0) -> 2036157.119
B33: 355 | C33: =OFFSET('Cash Flow'!$V$6,B33,0) -> 1342403.471 | E33: =OFFSET('Cash Flow'!$N$6,B33,0) -> 0 | F33: =OFFSET('Cash Flow'!$R$6,B33,0) -> 261557.9935 | H33: =OFFSET('Cash Flow'!$Q$6,B33,0) -> 119.1309467 | I33: =OFFSET('Cash Flow'!$T$6,B33,0) -> 14035.70521 | K33: =OFFSET('Cash Flow'!$U$6,B33,0) -> 0 | L33: =OFFSET('Cash Flow'!$AN$6,B33,0) -> 3521.866459 | N33: ='Cash Flow'!CC24 -> 365092.1857 | O33: ='Cash Flow'!CD24 -> 892060.4612 | P33: =OFFSET('Cash Flow'!$CB$6,B33,0) -> 1705239.441
B34: 356 | C34: =OFFSET('Cash Flow'!$V$6,B34,0) -> 1078500.155 | E34: =OFFSET('Cash Flow'!$N$6,B34,0) -> 0 | F34: =OFFSET('Cash Flow'!$R$6,B34,0) -> 263823.213 | H34: =OFFSET('Cash Flow'!$Q$6,B34,0) -> 80.10338607 | I34: =OFFSET('Cash Flow'!$T$6,B34,0) -> 11746.03037 | K34: =OFFSET('Cash Flow'!$U$6,B34,0) -> 0 | L34: =OFFSET('Cash Flow'!$AN$6,B34,0) -> 2947.855552 | N34: ='Cash Flow'!CC25 -> 369941.8254 | O34: ='Cash Flow'!CD25 -> 885936.6381 | P34: =OFFSET('Cash Flow'!$CB$6,B34,0) -> 1371008.334
B35: 357 | C35: =OFFSET('Cash Flow'!$V$6,B35,0) -> 812339.777 | E35: =OFFSET('Cash Flow'!$N$6,B35,0) -> 0 | F35: =OFFSET('Cash Flow'!$R$6,B35,0) -> 266111.9012 | H35: =OFFSET('Cash Flow'!$Q$6,B35,0) -> 48.47652089 | I35: =OFFSET('Cash Flow'!$T$6,B35,0) -> 9436.876354 | K35: =OFFSET('Cash Flow'!$U$6,B35,0) -> 0 | L35: =OFFSET('Cash Flow'!$AN$6,B35,0) -> 2368.75373 | N35: ='Cash Flow'!CC26 -> 374633.3648 | O35: ='Cash Flow'!CD26 -> 879799.6284 | P35: =OFFSET('Cash Flow'!$CB$6,B35,0) -> 1033416.886
B36: 358 | C36: =OFFSET('Cash Flow'!$V$6,B36,0) -> 543890.967 | E36: =OFFSET('Cash Flow'!$N$6,B36,0) -> 0 | F36: =OFFSET('Cash Flow'!$R$6,B36,0) -> 268424.3621 | H36: =OFFSET('Cash Flow'!$Q$6,B36,0) -> 24.44795845 | I36: =OFFSET('Cash Flow'!$T$6,B36,0) -> 7107.973049 | K36: =OFFSET('Cash Flow'!$U$6,B36,0) -> 0 | L36: =OFFSET('Cash Flow'!$AN$6,B36,0) -> 1784.489997 | N36: ='Cash Flow'!CC27 -> 379168.7785 | O36: ='Cash Flow'!CD27 -> 873650.1544 | P36: =OFFSET('Cash Flow'!$CB$6,B36,0) -> 692417.4316
B37: 359 | C37: =OFFSET('Cash Flow'!$V$6,B37,0) -> 273121.8424 | E37: =OFFSET('Cash Flow'!$N$6,B37,0) -> 0 | F37: =OFFSET('Cash Flow'!$R$6,B37,0) -> 270760.9045 | H37: =OFFSET('Cash Flow'!$Q$6,B37,0) -> 8.220048565 | I37: =OFFSET('Cash Flow'!$T$6,B37,0) -> 4759.045961 | K37: =OFFSET('Cash Flow'!$U$6,B37,0) -> 0 | L37: =OFFSET('Cash Flow'!$AN$6,B37,0) -> 1194.992208 | N37: ='Cash Flow'!CC28 -> 383550.0435 | O37: ='Cash Flow'!CD28 -> 867488.899 | P37: =OFFSET('Cash Flow'!$CB$6,B37,0) -> 347961.5427
B38: 360 | C38: =OFFSET('Cash Flow'!$V$6,B38,0) -> 0 | E38: =OFFSET('Cash Flow'!$N$6,B38,0) -> 0 | F38: =OFFSET('Cash Flow'!$R$6,B38,0) -> 273121.8424 | H38: =OFFSET('Cash Flow'!$Q$6,B38,0) -> 0 | I38: =OFFSET('Cash Flow'!$T$6,B38,0) -> 2389.816121 | K38: =OFFSET('Cash Flow'!$U$6,B38,0) -> 0 | L38: =OFFSET('Cash Flow'!$AN$6,B38,0) -> 600.1870468 | N38: ='Cash Flow'!CC29 -> 387779.1385 | O38: ='Cash Flow'!CD29 -> 861316.5063 | P38: =OFFSET('Cash Flow'!$CB$6,B38,0) -> 0.009999550413

Sheet Analytics
A1: ANALYTICS
E3: =AssetDes1 -> Asset Pool 1 | F3: =LiabDes1 -> Senior Debt 1 | G3: =LiabDes2 -> Sub Loan
B4: Initial Principal | E4: =AssetCurBal1 -> 100000000 | F4: ='Cash Flow'!CB6 -> 127588971.7 | G4: ='Cash Flow'!CF6 -> -27588971.72
B5: Monthly Yield | E5: 0.007817501495 | F5: 0.005601889612 | G5: 0.05
B6: PV Difference | E6: =SUM(E16:E375)-E4 -> -23336753.68 | F6: =SUM(F16:F375)-F4 -> 861582.044 | G6: =SUM(G16:G375)-G4 -> -3795740.984
B7: BEY | E7: =2*((1+E5)^6-1) -> 0.09566264036 | F7: =2*((1+F5)^6-1) -> 0.06817117172 | G7: 0.6801912812
B8: Modified Duration | E8: =1/((1+E5/12))*(SUMPRODUCT(E16:E375,$A$16:$A$375)/(12*E4)) -> 4.461926241 | F8: =1/((1+F5/12))*(SUMPRODUCT(F16:F375,$A$16:$A$375)/(12*F4)) -> 5.263361276 | G8: =1/((1+G5/12))*(SUMPRODUCT(G16:G375,$A$16:$A$375)/(12*G4)) -> 0.3582891519
A13: ='Cash Flow'!A4 -> Period | B13: ='Cash Flow'!B4 -> Date | C13: ='Cash Flow'!C4 -> Day Factor | E13: =AssetDes1 -> Asset Pool 1 | F13: =LiabDes1 -> Senior Debt 1 | G13: =LiabDes2 -> Sub Loan
A16: ='Cash Flow'!A7 -> 1 | B16: ='Cash Flow'!B7 -> 2017-03-01 | C16: ='Cash Flow'!C7 -> 0.08333333333 | E16: =('Cash Flow'!Q7+'Cash Flow'!R7+'Cash Flow'!T7+'Cash Flow'!U7)/(1+$E$5)^$A16 -> 1065388.227 | F16: =('Cash Flow'!CC7+'Cash Flow'!CD7)/(1+$F$5)^$A16 -> 29226066.32 | G16: =('Cash Flow'!CG7+'Cash Flow'!CH7)/(1+$G$5)^$A16 -> -26362795.2
A17: ='Cash Flow'!A8 -> 2 | B17: ='Cash Flow'!B8 -> 2017-04-01 | C17: ='Cash Flow'!C8 -> 0.08333333333 | E17: =('Cash Flow'!Q8+'Cash Flow'!R8+'Cash Flow'!T8+'Cash Flow'!U8)/(1+$E$5)^$A17 -> 1046345.256 | F17: =('Cash Flow'!CC8+'Cash Flow'!CD8)/(1+$F$5)^$A17 -> 1073900.388 | G17: =('Cash Flow'!CG8+'Cash Flow'!CH8)/(1+$G$5)^$A17 -> -259621.121
A18: ='Cash Flow'!A9 -> 3 | B18: ='Cash Flow'!B9 -> 2017-05-01 | C18: ='Cash Flow'!C9 -> 0.08333333333 | E18: =('Cash Flow'!Q9+'Cash Flow'!R9+'Cash Flow'!T9+'Cash Flow'!U9)/(1+$E$5)^$A18 -> 1027549.912 | F18: =('Cash Flow'!CC9+'Cash Flow'!CD9)/(1+$F$5)^$A18 -> 1029829.787 | G18: =('Cash Flow'!CG9+'Cash Flow'!CH9)/(1+$G$5)^$A18 -> -246816.5057
A19: ='Cash Flow'!A10 -> 4 | B19: ='Cash Flow'!B10 -> 2017-06-01 | C19: ='Cash Flow'!C10 -> 0.08333333333 | E19: =('Cash Flow'!Q10+'Cash Flow'!R10+'Cash Flow'!T10+'Cash Flow'!U10)/(1+$E$5)^$A19 -> 1008999.325 | F19: =('Cash Flow'!CC10+'Cash Flow'!CD10)/(1+$F$5)^$A19 -> 1020489.718 | G19: =('Cash Flow'!CG10+'Cash Flow'!CH10)/(1+$G$5)^$A19 -> -234642.7635
A20: ='Cash Flow'!A11 -> 5 | B20: ='Cash Flow'!B11 -> 2017-07-01 | C20: ='Cash Flow'!C11 -> 0.08333333333 | E20: =('Cash Flow'!Q11+'Cash Flow'!R11+'Cash Flow'!T11+'Cash Flow'!U11)/(1+$E$5)^$A20 -> 990690.6573 | F20: =('Cash Flow'!CC11+'Cash Flow'!CD11)/(1+$F$5)^$A20 -> 1011119.29 | G20: =('Cash Flow'!CG11+'Cash Flow'!CH11)/(1+$G$5)^$A20 -> -223068.8322
A21: ='Cash Flow'!A12 -> 6 | B21: ='Cash Flow'!B12 -> 2017-08-01 | C21: ='Cash Flow'!C12 -> 0.08333333333 | E21: =('Cash Flow'!Q12+'Cash Flow'!R12+'Cash Flow'!T12+'Cash Flow'!U12)/(1+$E$5)^$A21 -> 1211209.122 | F21: =('Cash Flow'!CC12+'Cash Flow'!CD12)/(1+$F$5)^$A21 -> 1243480.769 | G21: =('Cash Flow'!CG12+'Cash Flow'!CH12)/(1+$G$5)^$A21 -> -212065.1786
A22: ='Cash Flow'!A13 -> 7 | B22: ='Cash Flow'!B13 -> 2017-09-01 | C22: ='Cash Flow'!C13 -> 0.08333333333 | E22: =('Cash Flow'!Q13+'Cash Flow'!R13+'Cash Flow'!T13+'Cash Flow'!U13)/(1+$E$5)^$A22 -> 1191525.206 | F22: =('Cash Flow'!CC13+'Cash Flow'!CD13)/(1+$F$5)^$A22 -> 1232811.296 | G22: =('Cash Flow'!CG13+'Cash Flow'!CH13)/(1+$G$5)^$A22 -> -201603.723
A23: ='Cash Flow'!A14 -> 8 | B23: ='Cash Flow'!B14 -> 2017-10-01 | C23: ='Cash Flow'!C14 -> 0.08333333333 | E23: =('Cash Flow'!Q14+'Cash Flow'!R14+'Cash Flow'!T14+'Cash Flow'!U14)/(1+$E$5)^$A23 -> 1172089.235 | F23: =('Cash Flow'!CC14+'Cash Flow'!CD14)/(1+$F$5)^$A23 -> 1222126.359 | G23: =('Cash Flow'!CG14+'Cash Flow'!CH14)/(1+$G$5)^$A23 -> -191657.7675
A24: ='Cash Flow'!A15 -> 9 | B24: ='Cash Flow'!B15 -> 2017-11-01 | C24: ='Cash Flow'!C15 -> 0.08333333333 | E24: =('Cash Flow'!Q15+'Cash Flow'!R15+'Cash Flow'!T15+'Cash Flow'!U15)/(1+$E$5)^$A24 -> 1152898.379 | F24: =('Cash Flow'!CC15+'Cash Flow'!CD15)/(1+$F$5)^$A24 -> 1211428.497 | G24: =('Cash Flow'!CG15+'Cash Flow'!CH15)/(1+$G$5)^$A24 -> -182201.9286
A25: ='Cash Flow'!A16 -> 10 | B25: ='Cash Flow'!B16 -> 2017-12-01 | C25: ='Cash Flow'!C16 -> 0.08333333333 | E25: =('Cash Flow'!Q16+'Cash Flow'!R16+'Cash Flow'!T16+'Cash Flow'!U16)/(1+$E$5)^$A25 -> 1133949.841 | F25: =('Cash Flow'!CC16+'Cash Flow'!CD16)/(1+$F$5)^$A25 -> 1200720.18 | G25: =('Cash Flow'!CG16+'Cash Flow'!CH16)/(1+$G$5)^$A25 -> -173212.072
A26: ='Cash Flow'!A17 -> 11 | B26: ='Cash Flow'!B17 -> 2018-01-01 | C26: ='Cash Flow'!C17 -> 0.08333333333 | E26: =('Cash Flow'!Q17+'Cash Flow'!R17+'Cash Flow'!T17+'Cash Flow'!U17)/(1+$E$5)^$A26 -> 1115240.854 | F26: =('Cash Flow'!CC17+'Cash Flow'!CD17)/(1+$F$5)^$A26 -> 1190003.815 | G26: =('Cash Flow'!CG17+'Cash Flow'!CH17)/(1+$G$5)^$A26 -> -164665.2512
A27: ='Cash Flow'!A18 -> 12 | B27: ='Cash Flow'!B18 -> 2018-02-01 | C27: ='Cash Flow'!C18 -> 0.08333333333 | E27: =('Cash Flow'!Q18+'Cash Flow'!R18+'Cash Flow'!T18+'Cash Flow'!U18)/(1+$E$5)^$A27 -> 1096768.68 | F27: =('Cash Flow'!CC18+'Cash Flow'!CD18)/(1+$F$5)^$A27 -> 1179281.739 | G27: =('Cash Flow'!CG18+'Cash Flow'!CH18)/(1+$G$5)^$A27 -> -156539.6492
A28: ='Cash Flow'!A19 -> 13 | B28: ='Cash Flow'!B19 -> 2018-03-01 | C28: ='Cash Flow'!C19 -> 0.08333333333 | E28: =('Cash Flow'!Q19+'Cash Flow'!R19+'Cash Flow'!T19+'Cash Flow'!U19)/(1+$E$5)^$A28 -> 1078530.611 | F28: =('Cash Flow'!CC19+'Cash Flow'!CD19)/(1+$F$5)^$A28 -> 1172537.8 | G28: =('Cash Flow'!CG19+'Cash Flow'!CH19)/(1+$G$5)^$A28 -> -148814.523
A29: ='Cash Flow'!A20 -> 14 | B29: ='Cash Flow'!B20 -> 2018-04-01 | C29: ='Cash Flow'!C20 -> 0.08333333333 | E29: =('Cash Flow'!Q20+'Cash Flow'!R20+'Cash Flow'!T20+'Cash Flow'!U20)/(1+$E$5)^$A29 -> 1060523.969 | F29: =('Cash Flow'!CC20+'Cash Flow'!CD20)/(1+$F$5)^$A29 -> 1165658.288 | G29: =('Cash Flow'!CG20+'Cash Flow'!CH20)/(1+$G$5)^$A29 -> -141470.1504
A30: ='Cash Flow'!A21 -> 15 | B30: ='Cash Flow'!B21 -> 2018-05-01 | C30: ='Cash Flow'!C21 -> 0.08333333333 | E30: =('Cash Flow'!Q21+'Cash Flow'!R21+'Cash Flow'!T21+'Cash Flow'!U21)/(1+$E$5)^$A30 -> 1042746.102 | F30: =('Cash Flow'!CC21+'Cash Flow'!CD21)/(1+$F$5)^$A30 -> 1158648.588 | G30: =('Cash Flow'!CG21+'Cash Flow'!CH21)/(1+$G$5)^$A30 -> -134487.78
A31: ='Cash Flow'!A22 -> 16 | B31: ='Cash Flow'!B22 -> 2018-06-01 | C31: ='Cash Flow'!C22 -> 0.08333333333 | E31: =('Cash Flow'!Q22+'Cash Flow'!R22+'Cash Flow'!T22+'Cash Flow'!U22)/(1+$E$5)^$A31 -> 1025194.39 | F31: =('Cash Flow'!CC22+'Cash Flow'!CD22)/(1+$F$5)^$A31 -> 1151513.956 | G31: =('Cash Flow'!CG22+'Cash Flow'!CH22)/(1+$G$5)^$A31 -> -127849.5837
A32: ='Cash Flow'!A23 -> 17 | B32: ='Cash Flow'!B23 -> 2018-07-01 | C32: ='Cash Flow'!C23 -> 0.08333333333 | E32: =('Cash Flow'!Q23+'Cash Flow'!R23+'Cash Flow'!T23+'Cash Flow'!U23)/(1+$E$5)^$A32 -> 1007866.241 | F32: =('Cash Flow'!CC23+'Cash Flow'!CD23)/(1+$F$5)^$A32 -> 1144259.523 | G32: =('Cash Flow'!CG23+'Cash Flow'!CH23)/(1+$G$5)^$A32 -> -121538.6106
A33: ='Cash Flow'!A24 -> 18 | B33: ='Cash Flow'!B24 -> 2018-08-01 | C33: ='Cash Flow'!C24 -> 0.08333333333 | E33: =('Cash Flow'!Q24+'Cash Flow'!R24+'Cash Flow'!T24+'Cash Flow'!U24)/(1+$E$5)^$A33 -> 990759.088 | F33: =('Cash Flow'!CC24+'Cash Flow'!CD24)/(1+$F$5)^$A33 -> 1136890.298 | G33: =('Cash Flow'!CG24+'Cash Flow'!CH24)/(1+$G$5)^$A33 -> -115538.7443
A34: ='Cash Flow'!A25 -> 19 | B34: ='Cash Flow'!B25 -> 2018-09-01 | C34: ='Cash Flow'!C25 -> 0.08333333333 | E34: =('Cash Flow'!Q25+'Cash Flow'!R25+'Cash Flow'!T25+'Cash Flow'!U25)/(1+$E$5)^$A34 -> 973870.3952 | F34: =('Cash Flow'!CC25+'Cash Flow'!CD25)/(1+$F$5)^$A34 -> 1129411.17 | G34: =('Cash Flow'!CG25+'Cash Flow'!CH25)/(1+$G$5)^$A34 -> -109834.662
A35: ='Cash Flow'!A26 -> 20 | B35: ='Cash Flow'!B26 -> 2018-10-01 | C35: ='Cash Flow'!C26 -> 0.08333333333 | E35: =('Cash Flow'!Q26+'Cash Flow'!R26+'Cash Flow'!T26+'Cash Flow'!U26)/(1+$E$5)^$A35 -> 957197.6525 | F35: =('Cash Flow'!CC26+'Cash Flow'!CD26)/(1+$F$5)^$A35 -> 1121826.908 | G35: =('Cash Flow'!CG26+'Cash Flow'!CH26)/(1+$G$5)^$A35 -> -104411.7947
A36: ='Cash Flow'!A27 -> 21 | B36: ='Cash Flow'!B27 -> 2018-11-01 | C36: ='Cash Flow'!C27 -> 0.08333333333 | E36: =('Cash Flow'!Q27+'Cash Flow'!R27+'Cash Flow'!T27+'Cash Flow'!U27)/(1+$E$5)^$A36 -> 940738.3771 | F36: =('Cash Flow'!CC27+'Cash Flow'!CD27)/(1+$F$5)^$A36 -> 1114142.169 | G36: =('Cash Flow'!CG27+'Cash Flow'!CH27)/(1+$G$5)^$A36 -> -99256.29115
A37: ='Cash Flow'!A28 -> 22 | B37: ='Cash Flow'!B28 -> 2018-12-01 | C37: ='Cash Flow'!C28 -> 0.08333333333 | E37: =('Cash Flow'!Q28+'Cash Flow'!R28+'Cash Flow'!T28+'Cash Flow'!U28)/(1+$E$5)^$A37 -> 924490.1135 | F37: =('Cash Flow'!CC28+'Cash Flow'!CD28)/(1+$F$5)^$A37 -> 1106361.494 | G37: =('Cash Flow'!CG28+'Cash Flow'!CH28)/(1+$G$5)^$A37 -> -94354.98153
A38: ='Cash Flow'!A29 -> 23 | B38: ='Cash Flow'!B29 -> 2019-01-01 | C38: ='Cash Flow'!C29 -> 0.08333333333 | E38: =('Cash Flow'!Q29+'Cash Flow'!R29+'Cash Flow'!T29+'Cash Flow'!U29)/(1+$E$5)^$A38 -> 908450.4324 | F38: =('Cash Flow'!CC29+'Cash Flow'!CD29)/(1+$F$5)^$A38 -> 1098489.315 | G38: =('Cash Flow'!CG29+'Cash Flow'!CH29)/(1+$G$5)^$A38 -> -89695.34455
A39: ='Cash Flow'!A30 -> 24 | B39: ='Cash Flow'!B30 -> 2019-02-01 | C39: ='Cash Flow'!C30 -> 0.08333333333 | E39: =('Cash Flow'!Q30+'Cash Flow'!R30+'Cash Flow'!T30+'Cash Flow'!U30)/(1+$E$5)^$A39 -> 892616.9311 | F39: =('Cash Flow'!CC30+'Cash Flow'!CD30)/(1+$F$5)^$A39 -> 1090529.954 | G39: =('Cash Flow'!CG30+'Cash Flow'!CH30)/(1+$G$5)^$A39 -> -85265.47532
A40: ='Cash Flow'!A31 -> 25 | B40: ='Cash Flow'!B31 -> 2019-03-01 | C40: ='Cash Flow'!C31 -> 0.08333333333 | E40: =('Cash Flow'!Q31+'Cash Flow'!R31+'Cash Flow'!T31+'Cash Flow'!U31)/(1+$E$5)^$A40 -> 876987.2326 | F40: =('Cash Flow'!CC31+'Cash Flow'!CD31)/(1+$F$5)^$A40 -> 1081406.366 | G40: =('Cash Flow'!CG31+'Cash Flow'!CH31)/(1+$G$5)^$A40 -> -81054.055
A41: ='Cash Flow'!A32 -> 26 | B41: ='Cash Flow'!B32 -> 2019-04-01 | C41: ='Cash Flow'!C32 -> 0.08333333333 | E41: =('Cash Flow'!Q32+'Cash Flow'!R32+'Cash Flow'!T32+'Cash Flow'!U32)/(1+$E$5)^$A41 -> 861558.9859 | F41: =('Cash Flow'!CC32+'Cash Flow'!CD32)/(1+$F$5)^$A41 -> 1072240.797 | G41: =('Cash Flow'!CG32+'Cash Flow'!CH32)/(1+$G$5)^$A41 -> -77050.32204
A42: ='Cash Flow'!A33 -> 27 | B42: ='Cash Flow'!B33 -> 2019-05-01 | C42: ='Cash Flow'!C33 -> 0.08333333333 | E42: =('Cash Flow'!Q33+'Cash Flow'!R33+'Cash Flow'!T33+'Cash Flow'!U33)/(1+$E$5)^$A42 -> 846329.8656 | F42: =('Cash Flow'!CC33+'Cash Flow'!CD33)/(1+$F$5)^$A42 -> 1063036.366 | G42: =('Cash Flow'!CG33+'Cash Flow'!CH33)/(1+$G$5)^$A42 -> -73244.04466
A43: ='Cash Flow'!A34 -> 28 | B43: ='Cash Flow'!B34 -> 2019-06-01 | C43: ='Cash Flow'!C34 -> 0.08333333333 | E43: =('Cash Flow'!Q34+'Cash Flow'!R34+'Cash Flow'!T34+'Cash Flow'!U34)/(1+$E$5)^$A43 -> 831297.5712 | F43: =('Cash Flow'!CC34+'Cash Flow'!CD34)/(1+$F$5)^$A43 -> 1053796.112 | G43: =('Cash Flow'!CG34+'Cash Flow'!CH34)/(1+$G$5)^$A43 -> -69625.49486
A44: ='Cash Flow'!A35 -> 29 | B44: ='Cash Flow'!B35 -> 2019-07-01 | C44: ='Cash Flow'!C35 -> 0.08333333333 | E44: =('Cash Flow'!Q35+'Cash Flow'!R35+'Cash Flow'!T35+'Cash Flow'!U35)/(1+$E$5)^$A44 -> 816459.8274 | F44: =('Cash Flow'!CC35+'Cash Flow'!CD35)/(1+$F$5)^$A44 -> 1044522.994 | G44: =('Cash Flow'!CG35+'Cash Flow'!CH35)/(1+$G$5)^$A44 -> -66185.42358
A45: ='Cash Flow'!A36 -> 30 | B45: ='Cash Flow'!B36 -> 2019-08-01 | C45: ='Cash Flow'!C36 -> 0.08333333333 | E45: =('Cash Flow'!Q36+'Cash Flow'!R36+'Cash Flow'!T36+'Cash Flow'!U36)/(1+$E$5)^$A45 -> 801814.3835 | F45: =('Cash Flow'!CC36+'Cash Flow'!CD36)/(1+$F$5)^$A45 -> 1035219.894 | G45: =('Cash Flow'!CG36+'Cash Flow'!CH36)/(1+$G$5)^$A45 -> -62915.03714
A46: ='Cash Flow'!A37 -> 31 | B46: ='Cash Flow'!B37 -> 2019-09-01 | C46: ='Cash Flow'!C37 -> 0.08333333333 | E46: =('Cash Flow'!Q37+'Cash Flow'!R37+'Cash Flow'!T37+'Cash Flow'!U37)/(1+$E$5)^$A46 -> 787359.0134 | F46: =('Cash Flow'!CC37+'Cash Flow'!CD37)/(1+$F$5)^$A46 -> 1025889.617 | G46: =('Cash Flow'!CG37+'Cash Flow'!CH37)/(1+$G$5)^$A46 -> -59805.97484
A47: ='Cash Flow'!A38 -> 32 | B47: ='Cash Flow'!B38 -> 2019-10-01 | C47: ='Cash Flow'!C38 -> 0.08333333333 | E47: =('Cash Flow'!Q38+'Cash Flow'!R38+'Cash Flow'!T38+'Cash Flow'!U38)/(1+$E$5)^$A47 -> 773091.5149 | F47: =('Cash Flow'!CC38+'Cash Flow'!CD38)/(1+$F$5)^$A47 -> 1016534.894 | G47: =('Cash Flow'!CG38+'Cash Flow'!CH38)/(1+$G$5)^$A47 -> -56850.28762
A48: ='Cash Flow'!A39 -> 33 | B48: ='Cash Flow'!B39 -> 2019-11-01 | C48: ='Cash Flow'!C39 -> 0.08333333333 | E48: =('Cash Flow'!Q39+'Cash Flow'!R39+'Cash Flow'!T39+'Cash Flow'!U39)/(1+$E$5)^$A48 -> 759009.7101 | F48: =('Cash Flow'!CC39+'Cash Flow'!CD39)/(1+$F$5)^$A48 -> 1007158.382 | G48: =('Cash Flow'!CG39+'Cash Flow'!CH39)/(1+$G$5)^$A48 -> -54040.41785
A49: ='Cash Flow'!A40 -> 34 | B49: ='Cash Flow'!B40 -> 2019-12-01 | C49: ='Cash Flow'!C40 -> 0.08333333333 | E49: =('Cash Flow'!Q40+'Cash Flow'!R40+'Cash Flow'!T40+'Cash Flow'!U40)/(1+$E$5)^$A49 -> 745111.4443 | F49: =('Cash Flow'!CC40+'Cash Flow'!CD40)/(1+$F$5)^$A49 -> 997762.6671 | G49: =('Cash Flow'!CG40+'Cash Flow'!CH40)/(1+$G$5)^$A49 -> -51369.18
A50: ='Cash Flow'!A41 -> 35 | B50: ='Cash Flow'!B41 -> 2020-01-01 | C50: ='Cash Flow'!C41 -> 0.08333333333 | E50: =('Cash Flow'!Q41+'Cash Flow'!R41+'Cash Flow'!T41+'Cash Flow'!U41)/(1+$E$5)^$A50 -> 731394.5867 | F50: =('Cash Flow'!CC41+'Cash Flow'!CD41)/(1+$F$5)^$A50 -> 988350.2661 | G50: =('Cash Flow'!CG41+'Cash Flow'!CH41)/(1+$G$5)^$A50 -> -48829.74239
A51: ='Cash Flow'!A42 -> 36 | B51: ='Cash Flow'!B42 -> 2020-02-01 | C51: ='Cash Flow'!C42 -> 0.08333333333 | E51: =('Cash Flow'!Q42+'Cash Flow'!R42+'Cash Flow'!T42+'Cash Flow'!U42)/(1+$E$5)^$A51 -> 717857.0294 | F51: =('Cash Flow'!CC42+'Cash Flow'!CD42)/(1+$F$5)^$A51 -> 978923.6266 | G51: =('Cash Flow'!CG42+'Cash Flow'!CH42)/(1+$G$5)^$A51 -> -46415.60973
A52: ='Cash Flow'!A43 -> 37 | B52: ='Cash Flow'!B43 -> 2020-03-01 | C52: ='Cash Flow'!C43 -> 0.08333333333 | E52: =('Cash Flow'!Q43+'Cash Flow'!R43+'Cash Flow'!T43+'Cash Flow'!U43)/(1+$E$5)^$A52 -> 704496.6875 | F52: =('Cash Flow'!CC43+'Cash Flow'!CD43)/(1+$F$5)^$A52 -> 967727.355 | G52: =('Cash Flow'!CG43+'Cash Flow'!CH43)/(1+$G$5)^$A52 -> -44120.60659
A53: ='Cash Flow'!A44 -> 38 | B53: ='Cash Flow'!B44 -> 2020-04-01 | C53: ='Cash Flow'!C44 -> 0.08333333333 | E53: =('Cash Flow'!Q44+'Cash Flow'!R44+'Cash Flow'!T44+'Cash Flow'!U44)/(1+$E$5)^$A53 -> 691311.4989 | F53: =('Cash Flow'!CC44+'Cash Flow'!CD44)/(1+$F$5)^$A53 -> 956582.1997 | G53: =('Cash Flow'!CG44+'Cash Flow'!CH44)/(1+$G$5)^$A53 -> -41938.86164
A54: ='Cash Flow'!A45 -> 39 | B54: ='Cash Flow'!B45 -> 2020-05-01 | C54: ='Cash Flow'!C45 -> 0.08333333333 | E54: =('Cash Flow'!Q45+'Cash Flow'!R45+'Cash Flow'!T45+'Cash Flow'!U45)/(1+$E$5)^$A54 -> 678299.4238 | F54: =('Cash Flow'!CC45+'Cash Flow'!CD45)/(1+$F$5)^$A54 -> 945488.9387 | G54: =('Cash Flow'!CG45+'Cash Flow'!CH45)/(1+$G$5)^$A54 -> -39864.79268
A55: ='Cash Flow'!A46 -> 40 | B55: ='Cash Flow'!B46 -> 2020-06-01 | C55: ='Cash Flow'!C46 -> 0.08333333333 | E55: =('Cash Flow'!Q46+'Cash Flow'!R46+'Cash Flow'!T46+'Cash Flow'!U46)/(1+$E$5)^$A55 -> 665458.4448 | F55: =('Cash Flow'!CC46+'Cash Flow'!CD46)/(1+$F$5)^$A55 -> 934448.3182 | G55: =('Cash Flow'!CG46+'Cash Flow'!CH46)/(1+$G$5)^$A55 -> -37893.09243
A56: ='Cash Flow'!A47 -> 41 | B56: ='Cash Flow'!B47 -> 2020-07-01 | C56: ='Cash Flow'!C47 -> 0.08333333333 | E56: =('Cash Flow'!Q47+'Cash Flow'!R47+'Cash Flow'!T47+'Cash Flow'!U47)/(1+$E$5)^$A56 -> 652786.5663 | F56: =('Cash Flow'!CC47+'Cash Flow'!CD47)/(1+$F$5)^$A56 -> 923461.0534 | G56: =('Cash Flow'!CG47+'Cash Flow'!CH47)/(1+$G$5)^$A56 -> -36018.71497
A57: ='Cash Flow'!A48 -> 42 | B57: ='Cash Flow'!B48 -> 2020-08-01 | C57: ='Cash Flow'!C48 -> 0.08333333333 | E57: =('Cash Flow'!Q48+'Cash Flow'!R48+'Cash Flow'!T48+'Cash Flow'!U48)/(1+$E$5)^$A57 -> 640281.8146 | F57: =('Cash Flow'!CC48+'Cash Flow'!CD48)/(1+$F$5)^$A57 -> 912527.8288 | G57: =('Cash Flow'!CG48+'Cash Flow'!CH48)/(1+$G$5)^$A57 -> -34236.8629
A58: ='Cash Flow'!A49 -> 43 | B58: ='Cash Flow'!B49 -> 2020-09-01 | C58: ='Cash Flow'!C49 -> 0.08333333333 | E58: =('Cash Flow'!Q49+'Cash Flow'!R49+'Cash Flow'!T49+'Cash Flow'!U49)/(1+$E$5)^$A58 -> 627942.2375 | F58: =('Cash Flow'!CC49+'Cash Flow'!CD49)/(1+$F$5)^$A58 -> 901649.2994 | G58: =('Cash Flow'!CG49+'Cash Flow'!CH49)/(1+$G$5)^$A58 -> -32542.9751
A59: ='Cash Flow'!A50 -> 44 | B59: ='Cash Flow'!B50 -> 2020-10-01 | C59: ='Cash Flow'!C50 -> 0.08333333333 | E59: =('Cash Flow'!Q50+'Cash Flow'!R50+'Cash Flow'!T50+'Cash Flow'!U50)/(1+$E$5)^$A59 -> 615765.904 | F59: =('Cash Flow'!CC50+'Cash Flow'!CD50)/(1+$F$5)^$A59 -> 890826.0912 | G59: =('Cash Flow'!CG50+'Cash Flow'!CH50)/(1+$G$5)^$A59 -> -30932.71508
A60: ='Cash Flow'!A51 -> 45 | B60: ='Cash Flow'!B51 -> 2020-11-01 | C60: ='Cash Flow'!C51 -> 0.08333333333 | E60: =('Cash Flow'!Q51+'Cash Flow'!R51+'Cash Flow'!T51+'Cash Flow'!U51)/(1+$E$5)^$A60 -> 603750.9044 | F60: =('Cash Flow'!CC51+'Cash Flow'!CD51)/(1+$F$5)^$A60 -> 880058.8018 | G60: =('Cash Flow'!CG51+'Cash Flow'!CH51)/(1+$G$5)^$A60 -> -29401.95994
A61: ='Cash Flow'!A52 -> 46 | B61: ='Cash Flow'!B52 -> 2020-12-01 | C61: ='Cash Flow'!C52 -> 0.08333333333 | E61: =('Cash Flow'!Q52+'Cash Flow'!R52+'Cash Flow'!T52+'Cash Flow'!U52)/(1+$E$5)^$A61 -> 591895.3497 | F61: =('Cash Flow'!CC52+'Cash Flow'!CD52)/(1+$F$5)^$A61 -> 869348.0012 | G61: =('Cash Flow'!CG52+'Cash Flow'!CH52)/(1+$G$5)^$A61 -> -27946.78987
A62: ='Cash Flow'!A53 -> 47 | B62: ='Cash Flow'!B53 -> 2021-01-01 | C62: ='Cash Flow'!C53 -> 0.08333333333 | E62: =('Cash Flow'!Q53+'Cash Flow'!R53+'Cash Flow'!T53+'Cash Flow'!U53)/(1+$E$5)^$A62 -> 580197.3714 | F62: =('Cash Flow'!CC53+'Cash Flow'!CD53)/(1+$F$5)^$A62 -> 858694.2325 | G62: =('Cash Flow'!CG53+'Cash Flow'!CH53)/(1+$G$5)^$A62 -> -26563.47812
A63: ='Cash Flow'!A54 -> 48 | B63: ='Cash Flow'!B54 -> 2021-02-01 | C63: ='Cash Flow'!C54 -> 0.08333333333 | E63: =('Cash Flow'!Q54+'Cash Flow'!R54+'Cash Flow'!T54+'Cash Flow'!U54)/(1+$E$5)^$A63 -> 568655.1218 | F63: =('Cash Flow'!CC54+'Cash Flow'!CD54)/(1+$F$5)^$A63 -> 848098.0122 | G63: =('Cash Flow'!CG54+'Cash Flow'!CH54)/(1+$G$5)^$A63 -> -25248.48153
A64: ='Cash Flow'!A55 -> 49 | B64: ='Cash Flow'!B55 -> 2021-03-01 | C64: ='Cash Flow'!C55 -> 0.08333333333 | E64: =('Cash Flow'!Q55+'Cash Flow'!R55+'Cash Flow'!T55+'Cash Flow'!U55)/(1+$E$5)^$A64 -> 557266.773 | F64: =('Cash Flow'!CC55+'Cash Flow'!CD55)/(1+$F$5)^$A64 -> 835422.3586 | G64: =('Cash Flow'!CG55+'Cash Flow'!CH55)/(1+$G$5)^$A64 -> -23998.43145
A65: ='Cash Flow'!A56 -> 50 | B65: ='Cash Flow'!B56 -> 2021-04-01 | C65: ='Cash Flow'!C56 -> 0.08333333333 | E65: =('Cash Flow'!Q56+'Cash Flow'!R56+'Cash Flow'!T56+'Cash Flow'!U56)/(1+$E$5)^$A65 -> 546030.5173 | F65: =('Cash Flow'!CC56+'Cash Flow'!CD56)/(1+$F$5)^$A65 -> 822879.9853 | G65: =('Cash Flow'!CG56+'Cash Flow'!CH56)/(1+$G$5)^$A65 -> -22810.12519
A66: ='Cash Flow'!A57 -> 51 | B66: ='Cash Flow'!B57 -> 2021-05-01 | C66: ='Cash Flow'!C57 -> 0.08333333333 | E66: =('Cash Flow'!Q57+'Cash Flow'!R57+'Cash Flow'!T57+'Cash Flow'!U57)/(1+$E$5)^$A66 -> 534944.5669 | F66: =('Cash Flow'!CC57+'Cash Flow'!CD57)/(1+$F$5)^$A66 -> 810469.5084 | G66: =('Cash Flow'!CG57+'Cash Flow'!CH57)/(1+$G$5)^$A66 -> -21680.51783
A67: ='Cash Flow'!A58 -> 52 | B67: ='Cash Flow'!B58 -> 2021-06-01 | C67: ='Cash Flow'!C58 -> 0.08333333333 | E67: =('Cash Flow'!Q58+'Cash Flow'!R58+'Cash Flow'!T58+'Cash Flow'!U58)/(1+$E$5)^$A67 -> 524007.1532 | F67: =('Cash Flow'!CC58+'Cash Flow'!CD58)/(1+$F$5)^$A67 -> 798189.5587 | G67: =('Cash Flow'!CG58+'Cash Flow'!CH58)/(1+$G$5)^$A67 -> -20606.71447
A68: ='Cash Flow'!A59 -> 53 | B68: ='Cash Flow'!B59 -> 2021-07-01 | C68: ='Cash Flow'!C59 -> 0.08333333333 | E68: =('Cash Flow'!Q59+'Cash Flow'!R59+'Cash Flow'!T59+'Cash Flow'!U59)/(1+$E$5)^$A68 -> 513216.5273 | F68: =('Cash Flow'!CC59+'Cash Flow'!CD59)/(1+$F$5)^$A68 -> 786038.7812 | G68: =('Cash Flow'!CG59+'Cash Flow'!CH59)/(1+$G$5)^$A68 -> -19585.96281
A69: ='Cash Flow'!A60 -> 54 | B69: ='Cash Flow'!B60 -> 2021-08-01 | C69: ='Cash Flow'!C60 -> 0.08333333333 | E69: =('Cash Flow'!Q60+'Cash Flow'!R60+'Cash Flow'!T60+'Cash Flow'!U60)/(1+$E$5)^$A69 -> 502570.9593 | F69: =('Cash Flow'!CC60+'Cash Flow'!CD60)/(1+$F$5)^$A69 -> 774015.8352 | G69: =('Cash Flow'!CG60+'Cash Flow'!CH60)/(1+$G$5)^$A69 -> -18615.64615
A70: ='Cash Flow'!A61 -> 55 | B70: ='Cash Flow'!B61 -> 2021-09-01 | C70: ='Cash Flow'!C61 -> 0.08333333333 | E70: =('Cash Flow'!Q61+'Cash Flow'!R61+'Cash Flow'!T61+'Cash Flow'!U61)/(1+$E$5)^$A70 -> 492068.7383 | F70: =('Cash Flow'!CC61+'Cash Flow'!CD61)/(1+$F$5)^$A70 -> 762119.3941 | G70: =('Cash Flow'!CG61+'Cash Flow'!CH61)/(1+$G$5)^$A70 -> -17693.27673
A71: ='Cash Flow'!A62 -> 56 | B71: ='Cash Flow'!B62 -> 2021-10-01 | C71: ='Cash Flow'!C62 -> 0.08333333333 | E71: =('Cash Flow'!Q62+'Cash Flow'!R62+'Cash Flow'!T62+'Cash Flow'!U62)/(1+$E$5)^$A71 -> 481708.1722 | F71: =('Cash Flow'!CC62+'Cash Flow'!CD62)/(1+$F$5)^$A71 -> 750348.1452 | G71: =('Cash Flow'!CG62+'Cash Flow'!CH62)/(1+$G$5)^$A71 -> -16816.48935
A72: ='Cash Flow'!A63 -> 57 | B72: ='Cash Flow'!B63 -> 2021-11-01 | C72: ='Cash Flow'!C63 -> 0.08333333333 | E72: =('Cash Flow'!Q63+'Cash Flow'!R63+'Cash Flow'!T63+'Cash Flow'!U63)/(1+$E$5)^$A72 -> 471487.5874 | F72: =('Cash Flow'!CC63+'Cash Flow'!CD63)/(1+$F$5)^$A72 -> 738700.7893 | G72: =('Cash Flow'!CG63+'Cash Flow'!CH63)/(1+$G$5)^$A72 -> -15983.03537
A73: ='Cash Flow'!A64 -> 58 | B73: ='Cash Flow'!B64 -> 2021-12-01 | C73: ='Cash Flow'!C64 -> 0.08333333333 | E73: =('Cash Flow'!Q64+'Cash Flow'!R64+'Cash Flow'!T64+'Cash Flow'!U64)/(1+$E$5)^$A73 -> 461405.3285 | F73: =('Cash Flow'!CC64+'Cash Flow'!CD64)/(1+$F$5)^$A73 -> 727176.0411 | G73: =('Cash Flow'!CG64+'Cash Flow'!CH64)/(1+$G$5)^$A73 -> -15190.77693
A74: ='Cash Flow'!A65 -> 59 | B74: ='Cash Flow'!B65 -> 2022-01-01 | C74: ='Cash Flow'!C65 -> 0.08333333333 | E74: =('Cash Flow'!Q65+'Cash Flow'!R65+'Cash Flow'!T65+'Cash Flow'!U65)/(1+$E$5)^$A74 -> 451459.7587 | F74: =('Cash Flow'!CC65+'Cash Flow'!CD65)/(1+$F$5)^$A74 -> 715772.6285 | G74: =('Cash Flow'!CG65+'Cash Flow'!CH65)/(1+$G$5)^$A74 -> -14437.68153
A75: ='Cash Flow'!A66 -> 60 | B75: ='Cash Flow'!B66 -> 2022-02-01 | C75: ='Cash Flow'!C66 -> 0.08333333333 | E75: =('Cash Flow'!Q66+'Cash Flow'!R66+'Cash Flow'!T66+'Cash Flow'!U66)/(1+$E$5)^$A75 -> 441649.2586 | F75: =('Cash Flow'!CC66+'Cash Flow'!CD66)/(1+$F$5)^$A75 -> 704489.2927 | G75: =('Cash Flow'!CG66+'Cash Flow'!CH66)/(1+$G$5)^$A75 -> -13721.81683
A76: ='Cash Flow'!A67 -> 61 | B76: ='Cash Flow'!B67 -> 2022-03-01 | C76: ='Cash Flow'!C67 -> 0.08333333333 | E76: =('Cash Flow'!Q67+'Cash Flow'!R67+'Cash Flow'!T67+'Cash Flow'!U67)/(1+$E$5)^$A76 -> 436865.2662 | F76: =('Cash Flow'!CC67+'Cash Flow'!CD67)/(1+$F$5)^$A76 -> 535516.823 | G76: =('Cash Flow'!CG67+'Cash Flow'!CH67)/(1+$G$5)^$A76 -> -1327.312027
A77: ='Cash Flow'!A68 -> 62 | B77: ='Cash Flow'!B68 -> 2022-04-01 | C77: ='Cash Flow'!C68 -> 0.08333333333 | E77: =('Cash Flow'!Q68+'Cash Flow'!R68+'Cash Flow'!T68+'Cash Flow'!U68)/(1+$E$5)^$A77 -> 432969.1767 | F77: =('Cash Flow'!CC68+'Cash Flow'!CD68)/(1+$F$5)^$A77 -> 531197.002 | G77: =('Cash Flow'!CG68+'Cash Flow'!CH68)/(1+$G$5)^$A77 -> -1264.151856
A78: ='Cash Flow'!A69 -> 63 | B78: ='Cash Flow'!B69 -> 2022-05-01 | C78: ='Cash Flow'!C69 -> 0.08333333333 | E78: =('Cash Flow'!Q69+'Cash Flow'!R69+'Cash Flow'!T69+'Cash Flow'!U69)/(1+$E$5)^$A78 -> 429108.0061 | F78: =('Cash Flow'!CC69+'Cash Flow'!CD69)/(1+$F$5)^$A78 -> 526920.0948 | G78: =('Cash Flow'!CG69+'Cash Flow'!CH69)/(1+$G$5)^$A78 -> -1204.013411
A79: ='Cash Flow'!A70 -> 64 | B79: ='Cash Flow'!B70 -> 2022-06-01 | C79: ='Cash Flow'!C70 -> 0.08333333333 | E79: =('Cash Flow'!Q70+'Cash Flow'!R70+'Cash Flow'!T70+'Cash Flow'!U70)/(1+$E$5)^$A79 -> 425281.4395 | F79: =('Cash Flow'!CC70+'Cash Flow'!CD70)/(1+$F$5)^$A79 -> 522685.601 | G79: =('Cash Flow'!CG70+'Cash Flow'!CH70)/(1+$G$5)^$A79 -> -1146.751458
A80: ='Cash Flow'!A71 -> 65 | B80: ='Cash Flow'!B71 -> 2022-07-01 | C80: ='Cash Flow'!C71 -> 0.08333333333 | E80: =('Cash Flow'!Q71+'Cash Flow'!R71+'Cash Flow'!T71+'Cash Flow'!U71)/(1+$E$5)^$A80 -> 421489.1649 | F80: =('Cash Flow'!CC71+'Cash Flow'!CD71)/(1+$F$5)^$A80 -> 518493.0268 | G80: =('Cash Flow'!CG71+'Cash Flow'!CH71)/(1+$G$5)^$A80 -> -1092.22777
A81: ='Cash Flow'!A72 -> 66 | B81: ='Cash Flow'!B72 -> 2022-08-01 | C81: ='Cash Flow'!C72 -> 0.08333333333 | E81: =('Cash Flow'!Q72+'Cash Flow'!R72+'Cash Flow'!T72+'Cash Flow'!U72)/(1+$E$5)^$A81 -> 268198.62 | F81: =('Cash Flow'!CC72+'Cash Flow'!CD72)/(1+$F$5)^$A81 -> 341432.4554 | G81: =('Cash Flow'!CG72+'Cash Flow'!CH72)/(1+$G$5)^$A81 -> -1040.31079
A82: ='Cash Flow'!A73 -> 67 | B82: ='Cash Flow'!B73 -> 2022-09-01 | C82: ='Cash Flow'!C73 -> 0.08333333333 | E82: =('Cash Flow'!Q73+'Cash Flow'!R73+'Cash Flow'!T73+'Cash Flow'!U73)/(1+$E$5)^$A82 -> 265633.9059 | F82: =('Cash Flow'!CC73+'Cash Flow'!CD73)/(1+$F$5)^$A82 -> 338213.8453 | G82: =('Cash Flow'!CG73+'Cash Flow'!CH73)/(1+$G$5)^$A82 -> -990.8753053
A83: ='Cash Flow'!A74 -> 68 | B83: ='Cash Flow'!B74 -> 2022-10-01 | C83: ='Cash Flow'!C74 -> 0.08333333333 | E83: =('Cash Flow'!Q74+'Cash Flow'!R74+'Cash Flow'!T74+'Cash Flow'!U74)/(1+$E$5)^$A83 -> 263093.5677 | F83: =('Cash Flow'!CC74+'Cash Flow'!CD74)/(1+$F$5)^$A83 -> 335030.6445 | G83: =('Cash Flow'!CG74+'Cash Flow'!CH74)/(1+$G$5)^$A83 -> -943.8021435
A84: ='Cash Flow'!A75 -> 69 | B84: ='Cash Flow'!B75 -> 2022-11-01 | C84: ='Cash Flow'!C75 -> 0.08333333333 | E84: =('Cash Flow'!Q75+'Cash Flow'!R75+'Cash Flow'!T75+'Cash Flow'!U75)/(1+$E$5)^$A84 -> 260577.3742 | F84: =('Cash Flow'!CC75+'Cash Flow'!CD75)/(1+$F$5)^$A84 -> 331882.4131 | G84: =('Cash Flow'!CG75+'Cash Flow'!CH75)/(1+$G$5)^$A84 -> -898.9778777
A85: ='Cash Flow'!A76 -> 70 | B85: ='Cash Flow'!B76 -> 2022-12-01 | C85: ='Cash Flow'!C76 -> 0.08333333333 | E85: =('Cash Flow'!Q76+'Cash Flow'!R76+'Cash Flow'!T76+'Cash Flow'!U76)/(1+$E$5)^$A85 -> 258085.0967 | F85: =('Cash Flow'!CC76+'Cash Flow'!CD76)/(1+$F$5)^$A85 -> 328768.7174 | G85: =('Cash Flow'!CG76+'Cash Flow'!CH76)/(1+$G$5)^$A85 -> -856.2945496
A86: ='Cash Flow'!A77 -> 71 | B86: ='Cash Flow'!B77 -> 2023-01-01 | C86: ='Cash Flow'!C77 -> 0.08333333333 | E86: =('Cash Flow'!Q77+'Cash Flow'!R77+'Cash Flow'!T77+'Cash Flow'!U77)/(1+$E$5)^$A86 -> 255616.5086 | F86: =('Cash Flow'!CC77+'Cash Flow'!CD77)/(1+$F$5)^$A86 -> 325689.1295 | G86: =('Cash Flow'!CG77+'Cash Flow'!CH77)/(1+$G$5)^$A86 -> -815.649405
A87: ='Cash Flow'!A78 -> 72 | B87: ='Cash Flow'!B78 -> 2023-02-01 | C87: ='Cash Flow'!C78 -> 0.08333333333 | E87: =('Cash Flow'!Q78+'Cash Flow'!R78+'Cash Flow'!T78+'Cash Flow'!U78)/(1+$E$5)^$A87 -> 253171.3853 | F87: =('Cash Flow'!CC78+'Cash Flow'!CD78)/(1+$F$5)^$A87 -> 322643.2274 | G87: =('Cash Flow'!CG78+'Cash Flow'!CH78)/(1+$G$5)^$A87 -> -776.9446415
A88: ='Cash Flow'!A79 -> 73 | B88: ='Cash Flow'!B79 -> 2023-03-01 | C88: ='Cash Flow'!C79 -> 0.08333333333 | E88: =('Cash Flow'!Q79+'Cash Flow'!R79+'Cash Flow'!T79+'Cash Flow'!U79)/(1+$E$5)^$A88 -> 250749.5045 | F88: =('Cash Flow'!CC79+'Cash Flow'!CD79)/(1+$F$5)^$A88 -> 319630.5949 | G88: =('Cash Flow'!CG79+'Cash Flow'!CH79)/(1+$G$5)^$A88 -> -740.0871696
A89: ='Cash Flow'!A80 -> 74 | B89: ='Cash Flow'!B80 -> 2023-04-01 | C89: ='Cash Flow'!C80 -> 0.08333333333 | E89: =('Cash Flow'!Q80+'Cash Flow'!R80+'Cash Flow'!T80+'Cash Flow'!U80)/(1+$E$5)^$A89 -> 248350.646 | F89: =('Cash Flow'!CC80+'Cash Flow'!CD80)/(1+$F$5)^$A89 -> 316650.8216 | G89: =('Cash Flow'!CG80+'Cash Flow'!CH80)/(1+$G$5)^$A89 -> -704.9883846
A90: ='Cash Flow'!A81 -> 75 | B90: ='Cash Flow'!B81 -> 2023-05-01 | C90: ='Cash Flow'!C81 -> 0.08333333333 | E90: =('Cash Flow'!Q81+'Cash Flow'!R81+'Cash Flow'!T81+'Cash Flow'!U81)/(1+$E$5)^$A90 -> 245974.5916 | F90: =('Cash Flow'!CC81+'Cash Flow'!CD81)/(1+$F$5)^$A90 -> 313703.5027 | G90: =('Cash Flow'!CG81+'Cash Flow'!CH81)/(1+$G$5)^$A90 -> -671.5639494
A91: ='Cash Flow'!A82 -> 76 | B91: ='Cash Flow'!B82 -> 2023-06-01 | C91: ='Cash Flow'!C82 -> 0.08333333333 | E91: =('Cash Flow'!Q82+'Cash Flow'!R82+'Cash Flow'!T82+'Cash Flow'!U82)/(1+$E$5)^$A91 -> 243621.1253 | F91: =('Cash Flow'!CC82+'Cash Flow'!CD82)/(1+$F$5)^$A91 -> 310788.2387 | G91: =('Cash Flow'!CG82+'Cash Flow'!CH82)/(1+$G$5)^$A91 -> -639.733589
A92: ='Cash Flow'!A83 -> 77 | B92: ='Cash Flow'!B83 -> 2023-07-01 | C92: ='Cash Flow'!C83 -> 0.08333333333 | E92: =('Cash Flow'!Q83+'Cash Flow'!R83+'Cash Flow'!T83+'Cash Flow'!U83)/(1+$E$5)^$A92 -> 241290.033 | F92: =('Cash Flow'!CC83+'Cash Flow'!CD83)/(1+$F$5)^$A92 -> 307904.6359 | G92: =('Cash Flow'!CG83+'Cash Flow'!CH83)/(1+$G$5)^$A92 -> -609.4208932
A93: ='Cash Flow'!A84 -> 78 | B93: ='Cash Flow'!B84 -> 2023-08-01 | C93: ='Cash Flow'!C84 -> 0.08333333333 | E93: =('Cash Flow'!Q84+'Cash Flow'!R84+'Cash Flow'!T84+'Cash Flow'!U84)/(1+$E$5)^$A93 -> 238981.1027 | F93: =('Cash Flow'!CC84+'Cash Flow'!CD84)/(1+$F$5)^$A93 -> 305052.3058 | G93: =('Cash Flow'!CG84+'Cash Flow'!CH84)/(1+$G$5)^$A93 -> -580.5531306
A94: ='Cash Flow'!A85 -> 79 | B94: ='Cash Flow'!B85 -> 2023-09-01 | C94: ='Cash Flow'!C85 -> 0.08333333333 | E94: =('Cash Flow'!Q85+'Cash Flow'!R85+'Cash Flow'!T85+'Cash Flow'!U85)/(1+$E$5)^$A94 -> 236694.1244 | F94: =('Cash Flow'!CC85+'Cash Flow'!CD85)/(1+$F$5)^$A94 -> 302230.8652 | G94: =('Cash Flow'!CG85+'Cash Flow'!CH85)/(1+$G$5)^$A94 -> -553.0610704
A95: ='Cash Flow'!A86 -> 80 | B95: ='Cash Flow'!B86 -> 2023-10-01 | C95: ='Cash Flow'!C86 -> 0.08333333333 | E95: =('Cash Flow'!Q86+'Cash Flow'!R86+'Cash Flow'!T86+'Cash Flow'!U86)/(1+$E$5)^$A95 -> 234428.8902 | F95: =('Cash Flow'!CC86+'Cash Flow'!CD86)/(1+$F$5)^$A95 -> 299439.9361 | G95: =('Cash Flow'!CG86+'Cash Flow'!CH86)/(1+$G$5)^$A95 -> -526.8788135
A96: ='Cash Flow'!A87 -> 81 | B96: ='Cash Flow'!B87 -> 2023-11-01 | C96: ='Cash Flow'!C87 -> 0.08333333333 | E96: =('Cash Flow'!Q87+'Cash Flow'!R87+'Cash Flow'!T87+'Cash Flow'!U87)/(1+$E$5)^$A96 -> 232185.194 | F96: =('Cash Flow'!CC87+'Cash Flow'!CD87)/(1+$F$5)^$A96 -> 296679.1458 | G96: =('Cash Flow'!CG87+'Cash Flow'!CH87)/(1+$G$5)^$A96 -> -501.9436314
A97: ='Cash Flow'!A88 -> 82 | B97: ='Cash Flow'!B88 -> 2023-12-01 | C97: ='Cash Flow'!C88 -> 0.08333333333 | E97: =('Cash Flow'!Q88+'Cash Flow'!R88+'Cash Flow'!T88+'Cash Flow'!U88)/(1+$E$5)^$A97 -> 229962.8319 | F97: =('Cash Flow'!CC88+'Cash Flow'!CD88)/(1+$F$5)^$A97 -> 293948.1264 | G97: =('Cash Flow'!CG88+'Cash Flow'!CH88)/(1+$G$5)^$A97 -> -478.1958133
A98: ='Cash Flow'!A89 -> 83 | B98: ='Cash Flow'!B89 -> 2024-01-01 | C98: ='Cash Flow'!C89 -> 0.08333333333 | E98: =('Cash Flow'!Q89+'Cash Flow'!R89+'Cash Flow'!T89+'Cash Flow'!U89)/(1+$E$5)^$A98 -> 227761.6015 | F98: =('Cash Flow'!CC89+'Cash Flow'!CD89)/(1+$F$5)^$A98 -> 291246.5154 | G98: =('Cash Flow'!CG89+'Cash Flow'!CH89)/(1+$G$5)^$A98 -> -455.5785201
A99: ='Cash Flow'!A90 -> 84 | B99: ='Cash Flow'!B90 -> 2024-02-01 | C99: ='Cash Flow'!C90 -> 0.08333333333 | E99: =('Cash Flow'!Q90+'Cash Flow'!R90+'Cash Flow'!T90+'Cash Flow'!U90)/(1+$E$5)^$A99 -> 225581.3029 | F99: =('Cash Flow'!CC90+'Cash Flow'!CD90)/(1+$F$5)^$A99 -> 288573.9549 | G99: =('Cash Flow'!CG90+'Cash Flow'!CH90)/(1+$G$5)^$A99 -> -434.037646
A100: ='Cash Flow'!A91 -> 85 | B100: ='Cash Flow'!B91 -> 2024-03-01 | C100: ='Cash Flow'!C91 -> 0.08333333333 | E100: =('Cash Flow'!Q91+'Cash Flow'!R91+'Cash Flow'!T91+'Cash Flow'!U91)/(1+$E$5)^$A100 -> 223421.7376 | F100: =('Cash Flow'!CC91+'Cash Flow'!CD91)/(1+$F$5)^$A100 -> 285930.0919 | G100: =('Cash Flow'!CG91+'Cash Flow'!CH91)/(1+$G$5)^$A100 -> -413.5216864
A101: ='Cash Flow'!A92 -> 86 | B101: ='Cash Flow'!B92 -> 2024-04-01 | C101: ='Cash Flow'!C92 -> 0.08333333333 | E101: =('Cash Flow'!Q92+'Cash Flow'!R92+'Cash Flow'!T92+'Cash Flow'!U92)/(1+$E$5)^$A101 -> 221282.7093 | F101: =('Cash Flow'!CC92+'Cash Flow'!CD92)/(1+$F$5)^$A101 -> 283314.5783 | G101: =('Cash Flow'!CG92+'Cash Flow'!CH92)/(1+$G$5)^$A101 -> -393.9816124
A102: ='Cash Flow'!A93 -> 87 | B102: ='Cash Flow'!B93 -> 2024-05-01 | C102: ='Cash Flow'!C93 -> 0.08333333333 | E102: =('Cash Flow'!Q93+'Cash Flow'!R93+'Cash Flow'!T93+'Cash Flow'!U93)/(1+$E$5)^$A102 -> 219164.0234 | F102: =('Cash Flow'!CC93+'Cash Flow'!CD93)/(1+$F$5)^$A102 -> 280727.0707 | G102: =('Cash Flow'!CG93+'Cash Flow'!CH93)/(1+$G$5)^$A102 -> -375.3707515
A103: ='Cash Flow'!A94 -> 88 | B103: ='Cash Flow'!B94 -> 2024-06-01 | C103: ='Cash Flow'!C94 -> 0.08333333333 | E103: =('Cash Flow'!Q94+'Cash Flow'!R94+'Cash Flow'!T94+'Cash Flow'!U94)/(1+$E$5)^$A103 -> 217065.4872 | F103: =('Cash Flow'!CC94+'Cash Flow'!CD94)/(1+$F$5)^$A103 -> 278167.2303 | G103: =('Cash Flow'!CG94+'Cash Flow'!CH94)/(1+$G$5)^$A103 -> -357.6446735
A104: ='Cash Flow'!A95 -> 89 | B104: ='Cash Flow'!B95 -> 2024-07-01 | C104: ='Cash Flow'!C95 -> 0.08333333333 | E104: =('Cash Flow'!Q95+'Cash Flow'!R95+'Cash Flow'!T95+'Cash Flow'!U95)/(1+$E$5)^$A104 -> 214986.9098 | F104: =('Cash Flow'!CC95+'Cash Flow'!CD95)/(1+$F$5)^$A104 -> 275634.7229 | G104: =('Cash Flow'!CG95+'Cash Flow'!CH95)/(1+$G$5)^$A104 -> -340.7610827
A105: ='Cash Flow'!A96 -> 90 | B105: ='Cash Flow'!B96 -> 2024-08-01 | C105: ='Cash Flow'!C96 -> 0.08333333333 | E105: =('Cash Flow'!Q96+'Cash Flow'!R96+'Cash Flow'!T96+'Cash Flow'!U96)/(1+$E$5)^$A105 -> 212928.1022 | F105: =('Cash Flow'!CC96+'Cash Flow'!CD96)/(1+$F$5)^$A105 -> 273129.2189 | G105: =('Cash Flow'!CG96+'Cash Flow'!CH96)/(1+$G$5)^$A105 -> -324.679715
A106: ='Cash Flow'!A97 -> 91 | B106: ='Cash Flow'!B97 -> 2024-09-01 | C106: ='Cash Flow'!C97 -> 0.08333333333 | E106: =('Cash Flow'!Q97+'Cash Flow'!R97+'Cash Flow'!T97+'Cash Flow'!U97)/(1+$E$5)^$A106 -> 210888.8772 | F106: =('Cash Flow'!CC97+'Cash Flow'!CD97)/(1+$F$5)^$A106 -> 270650.393 | G106: =('Cash Flow'!CG97+'Cash Flow'!CH97)/(1+$G$5)^$A106 -> -309.3622394
A107: ='Cash Flow'!A98 -> 92 | B107: ='Cash Flow'!B98 -> 2024-10-01 | C107: ='Cash Flow'!C98 -> 0.08333333333 | E107: =('Cash Flow'!Q98+'Cash Flow'!R98+'Cash Flow'!T98+'Cash Flow'!U98)/(1+$E$5)^$A107 -> 208869.0492 | F107: =('Cash Flow'!CC98+'Cash Flow'!CD98)/(1+$F$5)^$A107 -> 268197.9243 | G107: =('Cash Flow'!CG98+'Cash Flow'!CH98)/(1+$G$5)^$A107 -> -294.7721655
A108: ='Cash Flow'!A99 -> 93 | B108: ='Cash Flow'!B99 -> 2024-11-01 | C108: ='Cash Flow'!C99 -> 0.08333333333 | E108: =('Cash Flow'!Q99+'Cash Flow'!R99+'Cash Flow'!T99+'Cash Flow'!U99)/(1+$E$5)^$A108 -> 206868.4345 | F108: =('Cash Flow'!CC99+'Cash Flow'!CD99)/(1+$F$5)^$A108 -> 265771.4965 | G108: =('Cash Flow'!CG99+'Cash Flow'!CH99)/(1+$G$5)^$A108 -> -280.8747543
A109: ='Cash Flow'!A100 -> 94 | B109: ='Cash Flow'!B100 -> 2024-12-01 | C109: ='Cash Flow'!C100 -> 0.08333333333 | E109: =('Cash Flow'!Q100+'Cash Flow'!R100+'Cash Flow'!T100+'Cash Flow'!U100)/(1+$E$5)^$A109 -> 204886.8512 | F109: =('Cash Flow'!CC100+'Cash Flow'!CD100)/(1+$F$5)^$A109 -> 263370.7972 | G109: =('Cash Flow'!CG100+'Cash Flow'!CH100)/(1+$G$5)^$A109 -> -267.6369338
A110: ='Cash Flow'!A101 -> 95 | B110: ='Cash Flow'!B101 -> 2025-01-01 | C110: ='Cash Flow'!C101 -> 0.08333333333 | E110: =('Cash Flow'!Q101+'Cash Flow'!R101+'Cash Flow'!T101+'Cash Flow'!U101)/(1+$E$5)^$A110 -> 202924.119 | F110: =('Cash Flow'!CC101+'Cash Flow'!CD101)/(1+$F$5)^$A110 -> 260995.5184 | G110: =('Cash Flow'!CG101+'Cash Flow'!CH101)/(1+$G$5)^$A110 -> -255.0272191
A111: ='Cash Flow'!A102 -> 96 | B111: ='Cash Flow'!B102 -> 2025-02-01 | C111: ='Cash Flow'!C102 -> 0.08333333333 | E111: =('Cash Flow'!Q102+'Cash Flow'!R102+'Cash Flow'!T102+'Cash Flow'!U102)/(1+$E$5)^$A111 -> 200980.0594 | F111: =('Cash Flow'!CC102+'Cash Flow'!CD102)/(1+$F$5)^$A111 -> 258645.3562 | G111: =('Cash Flow'!CG102+'Cash Flow'!CH102)/(1+$G$5)^$A111 -> -243.0156352
A112: ='Cash Flow'!A103 -> 97 | B112: ='Cash Flow'!B103 -> 2025-03-01 | C112: ='Cash Flow'!C103 -> 0.08333333333 | E112: =('Cash Flow'!Q103+'Cash Flow'!R103+'Cash Flow'!T103+'Cash Flow'!U103)/(1+$E$5)^$A112 -> 199054.4955 | F112: =('Cash Flow'!CC103+'Cash Flow'!CD103)/(1+$F$5)^$A112 -> 256320.0108 | G112: =('Cash Flow'!CG103+'Cash Flow'!CH103)/(1+$G$5)^$A112 -> -231.5736451
A113: ='Cash Flow'!A104 -> 98 | B113: ='Cash Flow'!B104 -> 2025-04-01 | C113: ='Cash Flow'!C104 -> 0.08333333333 | E113: =('Cash Flow'!Q104+'Cash Flow'!R104+'Cash Flow'!T104+'Cash Flow'!U104)/(1+$E$5)^$A113 -> 197147.2522 | F113: =('Cash Flow'!CC104+'Cash Flow'!CD104)/(1+$F$5)^$A113 -> 254019.1865 | G113: =('Cash Flow'!CG104+'Cash Flow'!CH104)/(1+$G$5)^$A113 -> -220.6740798
A114: ='Cash Flow'!A105 -> 99 | B114: ='Cash Flow'!B105 -> 2025-05-01 | C114: ='Cash Flow'!C105 -> 0.08333333333 | E114: =('Cash Flow'!Q105+'Cash Flow'!R105+'Cash Flow'!T105+'Cash Flow'!U105)/(1+$E$5)^$A114 -> 195258.156 | F114: =('Cash Flow'!CC105+'Cash Flow'!CD105)/(1+$F$5)^$A114 -> 251742.5913 | G114: =('Cash Flow'!CG105+'Cash Flow'!CH105)/(1+$G$5)^$A114 -> -210.291073
A115: ='Cash Flow'!A106 -> 100 | B115: ='Cash Flow'!B106 -> 2025-06-01 | C115: ='Cash Flow'!C106 -> 0.08333333333 | E115: =('Cash Flow'!Q106+'Cash Flow'!R106+'Cash Flow'!T106+'Cash Flow'!U106)/(1+$E$5)^$A115 -> 193387.0351 | F115: =('Cash Flow'!CC106+'Cash Flow'!CD106)/(1+$F$5)^$A115 -> 249489.9375 | G115: =('Cash Flow'!CG106+'Cash Flow'!CH106)/(1+$G$5)^$A115 -> -200.3999979
A116: ='Cash Flow'!A107 -> 101 | B116: ='Cash Flow'!B107 -> 2025-07-01 | C116: ='Cash Flow'!C107 -> 0.08333333333 | E116: =('Cash Flow'!Q107+'Cash Flow'!R107+'Cash Flow'!T107+'Cash Flow'!U107)/(1+$E$5)^$A116 -> 191533.7191 | F116: =('Cash Flow'!CC107+'Cash Flow'!CD107)/(1+$F$5)^$A116 -> 247260.941 | G116: =('Cash Flow'!CG107+'Cash Flow'!CH107)/(1+$G$5)^$A116 -> -190.977408
A117: ='Cash Flow'!A108 -> 102 | B117: ='Cash Flow'!B108 -> 2025-08-01 | C117: ='Cash Flow'!C108 -> 0.08333333333 | E117: =('Cash Flow'!Q108+'Cash Flow'!R108+'Cash Flow'!T108+'Cash Flow'!U108)/(1+$E$5)^$A117 -> 189698.0397 | F117: =('Cash Flow'!CC108+'Cash Flow'!CD108)/(1+$F$5)^$A117 -> 245055.3214 | G117: =('Cash Flow'!CG108+'Cash Flow'!CH108)/(1+$G$5)^$A117 -> -182.0009799
A118: ='Cash Flow'!A109 -> 103 | B118: ='Cash Flow'!B109 -> 2025-09-01 | C118: ='Cash Flow'!C109 -> 0.08333333333 | E118: =('Cash Flow'!Q109+'Cash Flow'!R109+'Cash Flow'!T109+'Cash Flow'!U109)/(1+$E$5)^$A118 -> 187879.8297 | F118: =('Cash Flow'!CC109+'Cash Flow'!CD109)/(1+$F$5)^$A118 -> 242872.8024 | G118: =('Cash Flow'!CG109+'Cash Flow'!CH109)/(1+$G$5)^$A118 -> -173.4494594
A119: ='Cash Flow'!A110 -> 104 | B119: ='Cash Flow'!B110 -> 2025-10-01 | C119: ='Cash Flow'!C110 -> 0.08333333333 | E119: =('Cash Flow'!Q110+'Cash Flow'!R110+'Cash Flow'!T110+'Cash Flow'!U110)/(1+$E$5)^$A119 -> 186078.9237 | F119: =('Cash Flow'!CC110+'Cash Flow'!CD110)/(1+$F$5)^$A119 -> 240713.1111 | G119: =('Cash Flow'!CG110+'Cash Flow'!CH110)/(1+$G$5)^$A119 -> -165.3026103
A120: ='Cash Flow'!A111 -> 105 | B120: ='Cash Flow'!B111 -> 2025-11-01 | C120: ='Cash Flow'!C111 -> 0.08333333333 | E120: =('Cash Flow'!Q111+'Cash Flow'!R111+'Cash Flow'!T111+'Cash Flow'!U111)/(1+$E$5)^$A120 -> 184295.158 | F120: =('Cash Flow'!CC111+'Cash Flow'!CD111)/(1+$F$5)^$A120 -> 238575.9783 | G120: =('Cash Flow'!CG111+'Cash Flow'!CH111)/(1+$G$5)^$A120 -> -157.5411649
A121: ='Cash Flow'!A112 -> 106 | B121: ='Cash Flow'!B112 -> 2025-12-01 | C121: ='Cash Flow'!C112 -> 0.08333333333 | E121: =('Cash Flow'!Q112+'Cash Flow'!R112+'Cash Flow'!T112+'Cash Flow'!U112)/(1+$E$5)^$A121 -> 182528.3702 | F121: =('Cash Flow'!CC112+'Cash Flow'!CD112)/(1+$F$5)^$A121 -> 236461.1385 | G121: =('Cash Flow'!CG112+'Cash Flow'!CH112)/(1+$G$5)^$A121 -> -150.1467781
A122: ='Cash Flow'!A113 -> 107 | B122: ='Cash Flow'!B113 -> 2026-01-01 | C122: ='Cash Flow'!C113 -> 0.08333333333 | E122: =('Cash Flow'!Q113+'Cash Flow'!R113+'Cash Flow'!T113+'Cash Flow'!U113)/(1+$E$5)^$A122 -> 180778.3997 | F122: =('Cash Flow'!CC113+'Cash Flow'!CD113)/(1+$F$5)^$A122 -> 234368.3296 | G122: =('Cash Flow'!CG113+'Cash Flow'!CH113)/(1+$G$5)^$A122 -> -143.1019823
A123: ='Cash Flow'!A114 -> 108 | B123: ='Cash Flow'!B114 -> 2026-02-01 | C123: ='Cash Flow'!C114 -> 0.08333333333 | E123: =('Cash Flow'!Q114+'Cash Flow'!R114+'Cash Flow'!T114+'Cash Flow'!U114)/(1+$E$5)^$A123 -> 179045.0872 | F123: =('Cash Flow'!CC114+'Cash Flow'!CD114)/(1+$F$5)^$A123 -> 232297.2931 | G123: =('Cash Flow'!CG114+'Cash Flow'!CH114)/(1+$G$5)^$A123 -> -136.3901459
A124: ='Cash Flow'!A115 -> 109 | B124: ='Cash Flow'!B115 -> 2026-03-01 | C124: ='Cash Flow'!C115 -> 0.08333333333 | E124: =('Cash Flow'!Q115+'Cash Flow'!R115+'Cash Flow'!T115+'Cash Flow'!U115)/(1+$E$5)^$A124 -> 177328.2749 | F124: =('Cash Flow'!CC115+'Cash Flow'!CD115)/(1+$F$5)^$A124 -> 230247.7738 | G124: =('Cash Flow'!CG115+'Cash Flow'!CH115)/(1+$G$5)^$A124 -> -129.9954327
A125: ='Cash Flow'!A116 -> 110 | B125: ='Cash Flow'!B116 -> 2026-04-01 | C125: ='Cash Flow'!C116 -> 0.08333333333 | E125: =('Cash Flow'!Q116+'Cash Flow'!R116+'Cash Flow'!T116+'Cash Flow'!U116)/(1+$E$5)^$A125 -> 175627.8068 | F125: =('Cash Flow'!CC116+'Cash Flow'!CD116)/(1+$F$5)^$A125 -> 228219.5201 | G125: =('Cash Flow'!CG116+'Cash Flow'!CH116)/(1+$G$5)^$A125 -> -123.9027637
A126: ='Cash Flow'!A117 -> 111 | B126: ='Cash Flow'!B117 -> 2026-05-01 | C126: ='Cash Flow'!C117 -> 0.08333333333 | E126: =('Cash Flow'!Q117+'Cash Flow'!R117+'Cash Flow'!T117+'Cash Flow'!U117)/(1+$E$5)^$A126 -> 173943.5282 | F126: =('Cash Flow'!CC117+'Cash Flow'!CD117)/(1+$F$5)^$A126 -> 226212.2835 | G126: =('Cash Flow'!CG117+'Cash Flow'!CH117)/(1+$G$5)^$A126 -> -118.0977811
A127: ='Cash Flow'!A118 -> 112 | B127: ='Cash Flow'!B118 -> 2026-06-01 | C127: ='Cash Flow'!C118 -> 0.08333333333 | E127: =('Cash Flow'!Q118+'Cash Flow'!R118+'Cash Flow'!T118+'Cash Flow'!U118)/(1+$E$5)^$A127 -> 172275.2857 | F127: =('Cash Flow'!CC118+'Cash Flow'!CD118)/(1+$F$5)^$A127 -> 224225.819 | G127: =('Cash Flow'!CG118+'Cash Flow'!CH118)/(1+$G$5)^$A127 -> -112.566813
A128: ='Cash Flow'!A119 -> 113 | B128: ='Cash Flow'!B119 -> 2026-07-01 | C128: ='Cash Flow'!C119 -> 0.08333333333 | E128: =('Cash Flow'!Q119+'Cash Flow'!R119+'Cash Flow'!T119+'Cash Flow'!U119)/(1+$E$5)^$A128 -> 170622.9276 | F128: =('Cash Flow'!CC119+'Cash Flow'!CD119)/(1+$F$5)^$A128 -> 222259.8846 | G128: =('Cash Flow'!CG119+'Cash Flow'!CH119)/(1+$G$5)^$A128 -> -107.2968412
A129: ='Cash Flow'!A120 -> 114 | B129: ='Cash Flow'!B120 -> 2026-08-01 | C129: ='Cash Flow'!C120 -> 0.08333333333 | E129: =('Cash Flow'!Q120+'Cash Flow'!R120+'Cash Flow'!T120+'Cash Flow'!U120)/(1+$E$5)^$A129 -> 168986.3036 | F129: =('Cash Flow'!CC120+'Cash Flow'!CD120)/(1+$F$5)^$A129 -> 220314.2419 | G129: =('Cash Flow'!CG120+'Cash Flow'!CH120)/(1+$G$5)^$A129 -> -102.2754691
A130: ='Cash Flow'!A121 -> 115 | B130: ='Cash Flow'!B121 -> 2026-09-01 | C130: ='Cash Flow'!C121 -> 0.08333333333 | E130: =('Cash Flow'!Q121+'Cash Flow'!R121+'Cash Flow'!T121+'Cash Flow'!U121)/(1+$E$5)^$A130 -> 167365.2648 | F130: =('Cash Flow'!CC121+'Cash Flow'!CD121)/(1+$F$5)^$A130 -> 218388.6552 | G130: =('Cash Flow'!CG121+'Cash Flow'!CH121)/(1+$G$5)^$A130 -> -97.49089252
A131: ='Cash Flow'!A122 -> 116 | B131: ='Cash Flow'!B122 -> 2026-10-01 | C131: ='Cash Flow'!C122 -> 0.08333333333 | E131: =('Cash Flow'!Q122+'Cash Flow'!R122+'Cash Flow'!T122+'Cash Flow'!U122)/(1+$E$5)^$A131 -> 165759.6636 | F131: =('Cash Flow'!CC122+'Cash Flow'!CD122)/(1+$F$5)^$A131 -> 216482.8922 | G131: =('Cash Flow'!CG122+'Cash Flow'!CH122)/(1+$G$5)^$A131 -> -92.93187079
A132: ='Cash Flow'!A123 -> 117 | B132: ='Cash Flow'!B123 -> 2026-11-01 | C132: ='Cash Flow'!C123 -> 0.08333333333 | E132: =('Cash Flow'!Q123+'Cash Flow'!R123+'Cash Flow'!T123+'Cash Flow'!U123)/(1+$E$5)^$A132 -> 164169.3541 | F132: =('Cash Flow'!CC123+'Cash Flow'!CD123)/(1+$F$5)^$A132 -> 214596.7236 | G132: =('Cash Flow'!CG123+'Cash Flow'!CH123)/(1+$G$5)^$A132 -> -88.58769989
A133: ='Cash Flow'!A124 -> 118 | B133: ='Cash Flow'!B124 -> 2026-12-01 | C133: ='Cash Flow'!C124 -> 0.08333333333 | E133: =('Cash Flow'!Q124+'Cash Flow'!R124+'Cash Flow'!T124+'Cash Flow'!U124)/(1+$E$5)^$A133 -> 162594.1914 | F133: =('Cash Flow'!CC124+'Cash Flow'!CD124)/(1+$F$5)^$A133 -> 212729.9231 | G133: =('Cash Flow'!CG124+'Cash Flow'!CH124)/(1+$G$5)^$A133 -> -84.44818673
A134: ='Cash Flow'!A125 -> 119 | B134: ='Cash Flow'!B125 -> 2027-01-01 | C134: ='Cash Flow'!C125 -> 0.08333333333 | E134: =('Cash Flow'!Q125+'Cash Flow'!R125+'Cash Flow'!T125+'Cash Flow'!U125)/(1+$E$5)^$A134 -> 161034.0322 | F134: =('Cash Flow'!CC125+'Cash Flow'!CD125)/(1+$F$5)^$A134 -> 210882.2675 | G134: =('Cash Flow'!CG125+'Cash Flow'!CH125)/(1+$G$5)^$A134 -> -80.50362457
A135: ='Cash Flow'!A126 -> 120 | B135: ='Cash Flow'!B126 -> 2027-02-01 | C135: ='Cash Flow'!C126 -> 0.08333333333 | E135: =('Cash Flow'!Q126+'Cash Flow'!R126+'Cash Flow'!T126+'Cash Flow'!U126)/(1+$E$5)^$A135 -> 159488.7347 | F135: =('Cash Flow'!CC126+'Cash Flow'!CD126)/(1+$F$5)^$A135 -> 209053.5363 | G135: =('Cash Flow'!CG126+'Cash Flow'!CH126)/(1+$G$5)^$A135 -> -76.74476975
A136: ='Cash Flow'!A127 -> 121 | B136: ='Cash Flow'!B127 -> 2027-03-01 | C136: ='Cash Flow'!C127 -> 0.08333333333 | E136: =('Cash Flow'!Q127+'Cash Flow'!R127+'Cash Flow'!T127+'Cash Flow'!U127)/(1+$E$5)^$A136 -> 157958.1581 | F136: =('Cash Flow'!CC127+'Cash Flow'!CD127)/(1+$F$5)^$A136 -> 207243.512 | G136: =('Cash Flow'!CG127+'Cash Flow'!CH127)/(1+$G$5)^$A136 -> -73.16281946
A137: ='Cash Flow'!A128 -> 122 | B137: ='Cash Flow'!B128 -> 2027-04-01 | C137: ='Cash Flow'!C128 -> 0.08333333333 | E137: =('Cash Flow'!Q128+'Cash Flow'!R128+'Cash Flow'!T128+'Cash Flow'!U128)/(1+$E$5)^$A137 -> 156442.1633 | F137: =('Cash Flow'!CC128+'Cash Flow'!CD128)/(1+$F$5)^$A137 -> 205451.9802 | G137: =('Cash Flow'!CG128+'Cash Flow'!CH128)/(1+$G$5)^$A137 -> -69.74939064
A138: ='Cash Flow'!A129 -> 123 | B138: ='Cash Flow'!B129 -> 2027-05-01 | C138: ='Cash Flow'!C129 -> 0.08333333333 | E138: =('Cash Flow'!Q129+'Cash Flow'!R129+'Cash Flow'!T129+'Cash Flow'!U129)/(1+$E$5)^$A138 -> 154940.6122 | F138: =('Cash Flow'!CC129+'Cash Flow'!CD129)/(1+$F$5)^$A138 -> 203678.7289 | G138: =('Cash Flow'!CG129+'Cash Flow'!CH129)/(1+$G$5)^$A138 -> -66.49649982
A139: ='Cash Flow'!A130 -> 124 | B139: ='Cash Flow'!B130 -> 2027-06-01 | C139: ='Cash Flow'!C130 -> 0.08333333333 | E139: =('Cash Flow'!Q130+'Cash Flow'!R130+'Cash Flow'!T130+'Cash Flow'!U130)/(1+$E$5)^$A139 -> 153453.3682 | F139: =('Cash Flow'!CC130+'Cash Flow'!CD130)/(1+$F$5)^$A139 -> 201923.5492 | G139: =('Cash Flow'!CG130+'Cash Flow'!CH130)/(1+$G$5)^$A139 -> -63.39654401
A140: ='Cash Flow'!A131 -> 125 | B140: ='Cash Flow'!B131 -> 2027-07-01 | C140: ='Cash Flow'!C131 -> 0.08333333333 | E140: =('Cash Flow'!Q131+'Cash Flow'!R131+'Cash Flow'!T131+'Cash Flow'!U131)/(1+$E$5)^$A140 -> 151980.2961 | F140: =('Cash Flow'!CC131+'Cash Flow'!CD131)/(1+$F$5)^$A140 -> 200186.2348 | G140: =('Cash Flow'!CG131+'Cash Flow'!CH131)/(1+$G$5)^$A140 -> -60.44228245
A141: ='Cash Flow'!A132 -> 126 | B141: ='Cash Flow'!B132 -> 2027-08-01 | C141: ='Cash Flow'!C132 -> 0.08333333333 | E141: =('Cash Flow'!Q132+'Cash Flow'!R132+'Cash Flow'!T132+'Cash Flow'!U132)/(1+$E$5)^$A141 -> 150521.2617 | F141: =('Cash Flow'!CC132+'Cash Flow'!CD132)/(1+$F$5)^$A141 -> 198466.5821 | G141: =('Cash Flow'!CG132+'Cash Flow'!CH132)/(1+$G$5)^$A141 -> -57.62681929
A142: ='Cash Flow'!A133 -> 127 | B142: ='Cash Flow'!B133 -> 2027-09-01 | C142: ='Cash Flow'!C133 -> 0.08333333333 | E142: =('Cash Flow'!Q133+'Cash Flow'!R133+'Cash Flow'!T133+'Cash Flow'!U133)/(1+$E$5)^$A142 -> 149076.1322 | F142: =('Cash Flow'!CC133+'Cash Flow'!CD133)/(1+$F$5)^$A142 -> 196764.3902 | G142: =('Cash Flow'!CG133+'Cash Flow'!CH133)/(1+$G$5)^$A142 -> -54.94358705
A143: ='Cash Flow'!A134 -> 128 | B143: ='Cash Flow'!B134 -> 2027-10-01 | C143: ='Cash Flow'!C134 -> 0.08333333333 | E143: =('Cash Flow'!Q134+'Cash Flow'!R134+'Cash Flow'!T134+'Cash Flow'!U134)/(1+$E$5)^$A143 -> 147644.7763 | F143: =('Cash Flow'!CC134+'Cash Flow'!CD134)/(1+$F$5)^$A143 -> 195079.4609 | G143: =('Cash Flow'!CG134+'Cash Flow'!CH134)/(1+$G$5)^$A143 -> -52.38633091
A144: ='Cash Flow'!A135 -> 129 | B144: ='Cash Flow'!B135 -> 2027-11-01 | C144: ='Cash Flow'!C135 -> 0.08333333333 | E144: =('Cash Flow'!Q135+'Cash Flow'!R135+'Cash Flow'!T135+'Cash Flow'!U135)/(1+$E$5)^$A144 -> 146227.0635 | F144: =('Cash Flow'!CC135+'Cash Flow'!CD135)/(1+$F$5)^$A144 -> 193411.5985 | G144: =('Cash Flow'!CG135+'Cash Flow'!CH135)/(1+$G$5)^$A144 -> -49.94909375
A145: ='Cash Flow'!A136 -> 130 | B145: ='Cash Flow'!B136 -> 2027-12-01 | C145: ='Cash Flow'!C136 -> 0.08333333333 | E145: =('Cash Flow'!Q136+'Cash Flow'!R136+'Cash Flow'!T136+'Cash Flow'!U136)/(1+$E$5)^$A145 -> 144822.8649 | F145: =('Cash Flow'!CC136+'Cash Flow'!CD136)/(1+$F$5)^$A145 -> 191760.6097 | G145: =('Cash Flow'!CG136+'Cash Flow'!CH136)/(1+$G$5)^$A145 -> -47.62620191
A146: ='Cash Flow'!A137 -> 131 | B146: ='Cash Flow'!B137 -> 2028-01-01 | C146: ='Cash Flow'!C137 -> 0.08333333333 | E146: =('Cash Flow'!Q137+'Cash Flow'!R137+'Cash Flow'!T137+'Cash Flow'!U137)/(1+$E$5)^$A146 -> 143432.0527 | F146: =('Cash Flow'!CC137+'Cash Flow'!CD137)/(1+$F$5)^$A146 -> 190126.3041 | G146: =('Cash Flow'!CG137+'Cash Flow'!CH137)/(1+$G$5)^$A146 -> -45.41225159
A147: ='Cash Flow'!A138 -> 132 | B147: ='Cash Flow'!B138 -> 2028-02-01 | C147: ='Cash Flow'!C138 -> 0.08333333333 | E147: =('Cash Flow'!Q138+'Cash Flow'!R138+'Cash Flow'!T138+'Cash Flow'!U138)/(1+$E$5)^$A147 -> 142054.5003 | F147: =('Cash Flow'!CC138+'Cash Flow'!CD138)/(1+$F$5)^$A147 -> 188508.4933 | G147: =('Cash Flow'!CG138+'Cash Flow'!CH138)/(1+$G$5)^$A147 -> -43.30209603
A148: ='Cash Flow'!A139 -> 133 | B148: ='Cash Flow'!B139 -> 2028-03-01 | C148: ='Cash Flow'!C139 -> 0.08333333333 | E148: =('Cash Flow'!Q139+'Cash Flow'!R139+'Cash Flow'!T139+'Cash Flow'!U139)/(1+$E$5)^$A148 -> 140690.0823 | F148: =('Cash Flow'!CC139+'Cash Flow'!CD139)/(1+$F$5)^$A148 -> 186906.9919 | G148: =('Cash Flow'!CG139+'Cash Flow'!CH139)/(1+$G$5)^$A148 -> -41.29083311
A149: ='Cash Flow'!A140 -> 134 | B149: ='Cash Flow'!B140 -> 2028-04-01 | C149: ='Cash Flow'!C140 -> 0.08333333333 | E149: =('Cash Flow'!Q140+'Cash Flow'!R140+'Cash Flow'!T140+'Cash Flow'!U140)/(1+$E$5)^$A149 -> 139338.6746 | F149: =('Cash Flow'!CC140+'Cash Flow'!CD140)/(1+$F$5)^$A149 -> 185321.6164 | G149: =('Cash Flow'!CG140+'Cash Flow'!CH140)/(1+$G$5)^$A149 -> -39.37379376
A150: ='Cash Flow'!A141 -> 135 | B150: ='Cash Flow'!B141 -> 2028-05-01 | C150: ='Cash Flow'!C141 -> 0.08333333333 | E150: =('Cash Flow'!Q141+'Cash Flow'!R141+'Cash Flow'!T141+'Cash Flow'!U141)/(1+$E$5)^$A150 -> 138000.1542 | F150: =('Cash Flow'!CC141+'Cash Flow'!CD141)/(1+$F$5)^$A150 -> 183752.1859 | G150: =('Cash Flow'!CG141+'Cash Flow'!CH141)/(1+$G$5)^$A150 -> -37.54653073
A151: ='Cash Flow'!A142 -> 136 | B151: ='Cash Flow'!B142 -> 2028-06-01 | C151: ='Cash Flow'!C142 -> 0.08333333333 | E151: =('Cash Flow'!Q142+'Cash Flow'!R142+'Cash Flow'!T142+'Cash Flow'!U142)/(1+$E$5)^$A151 -> 136674.3992 | F151: =('Cash Flow'!CC142+'Cash Flow'!CD142)/(1+$F$5)^$A151 -> 182198.522 | G151: =('Cash Flow'!CG142+'Cash Flow'!CH142)/(1+$G$5)^$A151 -> -35.80480807
A152: ='Cash Flow'!A143 -> 137 | B152: ='Cash Flow'!B143 -> 2028-07-01 | C152: ='Cash Flow'!C143 -> 0.08333333333 | E152: =('Cash Flow'!Q143+'Cash Flow'!R143+'Cash Flow'!T143+'Cash Flow'!U143)/(1+$E$5)^$A152 -> 135361.289 | F152: =('Cash Flow'!CC143+'Cash Flow'!CD143)/(1+$F$5)^$A152 -> 180660.4484 | G152: =('Cash Flow'!CG143+'Cash Flow'!CH143)/(1+$G$5)^$A152 -> -34.14459098
A153: ='Cash Flow'!A144 -> 138 | B153: ='Cash Flow'!B144 -> 2028-08-01 | C153: ='Cash Flow'!C144 -> 0.08333333333 | E153: =('Cash Flow'!Q144+'Cash Flow'!R144+'Cash Flow'!T144+'Cash Flow'!U144)/(1+$E$5)^$A153 -> 134060.7041 | F153: =('Cash Flow'!CC144+'Cash Flow'!CD144)/(1+$F$5)^$A153 -> 179137.7911 | G153: =('Cash Flow'!CG144+'Cash Flow'!CH144)/(1+$G$5)^$A153 -> -32.56203622
A154: ='Cash Flow'!A145 -> 139 | B154: ='Cash Flow'!B145 -> 2028-09-01 | C154: ='Cash Flow'!C145 -> 0.08333333333 | E154: =('Cash Flow'!Q145+'Cash Flow'!R145+'Cash Flow'!T145+'Cash Flow'!U145)/(1+$E$5)^$A154 -> 132772.526 | F154: =('Cash Flow'!CC145+'Cash Flow'!CD145)/(1+$F$5)^$A154 -> 177630.3784 | G154: =('Cash Flow'!CG145+'Cash Flow'!CH145)/(1+$G$5)^$A154 -> -31.05348299
A155: ='Cash Flow'!A146 -> 140 | B155: ='Cash Flow'!B146 -> 2028-10-01 | C155: ='Cash Flow'!C146 -> 0.08333333333 | E155: =('Cash Flow'!Q146+'Cash Flow'!R146+'Cash Flow'!T146+'Cash Flow'!U146)/(1+$E$5)^$A155 -> 131496.6376 | F155: =('Cash Flow'!CC146+'Cash Flow'!CD146)/(1+$F$5)^$A155 -> 176138.0409 | G155: =('Cash Flow'!CG146+'Cash Flow'!CH146)/(1+$G$5)^$A155 -> -29.61544418
A156: ='Cash Flow'!A147 -> 141 | B156: ='Cash Flow'!B147 -> 2028-11-01 | C156: ='Cash Flow'!C147 -> 0.08333333333 | E156: =('Cash Flow'!Q147+'Cash Flow'!R147+'Cash Flow'!T147+'Cash Flow'!U147)/(1+$E$5)^$A156 -> 130232.9227 | F156: =('Cash Flow'!CC147+'Cash Flow'!CD147)/(1+$F$5)^$A156 -> 174660.6112 | G156: =('Cash Flow'!CG147+'Cash Flow'!CH147)/(1+$G$5)^$A156 -> -28.24459809
A157: ='Cash Flow'!A148 -> 142 | B157: ='Cash Flow'!B148 -> 2028-12-01 | C157: ='Cash Flow'!C148 -> 0.08333333333 | E157: =('Cash Flow'!Q148+'Cash Flow'!R148+'Cash Flow'!T148+'Cash Flow'!U148)/(1+$E$5)^$A157 -> 128981.2662 | F157: =('Cash Flow'!CC148+'Cash Flow'!CD148)/(1+$F$5)^$A157 -> 173197.9243 | G157: =('Cash Flow'!CG148+'Cash Flow'!CH148)/(1+$G$5)^$A157 -> -26.93778058
A158: ='Cash Flow'!A149 -> 143 | B158: ='Cash Flow'!B149 -> 2029-01-01 | C158: ='Cash Flow'!C149 -> 0.08333333333 | E158: =('Cash Flow'!Q149+'Cash Flow'!R149+'Cash Flow'!T149+'Cash Flow'!U149)/(1+$E$5)^$A158 -> 127741.5543 | F158: =('Cash Flow'!CC149+'Cash Flow'!CD149)/(1+$F$5)^$A158 -> 171749.817 | G158: =('Cash Flow'!CG149+'Cash Flow'!CH149)/(1+$G$5)^$A158 -> -25.6919775
A159: ='Cash Flow'!A150 -> 144 | B159: ='Cash Flow'!B150 -> 2029-02-01 | C159: ='Cash Flow'!C150 -> 0.08333333333 | E159: =('Cash Flow'!Q150+'Cash Flow'!R150+'Cash Flow'!T150+'Cash Flow'!U150)/(1+$E$5)^$A159 -> 126513.6741 | F159: =('Cash Flow'!CC150+'Cash Flow'!CD150)/(1+$F$5)^$A159 -> 170316.1286 | G159: =('Cash Flow'!CG150+'Cash Flow'!CH150)/(1+$G$5)^$A159 -> -24.50431756
A160: ='Cash Flow'!A151 -> 145 | B160: ='Cash Flow'!B151 -> 2029-03-01 | C160: ='Cash Flow'!C151 -> 0.08333333333 | E160: =('Cash Flow'!Q151+'Cash Flow'!R151+'Cash Flow'!T151+'Cash Flow'!U151)/(1+$E$5)^$A160 -> 125297.5137 | F160: =('Cash Flow'!CC151+'Cash Flow'!CD151)/(1+$F$5)^$A160 -> 168896.7001 | G160: =('Cash Flow'!CG151+'Cash Flow'!CH151)/(1+$G$5)^$A160 -> -23.37206553
A161: ='Cash Flow'!A152 -> 146 | B161: ='Cash Flow'!B152 -> 2029-04-01 | C161: ='Cash Flow'!C152 -> 0.08333333333 | E161: =('Cash Flow'!Q152+'Cash Flow'!R152+'Cash Flow'!T152+'Cash Flow'!U152)/(1+$E$5)^$A161 -> 124092.9626 | F161: =('Cash Flow'!CC152+'Cash Flow'!CD152)/(1+$F$5)^$A161 -> 167491.3748 | G161: =('Cash Flow'!CG152+'Cash Flow'!CH152)/(1+$G$5)^$A161 -> -22.29261572
A162: ='Cash Flow'!A153 -> 147 | B162: ='Cash Flow'!B153 -> 2029-05-01 | C162: ='Cash Flow'!C153 -> 0.08333333333 | E162: =('Cash Flow'!Q153+'Cash Flow'!R153+'Cash Flow'!T153+'Cash Flow'!U153)/(1+$E$5)^$A162 -> 122899.9111 | F162: =('Cash Flow'!CC153+'Cash Flow'!CD153)/(1+$F$5)^$A162 -> 166099.9979 | G162: =('Cash Flow'!CG153+'Cash Flow'!CH153)/(1+$G$5)^$A162 -> -21.26348585
A163: ='Cash Flow'!A154 -> 148 | B163: ='Cash Flow'!B154 -> 2029-06-01 | C163: ='Cash Flow'!C154 -> 0.08333333333 | E163: =('Cash Flow'!Q154+'Cash Flow'!R154+'Cash Flow'!T154+'Cash Flow'!U154)/(1+$E$5)^$A163 -> 121718.2505 | F163: =('Cash Flow'!CC154+'Cash Flow'!CD154)/(1+$F$5)^$A163 -> 164722.4167 | G163: =('Cash Flow'!CG154+'Cash Flow'!CH154)/(1+$G$5)^$A163 -> -20.28231116
A164: ='Cash Flow'!A155 -> 149 | B164: ='Cash Flow'!B155 -> 2029-07-01 | C164: ='Cash Flow'!C155 -> 0.08333333333 | E164: =('Cash Flow'!Q155+'Cash Flow'!R155+'Cash Flow'!T155+'Cash Flow'!U155)/(1+$E$5)^$A164 -> 120547.8733 | F164: =('Cash Flow'!CC155+'Cash Flow'!CD155)/(1+$F$5)^$A164 -> 163358.4802 | G164: =('Cash Flow'!CG155+'Cash Flow'!CH155)/(1+$G$5)^$A164 -> -19.34683878
A165: ='Cash Flow'!A156 -> 150 | B165: ='Cash Flow'!B156 -> 2029-08-01 | C165: ='Cash Flow'!C156 -> 0.08333333333 | E165: =('Cash Flow'!Q156+'Cash Flow'!R156+'Cash Flow'!T156+'Cash Flow'!U156)/(1+$E$5)^$A165 -> 119388.6729 | F165: =('Cash Flow'!CC156+'Cash Flow'!CD156)/(1+$F$5)^$A165 -> 162008.0396 | G165: =('Cash Flow'!CG156+'Cash Flow'!CH156)/(1+$G$5)^$A165 -> -18.45492244
A166: ='Cash Flow'!A157 -> 151 | B166: ='Cash Flow'!B157 -> 2029-09-01 | C166: ='Cash Flow'!C157 -> 0.08333333333 | E166: =('Cash Flow'!Q157+'Cash Flow'!R157+'Cash Flow'!T157+'Cash Flow'!U157)/(1+$E$5)^$A166 -> 118240.5438 | F166: =('Cash Flow'!CC157+'Cash Flow'!CD157)/(1+$F$5)^$A166 -> 160670.9479 | G166: =('Cash Flow'!CG157+'Cash Flow'!CH157)/(1+$G$5)^$A166 -> -17.60451739
A167: ='Cash Flow'!A158 -> 152 | B167: ='Cash Flow'!B158 -> 2029-10-01 | C167: ='Cash Flow'!C158 -> 0.08333333333 | E167: =('Cash Flow'!Q158+'Cash Flow'!R158+'Cash Flow'!T158+'Cash Flow'!U158)/(1+$E$5)^$A167 -> 117103.3814 | F167: =('Cash Flow'!CC158+'Cash Flow'!CD158)/(1+$F$5)^$A167 -> 159347.06 | G167: =('Cash Flow'!CG158+'Cash Flow'!CH158)/(1+$G$5)^$A167 -> -16.79367554
A168: ='Cash Flow'!A159 -> 153 | B168: ='Cash Flow'!B159 -> 2029-11-01 | C168: ='Cash Flow'!C159 -> 0.08333333333 | E168: =('Cash Flow'!Q159+'Cash Flow'!R159+'Cash Flow'!T159+'Cash Flow'!U159)/(1+$E$5)^$A168 -> 115977.0823 | F168: =('Cash Flow'!CC159+'Cash Flow'!CD159)/(1+$F$5)^$A168 -> 158036.2327 | G168: =('Cash Flow'!CG159+'Cash Flow'!CH159)/(1+$G$5)^$A168 -> -16.02054089
A169: ='Cash Flow'!A160 -> 154 | B169: ='Cash Flow'!B160 -> 2029-12-01 | C169: ='Cash Flow'!C160 -> 0.08333333333 | E169: =('Cash Flow'!Q160+'Cash Flow'!R160+'Cash Flow'!T160+'Cash Flow'!U160)/(1+$E$5)^$A169 -> 114861.5439 | F169: =('Cash Flow'!CC160+'Cash Flow'!CD160)/(1+$F$5)^$A169 -> 156738.3245 | G169: =('Cash Flow'!CG160+'Cash Flow'!CH160)/(1+$G$5)^$A169 -> -15.28334517
A170: ='Cash Flow'!A161 -> 155 | B170: ='Cash Flow'!B161 -> 2030-01-01 | C170: ='Cash Flow'!C161 -> 0.08333333333 | E170: =('Cash Flow'!Q161+'Cash Flow'!R161+'Cash Flow'!T161+'Cash Flow'!U161)/(1+$E$5)^$A170 -> 113756.6647 | F170: =('Cash Flow'!CC161+'Cash Flow'!CD161)/(1+$F$5)^$A170 -> 155453.1958 | G170: =('Cash Flow'!CG161+'Cash Flow'!CH161)/(1+$G$5)^$A170 -> -14.58040359
A171: ='Cash Flow'!A162 -> 156 | B171: ='Cash Flow'!B162 -> 2030-02-01 | C171: ='Cash Flow'!C162 -> 0.08333333333 | E171: =('Cash Flow'!Q162+'Cash Flow'!R162+'Cash Flow'!T162+'Cash Flow'!U162)/(1+$E$5)^$A171 -> 112662.344 | F171: =('Cash Flow'!CC162+'Cash Flow'!CD162)/(1+$F$5)^$A171 -> 154180.7087 | G171: =('Cash Flow'!CG162+'Cash Flow'!CH162)/(1+$G$5)^$A171 -> -13.91011097
A172: ='Cash Flow'!A163 -> 157 | B172: ='Cash Flow'!B163 -> 2030-03-01 | C172: ='Cash Flow'!C163 -> 0.08333333333 | E172: =('Cash Flow'!Q163+'Cash Flow'!R163+'Cash Flow'!T163+'Cash Flow'!U163)/(1+$E$5)^$A172 -> 111578.4821 | F172: =('Cash Flow'!CC163+'Cash Flow'!CD163)/(1+$F$5)^$A172 -> 152920.7273 | G172: =('Cash Flow'!CG163+'Cash Flow'!CH163)/(1+$G$5)^$A172 -> -13.27093788
A173: ='Cash Flow'!A164 -> 158 | B173: ='Cash Flow'!B164 -> 2030-04-01 | C173: ='Cash Flow'!C164 -> 0.08333333333 | E173: =('Cash Flow'!Q164+'Cash Flow'!R164+'Cash Flow'!T164+'Cash Flow'!U164)/(1+$E$5)^$A173 -> 110504.9805 | F173: =('Cash Flow'!CC164+'Cash Flow'!CD164)/(1+$F$5)^$A173 -> 151673.1171 | G173: =('Cash Flow'!CG164+'Cash Flow'!CH164)/(1+$G$5)^$A173 -> -12.66142707
A174: ='Cash Flow'!A165 -> 159 | B174: ='Cash Flow'!B165 -> 2030-05-01 | C174: ='Cash Flow'!C165 -> 0.08333333333 | E174: =('Cash Flow'!Q165+'Cash Flow'!R165+'Cash Flow'!T165+'Cash Flow'!U165)/(1+$E$5)^$A174 -> 109441.7414 | F174: =('Cash Flow'!CC165+'Cash Flow'!CD165)/(1+$F$5)^$A174 -> 150437.7455 | G174: =('Cash Flow'!CG165+'Cash Flow'!CH165)/(1+$G$5)^$A174 -> -12.08019007
A175: ='Cash Flow'!A166 -> 160 | B175: ='Cash Flow'!B166 -> 2030-06-01 | C175: ='Cash Flow'!C166 -> 0.08333333333 | E175: =('Cash Flow'!Q166+'Cash Flow'!R166+'Cash Flow'!T166+'Cash Flow'!U166)/(1+$E$5)^$A175 -> 108388.6679 | F175: =('Cash Flow'!CC166+'Cash Flow'!CD166)/(1+$F$5)^$A175 -> 149214.4816 | G175: =('Cash Flow'!CG166+'Cash Flow'!CH166)/(1+$G$5)^$A175 -> -11.52590385
A176: ='Cash Flow'!A167 -> 161 | B176: ='Cash Flow'!B167 -> 2030-07-01 | C176: ='Cash Flow'!C167 -> 0.08333333333 | E176: =('Cash Flow'!Q167+'Cash Flow'!R167+'Cash Flow'!T167+'Cash Flow'!U167)/(1+$E$5)^$A176 -> 107345.6642 | F176: =('Cash Flow'!CC167+'Cash Flow'!CD167)/(1+$F$5)^$A176 -> 148003.196 | G176: =('Cash Flow'!CG167+'Cash Flow'!CH167)/(1+$G$5)^$A176 -> -10.9973078
A177: ='Cash Flow'!A168 -> 162 | B177: ='Cash Flow'!B168 -> 2030-08-01 | C177: ='Cash Flow'!C168 -> 0.08333333333 | E177: =('Cash Flow'!Q168+'Cash Flow'!R168+'Cash Flow'!T168+'Cash Flow'!U168)/(1+$E$5)^$A177 -> 106312.6353 | F177: =('Cash Flow'!CC168+'Cash Flow'!CD168)/(1+$F$5)^$A177 -> 146803.7612 | G177: =('Cash Flow'!CG168+'Cash Flow'!CH168)/(1+$G$5)^$A177 -> -10.4932007
A178: ='Cash Flow'!A169 -> 163 | B178: ='Cash Flow'!B169 -> 2030-09-01 | C178: ='Cash Flow'!C169 -> 0.08333333333 | E178: =('Cash Flow'!Q169+'Cash Flow'!R169+'Cash Flow'!T169+'Cash Flow'!U169)/(1+$E$5)^$A178 -> 105289.4871 | F178: =('Cash Flow'!CC169+'Cash Flow'!CD169)/(1+$F$5)^$A178 -> 145616.0511 | G178: =('Cash Flow'!CG169+'Cash Flow'!CH169)/(1+$G$5)^$A178 -> -10.01243794
A179: ='Cash Flow'!A170 -> 164 | B179: ='Cash Flow'!B170 -> 2030-10-01 | C179: ='Cash Flow'!C170 -> 0.08333333333 | E179: =('Cash Flow'!Q170+'Cash Flow'!R170+'Cash Flow'!T170+'Cash Flow'!U170)/(1+$E$5)^$A179 -> 104276.1265 | F179: =('Cash Flow'!CC170+'Cash Flow'!CD170)/(1+$F$5)^$A179 -> 144439.9412 | G179: =('Cash Flow'!CG170+'Cash Flow'!CH170)/(1+$G$5)^$A179 -> -9.553928813
A180: ='Cash Flow'!A171 -> 165 | B180: ='Cash Flow'!B171 -> 2030-11-01 | C180: ='Cash Flow'!C171 -> 0.08333333333 | E180: =('Cash Flow'!Q171+'Cash Flow'!R171+'Cash Flow'!T171+'Cash Flow'!U171)/(1+$E$5)^$A180 -> 103272.4611 | F180: =('Cash Flow'!CC171+'Cash Flow'!CD171)/(1+$F$5)^$A180 -> 143275.3088 | G180: =('Cash Flow'!CG171+'Cash Flow'!CH171)/(1+$G$5)^$A180 -> -9.116633987
A181: ='Cash Flow'!A172 -> 166 | B181: ='Cash Flow'!B172 -> 2030-12-01 | C181: ='Cash Flow'!C172 -> 0.08333333333 | E181: =('Cash Flow'!Q172+'Cash Flow'!R172+'Cash Flow'!T172+'Cash Flow'!U172)/(1+$E$5)^$A181 -> 102278.3997 | F181: =('Cash Flow'!CC172+'Cash Flow'!CD172)/(1+$F$5)^$A181 -> 142122.0325 | G181: =('Cash Flow'!CG172+'Cash Flow'!CH172)/(1+$G$5)^$A181 -> -8.699563035
A182: ='Cash Flow'!A173 -> 167 | B182: ='Cash Flow'!B173 -> 2031-01-01 | C182: ='Cash Flow'!C173 -> 0.08333333333 | E182: =('Cash Flow'!Q173+'Cash Flow'!R173+'Cash Flow'!T173+'Cash Flow'!U173)/(1+$E$5)^$A182 -> 101293.8516 | F182: =('Cash Flow'!CC173+'Cash Flow'!CD173)/(1+$F$5)^$A182 -> 140979.9926 | G182: =('Cash Flow'!CG173+'Cash Flow'!CH173)/(1+$G$5)^$A182 -> -8.301772142
A183: ='Cash Flow'!A174 -> 168 | B183: ='Cash Flow'!B174 -> 2031-02-01 | C183: ='Cash Flow'!C174 -> 0.08333333333 | E183: =('Cash Flow'!Q174+'Cash Flow'!R174+'Cash Flow'!T174+'Cash Flow'!U174)/(1+$E$5)^$A183 -> 100318.7272 | F183: =('Cash Flow'!CC174+'Cash Flow'!CD174)/(1+$F$5)^$A183 -> 139849.0707 | G183: =('Cash Flow'!CG174+'Cash Flow'!CH174)/(1+$G$5)^$A183 -> -7.922361886
A184: ='Cash Flow'!A175 -> 169 | B184: ='Cash Flow'!B175 -> 2031-03-01 | C184: ='Cash Flow'!C175 -> 0.08333333333 | E184: =('Cash Flow'!Q175+'Cash Flow'!R175+'Cash Flow'!T175+'Cash Flow'!U175)/(1+$E$5)^$A184 -> 99352.93767 | F184: =('Cash Flow'!CC175+'Cash Flow'!CD175)/(1+$F$5)^$A184 -> 138729.1502 | G184: =('Cash Flow'!CG175+'Cash Flow'!CH175)/(1+$G$5)^$A184 -> -7.560475139
A185: ='Cash Flow'!A176 -> 170 | B185: ='Cash Flow'!B176 -> 2031-04-01 | C185: ='Cash Flow'!C176 -> 0.08333333333 | E185: =('Cash Flow'!Q176+'Cash Flow'!R176+'Cash Flow'!T176+'Cash Flow'!U176)/(1+$E$5)^$A185 -> 98396.39511 | F185: =('Cash Flow'!CC176+'Cash Flow'!CD176)/(1+$F$5)^$A185 -> 137618.1479 | G185: =('Cash Flow'!CG176+'Cash Flow'!CH176)/(1+$G$5)^$A185 -> -7.215295065
A186: ='Cash Flow'!A177 -> 171 | B186: ='Cash Flow'!B177 -> 2031-05-01 | C186: ='Cash Flow'!C177 -> 0.08333333333 | E186: =('Cash Flow'!Q177+'Cash Flow'!R177+'Cash Flow'!T177+'Cash Flow'!U177)/(1+$E$5)^$A186 -> 97449.01236 | F186: =('Cash Flow'!CC177+'Cash Flow'!CD177)/(1+$F$5)^$A186 -> 136517.9631 | G186: =('Cash Flow'!CG177+'Cash Flow'!CH177)/(1+$G$5)^$A186 -> -6.886043209
A187: ='Cash Flow'!A178 -> 172 | B187: ='Cash Flow'!B178 -> 2031-06-01 | C187: ='Cash Flow'!C178 -> 0.08333333333 | E187: =('Cash Flow'!Q178+'Cash Flow'!R178+'Cash Flow'!T178+'Cash Flow'!U178)/(1+$E$5)^$A187 -> 96510.70316 | F187: =('Cash Flow'!CC178+'Cash Flow'!CD178)/(1+$F$5)^$A187 -> 135428.4827 | G187: =('Cash Flow'!CG178+'Cash Flow'!CH178)/(1+$G$5)^$A187 -> -6.571977685
A188: ='Cash Flow'!A179 -> 173 | B188: ='Cash Flow'!B179 -> 2031-07-01 | C188: ='Cash Flow'!C179 -> 0.08333333333 | E188: =('Cash Flow'!Q179+'Cash Flow'!R179+'Cash Flow'!T179+'Cash Flow'!U179)/(1+$E$5)^$A188 -> 95581.38204 | F188: =('Cash Flow'!CC179+'Cash Flow'!CD179)/(1+$F$5)^$A188 -> 134349.595 | G188: =('Cash Flow'!CG179+'Cash Flow'!CH179)/(1+$G$5)^$A188 -> -6.272391443
A189: ='Cash Flow'!A180 -> 174 | B189: ='Cash Flow'!B180 -> 2031-08-01 | C189: ='Cash Flow'!C180 -> 0.08333333333 | E189: =('Cash Flow'!Q180+'Cash Flow'!R180+'Cash Flow'!T180+'Cash Flow'!U180)/(1+$E$5)^$A189 -> 94660.96436 | F189: =('Cash Flow'!CC180+'Cash Flow'!CD180)/(1+$F$5)^$A189 -> 133281.1895 | G189: =('Cash Flow'!CG180+'Cash Flow'!CH180)/(1+$G$5)^$A189 -> -5.986610624
A190: ='Cash Flow'!A181 -> 175 | B190: ='Cash Flow'!B181 -> 2031-09-01 | C190: ='Cash Flow'!C181 -> 0.08333333333 | E190: =('Cash Flow'!Q181+'Cash Flow'!R181+'Cash Flow'!T181+'Cash Flow'!U181)/(1+$E$5)^$A190 -> 93749.3663 | F190: =('Cash Flow'!CC181+'Cash Flow'!CD181)/(1+$F$5)^$A190 -> 132223.1575 | G190: =('Cash Flow'!CG181+'Cash Flow'!CH181)/(1+$G$5)^$A190 -> -5.71399299
A191: ='Cash Flow'!A182 -> 176 | B191: ='Cash Flow'!B182 -> 2031-10-01 | C191: ='Cash Flow'!C182 -> 0.08333333333 | E191: =('Cash Flow'!Q182+'Cash Flow'!R182+'Cash Flow'!T182+'Cash Flow'!U182)/(1+$E$5)^$A191 -> 92846.50481 | F191: =('Cash Flow'!CC182+'Cash Flow'!CD182)/(1+$F$5)^$A191 -> 131175.3912 | G191: =('Cash Flow'!CG182+'Cash Flow'!CH182)/(1+$G$5)^$A191 -> -5.453926427
A192: ='Cash Flow'!A183 -> 177 | B192: ='Cash Flow'!B183 -> 2031-11-01 | C192: ='Cash Flow'!C183 -> 0.08333333333 | E192: =('Cash Flow'!Q183+'Cash Flow'!R183+'Cash Flow'!T183+'Cash Flow'!U183)/(1+$E$5)^$A192 -> 91952.29768 | F192: =('Cash Flow'!CC183+'Cash Flow'!CD183)/(1+$F$5)^$A192 -> 130137.7846 | G192: =('Cash Flow'!CG183+'Cash Flow'!CH183)/(1+$G$5)^$A192 -> -5.205827525
A193: ='Cash Flow'!A184 -> 178 | B193: ='Cash Flow'!B184 -> 2031-12-01 | C193: ='Cash Flow'!C184 -> 0.08333333333 | E193: =('Cash Flow'!Q184+'Cash Flow'!R184+'Cash Flow'!T184+'Cash Flow'!U184)/(1+$E$5)^$A193 -> 91066.66344 | F193: =('Cash Flow'!CC184+'Cash Flow'!CD184)/(1+$F$5)^$A193 -> 129110.2327 | G193: =('Cash Flow'!CG184+'Cash Flow'!CH184)/(1+$G$5)^$A193 -> -4.969140222
A194: ='Cash Flow'!A185 -> 179 | B194: ='Cash Flow'!B185 -> 2032-01-01 | C194: ='Cash Flow'!C185 -> 0.08333333333 | E194: =('Cash Flow'!Q185+'Cash Flow'!R185+'Cash Flow'!T185+'Cash Flow'!U185)/(1+$E$5)^$A194 -> 90189.52143 | F194: =('Cash Flow'!CC185+'Cash Flow'!CD185)/(1+$F$5)^$A194 -> 128092.632 | G194: =('Cash Flow'!CG185+'Cash Flow'!CH185)/(1+$G$5)^$A194 -> -4.743334511
A195: ='Cash Flow'!A186 -> 180 | B195: ='Cash Flow'!B186 -> 2032-02-01 | C195: ='Cash Flow'!C186 -> 0.08333333333 | E195: =('Cash Flow'!Q186+'Cash Flow'!R186+'Cash Flow'!T186+'Cash Flow'!U186)/(1+$E$5)^$A195 -> 89320.79175 | F195: =('Cash Flow'!CC186+'Cash Flow'!CD186)/(1+$F$5)^$A195 -> 127084.8801 | G195: =('Cash Flow'!CG186+'Cash Flow'!CH186)/(1+$G$5)^$A195 -> -4.52790521
A196: ='Cash Flow'!A187 -> 181 | B196: ='Cash Flow'!B187 -> 2032-03-01 | C196: ='Cash Flow'!C187 -> 0.08333333333 | E196: =('Cash Flow'!Q187+'Cash Flow'!R187+'Cash Flow'!T187+'Cash Flow'!U187)/(1+$E$5)^$A196 -> 88460.39526 | F196: =('Cash Flow'!CC187+'Cash Flow'!CD187)/(1+$F$5)^$A196 -> 126086.8763 | G196: =('Cash Flow'!CG187+'Cash Flow'!CH187)/(1+$G$5)^$A196 -> -4.322370793
A197: ='Cash Flow'!A188 -> 182 | B197: ='Cash Flow'!B188 -> 2032-04-01 | C197: ='Cash Flow'!C188 -> 0.08333333333 | E197: =('Cash Flow'!Q188+'Cash Flow'!R188+'Cash Flow'!T188+'Cash Flow'!U188)/(1+$E$5)^$A197 -> 87608.25361 | F197: =('Cash Flow'!CC188+'Cash Flow'!CD188)/(1+$F$5)^$A197 -> 125098.5206 | G197: =('Cash Flow'!CG188+'Cash Flow'!CH188)/(1+$G$5)^$A197 -> -4.12627227
A198: ='Cash Flow'!A189 -> 183 | B198: ='Cash Flow'!B189 -> 2032-05-01 | C198: ='Cash Flow'!C189 -> 0.08333333333 | E198: =('Cash Flow'!Q189+'Cash Flow'!R189+'Cash Flow'!T189+'Cash Flow'!U189)/(1+$E$5)^$A198 -> 86764.28915 | F198: =('Cash Flow'!CC189+'Cash Flow'!CD189)/(1+$F$5)^$A198 -> 124119.7148 | G198: =('Cash Flow'!CG189+'Cash Flow'!CH189)/(1+$G$5)^$A198 -> -3.939172129
A199: ='Cash Flow'!A190 -> 184 | B199: ='Cash Flow'!B190 -> 2032-06-01 | C199: ='Cash Flow'!C190 -> 0.08333333333 | E199: =('Cash Flow'!Q190+'Cash Flow'!R190+'Cash Flow'!T190+'Cash Flow'!U190)/(1+$E$5)^$A199 -> 85928.42501 | F199: =('Cash Flow'!CC190+'Cash Flow'!CD190)/(1+$F$5)^$A199 -> 123150.3616 | G199: =('Cash Flow'!CG190+'Cash Flow'!CH190)/(1+$G$5)^$A199 -> -3.760653321
A200: ='Cash Flow'!A191 -> 185 | B200: ='Cash Flow'!B191 -> 2032-07-01 | C200: ='Cash Flow'!C191 -> 0.08333333333 | E200: =('Cash Flow'!Q191+'Cash Flow'!R191+'Cash Flow'!T191+'Cash Flow'!U191)/(1+$E$5)^$A200 -> 85100.58504 | F200: =('Cash Flow'!CC191+'Cash Flow'!CD191)/(1+$F$5)^$A200 -> 122190.3649 | G200: =('Cash Flow'!CG191+'Cash Flow'!CH191)/(1+$G$5)^$A200 -> -3.590318294
A201: ='Cash Flow'!A192 -> 186 | B201: ='Cash Flow'!B192 -> 2032-08-01 | C201: ='Cash Flow'!C192 -> 0.08333333333 | E201: =('Cash Flow'!Q192+'Cash Flow'!R192+'Cash Flow'!T192+'Cash Flow'!U192)/(1+$E$5)^$A201 -> 84280.69384 | F201: =('Cash Flow'!CC192+'Cash Flow'!CD192)/(1+$F$5)^$A201 -> 121239.6301 | G201: =('Cash Flow'!CG192+'Cash Flow'!CH192)/(1+$G$5)^$A201 -> -3.427788077
A202: ='Cash Flow'!A193 -> 187 | B202: ='Cash Flow'!B193 -> 2032-09-01 | C202: ='Cash Flow'!C193 -> 0.08333333333 | E202: =('Cash Flow'!Q193+'Cash Flow'!R193+'Cash Flow'!T193+'Cash Flow'!U193)/(1+$E$5)^$A202 -> 83468.6767 | F202: =('Cash Flow'!CC193+'Cash Flow'!CD193)/(1+$F$5)^$A202 -> 120298.0634 | G202: =('Cash Flow'!CG193+'Cash Flow'!CH193)/(1+$G$5)^$A202 -> -3.272701405
A203: ='Cash Flow'!A194 -> 188 | B203: ='Cash Flow'!B194 -> 2032-10-01 | C203: ='Cash Flow'!C194 -> 0.08333333333 | E203: =('Cash Flow'!Q194+'Cash Flow'!R194+'Cash Flow'!T194+'Cash Flow'!U194)/(1+$E$5)^$A203 -> 82664.45966 | F203: =('Cash Flow'!CC194+'Cash Flow'!CD194)/(1+$F$5)^$A203 -> 119365.5725 | G203: =('Cash Flow'!CG194+'Cash Flow'!CH194)/(1+$G$5)^$A203 -> -3.124713883
A204: ='Cash Flow'!A195 -> 189 | B204: ='Cash Flow'!B195 -> 2032-11-01 | C204: ='Cash Flow'!C195 -> 0.08333333333 | E204: =('Cash Flow'!Q195+'Cash Flow'!R195+'Cash Flow'!T195+'Cash Flow'!U195)/(1+$E$5)^$A204 -> 81867.96944 | F204: =('Cash Flow'!CC195+'Cash Flow'!CD195)/(1+$F$5)^$A204 -> 118442.0661 | G204: =('Cash Flow'!CG195+'Cash Flow'!CH195)/(1+$G$5)^$A204 -> -2.983497196
A205: ='Cash Flow'!A196 -> 190 | B205: ='Cash Flow'!B196 -> 2032-12-01 | C205: ='Cash Flow'!C196 -> 0.08333333333 | E205: =('Cash Flow'!Q196+'Cash Flow'!R196+'Cash Flow'!T196+'Cash Flow'!U196)/(1+$E$5)^$A205 -> 81079.13349 | F205: =('Cash Flow'!CC196+'Cash Flow'!CD196)/(1+$F$5)^$A205 -> 117527.4541 | G205: =('Cash Flow'!CG196+'Cash Flow'!CH196)/(1+$G$5)^$A205 -> -2.848738346
A206: ='Cash Flow'!A197 -> 191 | B206: ='Cash Flow'!B197 -> 2033-01-01 | C206: ='Cash Flow'!C197 -> 0.08333333333 | E206: =('Cash Flow'!Q197+'Cash Flow'!R197+'Cash Flow'!T197+'Cash Flow'!U197)/(1+$E$5)^$A206 -> 80297.87993 | F206: =('Cash Flow'!CC197+'Cash Flow'!CD197)/(1+$F$5)^$A206 -> 116621.6475 | G206: =('Cash Flow'!CG197+'Cash Flow'!CH197)/(1+$G$5)^$A206 -> -2.720138938
A207: ='Cash Flow'!A198 -> 192 | B207: ='Cash Flow'!B198 -> 2033-02-01 | C207: ='Cash Flow'!C198 -> 0.08333333333 | E207: =('Cash Flow'!Q198+'Cash Flow'!R198+'Cash Flow'!T198+'Cash Flow'!U198)/(1+$E$5)^$A207 -> 79524.13759 | F207: =('Cash Flow'!CC198+'Cash Flow'!CD198)/(1+$F$5)^$A207 -> 115724.5583 | G207: =('Cash Flow'!CG198+'Cash Flow'!CH198)/(1+$G$5)^$A207 -> -2.597414492
... 168 more rows

Sheet Cash Flow
E3: Notional Amort Schedule | L3: Actual Amortization | AM3: Fee | AR3: Senior Debt Interest | AZ3: Senior Debt Principal | BG3: Reserve Account | BN3: Subordinated Debt Interest | BT3: Subordinated Debt Principal | CB3: Loan Balances
A4: Period | B4: Date | C4: Day Factor | E4: Beginning Balance | F4: Interest Rate | G4: Payment | H4: Interest | I4: Principal | J4: Ending Balance | L4: Beginning Balance | M4: Default Rate | N4: New Defaults | O4: Amort Factor | P4: Prepay Rate | Q4: Voluntary Prepay | R4: Actual Amort | S4: Interest Rate | T4: Actual Interest | U4: Prinicipal Recovery | V4: Ending Balance | X4: Total Cash Flow Available for Liabilities | Z4: Event of Default | AA4: Capture Trigger | AB4: Post Default Mo Trigger | AC4: Default Trigger | AE4: Notional Swap Schedule | AF4: Swap Rate In | AG4: Swap Flow In | AH4: Swap Rate Out | AI4: Swap Flow Out | AJ4: Swap Earn/Pay | AK4: Cash Available | AM4: Fees Due | AN4: Fees Paid | AO4: Unpaid | AP4: Cash Remaining | AR4: Note Interest Rate | AS4: Note Interest Due | AT4: Note Interest Paid | AU4: Unpaid | AV4: Unpaid Covered by Reserve | AW4: Unpaid | AX4: Cash Remaining | AZ4: Principal Due | BA4: Principal Paid | BB4: Unpaid | BC4: Unpaid Covered by Reserve | BD4: Unpaid | BE4: Cash Remaining | BG4: Reserve Account Minimum | BH4: Reserve Account Beginning Balance | BI4: Withdrawals | BJ4: Reimbursements | BK4: Reserve Account Ending Balance | BL4: Cash Remaining | BN4: Sub Loan Rate | BO4: Loan Interest Dues | BP4: Loan Interest Paid | BQ4: Unpaid Interest | BR4: Cash Remaining | BT4: Loan Principal Due | BU4: Loan Principal Paid | BV4: Unpaid | BW4: Cash Remaining | BY4: Excess Applied to Sr Prin | BZ4: Excess Released | CB4: Senior Loan EOP Balance | CC4: Senior Interest | CD4: Senior Principal | CF4: Sub Loan EOP Balance | CG4: Sub Interest | CH4: Sub Principal | CJ4: Cash In | CK4: Cash Out | CL4: Difference | CN4: Asset Amort Total | CO4: Combined Trigger Tracking | CP4: Cumulative Default Percentage
N5: =SUM(N7:N366) -> 50000000 | Q5: =SUM(Q7:Q366) -> 16581878.65 | R5: =SUM(R7:R366) -> 33418121.35 | CL5: =SUM(CL7:CL366) -> 0
A6: 0 | B6: =IF(A6=0,ClosingDate,IF(A6=1,FirstPayDate,EDATE(B5,PmtFreqAdd))) -> 2017-02-01 | C6: =IF(A6=0,0,IF(DayCountSys="30/360",DAYS360(B5,B6)/360,IF(DayCountSys="Actual/360",(B6-B5)*360,(B6-B5)/365))) -> 0 | J6: =IF(A6=0,AssetCurBal1,E6-I6) -> 100000000 | O6: =IF(A6=0,1,J6/$J$6) -> 1 | V6: =IF(A6=0,AssetCurBal1,L6-N6-Q6-R6) -> 100000000 | BK6: =IF(A6=0,AssetCurBal1*RsrvPercent,BH6-BI6+BJ6) -> 1000000 | CB6: =IF(A6=0,V6*LiabAdvRate1,CB5-CD6) -> 127588971.7 | CF6: =IF(A6=0,V6*LiabAdvRate2,CF5-CH7) -> -27588971.72
A7: 1 | B7: 2017-03-01 | C7: 0.08333333333 | E7: =J6 -> 100000000 | F7: =IF(AssetIntType1="Fixed",AssetFxdRate1,IF(A7=1,OFFSET(Vectors!$D$6,A7,MATCH(AssetFltIndx1,lstInterestRates,0)),IF(MOD($A7,AssetRateReset1)=0,MAX(MIN(OFFSET(Vectors!$D$6,A7,MATCH(AssetFltIndx1,lstInterestRates,0)),(F6-AssetMarg1)+AssetPdCapFl1,AssetLifeCap1),(F6-AssetMarg1)-AssetPdCapFl1,AssetLifeFloor1-AssetMarg1),F6)))+AssetMarg1 -> 0.105 | G7: =IF(J6<=G6,H7+E7,-PMT($F$7*$C$7,OrgTerm1,AssetOrgBal1)) -> 914739.2945 | H7: =F7*C7*E7 -> 875000 | I7: =G7-H7 -> 39739.29449 | J7: 99960260.71 | L7: =V6 -> 100000000 | M7: =IF(pdrLossTime1="",OFFSET(Vectors!AE6:AE,A7+SeasoningAge1,MATCH(SDA_Loss,lstSDA,0)),OFFSET(Vectors!$X$6,A7+SeasoningAge1,MATCH(pdrLossTime1,lstDefaultCurve,0))) -> 0.008333333333 | N7: =MIN(L7,IF(pdrLossTime1="",L7*M7,$L$7*M7)) -> 833333.3333 | O7: =IF(A7=0,1,J7/$J$6) -> 0.9996026071 | P7: =OFFSET(Vectors!$L$6,A7+SeasoningAge1,MATCH(pdrPrepay1,lstPrepayCurve,0))*pdrPrepayStress1 -> 0.01 | Q7: =IF(L7=0,0,MAX(MIN((L7-N7),L7*O7/6*P7),0)) -> 166600.4345 | R7: =(L7-N7)*(1-O7/O6) -> 39408.13371 | S7: =F7 -> 0.105 | T7: =S7*C7*(L7-N7) -> 867708.3333 | U7: =IF(A7<=pdrRecovLag1,0,OFFSET(N7,-pdrRecovLag1,0)*pdrRecovRate1) -> 0 | V7: =IF(A7=0,AssetCurBal1,L7-N7-Q7-R7) -> 98960658.1 | X7: =Q7+R7+T7+U7 -> 1073716.902 | Z7: FALSE | AA7: =IF(GlobalTrigger="Yes",TRUE,FALSE) -> TRUE | AB7: =IF(AND(A7>=PostDefTriggerMo,PostDefTriggerMo<>0),TRUE,FALSE) -> FALSE | AC7: =IF(CP7>Trigger_Def,TRUE,FALSE) -> FALSE | AE7: 94171439.15 | AF7: =IF(Swap_Active="No",0,OFFSET(Vectors!$D$6,Vectors!A7,MATCH(Swap_IN,lstInterestRates,0))) -> 0.026 | AG7: =AE7*AF7*C7 -> 204038.1181 | AH7: =IF(Swap_Active="No",0,OFFSET(Vectors!$D$6,Vectors!A7,MATCH(Swap_OUT,lstInterestRates,0))) -> 0.04 | AI7: =AE7*AH7*C7 -> 313904.7972 | AJ7: =AG7-AI7 -> -109866.679 | AK7: =X7+AJ7 -> 963850.2225 | AM7: =C7*AssetFee*L7+C7*LiabFees1*CB6+C7*LiabFees2*CF6 -> 219828.7382 | AN7: =MIN(X7,AM7) -> 219828.7382 | AO7: =AM7-AN7 -> 0 | AP7: =AK7-AN7 -> 744021.4843 | AR7: =IF(LiabIntType1="fixed",LiabFxdRate1,OFFSET(Vectors!$D$6,Vectors!A7,MATCH(LiabLoanIndex1,lstInterestRates,0)))+LiabMarg1 -> 0.036 | AS7: =C7*AR7*CB6 -> 382766.9152 | AT7: =MIN(AP7,AS7) -> 382766.9152 | AU7: =AS7-AT7 -> 0 | AV7: =IF(LiabReserveOnOff1="No",0,MIN(AU7,BH7)) -> 0 | AW7: =AU7-AV7 -> 0 | AX7: =AP7-AT7 -> 361254.5692 | AZ7: =IF(OR(Z7,AB7,AC7),MIN(AX7,AX7+BH7-AV7,CB6),IF(LiabPrinType1="Sequential",MIN((N7+Q7+R7),CB6),MIN((N7+Q7+R7)*LiabAdvRate1,CB6))) -> 1326085.645 | BA7: =MIN(AX7,AZ7) -> 361254.5692 | BB7: =AZ7-BA7 -> 964831.0757 | BC7: =IF(LiabReserveOnOff1="No",0,MIN(BB7,BH7-AV7)) -> 964831.0757 | BD7: =BB7-BC7 -> 0 | BE7: =AX7-BA7 -> 0 | BG7: =AssetCurBal1*RsrvPercent -> 1000000 | BH7: =BK6 -> 1000000 | BI7: =AV7+BC7 -> 964831.0757 | BJ7: =IF(CB6<1,0,MAX(MIN(BG7-BH7,BE7),0)) -> 0 | BK7: 35168.92434 | BL7: =BE7-BJ7 -> 0 | BN7: =IF(LiabIntType2="Fixed",LiabFxdRate2,OFFSET(Vectors!$D$6,Vectors!A7,MATCH(LiabLoanIndex2,lstInterestRates,0))) -> 0.04 | BO7: =C7*BN7*CF6 -> -91963.23906 | BP7: =MIN(BL7,BO7) -> -91963.23906 | BQ7: =BO7-BP7 -> 0 | BR7: =BL7-BP7 -> 91963.23906 | BT7: =IF(AND(LiabPrinType2="sequential",CB6>0),0,IF(LiabPrinType2="sequential",MIN((N7+Q7+R7),CF6),MIN((N7+Q7+R7)*LiabAdvRate2,CF6))) -> -27588971.72 | BU7: =MIN(BR7,BT7) -> -27588971.72 | BV7: =BT7-BU7 -> 0 | BW7: =BR7-BU7 -> 27680934.96 | BY7: =IF(AA7,MIN(BW7,CB6-BA7),0) -> 27680934.96 | BZ7: =BW7-BY7 -> 0 | CB7: 98581951.12 | CC7: =AT7+AV7 -> 382766.9152 | CD7: =BA7+BC7+BY7 -> 29007020.6 | CF7: =IF(A7=0,V7*LiabAdvRate2,CF6-CH7) -> 0 | CG7: =BP7 -> -91963.23906 | CH7: =BU7 -> -27588971.72 | CJ7: =Q7+R7+T7+U7+AG7+BI7 -> 2242586.095 | CK7: =AI7+AN7+AT7+AV7+BA7+BC7+BJ7+BP7+BU7+BY7+BZ7 -> 2242586.095 | CL7: =CJ7-CK7 -> 0 | CN7: =N7+Q7+R7 -> 1039341.902 | CO7: =OR(Z7:AB7) -> TRUE | CP7: =N7/$L$7+CP6 -> 0.008333333333
A8: 2 | B8: 2017-04-01 | C8: 0.08333333333 | E8: =J7 -> 99960260.71 | F8: =IF(AssetIntType1="Fixed",AssetFxdRate1,IF(A8=1,OFFSET(Vectors!$D$6,A8,MATCH(AssetFltIndx1,lstInterestRates,0)),IF(MOD($A8,AssetRateReset1)=0,MAX(MIN(OFFSET(Vectors!$D$6,A8,MATCH(AssetFltIndx1,lstInterestRates,0)),(F7-AssetMarg1)+AssetPdCapFl1,AssetLifeCap1),(F7-AssetMarg1)-AssetPdCapFl1,AssetLifeFloor1-AssetMarg1),F7)))+AssetMarg1 -> 0.105 | G8: 914739.2945 | H8: =F8*C8*E8 -> 874652.2812 | I8: =G8-H8 -> 40087.01332 | J8: 99920173.69 | L8: =V7 -> 98960658.1 | M8: =IF(pdrLossTime1="",OFFSET(Vectors!AE7:AE,A8+SeasoningAge1,MATCH(SDA_Loss,lstSDA,0)),OFFSET(Vectors!$X$6,A8+SeasoningAge1,MATCH(pdrLossTime1,lstDefaultCurve,0))) -> 0.008333333333 | N8: 833333.3333 | O8: =IF(A8=0,1,J8/$J$6) -> 0.9992017369 | P8: =OFFSET(Vectors!$L$6,A8+SeasoningAge1,MATCH(pdrPrepay1,lstPrepayCurve,0))*pdrPrepayStress1 -> 0.01 | Q8: =IF(L8=0,0,MAX(MIN((L8-N8),L8*O8/6*P8),0)) -> 164802.7691 | R8: =(L8-N8)*(1-O8/O7) -> 39351.95194 | S8: =F8 -> 0.105 | T8: =S8*C8*(L8-N8) -> 858614.0917 | U8: 0 | V8: 97923170.04 | X8: =Q8+R8+T8+U8 -> 1062768.813 | Z8: FALSE | AA8: TRUE | AB8: FALSE | AC8: FALSE | AE8: 93117362.75 | AF8: =IF(Swap_Active="No",0,OFFSET(Vectors!$D$6,Vectors!A8,MATCH(Swap_IN,lstInterestRates,0))) -> 0.028119 | AG8: =AE8*AF8*C8 -> 218197.2603 | AH8: =IF(Swap_Active="No",0,OFFSET(Vectors!$D$6,Vectors!A8,MATCH(Swap_OUT,lstInterestRates,0))) -> 0.04 | AI8: =AE8*AH8*C8 -> 310391.2092 | AJ8: =AG8-AI8 -> -92193.94891 | AK8: =X8+AJ8 -> 970574.8638 | AM8: 206010.2431 | AN8: =MIN(X8,AM8) -> 206010.2431 | AO8: =AM8-AN8 -> 0 | AP8: =AK8-AN8 -> 764564.6207 | AR8: =IF(LiabIntType1="fixed",LiabFxdRate1,OFFSET(Vectors!$D$6,Vectors!A8,MATCH(LiabLoanIndex1,lstInterestRates,0)))+LiabMarg1 -> 0.038119 | AS8: =C8*AR8*CB7 -> 313153.7829 | AT8: =MIN(AP8,AS8) -> 313153.7829 | AU8: =AS8-AT8 -> 0 | AV8: 0 | AW8: =AU8-AV8 -> 0 | AX8: =AP8-AT8 -> 451410.8378 | AZ8: 1323720.34 | BA8: =MIN(AX8,AZ8) -> 451410.8378 | BB8: =AZ8-BA8 -> 872309.5025 | BC8: 35168.92434 | BD8: =BB8-BC8 -> 837140.5781 | BE8: =AX8-BA8 -> 0 | BG8: 1000000 | BH8: =BK7 -> 35168.92434 | BI8: =AV8+BC8 -> 35168.92434 | BJ8: =IF(CB7<1,0,MAX(MIN(BG8-BH8,BE8),0)) -> 0 | BK8: 0 | BL8: =BE8-BJ8 -> 0 | BN8: =IF(LiabIntType2="Fixed",LiabFxdRate2,OFFSET(Vectors!$D$6,Vectors!A8,MATCH(LiabLoanIndex2,lstInterestRates,0))) -> 0.04 | BO8: =C8*BN8*CF7 -> 0 | BP8: =MIN(BL8,BO8) -> 0 | BQ8: =BO8-BP8 -> 0 | BR8: =BL8-BP8 -> 0 | BT8: -286232.2859 | BU8: =MIN(BR8,BT8) -> -286232.2859 | BV8: =BT8-BU8 -> 0 | BW8: =BR8-BU8 -> 286232.2859 | BY8: =IF(AA8,MIN(BW8,CB7-BA8),0) -> 286232.2859 | BZ8: =BW8-BY8 -> 0 | CB8: 97809139.07 | CC8: =AT8+AV8 -> 313153.7829 | CD8: =BA8+BC8+BY8 -> 772812.0481 | CF8: 286232.2859 | CG8: 0 | CH8: -286232.2859 | CJ8: =Q8+R8+T8+U8+AG8+BI8 -> 1316134.997 | CK8: =AI8+AN8+AT8+AV8+BA8+BC8+BJ8+BP8+BU8+BY8+BZ8 -> 1316134.997 | CL8: =CJ8-CK8 -> 0 | CN8: =N8+Q8+R8 -> 1037488.054 | CO8: =OR(Z8:AB8) -> TRUE | CP8: =N8/$L$7+CP7 -> 0.01666666667
A9: 3 | B9: 2017-05-01 | C9: 0.08333333333 | E9: 99920173.69 | F9: =IF(AssetIntType1="Fixed",AssetFxdRate1,IF(A9=1,OFFSET(Vectors!$D$6,A9,MATCH(AssetFltIndx1,lstInterestRates,0)),IF(MOD($A9,AssetRateReset1)=0,MAX(MIN(OFFSET(Vectors!$D$6,A9,MATCH(AssetFltIndx1,lstInterestRates,0)),(F8-AssetMarg1)+AssetPdCapFl1,AssetLifeCap1),(F8-AssetMarg1)-AssetPdCapFl1,AssetLifeFloor1-AssetMarg1),F8)))+AssetMarg1 -> 0.105 | G9: 914739.2945 | H9: 874301.5198 | I9: 40437.77469 | J9: 99879735.92 | L9: 97923170.04 | M9: =IF(pdrLossTime1="",OFFSET(Vectors!AE8:AE,A9+SeasoningAge1,MATCH(SDA_Loss,lstSDA,0)),OFFSET(Vectors!$X$6,A9+SeasoningAge1,MATCH(pdrLossTime1,lstDefaultCurve,0))) -> 0.008333333333 | N9: 833333.3333 | O9: 0.9987973592 | P9: =OFFSET(Vectors!$L$6,A9+SeasoningAge1,MATCH(pdrPrepay1,lstPrepayCurve,0))*pdrPrepayStress1 -> 0.01 | Q9: 163009.0061 | R9: 39292.33503 | S9: 0.105 | T9: 849536.0712 | U9: 0 | V9: 96887535.37 | X9: 1051837.412 | Z9: FALSE | AA9: TRUE | AB9: TRUE | AC9: FALSE | AE9: 92073966.37 | AF9: =IF(Swap_Active="No",0,OFFSET(Vectors!$D$6,Vectors!A9,MATCH(Swap_IN,lstInterestRates,0))) -> 0.028744 | AG9: 220547.8408 | AH9: =IF(Swap_Active="No",0,OFFSET(Vectors!$D$6,Vectors!A9,MATCH(Swap_OUT,lstInterestRates,0))) -> 0.04 | AI9: 306913.2212 | AJ9: -86365.38046 | AK9: 965472.0319 | AM9: 203959.0914 | AN9: 203959.0914 | AO9: 0 | AP9: 761512.9405 | AR9: =IF(LiabIntType1="fixed",LiabFxdRate1,OFFSET(Vectors!$D$6,Vectors!A9,MATCH(LiabLoanIndex1,lstInterestRates,0)))+LiabMarg1 -> 0.038744 | AS9: 315793.107 | AT9: 315793.107 | AU9: 0 | AV9: 0 | AW9: 0 | AX9: 445719.8335 | AZ9: 445719.8335 | BA9: 445719.8335 | BB9: 0 | BC9: 0 | BD9: 0 | BE9: 0 | BG9: 1000000 | BH9: 0 | BI9: 0 | BJ9: 0 | BK9: 0 | BL9: 0 | BN9: =IF(LiabIntType2="Fixed",LiabFxdRate2,OFFSET(Vectors!$D$6,Vectors!A9,MATCH(LiabLoanIndex2,lstInterestRates,0))) -> 0.04 | BO9: 954.1076197 | BP9: 0 | BQ9: 954.1076197 | BR9: 0 | BT9: -285720.9574 | BU9: -285720.9574 | BV9: 0 | BW9: 285720.9574 | BY9: 285720.9574 | BZ9: 0 | CB9: 97077698.28 | CC9: 315793.107 | CD9: 731440.7909 | CF9: 571953.2433 | CG9: 0 | CH9: -285720.9574 | CJ9: 1272385.253 | CK9: 1272385.253 | CL9: 0 | CN9: 1035634.674 | CO9: TRUE | CP9: 0.025
A10: 4 | B10: 2017-06-01 | C10: 0.08333333333 | E10: 99879735.92 | F10: =IF(AssetIntType1="Fixed",AssetFxdRate1,IF(A10=1,OFFSET(Vectors!$D$6,A10,MATCH(AssetFltIndx1,lstInterestRates,0)),IF(MOD($A10,AssetRateReset1)=0,MAX(MIN(OFFSET(Vectors!$D$6,A10,MATCH(AssetFltIndx1,lstInterestRates,0)),(F9-AssetMarg1)+AssetPdCapFl1,AssetLifeCap1),(F9-AssetMarg1)-AssetPdCapFl1,AssetLifeFloor1-AssetMarg1),F9)))+AssetMarg1 -> 0.105 | G10: 914739.2945 | H10: 873947.6893 | I10: 40791.60521 | J10: 99838944.31 | L10: 96887535.37 | M10: =IF(pdrLossTime1="",OFFSET(Vectors!AE9:AE,A10+SeasoningAge1,MATCH(SDA_Loss,lstSDA,0)),OFFSET(Vectors!$X$6,A10+SeasoningAge1,MATCH(pdrLossTime1,lstDefaultCurve,0))) -> 0.008333333333 | N10: 833333.3333 | O10: 0.9983894431 | P10: =OFFSET(Vectors!$L$6,A10+SeasoningAge1,MATCH(pdrPrepay1,lstPrepayCurve,0))*pdrPrepayStress1 -> 0.01 | Q10: 161219.1541 | R10: 39229.22956 | S10: 0.105 | T10: 840474.2678 | U10: 0 | V10: 95853753.65 | X10: 1040922.652 | Z10: FALSE | AA10: TRUE | AB10: TRUE | AC10: FALSE | AE10: 91041142.85 | AF10: =IF(Swap_Active="No",0,OFFSET(Vectors!$D$6,Vectors!A10,MATCH(Swap_IN,lstInterestRates,0))) -> 0.029369 | AG10: 222815.6104 | AH10: =IF(Swap_Active="No",0,OFFSET(Vectors!$D$6,Vectors!A10,MATCH(Swap_OUT,lstInterestRates,0))) -> 0.04 | AI10: 303470.4762 | AJ10: -80654.8658 | AK10: 960267.7857 | AM10: 201928.2666 | AN10: 201928.2666 | AO10: 0 | AP10: 758339.5192 | AR10: =IF(LiabIntType1="fixed",LiabFxdRate1,OFFSET(Vectors!$D$6,Vectors!A10,MATCH(LiabLoanIndex1,lstInterestRates,0)))+LiabMarg1 -> 0.039369 | AS10: 318487.6586 | AT10: 318487.6586 | AU10: 0 | AV10: 0 | AW10: 0 | AX10: 439851.8605 | AZ10: 439851.8605 | BA10: 439851.8605 | BB10: 0 | BC10: 0 | BD10: 0 | BE10: 0 | BG10: 1000000 | BH10: 0 | BI10: 0 | BJ10: 0 | BK10: 0 | BL10: 0 | BN10: =IF(LiabIntType2="Fixed",LiabFxdRate2,OFFSET(Vectors!$D$6,Vectors!A10,MATCH(LiabLoanIndex2,lstInterestRates,0))) -> 0.04 | BO10: 1906.510811 | BP10: 0 | BQ10: 1906.510811 | BR10: 0 | BT10: -285209.7455 | BU10: -285209.7455 | BV10: 0 | BW10: 285209.7455 | BY10: 285209.7455 | BZ10: 0 | CB10: 96352636.67 | CC10: 318487.6586 | CD10: 725061.6061 | CF10: 857162.9889 | CG10: 0 | CH10: -285209.7455 | CJ10: 1263738.262 | CK10: 1263738.262 | CL10: 0 | CN10: 1033781.717 | CO10: TRUE | CP10: 0.03333333333
A11: 5 | B11: 2017-07-01 | C11: 0.08333333333 | E11: 99838944.31 | F11: =IF(AssetIntType1="Fixed",AssetFxdRate1,IF(A11=1,OFFSET(Vectors!$D$6,A11,MATCH(AssetFltIndx1,lstInterestRates,0)),IF(MOD($A11,AssetRateReset1)=0,MAX(MIN(OFFSET(Vectors!$D$6,A11,MATCH(AssetFltIndx1,lstInterestRates,0)),(F10-AssetMarg1)+AssetPdCapFl1,AssetLifeCap1),(F10-AssetMarg1)-AssetPdCapFl1,AssetLifeFloor1-AssetMarg1),F10)))+AssetMarg1 -> 0.105 | G11: 914739.2945 | H11: 873590.7627 | I11: 41148.53176 | J11: 99797795.78 | L11: 95853753.65 | M11: =IF(pdrLossTime1="",OFFSET(Vectors!AE10:AE,A11+SeasoningAge1,MATCH(SDA_Loss,lstSDA,0)),OFFSET(Vectors!$X$6,A11+SeasoningAge1,MATCH(pdrLossTime1,lstDefaultCurve,0))) -> 0.008333333333 | N11: 833333.3333 | O11: 0.9979779578 | P11: =OFFSET(Vectors!$L$6,A11+SeasoningAge1,MATCH(pdrPrepay1,lstPrepayCurve,0))*pdrPrepayStress1 -> 0.01 | Q11: 159433.2222 | R11: 39162.5814 | S11: 0.105 | T11: 831428.6778 | U11: 0 | V11: 94821824.52 | X11: 1030024.481 | Z11: FALSE | AA11: TRUE | AB11: TRUE | AC11: FALSE | AE11: 90018786.08 | AF11: =IF(Swap_Active="No",0,OFFSET(Vectors!$D$6,Vectors!A11,MATCH(Swap_IN,lstInterestRates,0))) -> 0.029994 | AG11: 225001.9558 | AH11: =IF(Swap_Active="No",0,OFFSET(Vectors!$D$6,Vectors!A11,MATCH(Swap_OUT,lstInterestRates,0))) -> 0.04 | AI11: 300062.6203 | AJ11: -75060.66446 | AK11: 954963.8169 | AM11: 199903.188 | AN11: 199903.188 | AO11: 0 | AP11: 755060.6289 | AR11: =IF(LiabIntType1="fixed",LiabFxdRate1,OFFSET(Vectors!$D$6,Vectors!A11,MATCH(LiabLoanIndex1,lstInterestRates,0)))+LiabMarg1 -> 0.039994 | AS11: 321127.2793 | AT11: 321127.2793 | AU11: 0 | AV11: 0 | AW11: 0 | AX11: 433933.3496 | AZ11: 433933.3496 | BA11: 433933.3496 | BB11: 0 | BC11: 0 | BD11: 0 | BE11: 0 | BG11: 1000000 | BH11: 0 | BI11: 0 | BJ11: 0 | BK11: 0 | BL11: 0 | BN11: =IF(LiabIntType2="Fixed",LiabFxdRate2,OFFSET(Vectors!$D$6,Vectors!A11,MATCH(LiabLoanIndex2,lstInterestRates,0))) -> 0.04 | BO11: 2857.209963 | BP11: 0 | BQ11: 2857.209963 | BR11: 0 | BT11: -284698.6377 | BU11: -284698.6377 | BV11: 0 | BW11: 284698.6377 | BY11: 284698.6377 | BZ11: 0 | CB11: 95634004.68 | CC11: 321127.2793 | CD11: 718631.9874 | CF11: 1141861.627 | CG11: 0 | CH11: -284698.6377 | CJ11: 1255026.437 | CK11: 1255026.437 | CL11: 0 | CN11: 1031929.137 | CO11: TRUE | CP11: 0.04166666667
A12: 6 | B12: 2017-08-01 | C12: 0.08333333333 | E12: 99797795.78 | F12: =IF(AssetIntType1="Fixed",AssetFxdRate1,IF(A12=1,OFFSET(Vectors!$D$6,A12,MATCH(AssetFltIndx1,lstInterestRates,0)),IF(MOD($A12,AssetRateReset1)=0,MAX(MIN(OFFSET(Vectors!$D$6,A12,MATCH(AssetFltIndx1,lstInterestRates,0)),(F11-AssetMarg1)+AssetPdCapFl1,AssetLifeCap1),(F11-AssetMarg1)-AssetPdCapFl1,AssetLifeFloor1-AssetMarg1),F11)))+AssetMarg1 -> 0.105 | G12: 914739.2945 | H12: 873230.7131 | I12: 41508.58141 | J12: 99756287.2 | L12: 94821824.52 | M12: =IF(pdrLossTime1="",OFFSET(Vectors!AE11:AE,A12+SeasoningAge1,MATCH(SDA_Loss,lstSDA,0)),OFFSET(Vectors!$X$6,A12+SeasoningAge1,MATCH(pdrLossTime1,lstDefaultCurve,0))) -> 0.008333333333 | N12: 833333.3333 | O12: 0.997562872 | P12: =OFFSET(Vectors!$L$6,A12+SeasoningAge1,MATCH(pdrPrepay1,lstPrepayCurve,0))*pdrPrepayStress1 -> 0.01 | Q12: 157651.2193 | R12: 39092.33573 | S12: 0.105 | T12: 822399.2978 | U12: 250000 | V12: 93791747.63 | X12: 1269142.853 | Z12: FALSE | AA12: TRUE | AB12: TRUE | AC12: FALSE | AE12: 89006791.06 | AF12: =IF(Swap_Active="No",0,OFFSET(Vectors!$D$6,Vectors!A12,MATCH(Swap_IN,lstInterestRates,0))) -> 0.030619 | AG12: 227108.2446 | AH12: =IF(Swap_Active="No",0,OFFSET(Vectors!$D$6,Vectors!A12,MATCH(Swap_OUT,lstInterestRates,0))) -> 0.04 | AI12: 296689.3035 | AJ12: -69581.05891 | AK12: 1199561.794 | AM12: 197883.8761 | AN12: 197883.8761 | AO12: 0 | AP12: 1001677.918 | AR12: =IF(LiabIntType1="fixed",LiabFxdRate1,OFFSET(Vectors!$D$6,Vectors!A12,MATCH(LiabLoanIndex1,lstInterestRates,0)))+LiabMarg1 -> 0.040619 | AS12: 323713.1364 | AT12: 323713.1364 | AU12: 0 | AV12: 0 | AW12: 0 | AX12: 677964.7815 | AZ12: 677964.7815 | BA12: 677964.7815 | BB12: 0 | BC12: 0 | BD12: 0 | BE12: 0 | BG12: 1000000 | BH12: 0 | BI12: 0 | BJ12: 0 | BK12: 0 | BL12: 0 | BN12: =IF(LiabIntType2="Fixed",LiabFxdRate2,OFFSET(Vectors!$D$6,Vectors!A12,MATCH(LiabLoanIndex2,lstInterestRates,0))) -> 0.04 | BO12: 3806.205422 | BP12: 0 | BQ12: 3806.205422 | BR12: 0 | BT12: -284187.6214 | BU12: -284187.6214 | BV12: 0 | BW12: 284187.6214 | BY12: 284187.6214 | BZ12: 0 | CB12: 94671852.28 | CC12: 323713.1364 | CD12: 962152.4029 | CF12: 1426049.248 | CG12: 0 | CH12: -284187.6214 | CJ12: 1496251.098 | CK12: 1496251.098 | CL12: 0 | CN12: 1030076.888 | CO12: TRUE | CP12: 0.05
A13: 7 | B13: 2017-09-01 | C13: 0.08333333333 | E13: 99756287.2 | F13: =IF(AssetIntType1="Fixed",AssetFxdRate1,IF(A13=1,OFFSET(Vectors!$D$6,A13,MATCH(AssetFltIndx1,lstInterestRates,0)),IF(MOD($A13,AssetRateReset1)=0,MAX(MIN(OFFSET(Vectors!$D$6,A13,MATCH(AssetFltIndx1,lstInterestRates,0)),(F12-AssetMarg1)+AssetPdCapFl1,AssetLifeCap1),(F12-AssetMarg1)-AssetPdCapFl1,AssetLifeFloor1-AssetMarg1),F12)))+AssetMarg1 -> 0.105 | G13: 914739.2945 | H13: 872867.513 | I13: 41871.7815 | J13: 99714415.42 | L13: 93791747.63 | M13: =IF(pdrLossTime1="",OFFSET(Vectors!AE12:AE,A13+SeasoningAge1,MATCH(SDA_Loss,lstSDA,0)),OFFSET(Vectors!$X$6,A13+SeasoningAge1,MATCH(pdrLossTime1,lstDefaultCurve,0))) -> 0.008333333333 | N13: 833333.3333 | O13: 0.9971441542 | P13: =OFFSET(Vectors!$L$6,A13+SeasoningAge1,MATCH(pdrPrepay1,lstPrepayCurve,0))*pdrPrepayStress1 -> 0.01 | Q13: 155873.1548 | R13: 39018.43705 | S13: 0.105 | T13: 813386.1251 | U13: 250000 | V13: 92763522.7 | X13: 1258277.717 | Z13: FALSE | AA13: TRUE | AB13: TRUE | AC13: TRUE | AE13: 88005053.81 | AF13: =IF(Swap_Active="No",0,OFFSET(Vectors!$D$6,Vectors!A13,MATCH(Swap_IN,lstInterestRates,0))) -> 0.031244 | AG13: 229135.8251 | AH13: =IF(Swap_Active="No",0,OFFSET(Vectors!$D$6,Vectors!A13,MATCH(Swap_OUT,lstInterestRates,0))) -> 0.04 | AI13: 293350.1794 | AJ13: -64214.35426 | AK13: 1194063.363 | AM13: 195766.1845 | AN13: 195766.1845 | AO13: 0 | AP13: 998297.1781 | AR13: =IF(LiabIntType1="fixed",LiabFxdRate1,OFFSET(Vectors!$D$6,Vectors!A13,MATCH(LiabLoanIndex1,lstInterestRates,0)))+LiabMarg1 -> 0.041244 | AS13: 325387.1563 | AT13: 325387.1563 | AU13: 0 | AV13: 0 | AW13: 0 | AX13: 672910.0218 | AZ13: 672910.0218 | BA13: 672910.0218 | BB13: 0 | BC13: 0 | BD13: 0 | BE13: 0 | BG13: 1000000 | BH13: 0 | BI13: 0 | BJ13: 0 | BK13: 0 | BL13: 0 | BN13: =IF(LiabIntType2="Fixed",LiabFxdRate2,OFFSET(Vectors!$D$6,Vectors!A13,MATCH(LiabLoanIndex2,lstInterestRates,0))) -> 0.04 | BO13: 4753.497494 | BP13: 0 | BQ13: 4753.497494 | BR13: 0 | BT13: -283676.6838 | BU13: -283676.6838 | BV13: 0 | BW13: 283676.6838 | BY13: 283676.6838 | BZ13: 0 | CB13: 93715265.58 | CC13: 325387.1563 | CD13: 956586.7056 | CF13: 1709725.932 | CG13: 0 | CH13: -283676.6838 | CJ13: 1487413.542 | CK13: 1487413.542 | CL13: 0 | CN13: 1028224.925 | CO13: TRUE | CP13: 0.05833333333
A14: 8 | B14: 2017-10-01 | C14: 0.08333333333 | E14: 99714415.42 | F14: =IF(AssetIntType1="Fixed",AssetFxdRate1,IF(A14=1,OFFSET(Vectors!$D$6,A14,MATCH(AssetFltIndx1,lstInterestRates,0)),IF(MOD($A14,AssetRateReset1)=0,MAX(MIN(OFFSET(Vectors!$D$6,A14,MATCH(AssetFltIndx1,lstInterestRates,0)),(F13-AssetMarg1)+AssetPdCapFl1,AssetLifeCap1),(F13-AssetMarg1)-AssetPdCapFl1,AssetLifeFloor1-AssetMarg1),F13)))+AssetMarg1 -> 0.105 | G14: 914739.2945 | H14: 872501.1349 | I14: 42238.15959 | J14: 99672177.26 | L14: 92763522.7 | M14: =IF(pdrLossTime1="",OFFSET(Vectors!AE13:AE,A14+SeasoningAge1,MATCH(SDA_Loss,lstSDA,0)),OFFSET(Vectors!$X$6,A14+SeasoningAge1,MATCH(pdrLossTime1,lstDefaultCurve,0))) -> 0.008333333333 | N14: 833333.3333 | O14: 0.9967217726 | P14: =OFFSET(Vectors!$L$6,A14+SeasoningAge1,MATCH(pdrPrepay1,lstPrepayCurve,0))*pdrPrepayStress1 -> 0.01 | Q14: 154099.038 | R14: 38940.8291 | S14: 0.105 | T14: 804389.157 | U14: 250000 | V14: 91737149.5 | X14: 1247429.024 | Z14: FALSE | AA14: TRUE | AB14: TRUE | AC14: TRUE | AE14: 87013471.39 | AF14: =IF(Swap_Active="No",0,OFFSET(Vectors!$D$6,Vectors!A14,MATCH(Swap_IN,lstInterestRates,0))) -> 0.031869 | AG14: 231086.0267 | AH14: =IF(Swap_Active="No",0,OFFSET(Vectors!$D$6,Vectors!A14,MATCH(Swap_OUT,lstInterestRates,0))) -> 0.04 | AI14: 290044.9046 | AJ14: -58958.87799 | AK14: 1188470.146 | AM14: 193653.8985 | AN14: 193653.8985 | AO14: 0 | AP14: 994816.2476 | AR14: =IF(LiabIntType1="fixed",LiabFxdRate1,OFFSET(Vectors!$D$6,Vectors!A14,MATCH(LiabLoanIndex1,lstInterestRates,0)))+LiabMarg1 -> 0.041869 | AS14: 326980.3712 | AT14: 326980.3712 | AU14: 0 | AV14: 0 | AW14: 0 | AX14: 667835.8764 | AZ14: 667835.8764 | BA14: 667835.8764 | BB14: 0 | BC14: 0 | BD14: 0 | BE14: 0 | BG14: 1000000 | BH14: 0 | BI14: 0 | BJ14: 0 | BK14: 0 | BL14: 0 | BN14: =IF(LiabIntType2="Fixed",LiabFxdRate2,OFFSET(Vectors!$D$6,Vectors!A14,MATCH(LiabLoanIndex2,lstInterestRates,0))) -> 0.04 | BO14: 5699.08644 | BP14: 0 | BQ14: 5699.08644 | BR14: 0 | BT14: -283165.812 | BU14: -283165.812 | BV14: 0 | BW14: 283165.812 | BY14: 283165.812 | BZ14: 0 | CB14: 92764263.89 | CC14: 326980.3712 | CD14: 951001.6883 | CF14: 1992891.744 | CG14: 0 | CH14: -283165.812 | CJ14: 1478515.051 | CK14: 1478515.051 | CL14: 0 | CN14: 1026373.2 | CO14: TRUE | CP14: 0.06666666667
A15: 9 | B15: 2017-11-01 | C15: 0.08333333333 | E15: 99672177.26 | F15: =IF(AssetIntType1="Fixed",AssetFxdRate1,IF(A15=1,OFFSET(Vectors!$D$6,A15,MATCH(AssetFltIndx1,lstInterestRates,0)),IF(MOD($A15,AssetRateReset1)=0,MAX(MIN(OFFSET(Vectors!$D$6,A15,MATCH(AssetFltIndx1,lstInterestRates,0)),(F14-AssetMarg1)+AssetPdCapFl1,AssetLifeCap1),(F14-AssetMarg1)-AssetPdCapFl1,AssetLifeFloor1-AssetMarg1),F14)))+AssetMarg1 -> 0.105 | G15: 914739.2945 | H15: 872131.551 | I15: 42607.74349 | J15: 99629569.51 | L15: 91737149.5 | M15: =IF(pdrLossTime1="",OFFSET(Vectors!AE14:AE,A15+SeasoningAge1,MATCH(SDA_Loss,lstSDA,0)),OFFSET(Vectors!$X$6,A15+SeasoningAge1,MATCH(pdrLossTime1,lstDefaultCurve,0))) -> 0.008333333333 | N15: 833333.3333 | O15: 0.9962956951 | P15: =OFFSET(Vectors!$L$6,A15+SeasoningAge1,MATCH(pdrPrepay1,lstPrepayCurve,0))*pdrPrepayStress1 -> 0.01 | Q15: 152328.8786 | R15: 38859.45494 | S15: 0.105 | T15: 795408.3915 | U15: 250000 | V15: 90712627.83 | X15: 1236596.725 | Z15: FALSE | AA15: TRUE | AB15: TRUE | AC15: TRUE | AE15: 86031941.91 | AF15: =IF(Swap_Active="No",0,OFFSET(Vectors!$D$6,Vectors!A15,MATCH(Swap_IN,lstInterestRates,0))) -> 0.032494 | AG15: 232960.16 | AH15: =IF(Swap_Active="No",0,OFFSET(Vectors!$D$6,Vectors!A15,MATCH(Swap_OUT,lstInterestRates,0))) -> 0.04 | AI15: 286773.1397 | AJ15: -53812.97966 | AK15: 1182783.745 | AM15: 191547.0258 | AN15: 191547.0258 | AO15: 0 | AP15: 991236.7195 | AR15: =IF(LiabIntType1="fixed",LiabFxdRate1,OFFSET(Vectors!$D$6,Vectors!A15,MATCH(LiabLoanIndex1,lstInterestRates,0)))+LiabMarg1 -> 0.042494 | AS15: 328493.7191 | AT15: 328493.7191 | AU15: 0 | AV15: 0 | AW15: 0 | AX15: 662743.0004 | AZ15: 662743.0004 | BA15: 662743.0004 | BB15: 0 | BC15: 0 | BD15: 0 | BE15: 0 | BG15: 1000000 | BH15: 0 | BI15: 0 | BJ15: 0 | BK15: 0 | BL15: 0 | BN15: =IF(LiabIntType2="Fixed",LiabFxdRate2,OFFSET(Vectors!$D$6,Vectors!A15,MATCH(LiabLoanIndex2,lstInterestRates,0))) -> 0.04 | BO15: 6642.97248 | BP15: 0 | BQ15: 6642.97248 | BR15: 0 | BT15: -282654.9929 | BU15: -282654.9929 | BV15: 0 | BW15: 282654.9929 | BY15: 282654.9929 | BZ15: 0 | CB15: 91818865.89 | CC15: 328493.7191 | CD15: 945397.9933 | CF15: 2275546.737 | CG15: 0 | CH15: -282654.9929 | CJ15: 1469556.885 | CK15: 1469556.885 | CL15: 0 | CN15: 1024521.667 | CO15: TRUE | CP15: 0.075
A16: 10 | B16: 2017-12-01 | C16: 0.08333333333 | E16: 99629569.51 | F16: =IF(AssetIntType1="Fixed",AssetFxdRate1,IF(A16=1,OFFSET(Vectors!$D$6,A16,MATCH(AssetFltIndx1,lstInterestRates,0)),IF(MOD($A16,AssetRateReset1)=0,MAX(MIN(OFFSET(Vectors!$D$6,A16,MATCH(AssetFltIndx1,lstInterestRates,0)),(F15-AssetMarg1)+AssetPdCapFl1,AssetLifeCap1),(F15-AssetMarg1)-AssetPdCapFl1,AssetLifeFloor1-AssetMarg1),F15)))+AssetMarg1 -> 0.105 | G16: 914739.2945 | H16: 871758.7333 | I16: 42980.56124 | J16: 99586588.95 | L16: 90712627.83 | M16: =IF(pdrLossTime1="",OFFSET(Vectors!AE15:AE,A16+SeasoningAge1,MATCH(SDA_Loss,lstSDA,0)),OFFSET(Vectors!$X$6,A16+SeasoningAge1,MATCH(pdrLossTime1,lstDefaultCurve,0))) -> 0.008333333333 | N16: 833333.3333 | O16: 0.9958658895 | P16: =OFFSET(Vectors!$L$6,A16+SeasoningAge1,MATCH(pdrPrepay1,lstPrepayCurve,0))*pdrPrepayStress1 -> 0.01 | Q16: 150562.6864 | R16: 38774.25688 | S16: 0.105 | T16: 786443.8269 | U16: 250000 | V16: 89689957.56 | X16: 1225780.77 | Z16: FALSE | AA16: TRUE | AB16: TRUE | AC16: TRUE | AE16: 85060364.48 | AF16: =IF(Swap_Active="No",0,OFFSET(Vectors!$D$6,Vectors!A16,MATCH(Swap_IN,lstInterestRates,0))) -> 0.033119 | AG16: 234759.5176 | AH16: =IF(Swap_Active="No",0,OFFSET(Vectors!$D$6,Vectors!A16,MATCH(Swap_OUT,lstInterestRates,0))) -> 0.04 | AI16: 283534.5483 | AJ16: -48775.03066 | AK16: 1177005.739 | AM16: 189445.5738 | AN16: 189445.5738 | AO16: 0 | AP16: 987560.1656 | AR16: =IF(LiabIntType1="fixed",LiabFxdRate1,OFFSET(Vectors!$D$6,Vectors!A16,MATCH(LiabLoanIndex1,lstInterestRates,0)))+LiabMarg1 -> 0.043119 | AS16: 329928.1399 | AT16: 329928.1399 | AU16: 0 | AV16: 0 | AW16: 0 | AX16: 657632.0257 | AZ16: 657632.0257 | BA16: 657632.0257 | BB16: 0 | BC16: 0 | BD16: 0 | BE16: 0 | BG16: 1000000 | BH16: 0 | BI16: 0 | BJ16: 0 | BK16: 0 | BL16: 0 | BN16: =IF(LiabIntType2="Fixed",LiabFxdRate2,OFFSET(Vectors!$D$6,Vectors!A16,MATCH(LiabLoanIndex2,lstInterestRates,0))) -> 0.04 | BO16: 7585.155789 | BP16: 0 | BQ16: 7585.155789 | BR16: 0 | BT16: -282144.2134 | BU16: -282144.2134 | BV16: 0 | BW16: 282144.2134 | BY16: 282144.2134 | BZ16: 0 | CB16: 90879089.65 | CC16: 329928.1399 | CD16: 939776.2391 | CF16: 2557690.95 | CG16: 0 | CH16: -282144.2134 | CJ16: 1460540.288 | CK16: 1460540.288 | CL16: 0 | CN16: 1022670.277 | CO16: TRUE | CP16: 0.08333333333
A17: 11 | B17: 2018-01-01 | C17: 0.08333333333 | E17: 99586588.95 | F17: =IF(AssetIntType1="Fixed",AssetFxdRate1,IF(A17=1,OFFSET(Vectors!$D$6,A17,MATCH(AssetFltIndx1,lstInterestRates,0)),IF(MOD($A17,AssetRateReset1)=0,MAX(MIN(OFFSET(Vectors!$D$6,A17,MATCH(AssetFltIndx1,lstInterestRates,0)),(F16-AssetMarg1)+AssetPdCapFl1,AssetLifeCap1),(F16-AssetMarg1)-AssetPdCapFl1,AssetLifeFloor1-AssetMarg1),F16)))+AssetMarg1 -> 0.105 | G17: 914739.2945 | H17: 871382.6533 | I17: 43356.64115 | J17: 99543232.31 | L17: 89689957.56 | M17: =IF(pdrLossTime1="",OFFSET(Vectors!AE16:AE,A17+SeasoningAge1,MATCH(SDA_Loss,lstSDA,0)),OFFSET(Vectors!$X$6,A17+SeasoningAge1,MATCH(pdrLossTime1,lstDefaultCurve,0))) -> 0.008333333333 | N17: 833333.3333 | O17: 0.9954323231 | P17: =OFFSET(Vectors!$L$6,A17+SeasoningAge1,MATCH(pdrPrepay1,lstPrepayCurve,0))*pdrPrepayStress1 -> 0.01 | Q17: 148800.4714 | R17: 38685.1765 | S17: 0.105 | T17: 777495.462 | U17: 250000 | V17: 88669138.58 | X17: 1214981.11 | Z17: FALSE | AA17: TRUE | AB17: TRUE | AC17: TRUE | AE17: 84098639.22 | AF17: =IF(Swap_Active="No",0,OFFSET(Vectors!$D$6,Vectors!A17,MATCH(Swap_IN,lstInterestRates,0))) -> 0.033744 | AG17: 236485.3735 | AH17: =IF(Swap_Active="No",0,OFFSET(Vectors!$D$6,Vectors!A17,MATCH(Swap_OUT,lstInterestRates,0))) -> 0.04 | AI17: 280328.7974 | AJ17: -43843.42391 | AK17: 1171137.686 | AM17: 187349.55 | AN17: 187349.55 | AO17: 0 | AP17: 983788.136 | AR17: =IF(LiabIntType1="fixed",LiabFxdRate1,OFFSET(Vectors!$D$6,Vectors!A17,MATCH(LiabLoanIndex1,lstInterestRates,0)))+LiabMarg1 -> 0.043744 | AS17: 331284.5748 | AT17: 331284.5748 | AU17: 0 | AV17: 0 | AW17: 0 | AX17: 652503.5611 | AZ17: 652503.5611 | BA17: 652503.5611 | BB17: 0 | BC17: 0 | BD17: 0 | BE17: 0 | BG17: 1000000 | BH17: 0 | BI17: 0 | BJ17: 0 | BK17: 0 | BL17: 0 | BN17: =IF(LiabIntType2="Fixed",LiabFxdRate2,OFFSET(Vectors!$D$6,Vectors!A17,MATCH(LiabLoanIndex2,lstInterestRates,0))) -> 0.04 | BO17: 8525.636501 | BP17: 0 | BQ17: 8525.636501 | BR17: 0 | BT17: -281633.46 | BU17: -281633.46 | BV17: 0 | BW17: 281633.46 | BY17: 281633.46 | BZ17: 0 | CB17: 89944952.63 | CC17: 331284.5748 | CD17: 934137.0212 | CF17: 2839324.41 | CG17: 0 | CH17: -281633.46 | CJ17: 1451466.483 | CK17: 1451466.483 | CL17: 0 | CN17: 1020818.981 | CO17: TRUE | CP17: 0.09166666667
A18: 12 | B18: 2018-02-01 | C18: 0.08333333333 | E18: 99543232.31 | F18: =IF(AssetIntType1="Fixed",AssetFxdRate1,IF(A18=1,OFFSET(Vectors!$D$6,A18,MATCH(AssetFltIndx1,lstInterestRates,0)),IF(MOD($A18,AssetRateReset1)=0,MAX(MIN(OFFSET(Vectors!$D$6,A18,MATCH(AssetFltIndx1,lstInterestRates,0)),(F17-AssetMarg1)+AssetPdCapFl1,AssetLifeCap1),(F17-AssetMarg1)-AssetPdCapFl1,AssetLifeFloor1-AssetMarg1),F17)))+AssetMarg1 -> 0.105 | G18: 914739.2945 | H18: 871003.2827 | I18: 43736.01176 | J18: 99499496.3 | L18: 88669138.58 | M18: =IF(pdrLossTime1="",OFFSET(Vectors!AE17:AE,A18+SeasoningAge1,MATCH(SDA_Loss,lstSDA,0)),OFFSET(Vectors!$X$6,A18+SeasoningAge1,MATCH(pdrLossTime1,lstDefaultCurve,0))) -> 0.008333333333 | N18: 833333.3333 | O18: 0.994994963 | P18: =OFFSET(Vectors!$L$6,A18+SeasoningAge1,MATCH(pdrPrepay1,lstPrepayCurve,0))*pdrPrepayStress1 -> 0.01 | Q18: 147042.2438 | R18: 38592.1546 | S18: 0.105 | T18: 768563.2959 | U18: 250000 | V18: 87650170.85 | X18: 1204197.694 | Z18: FALSE | AA18: TRUE | AB18: TRUE | AC18: TRUE | AE18: 83146667.27 | AF18: =IF(Swap_Active="No",0,OFFSET(Vectors!$D$6,Vectors!A18,MATCH(Swap_IN,lstInterestRates,0))) -> 0.034369 | AG18: 238138.984 | AH18: =IF(Swap_Active="No",0,OFFSET(Vectors!$D$6,Vectors!A18,MATCH(Swap_OUT,lstInterestRates,0))) -> 0.04 | AI18: 277155.5576 | AJ18: -39016.57362 | AK18: 1165181.121 | AM18: 185258.9612 | AN18: 185258.9612 | AO18: 0 | AP18: 979922.1594 | AR18: =IF(LiabIntType1="fixed",LiabFxdRate1,OFFSET(Vectors!$D$6,Vectors!A18,MATCH(LiabLoanIndex1,lstInterestRates,0)))+LiabMarg1 -> 0.044369 | AS18: 332563.9669 | AT18: 332563.9669 | AU18: 0 | AV18: 0 | AW18: 0 | AX18: 647358.1925 | AZ18: 647358.1925 | BA18: 647358.1925 | BB18: 0 | BC18: 0 | BD18: 0 | BE18: 0 | BG18: 1000000 | BH18: 0 | BI18: 0 | BJ18: 0 | BK18: 0 | BL18: 0 | BN18: =IF(LiabIntType2="Fixed",LiabFxdRate2,OFFSET(Vectors!$D$6,Vectors!A18,MATCH(LiabLoanIndex2,lstInterestRates,0))) -> 0.04 | BO18: 9464.414701 | BP18: 0 | BQ18: 9464.414701 | BR18: 0 | BT18: -281122.7193 | BU18: -281122.7193 | BV18: 0 | BW18: 281122.7193 | BY18: 281122.7193 | BZ18: 0 | CB18: 89016471.72 | CC18: 332563.9669 | CD18: 928480.9118 | CF18: 3120447.13 | CG18: 0 | CH18: -281122.7193 | CJ18: 1442336.678 | CK18: 1442336.678 | CL18: 0 | CN18: 1018967.732 | CO18: TRUE | CP18: 0.1
A19: 13 | B19: 2018-03-01 | C19: 0.08333333333 | E19: 99499496.3 | F19: =IF(AssetIntType1="Fixed",AssetFxdRate1,IF(A19=1,OFFSET(Vectors!$D$6,A19,MATCH(AssetFltIndx1,lstInterestRates,0)),IF(MOD($A19,AssetRateReset1)=0,MAX(MIN(OFFSET(Vectors!$D$6,A19,MATCH(AssetFltIndx1,lstInterestRates,0)),(F18-AssetMarg1)+AssetPdCapFl1,AssetLifeCap1),(F18-AssetMarg1)-AssetPdCapFl1,AssetLifeFloor1-AssetMarg1),F18)))+AssetMarg1 -> 0.105 | G19: 914739.2945 | H19: 870620.5926 | I19: 44118.70186 | J19: 99455377.6 | L19: 87650170.85 | M19: =IF(pdrLossTime1="",OFFSET(Vectors!AE18:AE,A19+SeasoningAge1,MATCH(SDA_Loss,lstSDA,0)),OFFSET(Vectors!$X$6,A19+SeasoningAge1,MATCH(pdrLossTime1,lstDefaultCurve,0))) -> 0.008333333333 | N19: 833333.3333 | O19: 0.994553776 | P19: =OFFSET(Vectors!$L$6,A19+SeasoningAge1,MATCH(pdrPrepay1,lstPrepayCurve,0))*pdrPrepayStress1 -> 0.01 | Q19: 145288.014 | R19: 38495.13127 | S19: 0.105 | T19: 759647.3282 | U19: 250000 | V19: 86633054.37 | X19: 1193430.473 | Z19: FALSE | AA19: TRUE | AB19: TRUE | AC19: TRUE | AE19: 82204350.74 | AF19: =IF(Swap_Active="No",0,OFFSET(Vectors!$D$6,Vectors!A19,MATCH(Swap_IN,lstInterestRates,0))) -> 0.035619 | AG19: 244003.0641 | AH19: =IF(Swap_Active="No",0,OFFSET(Vectors!$D$6,Vectors!A19,MATCH(Swap_OUT,lstInterestRates,0))) -> 0.04 | AI19: 274014.5025 | AJ19: -30011.43838 | AK19: 1163419.035 | AM19: 183173.8146 | AN19: 183173.8146 | AO19: 0 | AP19: 980245.2205 | AR19: =IF(LiabIntType1="fixed",LiabFxdRate1,OFFSET(Vectors!$D$6,Vectors!A19,MATCH(LiabLoanIndex1,lstInterestRates,0)))+LiabMarg1 -> 0.045619 | AS19: 338403.5353 | AT19: 338403.5353 | AU19: 0 | AV19: 0 | AW19: 0 | AX19: 641841.6852 | AZ19: 641841.6852 | BA19: 641841.6852 | BB19: 0 | BC19: 0 | BD19: 0 | BE19: 0 | BG19: 1000000 | BH19: 0 | BI19: 0 | BJ19: 0 | BK19: 0 | BL19: 0 | BN19: =IF(LiabIntType2="Fixed",LiabFxdRate2,OFFSET(Vectors!$D$6,Vectors!A19,MATCH(LiabLoanIndex2,lstInterestRates,0))) -> 0.04 | BO19: 10401.49043 | BP19: 0 | BQ19: 10401.49043 | BR19: 0 | BT19: -280611.9776 | BU19: -280611.9776 | BV19: 0 | BW19: 280611.9776 | BY19: 280611.9776 | BZ19: 0 | CB19: 88094018.06 | CC19: 338403.5353 | CD19: 922453.6628 | CF19: 3401059.107 | CG19: 0 | CH19: -280611.9776 | CJ19: 1437433.538 | CK19: 1437433.538 | CL19: 0 | CN19: 1017116.479 | CO19: TRUE | CP19: 0.1083333333
A20: 14 | B20: 2018-04-01 | C20: 0.08333333333 | E20: 99455377.6 | F20: =IF(AssetIntType1="Fixed",AssetFxdRate1,IF(A20=1,OFFSET(Vectors!$D$6,A20,MATCH(AssetFltIndx1,lstInterestRates,0)),IF(MOD($A20,AssetRateReset1)=0,MAX(MIN(OFFSET(Vectors!$D$6,A20,MATCH(AssetFltIndx1,lstInterestRates,0)),(F19-AssetMarg1)+AssetPdCapFl1,AssetLifeCap1),(F19-AssetMarg1)-AssetPdCapFl1,AssetLifeFloor1-AssetMarg1),F19)))+AssetMarg1 -> 0.105 | G20: 914739.2945 | H20: 870234.554 | I20: 44504.74051 | J20: 99410872.86 | L20: 86633054.37 | M20: =IF(pdrLossTime1="",OFFSET(Vectors!AE19:AE,A20+SeasoningAge1,MATCH(SDA_Loss,lstSDA,0)),OFFSET(Vectors!$X$6,A20+SeasoningAge1,MATCH(pdrLossTime1,lstDefaultCurve,0))) -> 0.008333333333 | N20: 833333.3333 | O20: 0.9941087286 | P20: =OFFSET(Vectors!$L$6,A20+SeasoningAge1,MATCH(pdrPrepay1,lstPrepayCurve,0))*pdrPrepayStress1 -> 0.01 | Q20: 143537.7925 | R20: 38394.04578 | S20: 0.105 | T20: 750747.559 | U20: 250000 | V20: 85617789.2 | X20: 1182679.397 | Z20: FALSE | AA20: TRUE | AB20: TRUE | AC20: TRUE | AE20: 81271592.73 | AF20: =IF(Swap_Active="No",0,OFFSET(Vectors!$D$6,Vectors!A20,MATCH(Swap_IN,lstInterestRates,0))) -> 0.036869 | AG20: 249700.196 | AH20: =IF(Swap_Active="No",0,OFFSET(Vectors!$D$6,Vectors!A20,MATCH(Swap_OUT,lstInterestRates,0))) -> 0.04 | AI20: 270905.3091 | AJ20: -21205.11307 | AK20: 1161474.284 | AM20: 181094.2648 | AN20: 181094.2648 | AO20: 0 | AP20: 980380.0195 | AR20: =IF(LiabIntType1="fixed",LiabFxdRate1,OFFSET(Vectors!$D$6,Vectors!A20,MATCH(LiabLoanIndex1,lstInterestRates,0)))+LiabMarg1 -> 0.046869 | AS20: 344073.211 | AT20: 344073.211 | AU20: 0 | AV20: 0 | AW20: 0 | AX20: 636306.8085 | AZ20: 636306.8085 | BA20: 636306.8085 | BB20: 0 | BC20: 0 | BD20: 0 | BE20: 0 | BG20: 1000000 | BH20: 0 | BI20: 0 | BJ20: 0 | BK20: 0 | BL20: 0 | BN20: =IF(LiabIntType2="Fixed",LiabFxdRate2,OFFSET(Vectors!$D$6,Vectors!A20,MATCH(LiabLoanIndex2,lstInterestRates,0))) -> 0.04 | BO20: 11336.86369 | BP20: 0 | BQ20: 11336.86369 | BR20: 0 | BT20: -280101.2211 | BU20: -280101.2211 | BV20: 0 | BW20: 280101.2211 | BY20: 280101.2211 | BZ20: 0 | CB20: 87177610.03 | CC20: 344073.211 | CD20: 916408.0295 | CF20: 3681160.328 | CG20: 0 | CH20: -280101.2211 | CJ20: 1432379.593 | CK20: 1432379.593 | CL20: 0 | CN20: 1015265.172 | CO20: TRUE | CP20: 0.1166666667
A21: 15 | B21: 2018-05-01 | C21: 0.08333333333 | E21: 99410872.86 | F21: =IF(AssetIntType1="Fixed",AssetFxdRate1,IF(A21=1,OFFSET(Vectors!$D$6,A21,MATCH(AssetFltIndx1,lstInterestRates,0)),IF(MOD($A21,AssetRateReset1)=0,MAX(MIN(OFFSET(Vectors!$D$6,A21,MATCH(AssetFltIndx1,lstInterestRates,0)),(F20-AssetMarg1)+AssetPdCapFl1,AssetLifeCap1),(F20-AssetMarg1)-AssetPdCapFl1,AssetLifeFloor1-AssetMarg1),F20)))+AssetMarg1 -> 0.105 | G21: 914739.2945 | H21: 869845.1375 | I21: 44894.15699 | J21: 99365978.7 | L21: 85617789.2 | M21: =IF(pdrLossTime1="",OFFSET(Vectors!AE20:AE,A21+SeasoningAge1,MATCH(SDA_Loss,lstSDA,0)),OFFSET(Vectors!$X$6,A21+SeasoningAge1,MATCH(pdrLossTime1,lstDefaultCurve,0))) -> 0.008333333333 | N21: 833333.3333 | O21: 0.993659787 | P21: =OFFSET(Vectors!$L$6,A21+SeasoningAge1,MATCH(pdrPrepay1,lstPrepayCurve,0))*pdrPrepayStress1 -> 0.01 | Q21: 141791.5903 | R21: 38288.83664 | S21: 0.105 | T21: 741863.9888 | U21: 250000 | V21: 84604375.43 | X21: 1171944.416 | Z21: FALSE | AA21: TRUE | AB21: TRUE | AC21: TRUE | AE21: 80348297.31 | AF21: =IF(Swap_Active="No",0,OFFSET(Vectors!$D$6,Vectors!A21,MATCH(Swap_IN,lstInterestRates,0))) -> 0.038119 | AG21: 255233.0621 | AH21: =IF(Swap_Active="No",0,OFFSET(Vectors!$D$6,Vectors!A21,MATCH(Swap_OUT,lstInterestRates,0))) -> 0.04 | AI21: 267827.6577 | AJ21: -12594.5956 | AK21: 1159349.82 | AM21: 179020.3195 | AN21: 179020.3195 | AO21: 0 | AP21: 980329.5006 | AR21: =IF(LiabIntType1="fixed",LiabFxdRate1,OFFSET(Vectors!$D$6,Vectors!A21,MATCH(LiabLoanIndex1,lstInterestRates,0)))+LiabMarg1 -> 0.048119 | AS21: 349574.9514 | AT21: 349574.9514 | AU21: 0 | AV21: 0 | AW21: 0 | AX21: 630754.5492 | AZ21: 630754.5492 | BA21: 630754.5492 | BB21: 0 | BC21: 0 | BD21: 0 | BE21: 0 | BG21: 1000000 | BH21: 0 | BI21: 0 | BJ21: 0 | BK21: 0 | BL21: 0 | BN21: =IF(LiabIntType2="Fixed",LiabFxdRate2,OFFSET(Vectors!$D$6,Vectors!A21,MATCH(LiabLoanIndex2,lstInterestRates,0))) -> 0.04 | BO21: 12270.53443 | BP21: 0 | BQ21: 12270.53443 | BR21: 0 | BT21: -279590.4357 | BU21: -279590.4357 | BV21: 0 | BW21: 279590.4357 | BY21: 279590.4357 | BZ21: 0 | CB21: 86267265.04 | CC21: 349574.9514 | CD21: 910344.9849 | CF21: 3960750.764 | CG21: 0 | CH21: -279590.4357 | CJ21: 1427177.478 | CK21: 1427177.478 | CL21: 0 | CN21: 1013413.76 | CO21: TRUE | CP21: 0.125
A22: 16 | B22: 2018-06-01 | C22: 0.08333333333 | E22: 99365978.7 | F22: =IF(AssetIntType1="Fixed",AssetFxdRate1,IF(A22=1,OFFSET(Vectors!$D$6,A22,MATCH(AssetFltIndx1,lstInterestRates,0)),IF(MOD($A22,AssetRateReset1)=0,MAX(MIN(OFFSET(Vectors!$D$6,A22,MATCH(AssetFltIndx1,lstInterestRates,0)),(F21-AssetMarg1)+AssetPdCapFl1,AssetLifeCap1),(F21-AssetMarg1)-AssetPdCapFl1,AssetLifeFloor1-AssetMarg1),F21)))+AssetMarg1 -> 0.105 | G22: 914739.2945 | H22: 869452.3136 | I22: 45286.98086 | J22: 99320691.72 | L22: 84604375.43 | M22: =IF(pdrLossTime1="",OFFSET(Vectors!AE21:AE,A22+SeasoningAge1,MATCH(SDA_Loss,lstSDA,0)),OFFSET(Vectors!$X$6,A22+SeasoningAge1,MATCH(pdrLossTime1,lstDefaultCurve,0))) -> 0.008333333333 | N22: 833333.3333 | O22: 0.9932069172 | P22: =OFFSET(Vectors!$L$6,A22+SeasoningAge1,MATCH(pdrPrepay1,lstPrepayCurve,0))*pdrPrepayStress1 -> 0.01 | Q22: 140049.4182 | R22: 38179.44159 | S22: 0.105 | T22: 732996.6184 | U22: 250000 | V22: 83592813.24 | X22: 1161225.478 | Z22: FALSE | AA22: TRUE | AB22: TRUE | AC22: TRUE | AE22: 79434369.5 | AF22: =IF(Swap_Active="No",0,OFFSET(Vectors!$D$6,Vectors!A22,MATCH(Swap_IN,lstInterestRates,0))) -> 0.039369 | AG22: 260604.3077 | AH22: =IF(Swap_Active="No",0,OFFSET(Vectors!$D$6,Vectors!A22,MATCH(Swap_OUT,lstInterestRates,0))) -> 0.04 | AI22: 264781.2317 | AJ22: -4176.923929 | AK22: 1157048.554 | AM22: 176951.9862 | AN22: 176951.9862 | AO22: 0 | AP22: 980096.5681 | AR22: =IF(LiabIntType1="fixed",LiabFxdRate1,OFFSET(Vectors!$D$6,Vectors!A22,MATCH(LiabLoanIndex1,lstInterestRates,0)))+LiabMarg1 -> 0.049369 | AS22: 354910.7173 | AT22: 354910.7173 | AU22: 0 | AV22: 0 | AW22: 0 | AX22: 625185.8507 | AZ22: 625185.8507 | BA22: 625185.8507 | BB22: 0 | BC22: 0 | BD22: 0 | BE22: 0 | BG22: 1000000 | BH22: 0 | BI22: 0 | BJ22: 0 | BK22: 0 | BL22: 0 | BN22: =IF(LiabIntType2="Fixed",LiabFxdRate2,OFFSET(Vectors!$D$6,Vectors!A22,MATCH(LiabLoanIndex2,lstInterestRates,0))) -> 0.04 | BO22: 13202.50255 | BP22: 0 | BQ22: 13202.50255 | BR22: 0 | BT22: -279079.6074 | BU22: -279079.6074 | BV22: 0 | BW22: 279079.6074 | BY22: 279079.6074 | BZ22: 0 | CB22: 85362999.59 | CC22: 354910.7173 | CD22: 904265.4581 | CF22: 4239830.371 | CG22: 0 | CH22: -279079.6074 | CJ22: 1421829.786 | CK22: 1421829.786 | CL22: 0 | CN22: 1011562.193 | CO22: TRUE | CP22: 0.1333333333
A23: 17 | B23: 2018-07-01 | C23: 0.08333333333 | E23: 99320691.72 | F23: =IF(AssetIntType1="Fixed",AssetFxdRate1,IF(A23=1,OFFSET(Vectors!$D$6,A23,MATCH(AssetFltIndx1,lstInterestRates,0)),IF(MOD($A23,AssetRateReset1)=0,MAX(MIN(OFFSET(Vectors!$D$6,A23,MATCH(AssetFltIndx1,lstInterestRates,0)),(F22-AssetMarg1)+AssetPdCapFl1,AssetLifeCap1),(F22-AssetMarg1)-AssetPdCapFl1,AssetLifeFloor1-AssetMarg1),F22)))+AssetMarg1 -> 0.105 | G23: 914739.2945 | H23: 869056.0526 | I23: 45683.24194 | J23: 99275008.48 | L23: 83592813.24 | M23: =IF(pdrLossTime1="",OFFSET(Vectors!AE22:AE,A23+SeasoningAge1,MATCH(SDA_Loss,lstSDA,0)),OFFSET(Vectors!$X$6,A23+SeasoningAge1,MATCH(pdrLossTime1,lstDefaultCurve,0))) -> 0.008333333333 | N23: 833333.3333 | O23: 0.9927500848 | P23: =OFFSET(Vectors!$L$6,A23+SeasoningAge1,MATCH(pdrPrepay1,lstPrepayCurve,0))*pdrPrepayStress1 -> 0.01 | Q23: 138311.2874 | R23: 38065.79755 | S23: 0.105 | T23: 724145.4492 | U23: 250000 | V23: 82583102.82 | X23: 1150522.534 | Z23: FALSE | AA23: TRUE | AB23: TRUE | AC23: TRUE | AE23: 78529715.27 | AF23: =IF(Swap_Active="No",0,OFFSET(Vectors!$D$6,Vectors!A23,MATCH(Swap_IN,lstInterestRates,0))) -> 0.040619 | AG23: 265816.542 | AH23: =IF(Swap_Active="No",0,OFFSET(Vectors!$D$6,Vectors!A23,MATCH(Swap_OUT,lstInterestRates,0))) -> 0.04 | AI23: 261765.7176 | AJ23: 4050.824479 | AK23: 1154573.359 | AM23: 174889.2719 | AN23: 174889.2719 | AO23: 0 | AP23: 979684.0867 | AR23: =IF(LiabIntType1="fixed",LiabFxdRate1,OFFSET(Vectors!$D$6,Vectors!A23,MATCH(LiabLoanIndex1,lstInterestRates,0)))+LiabMarg1 -> 0.050619 | AS23: 360082.473 | AT23: 360082.473 | AU23: 0 | AV23: 0 | AW23: 0 | AX23: 619601.6137 | AZ23: 619601.6137 | BA23: 619601.6137 | BB23: 0 | BC23: 0 | BD23: 0 | BE23: 0 | BG23: 1000000 | BH23: 0 | BI23: 0 | BJ23: 0 | BK23: 0 | BL23: 0 | BN23: =IF(LiabIntType2="Fixed",LiabFxdRate2,OFFSET(Vectors!$D$6,Vectors!A23,MATCH(LiabLoanIndex2,lstInterestRates,0))) -> 0.04 | BO23: 14132.7679 | BP23: 0 | BQ23: 14132.7679 | BR23: 0 | BT23: -278568.7217 | BU23: -278568.7217 | BV23: 0 | BW23: 278568.7217 | BY23: 278568.7217 | BZ23: 0 | CB23: 84464829.25 | CC23: 360082.473 | CD23: 898170.3355 | CF23: 4518399.093 | CG23: 0 | CH23: -278568.7217 | CJ23: 1416339.076 | CK23: 1416339.076 | CL23: 0 | CN23: 1009710.418 | CO23: TRUE | CP23: 0.1416666667
A24: 18 | B24: 2018-08-01 | C24: 0.08333333333 | E24: 99275008.48 | F24: =IF(AssetIntType1="Fixed",AssetFxdRate1,IF(A24=1,OFFSET(Vectors!$D$6,A24,MATCH(AssetFltIndx1,lstInterestRates,0)),IF(MOD($A24,AssetRateReset1)=0,MAX(MIN(OFFSET(Vectors!$D$6,A24,MATCH(AssetFltIndx1,lstInterestRates,0)),(F23-AssetMarg1)+AssetPdCapFl1,AssetLifeCap1),(F23-AssetMarg1)-AssetPdCapFl1,AssetLifeFloor1-AssetMarg1),F23)))+AssetMarg1 -> 0.105 | G24: 914739.2945 | H24: 868656.3242 | I24: 46082.97031 | J24: 99228925.51 | L24: 82583102.82 | M24: =IF(pdrLossTime1="",OFFSET(Vectors!AE23:AE,A24+SeasoningAge1,MATCH(SDA_Loss,lstSDA,0)),OFFSET(Vectors!$X$6,A24+SeasoningAge1,MATCH(pdrLossTime1,lstDefaultCurve,0))) -> 0.008333333333 | N24: 833333.3333 | O24: 0.9922892551 | P24: =OFFSET(Vectors!$L$6,A24+SeasoningAge1,MATCH(pdrPrepay1,lstPrepayCurve,0))*pdrPrepayStress1 -> 0.01 | Q24: 136577.2093 | R24: 37947.84063 | S24: 0.105 | T24: 715310.483 | U24: 250000 | V24: 81575244.44 | X24: 1139835.533 | Z24: FALSE | AA24: TRUE | AB24: TRUE | AC24: TRUE | AE24: 77634241.55 | AF24: =IF(Swap_Active="No",0,OFFSET(Vectors!$D$6,Vectors!A24,MATCH(Swap_IN,lstInterestRates,0))) -> 0.041869 | AG24: 270872.3383 | AH24: =IF(Swap_Active="No",0,OFFSET(Vectors!$D$6,Vectors!A24,MATCH(Swap_OUT,lstInterestRates,0))) -> 0.04 | AI24: 258780.8052 | AJ24: 12091.53312 | AK24: 1151927.066 | AM24: 172832.1836 | AN24: 172832.1836 | AO24: 0 | AP24: 979094.8825 | AR24: =IF(LiabIntType1="fixed",LiabFxdRate1,OFFSET(Vectors!$D$6,Vectors!A24,MATCH(LiabLoanIndex1,lstInterestRates,0)))+LiabMarg1 -> 0.051869 | AS24: 365092.1857 | AT24: 365092.1857 | AU24: 0 | AV24: 0 | AW24: 0 | AX24: 614002.6968 | AZ24: 614002.6968 | BA24: 614002.6968 | BB24: 0 | BC24: 0 | BD24: 0 | BE24: 0 | BG24: 1000000 | BH24: 0 | BI24: 0 | BJ24: 0 | BK24: 0 | BL24: 0 | BN24: =IF(LiabIntType2="Fixed",LiabFxdRate2,OFFSET(Vectors!$D$6,Vectors!A24,MATCH(LiabLoanIndex2,lstInterestRates,0))) -> 0.04 | BO24: 15061.33031 | BP24: 0 | BQ24: 15061.33031 | BR24: 0 | BT24: -278057.7643 | BU24: -278057.7643 | BV24: 0 | BW24: 278057.7643 | BY24: 278057.7643 | BZ24: 0 | CB24: 83572768.79 | CC24: 365092.1857 | CD24: 892060.4612 | CF24: 4796456.857 | CG24: 0 | CH24: -278057.7643 | CJ24: 1410707.871 | CK24: 1410707.871 | CL24: 0 | CN24: 1007858.383 | CO24: TRUE | CP24: 0.15
A25: 19 | B25: 2018-09-01 | C25: 0.08333333333 | E25: 99228925.51 | F25: =IF(AssetIntType1="Fixed",AssetFxdRate1,IF(A25=1,OFFSET(Vectors!$D$6,A25,MATCH(AssetFltIndx1,lstInterestRates,0)),IF(MOD($A25,AssetRateReset1)=0,MAX(MIN(OFFSET(Vectors!$D$6,A25,MATCH(AssetFltIndx1,lstInterestRates,0)),(F24-AssetMarg1)+AssetPdCapFl1,AssetLifeCap1),(F24-AssetMarg1)-AssetPdCapFl1,AssetLifeFloor1-AssetMarg1),F24)))+AssetMarg1 -> 0.105 | G25: 914739.2945 | H25: 868253.0982 | I25: 46486.1963 | J25: 99182439.31 | L25: 81575244.44 | M25: =IF(pdrLossTime1="",OFFSET(Vectors!AE24:AE,A25+SeasoningAge1,MATCH(SDA_Loss,lstSDA,0)),OFFSET(Vectors!$X$6,A25+SeasoningAge1,MATCH(pdrLossTime1,lstDefaultCurve,0))) -> 0.008333333333 | N25: 833333.3333 | O25: 0.9918243931 | P25: =OFFSET(Vectors!$L$6,A25+SeasoningAge1,MATCH(pdrPrepay1,lstPrepayCurve,0))*pdrPrepayStress1 -> 0.01 | Q25: 134847.1955 | R25: 37825.50612 | S25: 0.105 | T25: 706491.7222 | U25: 250000 | V25: 80569238.41 | X25: 1129164.424 | Z25: FALSE | AA25: TRUE | AB25: TRUE | AC25: TRUE | AE25: 76747856.19 | AF25: =IF(Swap_Active="No",0,OFFSET(Vectors!$D$6,Vectors!A25,MATCH(Swap_IN,lstInterestRates,0))) -> 0.043119 | AG25: 275774.2342 | AH25: =IF(Swap_Active="No",0,OFFSET(Vectors!$D$6,Vectors!A25,MATCH(Swap_OUT,lstInterestRates,0))) -> 0.04 | AI25: 255826.1873 | AJ25: 19948.04695 | AK25: 1149112.471 | AM25: 170780.7277 | AN25: 170780.7277 | AO25: 0 | AP25: 978331.7431 | AR25: =IF(LiabIntType1="fixed",LiabFxdRate1,OFFSET(Vectors!$D$6,Vectors!A25,MATCH(LiabLoanIndex1,lstInterestRates,0)))+LiabMarg1 -> 0.053119 | AS25: 369941.8254 | AT25: 369941.8254 | AU25: 0 | AV25: 0 | AW25: 0 | AX25: 608389.9176 | AZ25: 608389.9176 | BA25: 608389.9176 | BB25: 0 | BC25: 0 | BD25: 0 | BE25: 0 | BG25: 1000000 | BH25: 0 | BI25: 0 | BJ25: 0 | BK25: 0 | BL25: 0 | BN25: =IF(LiabIntType2="Fixed",LiabFxdRate2,OFFSET(Vectors!$D$6,Vectors!A25,MATCH(LiabLoanIndex2,lstInterestRates,0))) -> 0.04 | BO25: 15988.18952 | BP25: 0 | BQ25: 15988.18952 | BR25: 0 | BT25: -277546.7205 | BU25: -277546.7205 | BV25: 0 | BW25: 277546.7205 | BY25: 277546.7205 | BZ25: 0 | CB25: 82686832.15 | CC25: 369941.8254 | CD25: 885936.6381 | CF25: 5074003.578 | CG25: 0 | CH25: -277546.7205 | CJ25: 1404938.658 | CK25: 1404938.658 | CL25: 0 | CN25: 1006006.035 | CO25: TRUE | CP25: 0.1583333333
A26: 20 | B26: 2018-10-01 | C26: 0.08333333333 | E26: 99182439.31 | F26: =IF(AssetIntType1="Fixed",AssetFxdRate1,IF(A26=1,OFFSET(Vectors!$D$6,A26,MATCH(AssetFltIndx1,lstInterestRates,0)),IF(MOD($A26,AssetRateReset1)=0,MAX(MIN(OFFSET(Vectors!$D$6,A26,MATCH(AssetFltIndx1,lstInterestRates,0)),(F25-AssetMarg1)+AssetPdCapFl1,AssetLifeCap1),(F25-AssetMarg1)-AssetPdCapFl1,AssetLifeFloor1-AssetMarg1),F25)))+AssetMarg1 -> 0.105 | G26: 914739.2945 | H26: 867846.344 | I26: 46892.95052 | J26: 99135546.36 | L26: 80569238.41 | M26: =IF(pdrLossTime1="",OFFSET(Vectors!AE25:AE,A26+SeasoningAge1,MATCH(SDA_Loss,lstSDA,0)),OFFSET(Vectors!$X$6,A26+SeasoningAge1,MATCH(pdrLossTime1,lstDefaultCurve,0))) -> 0.008333333333 | N26: 833333.3333 | O26: 0.9913554636 | P26: =OFFSET(Vectors!$L$6,A26+SeasoningAge1,MATCH(pdrPrepay1,lstPrepayCurve,0))*pdrPrepayStress1 -> 0.01 | Q26: 133121.2578 | R26: 37698.72849 | S26: 0.105 | T26: 697689.1694 | U26: 250000 | V26: 79565085.09 | X26: 1118509.156 | Z26: FALSE | AA26: TRUE | AB26: TRUE | AC26: TRUE | AE26: 75870467.95 | AF26: =IF(Swap_Active="No",0,OFFSET(Vectors!$D$6,Vectors!A26,MATCH(Swap_IN,lstInterestRates,0))) -> 0.044369 | AG26: 280524.7327 | AH26: =IF(Swap_Active="No",0,OFFSET(Vectors!$D$6,Vectors!A26,MATCH(Swap_OUT,lstInterestRates,0))) -> 0.04 | AI26: 252901.5598 | AJ26: 27623.17287 | AK26: 1146132.329 | AM26: 168734.9107 | AN26: 168734.9107 | AO26: 0 | AP26: 977397.4178 | AR26: =IF(LiabIntType1="fixed",LiabFxdRate1,OFFSET(Vectors!$D$6,Vectors!A26,MATCH(LiabLoanIndex1,lstInterestRates,0)))+LiabMarg1 -> 0.054369 | AS26: 374633.3648 | AT26: 374633.3648 | AU26: 0 | AV26: 0 | AW26: 0 | AX26: 602764.0531 | AZ26: 602764.0531 | BA26: 602764.0531 | BB26: 0 | BC26: 0 | BD26: 0 | BE26: 0 | BG26: 1000000 | BH26: 0 | BI26: 0 | BJ26: 0 | BK26: 0 | BL26: 0 | BN26: =IF(LiabIntType2="Fixed",LiabFxdRate2,OFFSET(Vectors!$D$6,Vectors!A26,MATCH(LiabLoanIndex2,lstInterestRates,0))) -> 0.04 | BO26: 16913.34526 | BP26: 0 | BQ26: 16913.34526 | BR26: 0 | BT26: -277035.5754 | BU26: -277035.5754 | BV26: 0 | BW26: 277035.5754 | BY26: 277035.5754 | BZ26: 0 | CB26: 81807032.52 | CC26: 374633.3648 | CD26: 879799.6284 | CF26: 5351039.153 | CG26: 0 | CH26: -277035.5754 | CJ26: 1399033.888 | CK26: 1399033.888 | CL26: 0 | CN26: 1004153.32 | CO26: TRUE | CP26: 0.1666666667
A27: 21 | B27: 2018-11-01 | C27: 0.08333333333 | E27: 99135546.36 | F27: =IF(AssetIntType1="Fixed",AssetFxdRate1,IF(A27=1,OFFSET(Vectors!$D$6,A27,MATCH(AssetFltIndx1,lstInterestRates,0)),IF(MOD($A27,AssetRateReset1)=0,MAX(MIN(OFFSET(Vectors!$D$6,A27,MATCH(AssetFltIndx1,lstInterestRates,0)),(F26-AssetMarg1)+AssetPdCapFl1,AssetLifeCap1),(F26-AssetMarg1)-AssetPdCapFl1,AssetLifeFloor1-AssetMarg1),F26)))+AssetMarg1 -> 0.105 | G27: 914739.2945 | H27: 867436.0307 | I27: 47303.26383 | J27: 99088243.1 | L27: 79565085.09 | M27: =IF(pdrLossTime1="",OFFSET(Vectors!AE26:AE,A27+SeasoningAge1,MATCH(SDA_Loss,lstSDA,0)),OFFSET(Vectors!$X$6,A27+SeasoningAge1,MATCH(pdrLossTime1,lstDefaultCurve,0))) -> 0.008333333333 | N27: 833333.3333 | O27: 0.990882431 | P27: =OFFSET(Vectors!$L$6,A27+SeasoningAge1,MATCH(pdrPrepay1,lstPrepayCurve,0))*pdrPrepayStress1 -> 0.01 | Q27: 131399.4082 | R27: 37567.44137 | S27: 0.105 | T27: 688902.8278 | U27: 250000 | V27: 78562784.9 | X27: 1107869.677 | Z27: FALSE | AA27: TRUE | AB27: TRUE | AC27: TRUE | AE27: 75001986.53 | AF27: =IF(Swap_Active="No",0,OFFSET(Vectors!$D$6,Vectors!A27,MATCH(Swap_IN,lstInterestRates,0))) -> 0.045619 | AG27: 285126.302 | AH27: =IF(Swap_Active="No",0,OFFSET(Vectors!$D$6,Vectors!A27,MATCH(Swap_OUT,lstInterestRates,0))) -> 0.04 | AI27: 250006.6218 | AJ27: 35119.68019 | AK27: 1142989.358 | AM27: 166694.7387 | AN27: 166694.7387 | AO27: 0 | AP27: 976294.6189 | AR27: =IF(LiabIntType1="fixed",LiabFxdRate1,OFFSET(Vectors!$D$6,Vectors!A27,MATCH(LiabLoanIndex1,lstInterestRates,0)))+LiabMarg1 -> 0.055619 | AS27: 379168.7785 | AT27: 379168.7785 | AU27: 0 | AV27: 0 | AW27: 0 | AX27: 597125.8404 | AZ27: 597125.8404 | BA27: 597125.8404 | BB27: 0 | BC27: 0 | BD27: 0 | BE27: 0 | BG27: 1000000 | BH27: 0 | BI27: 0 | BJ27: 0 | BK27: 0 | BL27: 0 | BN27: =IF(LiabIntType2="Fixed",LiabFxdRate2,OFFSET(Vectors!$D$6,Vectors!A27,MATCH(LiabLoanIndex2,lstInterestRates,0))) -> 0.04 | BO27: 17836.79718 | BP27: 0 | BQ27: 17836.79718 | BR27: 0 | BT27: -276524.314 | BU27: -276524.314 | BV27: 0 | BW27: 276524.314 | BY27: 276524.314 | BZ27: 0 | CB27: 80933382.37 | CC27: 379168.7785 | CD27: 873650.1544 | CF27: 5627563.467 | CG27: 0 | CH27: -276524.314 | CJ27: 1392995.979 | CK27: 1392995.979 | CL27: 0 | CN27: 1002300.183 | CO27: TRUE | CP27: 0.175
A28: 22 | B28: 2018-12-01 | C28: 0.08333333333 | E28: 99088243.1 | F28: =IF(AssetIntType1="Fixed",AssetFxdRate1,IF(A28=1,OFFSET(Vectors!$D$6,A28,MATCH(AssetFltIndx1,lstInterestRates,0)),IF(MOD($A28,AssetRateReset1)=0,MAX(MIN(OFFSET(Vectors!$D$6,A28,MATCH(AssetFltIndx1,lstInterestRates,0)),(F27-AssetMarg1)+AssetPdCapFl1,AssetLifeCap1),(F27-AssetMarg1)-AssetPdCapFl1,AssetLifeFloor1-AssetMarg1),F27)))+AssetMarg1 -> 0.105 | G28: 914739.2945 | H28: 867022.1271 | I28: 47717.16739 | J28: 99040525.93 | L28: 78562784.9 | M28: =IF(pdrLossTime1="",OFFSET(Vectors!AE27:AE,A28+SeasoningAge1,MATCH(SDA_Loss,lstSDA,0)),OFFSET(Vectors!$X$6,A28+SeasoningAge1,MATCH(pdrLossTime1,lstDefaultCurve,0))) -> 0.008333333333 | N28: 833333.3333 | O28: 0.9904052593 | P28: =OFFSET(Vectors!$L$6,A28+SeasoningAge1,MATCH(pdrPrepay1,lstPrepayCurve,0))*pdrPrepayStress1 -> 0.01 | Q28: 129681.6589 | R28: 37431.57751 | S28: 0.105 | T28: 680132.7012 | U28: 250000 | V28: 77562338.33 | X28: 1097245.938 | Z28: FALSE | AA28: TRUE | AB28: TRUE | AC28: TRUE | AE28: 74142322.52 | AF28: =IF(Swap_Active="No",0,OFFSET(Vectors!$D$6,Vectors!A28,MATCH(Swap_IN,lstInterestRates,0))) -> 0.046869 | AG28: 289581.3762 | AH28: =IF(Swap_Active="No",0,OFFSET(Vectors!$D$6,Vectors!A28,MATCH(Swap_OUT,lstInterestRates,0))) -> 0.04 | AI28: 247141.0751 | AJ28: 42440.30112 | AK28: 1139686.239 | AM28: 164660.2175 | AN28: 164660.2175 | AO28: 0 | AP28: 975026.0213 | AR28: =IF(LiabIntType1="fixed",LiabFxdRate1,OFFSET(Vectors!$D$6,Vectors!A28,MATCH(LiabLoanIndex1,lstInterestRates,0)))+LiabMarg1 -> 0.056869 | AS28: 383550.0435 | AT28: 383550.0435 | AU28: 0 | AV28: 0 | AW28: 0 | AX28: 591475.9778 | AZ28: 591475.9778 | BA28: 591475.9778 | BB28: 0 | BC28: 0 | BD28: 0 | BE28: 0 | BG28: 1000000 | BH28: 0 | BI28: 0 | BJ28: 0 | BK28: 0 | BL28: 0 | BN28: =IF(LiabIntType2="Fixed",LiabFxdRate2,OFFSET(Vectors!$D$6,Vectors!A28,MATCH(LiabLoanIndex2,lstInterestRates,0))) -> 0.04 | BO28: 18758.54489 | BP28: 0 | BQ28: 18758.54489 | BR28: 0 | BT28: -276012.9212 | BU28: -276012.9212 | BV28: 0 | BW28: 276012.9212 | BY28: 276012.9212 | BZ28: 0 | CB28: 80065893.47 | CC28: 383550.0435 | CD28: 867488.899 | CF28: 5903576.388 | CG28: 0 | CH28: -276012.9212 | CJ28: 1386827.314 | CK28: 1386827.314 | CL28: 0 | CN28: 1000446.57 | CO28: TRUE | CP28: 0.1833333333
A29: 23 | B29: 2019-01-01 | C29: 0.08333333333 | E29: 99040525.93 | F29: =IF(AssetIntType1="Fixed",AssetFxdRate1,IF(A29=1,OFFSET(Vectors!$D$6,A29,MATCH(AssetFltIndx1,lstInterestRates,0)),IF(MOD($A29,AssetRateReset1)=0,MAX(MIN(OFFSET(Vectors!$D$6,A29,MATCH(AssetFltIndx1,lstInterestRates,0)),(F28-AssetMarg1)+AssetPdCapFl1,AssetLifeCap1),(F28-AssetMarg1)-AssetPdCapFl1,AssetLifeFloor1-AssetMarg1),F28)))+AssetMarg1 -> 0.105 | G29: 914739.2945 | H29: 866604.6019 | I29: 48134.69261 | J29: 98992391.24 | L29: 77562338.33 | M29: =IF(pdrLossTime1="",OFFSET(Vectors!AE28:AE,A29+SeasoningAge1,MATCH(SDA_Loss,lstSDA,0)),OFFSET(Vectors!$X$6,A29+SeasoningAge1,MATCH(pdrLossTime1,lstDefaultCurve,0))) -> 0.008333333333 | N29: 833333.3333 | O29: 0.9899239124 | P29: =OFFSET(Vectors!$L$6,A29+SeasoningAge1,MATCH(pdrPrepay1,lstPrepayCurve,0))*pdrPrepayStress1 -> 0.01 | Q29: 127968.0224 | R29: 37291.06883 | S29: 0.105 | T29: 671378.7937 | U29: 250000 | V29: 76563745.91 | X29: 1086637.885 | Z29: FALSE | AA29: TRUE | AB29: TRUE | AC29: TRUE | AE29: 73291387.39 | AF29: =IF(Swap_Active="No",0,OFFSET(Vectors!$D$6,Vectors!A29,MATCH(Swap_IN,lstInterestRates,0))) -> 0.048119 | AG29: 293892.3558 | AH29: =IF(Swap_Active="No",0,OFFSET(Vectors!$D$6,Vectors!A29,MATCH(Swap_OUT,lstInterestRates,0))) -> 0.04 | AI29: 244304.6246 | AJ29: 49587.73119 | AK29: 1136225.616 | AM29: 162631.3528 | AN29: 162631.3528 | AO29: 0 | AP29: 973594.2633 | AR29: =IF(LiabIntType1="fixed",LiabFxdRate1,OFFSET(Vectors!$D$6,Vectors!A29,MATCH(LiabLoanIndex1,lstInterestRates,0)))+LiabMarg1 -> 0.058119 | AS29: 387779.1385 | AT29: 387779.1385 | AU29: 0 | AV29: 0 | AW29: 0 | AX29: 585815.1247 | AZ29: 585815.1247 | BA29: 585815.1247 | BB29: 0 | BC29: 0 | BD29: 0 | BE29: 0 | BG29: 1000000 | BH29: 0 | BI29: 0 | BJ29: 0 | BK29: 0 | BL29: 0 | BN29: =IF(LiabIntType2="Fixed",LiabFxdRate2,OFFSET(Vectors!$D$6,Vectors!A29,MATCH(LiabLoanIndex2,lstInterestRates,0))) -> 0.04 | BO29: 19678.58796 | BP29: 0 | BQ29: 19678.58796 | BR29: 0 | BT29: -275501.3816 | BU29: -275501.3816 | BV29: 0 | BW29: 275501.3816 | BY29: 275501.3816 | BZ29: 0 | CB29: 79204576.96 | CC29: 387779.1385 | CD29: 861316.5063 | CF29: 6179077.77 | CG29: 0 | CH29: -275501.3816 | CJ29: 1380530.241 | CK29: 1380530.241 | CL29: 0 | CN29: 998592.4245 | CO29: TRUE | CP29: 0.1916666667
A30: 24 | B30: 2019-02-01 | C30: 0.08333333333 | E30: 98992391.24 | F30: =IF(AssetIntType1="Fixed",AssetFxdRate1,IF(A30=1,OFFSET(Vectors!$D$6,A30,MATCH(AssetFltIndx1,lstInterestRates,0)),IF(MOD($A30,AssetRateReset1)=0,MAX(MIN(OFFSET(Vectors!$D$6,A30,MATCH(AssetFltIndx1,lstInterestRates,0)),(F29-AssetMarg1)+AssetPdCapFl1,AssetLifeCap1),(F29-AssetMarg1)-AssetPdCapFl1,AssetLifeFloor1-AssetMarg1),F29)))+AssetMarg1 -> 0.105 | G30: 914739.2945 | H30: 866183.4233 | I30: 48555.87117 | J30: 98943835.37 | L30: 76563745.91 | M30: =IF(pdrLossTime1="",OFFSET(Vectors!AE29:AE,A30+SeasoningAge1,MATCH(SDA_Loss,lstSDA,0)),OFFSET(Vectors!$X$6,A30+SeasoningAge1,MATCH(pdrLossTime1,lstDefaultCurve,0))) -> 0.008333333333 | N30: 833333.3333 | O30: 0.9894383537 | P30: =OFFSET(Vectors!$L$6,A30+SeasoningAge1,MATCH(pdrPrepay1,lstPrepayCurve,0))*pdrPrepayStress1 -> 0.01 | Q30: 126258.5112 | R30: 37145.84637 | S30: 0.105 | T30: 662641.11 | U30: 250000 | V30: 75567008.22 | X30: 1076045.468 | Z30: FALSE | AA30: TRUE | AB30: TRUE | AC30: TRUE | AE30: 72449093.52 | AF30: =IF(Swap_Active="No",0,OFFSET(Vectors!$D$6,Vectors!A30,MATCH(Swap_IN,lstInterestRates,0))) -> 0.049369 | AG30: 298061.6082 | AH30: =IF(Swap_Active="No",0,OFFSET(Vectors!$D$6,Vectors!A30,MATCH(Swap_OUT,lstInterestRates,0))) -> 0.04 | AI30: 241496.9784 | AJ30: 56564.62977 | AK30: 1132610.097 | AM30: 160608.1502 | AN30: 160608.1502 | AO30: 0 | AP30: 972001.9471 | AR30: =IF(LiabIntType1="fixed",LiabFxdRate1,OFFSET(Vectors!$D$6,Vectors!A30,MATCH(LiabLoanIndex1,lstInterestRates,0)))+LiabMarg1 -> 0.059369 | AS30: 391858.0441 | AT30: 391858.0441 | AU30: 0 | AV30: 0 | AW30: 0 | AX30: 580143.9029 | AZ30: 580143.9029 | BA30: 580143.9029 | BB30: 0 | BC30: 0 | BD30: 0 | BE30: 0 | BG30: 1000000 | BH30: 0 | BI30: 0 | BJ30: 0 | BK30: 0 | BL30: 0 | BN30: =IF(LiabIntType2="Fixed",LiabFxdRate2,OFFSET(Vectors!$D$6,Vectors!A30,MATCH(LiabLoanIndex2,lstInterestRates,0))) -> 0.04 | BO30: 20596.9259 | BP30: 0 | BQ30: 20596.9259 | BR30: 0 | BT30: -274989.6796 | BU30: -274989.6796 | BV30: 0 | BW30: 274989.6796 | BY30: 274989.6796 | BZ30: 0 | CB30: 78349443.38 | CC30: 391858.0441 | CD30: 855133.5826 | CF30: 6454067.45 | CG30: 0 | CH30: -274989.6796 | CJ30: 1374107.076 | CK30: 1374107.076 | CL30: 0 | CN30: 996737.6909 | CO30: TRUE | CP30: 0.2
A31: 25 | B31: 2019-03-01 | C31: 0.08333333333 | E31: 98943835.37 | F31: =IF(AssetIntType1="Fixed",AssetFxdRate1,IF(A31=1,OFFSET(Vectors!$D$6,A31,MATCH(AssetFltIndx1,lstInterestRates,0)),IF(MOD($A31,AssetRateReset1)=0,MAX(MIN(OFFSET(Vectors!$D$6,A31,MATCH(AssetFltIndx1,lstInterestRates,0)),(F30-AssetMarg1)+AssetPdCapFl1,AssetLifeCap1),(F30-AssetMarg1)-AssetPdCapFl1,AssetLifeFloor1-AssetMarg1),F30)))+AssetMarg1 -> 0.105 | G31: 914739.2945 | H31: 865758.5595 | I31: 48980.73504 | J31: 98894854.63 | L31: 75567008.22 | M31: =IF(pdrLossTime1="",OFFSET(Vectors!AE30:AE,A31+SeasoningAge1,MATCH(SDA_Loss,lstSDA,0)),OFFSET(Vectors!$X$6,A31+SeasoningAge1,MATCH(pdrLossTime1,lstDefaultCurve,0))) -> 0.008333333333 | N31: 833333.3333 | O31: 0.9889485463 | P31: =OFFSET(Vectors!$L$6,A31+SeasoningAge1,MATCH(pdrPrepay1,lstPrepayCurve,0))*pdrPrepayStress1 -> 0.01 | Q31: 124553.1382 | R31: 36995.84026 | S31: 0.105 | T31: 653919.6552 | U31: 250000 | V31: 74572125.91 | X31: 1065468.634 | Z31: FALSE | AA31: TRUE | AB31: TRUE | AC31: TRUE | AE31: 71615354.16 | AF31: =IF(Swap_Active="No",0,OFFSET(Vectors!$D$6,Vectors!A31,MATCH(Swap_IN,lstInterestRates,0))) -> 0.05041066667 | AG31: 300848.1456 | AH31: =IF(Swap_Active="No",0,OFFSET(Vectors!$D$6,Vectors!A31,MATCH(Swap_OUT,lstInterestRates,0))) -> 0.04 | AI31: 238717.8472 | AJ31: 62130.29837 | AK31: 1127598.932 | AM31: 158590.6151 | AN31: 158590.6151 | AO31: 0 | AP31: 969008.317 | AR31: =IF(LiabIntType1="fixed",LiabFxdRate1,OFFSET(Vectors!$D$6,Vectors!A31,MATCH(LiabLoanIndex1,lstInterestRates,0)))+LiabMarg1 -> 0.06041066667 | AS31: 394428.509 | AT31: 394428.509 | AU31: 0 | AV31: 0 | AW31: 0 | AX31: =AP31-AT31 -> 574579.808 | AZ31: 574579.808 | BA31: 574579.808 | BB31: 0 | BC31: 0 | BD31: 0 | BE31: 0 | BG31: 1000000 | BH31: 0 | BI31: 0 | BJ31: 0 | BK31: 0 | BL31: 0 | BN31: =IF(LiabIntType2="Fixed",LiabFxdRate2,OFFSET(Vectors!$D$6,Vectors!A31,MATCH(LiabLoanIndex2,lstInterestRates,0))) -> 0.04 | BO31: 21513.55817 | BP31: 0 | BQ31: 21513.55817 | BR31: 0 | BT31: -274477.7996 | BU31: -274477.7996 | BV31: 0 | BW31: 274477.7996 | BY31: 274477.7996 | BZ31: 0 | CB31: 77500385.77 | CC31: 394428.509 | CD31: 849057.6076 | CF31: 6728545.249 | CG31: 0 | CH31: -274477.7996 | CJ31: 1366316.779 | CK31: 1366316.779 | CL31: 0 | CN31: 994882.3118 | CO31: TRUE | CP31: 0.2083333333
A32: 26 | B32: 2019-04-01 | C32: 0.08333333333 | E32: 98894854.63 | F32: =IF(AssetIntType1="Fixed",AssetFxdRate1,IF(A32=1,OFFSET(Vectors!$D$6,A32,MATCH(AssetFltIndx1,lstInterestRates,0)),IF(MOD($A32,AssetRateReset1)=0,MAX(MIN(OFFSET(Vectors!$D$6,A32,MATCH(AssetFltIndx1,lstInterestRates,0)),(F31-AssetMarg1)+AssetPdCapFl1,AssetLifeCap1),(F31-AssetMarg1)-AssetPdCapFl1,AssetLifeFloor1-AssetMarg1),F31)))+AssetMarg1 -> 0.105 | G32: 914739.2945 | H32: 865329.978 | I32: 49409.31647 | J32: 98845445.31 | L32: 74572125.91 | M32: =IF(pdrLossTime1="",OFFSET(Vectors!AE31:AE,A32+SeasoningAge1,MATCH(SDA_Loss,lstSDA,0)),OFFSET(Vectors!$X$6,A32+SeasoningAge1,MATCH(pdrLossTime1,lstDefaultCurve,0))) -> 0.008333333333 | N32: 833333.3333 | O32: 0.9884544531 | P32: =OFFSET(Vectors!$L$6,A32+SeasoningAge1,MATCH(pdrPrepay1,lstPrepayCurve,0))*pdrPrepayStress1 -> 0.01 | Q32: 122851.9166 | R32: 36840.97977 | S32: 0.105 | T32: 645214.435 | U32: 250000 | V32: 73579099.68 | X32: 1054907.331 | Z32: FALSE | AA32: TRUE | AB32: TRUE | AC32: TRUE | AE32: 70790083.42 | AF32: =IF(Swap_Active="No",0,OFFSET(Vectors!$D$6,Vectors!A32,MATCH(Swap_IN,lstInterestRates,0))) -> 0.05145233333 | AG32: 303526.2474 | AH32: =IF(Swap_Active="No",0,OFFSET(Vectors!$D$6,Vectors!A32,MATCH(Swap_OUT,lstInterestRates,0))) -> 0.04 | AI32: 235966.9447 | AJ32: 67559.30267 | AK32: 1122466.634 | AM32: 156578.7039 | AN32: 156578.7039 | AO32: 0 | AP32: 965887.9301 | AR32: =IF(LiabIntType1="fixed",LiabFxdRate1,OFFSET(Vectors!$D$6,Vectors!A32,MATCH(LiabLoanIndex1,lstInterestRates,0)))+LiabMarg1 -> 0.06145233333 | AS32: 396881.6283 | AT32: 396881.6283 | AU32: 0 | AV32: 0 | AW32: 0 | AX32: 569006.3018 | AZ32: 569006.3018 | BA32: 569006.3018 | BB32: 0 | BC32: 0 | BD32: 0 | BE32: 0 | BG32: 1000000 | BH32: 0 | BI32: 0 | BJ32: 0 | BK32: 0 | BL32: 0 | BN32: =IF(LiabIntType2="Fixed",LiabFxdRate2,OFFSET(Vectors!$D$6,Vectors!A32,MATCH(LiabLoanIndex2,lstInterestRates,0))) -> 0.04 | BO32: 22428.48416 | BP32: 0 | BQ32: 22428.48416 | BR32: 0 | BT32: -273965.7257 | BU32: -273965.7257 | BV32: 0 | BW32: 273965.7257 | BY32: 273965.7257 | BZ32: 0 | CB32: 76657413.75 | CC32: 396881.6283 | CD32: 842972.0274 | CF32: 7002510.975 | CG32: 0 | CH32: -273965.7257 | CJ32: 1358433.579 | CK32: 1358433.579 | CL32: 0 | CN32: 993026.2297 | CO32: TRUE | CP32: 0.2166666667
A33: 27 | B33: 2019-05-01 | C33: 0.08333333333 | E33: 98845445.31 | F33: =IF(AssetIntType1="Fixed",AssetFxdRate1,IF(A33=1,OFFSET(Vectors!$D$6,A33,MATCH(AssetFltIndx1,lstInterestRates,0)),IF(MOD($A33,AssetRateReset1)=0,MAX(MIN(OFFSET(Vectors!$D$6,A33,MATCH(AssetFltIndx1,lstInterestRates,0)),(F32-AssetMarg1)+AssetPdCapFl1,AssetLifeCap1),(F32-AssetMarg1)-AssetPdCapFl1,AssetLifeFloor1-AssetMarg1),F32)))+AssetMarg1 -> 0.105 | G33: 914739.2945 | H33: 864897.6465 | I33: 49841.64799 | J33: 98795603.67 | L33: 73579099.68 | M33: =IF(pdrLossTime1="",OFFSET(Vectors!AE32:AE,A33+SeasoningAge1,MATCH(SDA_Loss,lstSDA,0)),OFFSET(Vectors!$X$6,A33+SeasoningAge1,MATCH(pdrLossTime1,lstDefaultCurve,0))) -> 0.008333333333 | N33: 833333.3333 | O33: 0.9879560367 | P33: =OFFSET(Vectors!$L$6,A33+SeasoningAge1,MATCH(pdrPrepay1,lstPrepayCurve,0))*pdrPrepayStress1 -> 0.01 | Q33: 121154.8595 | R33: 36681.19322 | S33: 0.105 | T33: 636525.4555 | U33: 250000 | V33: 72587930.29 | X33: 1044361.508 | Z33: FALSE | AA33: TRUE | AB33: TRUE | AC33: TRUE | AE33: 69973196.28 | AF33: =IF(Swap_Active="No",0,OFFSET(Vectors!$D$6,Vectors!A33,MATCH(Swap_IN,lstInterestRates,0))) -> 0.052494 | AG33: 306097.7471 | AH33: =IF(Swap_Active="No",0,OFFSET(Vectors!$D$6,Vectors!A33,MATCH(Swap_OUT,lstInterestRates,0))) -> 0.04 | AI33: 233243.9876 | AJ33: 72853.75953 | AK33: 1117215.268 | AM33: 154572.4219 | AN33: 154572.4219 | AO33: 0 | AP33: 962642.8459 | AR33: =IF(LiabIntType1="fixed",LiabFxdRate1,OFFSET(Vectors!$D$6,Vectors!A33,MATCH(LiabLoanIndex1,lstInterestRates,0)))+LiabMarg1 -> 0.062494 | AS33: 399219.0346 | AT33: 399219.0346 | AU33: 0 | AV33: 0 | AW33: 0 | AX33: 563423.8113 | AZ33: 563423.8113 | BA33: 563423.8113 | BB33: 0 | BC33: 0 | BD33: 0 | BE33: 0 | BG33: 1000000 | BH33: 0 | BI33: 0 | BJ33: 0 | BK33: 0 | BL33: 0 | BN33: =IF(LiabIntType2="Fixed",LiabFxdRate2,OFFSET(Vectors!$D$6,Vectors!A33,MATCH(LiabLoanIndex2,lstInterestRates,0))) -> 0.04 | BO33: 23341.70325 | BP33: 0 | BQ33: 23341.70325 | BR33: 0 | BT33: -273453.4416 | BU33: -273453.4416 | BV33: 0 | BW33: 273453.4416 | BY33: 273453.4416 | BZ33: 0 | CB33: 75820536.49 | CC33: 399219.0346 | CD33: 836877.2529 | CF33: 7275964.417 | CG33: 0 | CH33: -273453.4416 | CJ33: 1350459.255 | CK33: 1350459.255 | CL33: 0 | CN33: 991169.3861 | CO33: TRUE | CP33: 0.225
A34: 28 | B34: 2019-06-01 | C34: 0.08333333333 | E34: 98795603.67 | F34: =IF(AssetIntType1="Fixed",AssetFxdRate1,IF(A34=1,OFFSET(Vectors!$D$6,A34,MATCH(AssetFltIndx1,lstInterestRates,0)),IF(MOD($A34,AssetRateReset1)=0,MAX(MIN(OFFSET(Vectors!$D$6,A34,MATCH(AssetFltIndx1,lstInterestRates,0)),(F33-AssetMarg1)+AssetPdCapFl1,AssetLifeCap1),(F33-AssetMarg1)-AssetPdCapFl1,AssetLifeFloor1-AssetMarg1),F33)))+AssetMarg1 -> 0.105 | G34: 914739.2945 | H34: 864461.5321 | I34: 50277.76241 | J34: 98745325.9 | L34: 72587930.29 | M34: =IF(pdrLossTime1="",OFFSET(Vectors!AE33:AE,A34+SeasoningAge1,MATCH(SDA_Loss,lstSDA,0)),OFFSET(Vectors!$X$6,A34+SeasoningAge1,MATCH(pdrLossTime1,lstDefaultCurve,0))) -> 0.008333333333 | N34: 833333.3333 | O34: 0.987453259 | P34: =OFFSET(Vectors!$L$6,A34+SeasoningAge1,MATCH(pdrPrepay1,lstPrepayCurve,0))*pdrPrepayStress1 -> 0.01 | Q34: 119461.9806 | R34: 36516.40806 | S34: 0.105 | T34: 627852.7234 | U34: 250000 | V34: 71598618.57 | X34: 1033831.112 | Z34: FALSE | AA34: TRUE | AB34: TRUE | AC34: TRUE | AE34: 69164608.57 | AF34: =IF(Swap_Active="No",0,OFFSET(Vectors!$D$6,Vectors!A34,MATCH(Swap_IN,lstInterestRates,0))) -> 0.05353566667 | AG34: 308564.4525 | AH34: =IF(Swap_Active="No",0,OFFSET(Vectors!$D$6,Vectors!A34,MATCH(Swap_OUT,lstInterestRates,0))) -> 0.04 | AI34: 230548.6952 | AJ34: 78015.75723 | AK34: 1111846.869 | AM34: 152571.774 | AN34: 152571.774 | AO34: 0 | AP34: 959275.0952 | AR34: =IF(LiabIntType1="fixed",LiabFxdRate1,OFFSET(Vectors!$D$6,Vectors!A34,MATCH(LiabLoanIndex1,lstInterestRates,0)))+LiabMarg1 -> 0.06353566667 | AS34: 401442.3611 | AT34: 401442.3611 | AU34: 0 | AV34: 0 | AW34: 0 | AX34: 557832.7341 | AZ34: 557832.7341 | BA34: 557832.7341 | BB34: 0 | BC34: 0 | BD34: 0 | BE34: 0 | BG34: 1000000 | BH34: 0 | BI34: 0 | BJ34: 0 | BK34: 0 | BL34: 0 | BN34: =IF(LiabIntType2="Fixed",LiabFxdRate2,OFFSET(Vectors!$D$6,Vectors!A34,MATCH(LiabLoanIndex2,lstInterestRates,0))) -> 0.04 | BO34: 24253.21472 | BP34: 0 | BQ34: 24253.21472 | BR34: 0 | BT34: -272940.9312 | BU34: -272940.9312 | BV34: 0 | BW34: 272940.9312 | BY34: 272940.9312 | BZ34: 0 | CB34: 74989762.83 | CC34: 401442.3611 | CD34: 830773.6653 | CF34: 7548905.348 | CG34: 0 | CH34: -272940.9312 | CJ34: 1342395.564 | CK34: 1342395.564 | CL34: 0 | CN34: 989311.7219 | CO34: TRUE | CP34: 0.2333333333
A35: 29 | B35: 2019-07-01 | C35: 0.08333333333 | E35: 98745325.9 | F35: =IF(AssetIntType1="Fixed",AssetFxdRate1,IF(A35=1,OFFSET(Vectors!$D$6,A35,MATCH(AssetFltIndx1,lstInterestRates,0)),IF(MOD($A35,AssetRateReset1)=0,MAX(MIN(OFFSET(Vectors!$D$6,A35,MATCH(AssetFltIndx1,lstInterestRates,0)),(F34-AssetMarg1)+AssetPdCapFl1,AssetLifeCap1),(F34-AssetMarg1)-AssetPdCapFl1,AssetLifeFloor1-AssetMarg1),F34)))+AssetMarg1 -> 0.105 | G35: 914739.2945 | H35: 864021.6017 | I35: 50717.69283 | J35: 98694608.21 | L35: 71598618.57 | M35: =IF(pdrLossTime1="",OFFSET(Vectors!AE34:AE,A35+SeasoningAge1,MATCH(SDA_Loss,lstSDA,0)),OFFSET(Vectors!$X$6,A35+SeasoningAge1,MATCH(pdrLossTime1,lstDefaultCurve,0))) -> 0.008333333333 | N35: 833333.3333 | O35: 0.9869460821 | P35: =OFFSET(Vectors!$L$6,A35+SeasoningAge1,MATCH(pdrPrepay1,lstPrepayCurve,0))*pdrPrepayStress1 -> 0.01 | Q35: 117773.2935 | R35: 36346.55075 | S35: 0.105 | T35: 619196.2458 | U35: 250000 | V35: 70611165.39 | X35: 1023316.09 | Z35: FALSE | AA35: TRUE | AB35: TRUE | AC35: TRUE | AE35: 68364236.95 | AF35: =IF(Swap_Active="No",0,OFFSET(Vectors!$D$6,Vectors!A35,MATCH(Swap_IN,lstInterestRates,0))) -> 0.05457733333 | AG35: 310928.1457 | AH35: =IF(Swap_Active="No",0,OFFSET(Vectors!$D$6,Vectors!A35,MATCH(Swap_OUT,lstInterestRates,0))) -> 0.04 | AI35: 227880.7898 | AJ35: 83047.35584 | AK35: 1106363.446 | AM35: 150576.7655 | AN35: 150576.7655 | AO35: 0 | AP35: 955786.6804 | AR35: =IF(LiabIntType1="fixed",LiabFxdRate1,OFFSET(Vectors!$D$6,Vectors!A35,MATCH(LiabLoanIndex1,lstInterestRates,0)))+LiabMarg1 -> 0.06457733333 | AS35: 403553.2426 | AT35: 403553.2426 | AU35: 0 | AV35: 0 | AW35: 0 | AX35: 552233.4379 | AZ35: 552233.4379 | BA35: 552233.4379 | BB35: 0 | BC35: 0 | BD35: 0 | BE35: 0 | BG35: 1000000 | BH35: 0 | BI35: 0 | BJ35: 0 | BK35: 0 | BL35: 0 | BN35: =IF(LiabIntType2="Fixed",LiabFxdRate2,OFFSET(Vectors!$D$6,Vectors!A35,MATCH(LiabLoanIndex2,lstInterestRates,0))) -> 0.04 | BO35: 25163.01783 | BP35: 0 | BQ35: 25163.01783 | BR35: 0 | BT35: -272428.1779 | BU35: -272428.1779 | BV35: 0 | BW35: 272428.1779 | BY35: 272428.1779 | BZ35: 0 | CB35: 74165101.21 | CC35: 403553.2426 | CD35: 824661.6157 | CF35: 7821333.526 | CG35: 0 | CH35: -272428.1779 | CJ35: 1334244.236 | CK35: 1334244.236 | CL35: 0 | CN35: 987453.1776 | CO35: TRUE | CP35: 0.2416666667
A36: 30 | B36: 2019-08-01 | C36: 0.08333333333 | E36: 98694608.21 | F36: =IF(AssetIntType1="Fixed",AssetFxdRate1,IF(A36=1,OFFSET(Vectors!$D$6,A36,MATCH(AssetFltIndx1,lstInterestRates,0)),IF(MOD($A36,AssetRateReset1)=0,MAX(MIN(OFFSET(Vectors!$D$6,A36,MATCH(AssetFltIndx1,lstInterestRates,0)),(F35-AssetMarg1)+AssetPdCapFl1,AssetLifeCap1),(F35-AssetMarg1)-AssetPdCapFl1,AssetLifeFloor1-AssetMarg1),F35)))+AssetMarg1 -> 0.105 | G36: 914739.2945 | H36: 863577.8218 | I36: 51161.47264 | J36: 98643446.74 | L36: 70611165.39 | M36: =IF(pdrLossTime1="",OFFSET(Vectors!AE35:AE,A36+SeasoningAge1,MATCH(SDA_Loss,lstSDA,0)),OFFSET(Vectors!$X$6,A36+SeasoningAge1,MATCH(pdrLossTime1,lstDefaultCurve,0))) -> 0.008333333333 | N36: 833333.3333 | O36: 0.9864344674 | P36: =OFFSET(Vectors!$L$6,A36+SeasoningAge1,MATCH(pdrPrepay1,lstPrepayCurve,0))*pdrPrepayStress1 -> 0.01 | Q36: 116088.8122 | R36: 36171.54686 | S36: 0.105 | T36: 610556.0305 | U36: 250000 | V36: 69625571.7 | X36: 1012816.39 | Z36: FALSE | AA36: TRUE | AB36: TRUE | AC36: TRUE | AE36: 67571998.93 | AF36: =IF(Swap_Active="No",0,OFFSET(Vectors!$D$6,Vectors!A36,MATCH(Swap_IN,lstInterestRates,0))) -> 0.055619 | AG36: 313190.584 | AH36: =IF(Swap_Active="No",0,OFFSET(Vectors!$D$6,Vectors!A36,MATCH(Swap_OUT,lstInterestRates,0))) -> 0.04 | AI36: 225239.9964 | AJ36: 87950.58761 | AK36: 1100766.977 | AM36: 148587.4012 | AN36: 148587.4012 | AO36: 0 | AP36: 952179.576 | AR36: =IF(LiabIntType1="fixed",LiabFxdRate1,OFFSET(Vectors!$D$6,Vectors!A36,MATCH(LiabLoanIndex1,lstInterestRates,0)))+LiabMarg1 -> 0.065619 | AS36: 405553.3147 | AT36: 405553.3147 | AU36: 0 | AV36: 0 | AW36: 0 | AX36: 546626.2613 | AZ36: 546626.2613 | BA36: 546626.2613 | BB36: 0 | BC36: 0 | BD36: 0 | BE36: 0 | BG36: 1000000 | BH36: 0 | BI36: 0 | BJ36: 0 | BK36: 0 | BL36: 0 | BN36: =IF(LiabIntType2="Fixed",LiabFxdRate2,OFFSET(Vectors!$D$6,Vectors!A36,MATCH(LiabLoanIndex2,lstInterestRates,0))) -> 0.04 | BO36: 26071.11175 | BP36: 0 | BQ36: 26071.11175 | BR36: 0 | BT36: -271915.1651 | BU36: -271915.1651 | BV36: 0 | BW36: 271915.1651 | BY36: 271915.1651 | BZ36: 0 | CB36: 73346559.79 | CC36: 405553.3147 | CD36: 818541.4264 | CF36: 8093248.691 | CG36: 0 | CH36: -271915.1651 | CJ36: 1326006.974 | CK36: 1326006.974 | CL36: 0 | CN36: 985593.6924 | CO36: TRUE | CP36: 0.25
A37: 31 | B37: 2019-09-01 | C37: 0.08333333333 | E37: 98643446.74 | F37: =IF(AssetIntType1="Fixed",AssetFxdRate1,IF(A37=1,OFFSET(Vectors!$D$6,A37,MATCH(AssetFltIndx1,lstInterestRates,0)),IF(MOD($A37,AssetRateReset1)=0,MAX(MIN(OFFSET(Vectors!$D$6,A37,MATCH(AssetFltIndx1,lstInterestRates,0)),(F36-AssetMarg1)+AssetPdCapFl1,AssetLifeCap1),(F36-AssetMarg1)-AssetPdCapFl1,AssetLifeFloor1-AssetMarg1),F36)))+AssetMarg1 -> 0.105 | G37: 914739.2945 | H37: 863130.159 | I37: 51609.13553 | J37: 98591837.6 | L37: 69625571.7 | M37: =IF(pdrLossTime1="",OFFSET(Vectors!AE36:AE,A37+SeasoningAge1,MATCH(SDA_Loss,lstSDA,0)),OFFSET(Vectors!$X$6,A37+SeasoningAge1,MATCH(pdrLossTime1,lstDefaultCurve,0))) -> 0.008333333333 | N37: 833333.3333 | O37: 0.985918376 | P37: =OFFSET(Vectors!$L$6,A37+SeasoningAge1,MATCH(pdrPrepay1,lstPrepayCurve,0))*pdrPrepayStress1 -> 0.01 | Q37: 114408.551 | R37: 35991.32097 | S37: 0.105 | T37: 601932.0857 | U37: 250000 | V37: 68641838.49 | X37: 1002331.958 | Z37: FALSE | AA37: TRUE | AB37: TRUE | AC37: TRUE | AE37: 66787812.84 | AF37: =IF(Swap_Active="No",0,OFFSET(Vectors!$D$6,Vectors!A37,MATCH(Swap_IN,lstInterestRates,0))) -> 0.05666066667 | AG37: 315353.5 | AH37: =IF(Swap_Active="No",0,OFFSET(Vectors!$D$6,Vectors!A37,MATCH(Swap_OUT,lstInterestRates,0))) -> 0.04 | AI37: 222626.0428 | AJ37: 92727.45726 | AK37: 1095059.415 | AM37: 146603.6861 | AN37: 146603.6861 | AO37: 0 | AP37: 948455.7288 | AR37: =IF(LiabIntType1="fixed",LiabFxdRate1,OFFSET(Vectors!$D$6,Vectors!A37,MATCH(LiabLoanIndex1,lstInterestRates,0)))+LiabMarg1 -> 0.06666066667 | AS37: 407444.2144 | AT37: 407444.2144 | AU37: 0 | AV37: 0 | AW37: 0 | AX37: 541011.5144 | AZ37: 541011.5144 | BA37: 541011.5144 | BB37: 0 | BC37: 0 | BD37: 0 | BE37: 0 | BG37: 1000000 | BH37: 0 | BI37: 0 | BJ37: 0 | BK37: 0 | BL37: 0 | BN37: =IF(LiabIntType2="Fixed",LiabFxdRate2,OFFSET(Vectors!$D$6,Vectors!A37,MATCH(LiabLoanIndex2,lstInterestRates,0))) -> 0.04 | BO37: 26977.49564 | BP37: 0 | BQ37: 26977.49564 | BR37: 0 | BT37: -271401.8758 | BU37: -271401.8758 | BV37: 0 | BW37: 271401.8758 | BY37: 271401.8758 | BZ37: 0 | CB37: 72534146.39 | CC37: 407444.2144 | CD37: 812413.3902 | CF37: 8364650.566 | CG37: 0 | CH37: -271401.8758 | CJ37: 1317685.458 | CK37: 1317685.458 | CL37: 0 | CN37: 983733.2053 | CO37: TRUE | CP37: 0.2583333333
A38: 32 | B38: 2019-10-01 | C38: 0.08333333333 | E38: 98591837.6 | F38: =IF(AssetIntType1="Fixed",AssetFxdRate1,IF(A38=1,OFFSET(Vectors!$D$6,A38,MATCH(AssetFltIndx1,lstInterestRates,0)),IF(MOD($A38,AssetRateReset1)=0,MAX(MIN(OFFSET(Vectors!$D$6,A38,MATCH(AssetFltIndx1,lstInterestRates,0)),(F37-AssetMarg1)+AssetPdCapFl1,AssetLifeCap1),(F37-AssetMarg1)-AssetPdCapFl1,AssetLifeFloor1-AssetMarg1),F37)))+AssetMarg1 -> 0.105 | G38: 914739.2945 | H38: 862678.579 | I38: 52060.71547 | J38: 98539776.89 | L38: 68641838.49 | M38: =IF(pdrLossTime1="",OFFSET(Vectors!AE37:AE,A38+SeasoningAge1,MATCH(SDA_Loss,lstSDA,0)),OFFSET(Vectors!$X$6,A38+SeasoningAge1,MATCH(pdrLossTime1,lstDefaultCurve,0))) -> 0.008333333333 | N38: 833333.3333 | O38: 0.9853977689 | P38: =OFFSET(Vectors!$L$6,A38+SeasoningAge1,MATCH(pdrPrepay1,lstPrepayCurve,0))*pdrPrepayStress1 -> 0.01 | Q38: 112732.5242 | R38: 35805.7967 | S38: 0.105 | T38: 593324.4201 | U38: 250000 | V38: 67659966.84 | X38: 991862.741 | Z38: FALSE | AA38: TRUE | AB38: TRUE | AC38: TRUE | AE38: 66011597.82 | AF38: =IF(Swap_Active="No",0,OFFSET(Vectors!$D$6,Vectors!A38,MATCH(Swap_IN,lstInterestRates,0))) -> 0.05770233333 | AG38: 317418.6018 | AH38: =IF(Swap_Active="No",0,OFFSET(Vectors!$D$6,Vectors!A38,MATCH(Swap_OUT,lstInterestRates,0))) -> 0.04 | AI38: 220038.6594 | AJ38: 97379.94237 | AK38: 1089242.683 | AM38: 144625.6252 | AN38: 144625.6252 | AO38: 0 | AP38: 944617.0582 | AR38: =IF(LiabIntType1="fixed",LiabFxdRate1,OFFSET(Vectors!$D$6,Vectors!A38,MATCH(LiabLoanIndex1,lstInterestRates,0)))+LiabMarg1 -> 0.06770233333 | AS38: 409227.5798 | AT38: 409227.5798 | AU38: 0 | AV38: 0 | AW38: 0 | AX38: 535389.4785 | AZ38: 535389.4785 | BA38: 535389.4785 | BB38: 0 | BC38: 0 | BD38: 0 | BE38: 0 | BG38: 1000000 | BH38: 0 | BI38: 0 | BJ38: 0 | BK38: 0 | BL38: 0 | BN38: =IF(LiabIntType2="Fixed",LiabFxdRate2,OFFSET(Vectors!$D$6,Vectors!A38,MATCH(LiabLoanIndex2,lstInterestRates,0))) -> 0.04 | BO38: 27882.16855 | BP38: 0 | BQ38: 27882.16855 | BR38: 0 | BT38: -270888.293 | BU38: -270888.293 | BV38: 0 | BW38: 270888.293 | BY38: 270888.293 | BZ38: 0 | CB38: 71727868.62 | CC38: 409227.5798 | CD38: 806277.7715 | CF38: 8635538.859 | CG38: 0 | CH38: -270888.293 | CJ38: 1309281.343 | CK38: 1309281.343 | CL38: 0 | CN38: 981871.6542 | CO38: TRUE | CP38: 0.2666666667
A39: 33 | B39: 2019-11-01 | C39: 0.08333333333 | E39: 98539776.89 | F39: =IF(AssetIntType1="Fixed",AssetFxdRate1,IF(A39=1,OFFSET(Vectors!$D$6,A39,MATCH(AssetFltIndx1,lstInterestRates,0)),IF(MOD($A39,AssetRateReset1)=0,MAX(MIN(OFFSET(Vectors!$D$6,A39,MATCH(AssetFltIndx1,lstInterestRates,0)),(F38-AssetMarg1)+AssetPdCapFl1,AssetLifeCap1),(F38-AssetMarg1)-AssetPdCapFl1,AssetLifeFloor1-AssetMarg1),F38)))+AssetMarg1 -> 0.105 | G39: 914739.2945 | H39: 862223.0478 | I39: 52516.24673 | J39: 98487260.64 | L39: 67659966.84 | M39: =IF(pdrLossTime1="",OFFSET(Vectors!AE38:AE,A39+SeasoningAge1,MATCH(SDA_Loss,lstSDA,0)),OFFSET(Vectors!$X$6,A39+SeasoningAge1,MATCH(pdrLossTime1,lstDefaultCurve,0))) -> 0.008333333333 | N39: 833333.3333 | O39: 0.9848726064 | P39: =OFFSET(Vectors!$L$6,A39+SeasoningAge1,MATCH(pdrPrepay1,lstPrepayCurve,0))*pdrPrepayStress1 -> 0.01 | Q39: 111060.7465 | R39: 35614.89668 | S39: 0.105 | T39: 584733.0432 | U39: 250000 | V39: 66679957.86 | X39: 981408.6863 | Z39: FALSE | AA39: TRUE | AB39: TRUE | AC39: TRUE | AE39: 65243273.84 | AF39: =IF(Swap_Active="No",0,OFFSET(Vectors!$D$6,Vectors!A39,MATCH(Swap_IN,lstInterestRates,0))) -> 0.058744 | AG39: 319387.5732 | AH39: =IF(Swap_Active="No",0,OFFSET(Vectors!$D$6,Vectors!A39,MATCH(Swap_OUT,lstInterestRates,0))) -> 0.04 | AI39: 217477.5795 | AJ39: 101909.9937 | AK39: 1083318.68 | AM39: 142653.2233 | AN39: 142653.2233 | AO39: 0 | AP39: 940665.4567 | AR39: =IF(LiabIntType1="fixed",LiabFxdRate1,OFFSET(Vectors!$D$6,Vectors!A39,MATCH(LiabLoanIndex1,lstInterestRates,0)))+LiabMarg1 -> 0.068744 | AS39: 410905.0501 | AT39: 410905.0501 | AU39: 0 | AV39: 0 | AW39: 0 | AX39: 529760.4067 | AZ39: 529760.4067 | BA39: 529760.4067 | BB39: 0 | BC39: 0 | BD39: 0 | BE39: 0 | BG39: 1000000 | BH39: 0 | BI39: 0 | BJ39: 0 | BK39: 0 | BL39: 0 | BN39: =IF(LiabIntType2="Fixed",LiabFxdRate2,OFFSET(Vectors!$D$6,Vectors!A39,MATCH(LiabLoanIndex2,lstInterestRates,0))) -> 0.04 | BO39: 28785.12953 | BP39: 0 | BQ39: 28785.12953 | BR39: 0 | BT39: -270374.3994 | BU39: -270374.3994 | BV39: 0 | BW39: 270374.3994 | BY39: 270374.3994 | BZ39: 0 | CB39: 70927733.82 | CC39: 410905.0501 | CD39: 800134.8061 | CF39: 8905913.259 | CG39: 0 | CH39: -270374.3994 | CJ39: 1300796.26 | CK39: 1300796.26 | CL39: 0 | CN39: 980008.9765 | CO39: TRUE | CP39: 0.275
A40: 34 | B40: 2019-12-01 | C40: 0.08333333333 | E40: 98487260.64 | F40: =IF(AssetIntType1="Fixed",AssetFxdRate1,IF(A40=1,OFFSET(Vectors!$D$6,A40,MATCH(AssetFltIndx1,lstInterestRates,0)),IF(MOD($A40,AssetRateReset1)=0,MAX(MIN(OFFSET(Vectors!$D$6,A40,MATCH(AssetFltIndx1,lstInterestRates,0)),(F39-AssetMarg1)+AssetPdCapFl1,AssetLifeCap1),(F39-AssetMarg1)-AssetPdCapFl1,AssetLifeFloor1-AssetMarg1),F39)))+AssetMarg1 -> 0.105 | G40: 914739.2945 | H40: 861763.5306 | I40: 52975.76388 | J40: 98434284.88 | L40: 66679957.86 | M40: =IF(pdrLossTime1="",OFFSET(Vectors!AE39:AE,A40+SeasoningAge1,MATCH(SDA_Loss,lstSDA,0)),OFFSET(Vectors!$X$6,A40+SeasoningAge1,MATCH(pdrLossTime1,lstDefaultCurve,0))) -> 0.008333333333 | N40: 833333.3333 | O40: 0.9843428488 | P40: =OFFSET(Vectors!$L$6,A40+SeasoningAge1,MATCH(pdrPrepay1,lstPrepayCurve,0))*pdrPrepayStress1 -> 0.01 | Q40: 109393.2328 | R40: 35418.54257 | S40: 0.105 | T40: 576157.9646 | U40: 250000 | V40: 65701812.75 | X40: 970969.74 | Z40: FALSE | AA40: TRUE | AB40: TRUE | AC40: TRUE | AE40: 64482761.64 | AF40: =IF(Swap_Active="No",0,OFFSET(Vectors!$D$6,Vectors!A40,MATCH(Swap_IN,lstInterestRates,0))) -> 0.05978566667 | AG40: 321262.0744 | AH40: =IF(Swap_Active="No",0,OFFSET(Vectors!$D$6,Vectors!A40,MATCH(Swap_OUT,lstInterestRates,0))) -> 0.04 | AI40: 214942.5388 | AJ40: 106319.5356 | AK40: 1077289.276 | AM40: 140686.4855 | AN40: 140686.4855 | AO40: 0 | AP40: 936602.7901 | AR40: =IF(LiabIntType1="fixed",LiabFxdRate1,OFFSET(Vectors!$D$6,Vectors!A40,MATCH(LiabLoanIndex1,lstInterestRates,0)))+LiabMarg1 -> 0.06978566667 | AS40: 412478.2658 | AT40: 412478.2658 | AU40: 0 | AV40: 0 | AW40: 0 | AX40: 524124.5243 | AZ40: 524124.5243 | BA40: 524124.5243 | BB40: 0 | BC40: 0 | BD40: 0 | BE40: 0 | BG40: 1000000 | BH40: 0 | BI40: 0 | BJ40: 0 | BK40: 0 | BL40: 0 | BN40: =IF(LiabIntType2="Fixed",LiabFxdRate2,OFFSET(Vectors!$D$6,Vectors!A40,MATCH(LiabLoanIndex2,lstInterestRates,0))) -> 0.04 | BO40: 29686.37753 | BP40: 0 | BQ40: 29686.37753 | BR40: 0 | BT40: -269860.1774 | BU40: -269860.1774 | BV40: 0 | BW40: 269860.1774 | BY40: 269860.1774 | BZ40: 0 | CB40: 70133749.12 | CC40: 412478.2658 | CD40: 793984.7017 | CF40: 9175773.436 | CG40: 0 | CH40: -269860.1774 | CJ40: 1292231.814 | CK40: 1292231.814 | CL40: 0 | CN40: 978145.1087 | CO40: TRUE | CP40: 0.2833333333
A41: 35 | B41: 2020-01-01 | C41: 0.08333333333 | E41: 98434284.88 | F41: =IF(AssetIntType1="Fixed",AssetFxdRate1,IF(A41=1,OFFSET(Vectors!$D$6,A41,MATCH(AssetFltIndx1,lstInterestRates,0)),IF(MOD($A41,AssetRateReset1)=0,MAX(MIN(OFFSET(Vectors!$D$6,A41,MATCH(AssetFltIndx1,lstInterestRates,0)),(F40-AssetMarg1)+AssetPdCapFl1,AssetLifeCap1),(F40-AssetMarg1)-AssetPdCapFl1,AssetLifeFloor1-AssetMarg1),F40)))+AssetMarg1 -> 0.105 | G41: 914739.2945 | H41: 861299.9927 | I41: 53439.30182 | J41: 98380845.58 | L41: 65701812.75 | M41: =IF(pdrLossTime1="",OFFSET(Vectors!AE40:AE,A41+SeasoningAge1,MATCH(SDA_Loss,lstSDA,0)),OFFSET(Vectors!$X$6,A41+SeasoningAge1,MATCH(pdrLossTime1,lstDefaultCurve,0))) -> 0.008333333333 | N41: 833333.3333 | O41: 0.9838084558 | P41: =OFFSET(Vectors!$L$6,A41+SeasoningAge1,MATCH(pdrPrepay1,lstPrepayCurve,0))*pdrPrepayStress1 -> 0.01 | Q41: 107729.9982 | R41: 35216.655 | S41: 0.105 | T41: 567599.1949 | U41: 250000 | V41: 64725532.77 | X41: 960545.8482 | Z41: FALSE | AA41: TRUE | AB41: TRUE | AC41: TRUE | AE41: 63729982.79 | AF41: =IF(Swap_Active="No",0,OFFSET(Vectors!$D$6,Vectors!A41,MATCH(Swap_IN,lstInterestRates,0))) -> 0.06082733333 | AG41: 323043.7422 | AH41: =IF(Swap_Active="No",0,OFFSET(Vectors!$D$6,Vectors!A41,MATCH(Swap_OUT,lstInterestRates,0))) -> 0.04 | AI41: 212433.276 | AJ41: 110610.4662 | AK41: 1071156.314 | AM41: 138725.4167 | AN41: 138725.4167 | AO41: 0 | AP41: 932430.8977 | AR41: =IF(LiabIntType1="fixed",LiabFxdRate1,OFFSET(Vectors!$D$6,Vectors!A41,MATCH(LiabLoanIndex1,lstInterestRates,0)))+LiabMarg1 -> 0.07082733333 | AS41: 413948.8689 | AT41: 413948.8689 | AU41: 0 | AV41: 0 | AW41: 0 | AX41: 518482.0288 | AZ41: 518482.0288 | BA41: 518482.0288 | BB41: 0 | BC41: 0 | BD41: 0 | BE41: 0 | BG41: 1000000 | BH41: 0 | BI41: 0 | BJ41: 0 | BK41: 0 | BL41: 0 | BN41: =IF(LiabIntType2="Fixed",LiabFxdRate2,OFFSET(Vectors!$D$6,Vectors!A41,MATCH(LiabLoanIndex2,lstInterestRates,0))) -> 0.04 | BO41: 30585.91145 | BP41: 0 | BQ41: 30585.91145 | BR41: 0 | BT41: -269345.6094 | BU41: -269345.6094 | BV41: 0 | BW41: 269345.6094 | BY41: 269345.6094 | BZ41: 0 | CB41: 69345921.48 | CC41: 413948.8689 | CD41: 787827.6382 | CF41: 9445119.046 | CG41: 0 | CH41: -269345.6094 | CJ41: 1283589.59 | CK41: 1283589.59 | CL41: 0 | CN41: 976279.9866 | CO41: TRUE | CP41: 0.2916666667
A42: 36 | B42: 2020-02-01 | C42: 0.08333333333 | E42: 98380845.58 | F42: =IF(AssetIntType1="Fixed",AssetFxdRate1,IF(A42=1,OFFSET(Vectors!$D$6,A42,MATCH(AssetFltIndx1,lstInterestRates,0)),IF(MOD($A42,AssetRateReset1)=0,MAX(MIN(OFFSET(Vectors!$D$6,A42,MATCH(AssetFltIndx1,lstInterestRates,0)),(F41-AssetMarg1)+AssetPdCapFl1,AssetLifeCap1),(F41-AssetMarg1)-AssetPdCapFl1,AssetLifeFloor1-AssetMarg1),F41)))+AssetMarg1 -> 0.105 | G42: 914739.2945 | H42: 860832.3988 | I42: 53906.89571 | J42: 98326938.68 | L42: 64725532.77 | M42: =IF(pdrLossTime1="",OFFSET(Vectors!AE41:AE,A42+SeasoningAge1,MATCH(SDA_Loss,lstSDA,0)),OFFSET(Vectors!$X$6,A42+SeasoningAge1,MATCH(pdrLossTime1,lstDefaultCurve,0))) -> 0.008333333333 | N42: 833333.3333 | O42: 0.9832693868 | P42: =OFFSET(Vectors!$L$6,A42+SeasoningAge1,MATCH(pdrPrepay1,lstPrepayCurve,0))*pdrPrepayStress1 -> 0.01 | Q42: 106071.0582 | R42: 35009.15357 | S42: 0.105 | T42: 559056.745 | U42: 250000 | V42: 63751119.22 | X42: 950136.9568 | Z42: FALSE | AA42: TRUE | AB42: TRUE | AC42: TRUE | AE42: 62984859.62 | AF42: =IF(Swap_Active="No",0,OFFSET(Vectors!$D$6,Vectors!A42,MATCH(Swap_IN,lstInterestRates,0))) -> 0.061869 | AG42: 324734.19 | AH42: =IF(Swap_Active="No",0,OFFSET(Vectors!$D$6,Vectors!A42,MATCH(Swap_OUT,lstInterestRates,0))) -> 0.04 | AI42: 209949.5321 | AJ42: 114784.6579 | AK42: 1064921.615 | AM42: 136770.0219 | AN42: 136770.0219 | AO42: 0 | AP42: 928151.5928 | AR42: =IF(LiabIntType1="fixed",LiabFxdRate1,OFFSET(Vectors!$D$6,Vectors!A42,MATCH(LiabLoanIndex1,lstInterestRates,0)))+LiabMarg1 -> 0.071869 | AS42: 415318.5026 | AT42: 415318.5026 | AU42: 0 | AV42: 0 | AW42: 0 | AX42: 512833.0903 | AZ42: 512833.0903 | BA42: 512833.0903 | BB42: 0 | BC42: 0 | BD42: 0 | BE42: 0 | BG42: 1000000 | BH42: 0 | BI42: 0 | BJ42: 0 | BK42: 0 | BL42: 0 | BN42: =IF(LiabIntType2="Fixed",LiabFxdRate2,OFFSET(Vectors!$D$6,Vectors!A42,MATCH(LiabLoanIndex2,lstInterestRates,0))) -> 0.04 | BO42: 31483.73015 | BP42: 0 | BQ42: 31483.73015 | BR42: 0 | BT42: -268830.6774 | BU42: -268830.6774 | BV42: 0 | BW42: 268830.6774 | BY42: 268830.6774 | BZ42: 0 | CB42: 68564257.71 | CC42: 415318.5026 | CD42: 781663.7677 | CF42: 9713949.723 | CG42: 0 | CH42: -268830.6774 | CJ42: 1274871.147 | CK42: 1274871.147 | CL42: 0 | CN42: 974413.5451 | CO42: TRUE | CP42: 0.3
A43: 37 | B43: 2020-03-01 | C43: 0.08333333333 | E43: 98326938.68 | F43: =IF(AssetIntType1="Fixed",AssetFxdRate1,IF(A43=1,OFFSET(Vectors!$D$6,A43,MATCH(AssetFltIndx1,lstInterestRates,0)),IF(MOD($A43,AssetRateReset1)=0,MAX(MIN(OFFSET(Vectors!$D$6,A43,MATCH(AssetFltIndx1,lstInterestRates,0)),(F42-AssetMarg1)+AssetPdCapFl1,AssetLifeCap1),(F42-AssetMarg1)-AssetPdCapFl1,AssetLifeFloor1-AssetMarg1),F42)))+AssetMarg1 -> 0.105 | G43: 914739.2945 | H43: 860360.7134 | I43: 54378.58105 | J43: 98272560.1 | L43: 63751119.22 | M43: =IF(pdrLossTime1="",OFFSET(Vectors!AE42:AE,A43+SeasoningAge1,MATCH(SDA_Loss,lstSDA,0)),OFFSET(Vectors!$X$6,A43+SeasoningAge1,MATCH(pdrLossTime1,lstDefaultCurve,0))) -> 0.008333333333 | N43: 833333.3333 | O43: 0.982725601 | P43: =OFFSET(Vectors!$L$6,A43+SeasoningAge1,MATCH(pdrPrepay1,lstPrepayCurve,0))*pdrPrepayStress1 -> 0.01 | Q43: 104416.4283 | R43: 34795.95689 | S43: 0.105 | T43: 550530.6265 | U43: 250000 | V43: 62778573.5 | X43: 939743.0117 | Z43: FALSE | AA43: TRUE | AB43: TRUE | AC43: TRUE | AE43: 62247315.23 | AF43: =IF(Swap_Active="No",0,OFFSET(Vectors!$D$6,Vectors!A43,MATCH(Swap_IN,lstInterestRates,0))) -> 0.062494 | AG43: 324173.6432 | AH43: =IF(Swap_Active="No",0,OFFSET(Vectors!$D$6,Vectors!A43,MATCH(Swap_OUT,lstInterestRates,0))) -> 0.04 | AI43: 207491.0508 | AJ43: 116682.5924 | AK43: 1056425.604 | AM43: 134820.3061 | AN43: 134820.3061 | AO43: 0 | AP43: 921605.298 | AR43: =IF(LiabIntType1="fixed",LiabFxdRate1,OFFSET(Vectors!$D$6,Vectors!A43,MATCH(LiabLoanIndex1,lstInterestRates,0)))+LiabMarg1 -> 0.072494 | AS43: 414208.1082 | AT43: 414208.1082 | AU43: 0 | AV43: 0 | AW43: 0 | AX43: 507397.1898 | AZ43: 507397.1898 | BA43: 507397.1898 | BB43: 0 | BC43: 0 | BD43: 0 | BE43: 0 | BG43: 1000000 | BH43: 0 | BI43: 0 | BJ43: 0 | BK43: 0 | BL43: 0 | BN43: =IF(LiabIntType2="Fixed",LiabFxdRate2,OFFSET(Vectors!$D$6,Vectors!A43,MATCH(LiabLoanIndex2,lstInterestRates,0))) -> 0.04 | BO43: 32379.83241 | BP43: 0 | BQ43: 32379.83241 | BR43: 0 | BT43: -268315.3632 | BU43: -268315.3632 | BV43: 0 | BW43: 268315.3632 | BY43: 268315.3632 | BZ43: 0 | CB43: 67788545.16 | CC43: 414208.1082 | CD43: 775712.553 | CF43: 9982265.086 | CG43: 0 | CH43: -268315.3632 | CJ43: 1263916.655 | CK43: 1263916.655 | CL43: 0 | CN43: 972545.7185 | CO43: TRUE | CP43: 0.3083333333
A44: 38 | B44: 2020-04-01 | C44: 0.08333333333 | E44: 98272560.1 | F44: =IF(AssetIntType1="Fixed",AssetFxdRate1,IF(A44=1,OFFSET(Vectors!$D$6,A44,MATCH(AssetFltIndx1,lstInterestRates,0)),IF(MOD($A44,AssetRateReset1)=0,MAX(MIN(OFFSET(Vectors!$D$6,A44,MATCH(AssetFltIndx1,lstInterestRates,0)),(F43-AssetMarg1)+AssetPdCapFl1,AssetLifeCap1),(F43-AssetMarg1)-AssetPdCapFl1,AssetLifeFloor1-AssetMarg1),F43)))+AssetMarg1 -> 0.105 | G44: 914739.2945 | H44: 859884.9009 | I44: 54854.39363 | J44: 98217705.7 | L44: 62778573.5 | M44: =IF(pdrLossTime1="",OFFSET(Vectors!AE43:AE,A44+SeasoningAge1,MATCH(SDA_Loss,lstSDA,0)),OFFSET(Vectors!$X$6,A44+SeasoningAge1,MATCH(pdrLossTime1,lstDefaultCurve,0))) -> 0.008333333333 | N44: 833333.3333 | O44: 0.982177057 | P44: =OFFSET(Vectors!$L$6,A44+SeasoningAge1,MATCH(pdrPrepay1,lstPrepayCurve,0))*pdrPrepayStress1 -> 0.01 | Q44: 102766.1243 | R44: 34576.98247 | S44: 0.105 | T44: 542020.8515 | U44: 250000 | V44: 61807897.06 | X44: 929363.9582 | Z44: FALSE | AA44: TRUE | AB44: TRUE | AC44: TRUE | AE44: 61517273.52 | AF44: =IF(Swap_Active="No",0,OFFSET(Vectors!$D$6,Vectors!A44,MATCH(Swap_IN,lstInterestRates,0))) -> 0.063119 | AG44: 323575.7323 | AH44: =IF(Swap_Active="No",0,OFFSET(Vectors!$D$6,Vectors!A44,MATCH(Swap_OUT,lstInterestRates,0))) -> 0.04 | AI44: 205057.5784 | AJ44: 118518.1539 | AK44: 1047882.112 | AM44: 132876.183 | AN44: 132876.183 | AO44: 0 | AP44: 915005.9291 | AR44: =IF(LiabIntType1="fixed",LiabFxdRate1,OFFSET(Vectors!$D$6,Vectors!A44,MATCH(LiabLoanIndex1,lstInterestRates,0)))+LiabMarg1 -> 0.073119 | AS44: 413052.5528 | AT44: 413052.5528 | AU44: 0 | AV44: 0 | AW44: 0 | AX44: 501953.3764 | AZ44: 501953.3764 | BA44: 501953.3764 | BB44: 0 | BC44: 0 | BD44: 0 | BE44: 0 | BG44: 1000000 | BH44: 0 | BI44: 0 | BJ44: 0 | BK44: 0 | BL44: 0 | BN44: =IF(LiabIntType2="Fixed",LiabFxdRate2,OFFSET(Vectors!$D$6,Vectors!A44,MATCH(LiabLoanIndex2,lstInterestRates,0))) -> 0.04 | BO44: 33274.21695 | BP44: 0 | BQ44: 33274.21695 | BR44: 0 | BT44: -267799.6485 | BU44: -267799.6485 | BV44: 0 | BW44: 267799.6485 | BY44: 267799.6485 | BZ44: 0 | CB44: 67018792.13 | CC44: 413052.5528 | CD44: 769753.0249 | CF44: 10250064.73 | CG44: 0 | CH44: -267799.6485 | CJ44: 1252939.691 | CK44: 1252939.691 | CL44: 0 | CN44: 970676.4401 | CO44: TRUE | CP44: 0.3166666667
A45: 39 | B45: 2020-05-01 | C45: 0.08333333333 | E45: 98217705.7 | F45: =IF(AssetIntType1="Fixed",AssetFxdRate1,IF(A45=1,OFFSET(Vectors!$D$6,A45,MATCH(AssetFltIndx1,lstInterestRates,0)),IF(MOD($A45,AssetRateReset1)=0,MAX(MIN(OFFSET(Vectors!$D$6,A45,MATCH(AssetFltIndx1,lstInterestRates,0)),(F44-AssetMarg1)+AssetPdCapFl1,AssetLifeCap1),(F44-AssetMarg1)-AssetPdCapFl1,AssetLifeFloor1-AssetMarg1),F44)))+AssetMarg1 -> 0.105 | G45: 914739.2945 | H45: 859404.9249 | I45: 55334.36958 | J45: 98162371.34 | L45: 61807897.06 | M45: =IF(pdrLossTime1="",OFFSET(Vectors!AE44:AE,A45+SeasoningAge1,MATCH(SDA_Loss,lstSDA,0)),OFFSET(Vectors!$X$6,A45+SeasoningAge1,MATCH(pdrLossTime1,lstDefaultCurve,0))) -> 0.008333333333 | N45: 833333.3333 | O45: 0.9816237134 | P45: =OFFSET(Vectors!$L$6,A45+SeasoningAge1,MATCH(pdrPrepay1,lstPrepayCurve,0))*pdrPrepayStress1 -> 0.01 | Q45: 101120.1624 | R45: 34352.14679 | S45: 0.105 | T45: 533527.4326 | U45: 250000 | V45: 60839091.42 | X45: 918999.7418 | Z45: FALSE | AA45: TRUE | AB45: TRUE | AC45: TRUE | AE45: 60794659.14 | AF45: =IF(Swap_Active="No",0,OFFSET(Vectors!$D$6,Vectors!A45,MATCH(Swap_IN,lstInterestRates,0))) -> 0.063744 | AG45: 322941.2293 | AH45: =IF(Swap_Active="No",0,OFFSET(Vectors!$D$6,Vectors!A45,MATCH(Swap_OUT,lstInterestRates,0))) -> 0.04 | AI45: 202648.8638 | AJ45: 120292.3655 | AK45: 1039292.107 | AM45: 130937.6585 | AN45: 130937.6585 | AO45: 0 | AP45: 908354.4489 | AR45: =IF(LiabIntType1="fixed",LiabFxdRate1,OFFSET(Vectors!$D$6,Vectors!A45,MATCH(LiabLoanIndex1,lstInterestRates,0)))+LiabMarg1 -> 0.073744 | AS45: 411852.8172 | AT45: 411852.8172 | AU45: 0 | AV45: 0 | AW45: 0 | AX45: 496501.6316 | AZ45: 496501.6316 | BA45: 496501.6316 | BB45: 0 | BC45: 0 | BD45: 0 | BE45: 0 | BG45: 1000000 | BH45: 0 | BI45: 0 | BJ45: 0 | BK45: 0 | BL45: 0 | BN45: =IF(LiabIntType2="Fixed",LiabFxdRate2,OFFSET(Vectors!$D$6,Vectors!A45,MATCH(LiabLoanIndex2,lstInterestRates,0))) -> 0.04 | BO45: 34166.88245 | BP45: 0 | BQ45: 34166.88245 | BR45: 0 | BT45: -267283.5147 | BU45: -267283.5147 | BV45: 0 | BW45: 267283.5147 | BY45: 267283.5147 | BZ45: 0 | CB45: 66255006.99 | CC45: 411852.8172 | CD45: 763785.1463 | CF45: 10517348.25 | CG45: 0 | CH45: -267283.5147 | CJ45: 1241940.971 | CK45: 1241940.971 | CL45: 0 | CN45: 968805.6425 | CO45: TRUE | CP45: 0.325
A46: 40 | B46: 2020-06-01 | C46: 0.08333333333 | E46: 98162371.34 | F46: =IF(AssetIntType1="Fixed",AssetFxdRate1,IF(A46=1,OFFSET(Vectors!$D$6,A46,MATCH(AssetFltIndx1,lstInterestRates,0)),IF(MOD($A46,AssetRateReset1)=0,MAX(MIN(OFFSET(Vectors!$D$6,A46,MATCH(AssetFltIndx1,lstInterestRates,0)),(F45-AssetMarg1)+AssetPdCapFl1,AssetLifeCap1),(F45-AssetMarg1)-AssetPdCapFl1,AssetLifeFloor1-AssetMarg1),F45)))+AssetMarg1 -> 0.105 | G46: 914739.2945 | H46: 858920.7492 | I46: 55818.54531 | J46: 98106552.79 | L46: 60839091.42 | M46: =IF(pdrLossTime1="",OFFSET(Vectors!AE45:AE,A46+SeasoningAge1,MATCH(SDA_Loss,lstSDA,0)),OFFSET(Vectors!$X$6,A46+SeasoningAge1,MATCH(pdrLossTime1,lstDefaultCurve,0))) -> 0.008333333333 | N46: 833333.3333 | O46: 0.9810655279 | P46: =OFFSET(Vectors!$L$6,A46+SeasoningAge1,MATCH(pdrPrepay1,lstPrepayCurve,0))*pdrPrepayStress1 -> 0.01 | Q46: 99478.5589 | R46: 34121.36525 | S46: 0.105 | T46: 525050.3833 | U46: 250000 | V46: 59872158.16 | X46: 908650.3074 | Z46: FALSE | AA46: TRUE | AB46: TRUE | AC46: TRUE | AE46: 60079397.47 | AF46: =IF(Swap_Active="No",0,OFFSET(Vectors!$D$6,Vectors!A46,MATCH(Swap_IN,lstInterestRates,0))) -> 0.064369 | AG46: 322270.8946 | AH46: =IF(Swap_Active="No",0,OFFSET(Vectors!$D$6,Vectors!A46,MATCH(Swap_OUT,lstInterestRates,0))) -> 0.04 | AI46: 200264.6582 | AJ46: 122006.2364 | AK46: 1030656.544 | AM46: 129004.7386 | AN46: 129004.7386 | AO46: 0 | AP46: 901651.8052 | AR46: =IF(LiabIntType1="fixed",LiabFxdRate1,OFFSET(Vectors!$D$6,Vectors!A46,MATCH(LiabLoanIndex1,lstInterestRates,0)))+LiabMarg1 -> 0.074369 | AS46: 410609.8845 | AT46: 410609.8845 | AU46: 0 | AV46: 0 | AW46: 0 | AX46: 491041.9207 | AZ46: 491041.9207 | BA46: 491041.9207 | BB46: 0 | BC46: 0 | BD46: 0 | BE46: 0 | BG46: 1000000 | BH46: 0 | BI46: 0 | BJ46: 0 | BK46: 0 | BL46: 0 | BN46: =IF(LiabIntType2="Fixed",LiabFxdRate2,OFFSET(Vectors!$D$6,Vectors!A46,MATCH(LiabLoanIndex2,lstInterestRates,0))) -> 0.04 | BO46: 35057.8275 | BP46: 0 | BQ46: 35057.8275 | BR46: 0 | BT46: -266766.943 | BU46: -266766.943 | BV46: 0 | BW46: 266766.943 | BY46: 266766.943 | BZ46: 0 | CB46: 65497198.12 | CC46: 410609.8845 | CD46: 757808.8636 | CF46: 10784115.19 | CG46: 0 | CH46: -266766.943 | CJ46: 1230921.202 | CK46: 1230921.202 | CL46: 0 | CN46: 966933.2575 | CO46: TRUE | CP46: 0.3333333333
A47: 41 | B47: 2020-07-01 | C47: 0.08333333333 | E47: 98106552.79 | F47: =IF(AssetIntType1="Fixed",AssetFxdRate1,IF(A47=1,OFFSET(Vectors!$D$6,A47,MATCH(AssetFltIndx1,lstInterestRates,0)),IF(MOD($A47,AssetRateReset1)=0,MAX(MIN(OFFSET(Vectors!$D$6,A47,MATCH(AssetFltIndx1,lstInterestRates,0)),(F46-AssetMarg1)+AssetPdCapFl1,AssetLifeCap1),(F46-AssetMarg1)-AssetPdCapFl1,AssetLifeFloor1-AssetMarg1),F46)))+AssetMarg1 -> 0.105 | G47: 914739.2945 | H47: 858432.3369 | I47: 56306.95758 | J47: 98050245.83 | L47: 59872158.16 | M47: =IF(pdrLossTime1="",OFFSET(Vectors!AE46:AE,A47+SeasoningAge1,MATCH(SDA_Loss,lstSDA,0)),OFFSET(Vectors!$X$6,A47+SeasoningAge1,MATCH(pdrLossTime1,lstDefaultCurve,0))) -> 0.008333333333 | N47: 833333.3333 | O47: 0.9805024583 | P47: =OFFSET(Vectors!$L$6,A47+SeasoningAge1,MATCH(pdrPrepay1,lstPrepayCurve,0))*pdrPrepayStress1 -> 0.01 | Q47: 97841.33044 | R47: 33884.55216 | S47: 0.105 | T47: 516589.7173 | U47: 250000 | V47: 58907098.95 | X47: 898315.5999 | Z47: FALSE | AA47: TRUE | AB47: TRUE | AC47: TRUE | AE47: 59371414.67 | AF47: =IF(Swap_Active="No",0,OFFSET(Vectors!$D$6,Vectors!A47,MATCH(Swap_IN,lstInterestRates,0))) -> 0.064994 | AG47: 321565.4771 | AH47: =IF(Swap_Active="No",0,OFFSET(Vectors!$D$6,Vectors!A47,MATCH(Swap_OUT,lstInterestRates,0))) -> 0.04 | AI47: 197904.7156 | AJ47: 123660.7615 | AK47: 1021976.361 | AM47: 127077.4295 | AN47: 127077.4295 | AO47: 0 | AP47: 894898.9319 | AR47: =IF(LiabIntType1="fixed",LiabFxdRate1,OFFSET(Vectors!$D$6,Vectors!A47,MATCH(LiabLoanIndex1,lstInterestRates,0)))+LiabMarg1 -> 0.074994 | AS47: 409324.7397 | AT47: 409324.7397 | AU47: 0 | AV47: 0 | AW47: 0 | AX47: 485574.1922 | AZ47: 485574.1922 | BA47: 485574.1922 | BB47: 0 | BC47: 0 | BD47: 0 | BE47: 0 | BG47: 1000000 | BH47: 0 | BI47: 0 | BJ47: 0 | BK47: 0 | BL47: 0 | BN47: =IF(LiabIntType2="Fixed",LiabFxdRate2,OFFSET(Vectors!$D$6,Vectors!A47,MATCH(LiabLoanIndex2,lstInterestRates,0))) -> 0.04 | BO47: 35947.05064 | BP47: 0 | BQ47: 35947.05064 | BR47: 0 | BT47: -266249.9142 | BU47: -266249.9142 | BV47: 0 | BW47: 266249.9142 | BY47: 266249.9142 | BZ47: 0 | CB47: 64745374.02 | CC47: 409324.7397 | CD47: 751824.1064 | CF47: 11050365.11 | CG47: 0 | CH47: -266249.9142 | CJ47: 1219881.077 | CK47: 1219881.077 | CL47: 0 | CN47: 965059.2159 | CO47: TRUE | CP47: 0.3416666667
A48: 42 | B48: 2020-08-01 | C48: 0.08333333333 | E48: 98050245.83 | F48: =IF(AssetIntType1="Fixed",AssetFxdRate1,IF(A48=1,OFFSET(Vectors!$D$6,A48,MATCH(AssetFltIndx1,lstInterestRates,0)),IF(MOD($A48,AssetRateReset1)=0,MAX(MIN(OFFSET(Vectors!$D$6,A48,MATCH(AssetFltIndx1,lstInterestRates,0)),(F47-AssetMarg1)+AssetPdCapFl1,AssetLifeCap1),(F47-AssetMarg1)-AssetPdCapFl1,AssetLifeFloor1-AssetMarg1),F47)))+AssetMarg1 -> 0.105 | G48: 914739.2945 | H48: 857939.651 | I48: 56799.64346 | J48: 97993446.19 | L48: 58907098.95 | M48: =IF(pdrLossTime1="",OFFSET(Vectors!AE47:AE,A48+SeasoningAge1,MATCH(SDA_Loss,lstSDA,0)),OFFSET(Vectors!$X$6,A48+SeasoningAge1,MATCH(pdrLossTime1,lstDefaultCurve,0))) -> 0.008333333333 | N48: 833333.3333 | O48: 0.9799344619 | P48: =OFFSET(Vectors!$L$6,A48+SeasoningAge1,MATCH(pdrPrepay1,lstPrepayCurve,0))*pdrPrepayStress1 -> 0.01 | Q48: 96208.49385 | R48: 33641.62071 | S48: 0.105 | T48: 508145.4491 | U48: 250000 | V48: 57943915.5 | X48: 887995.5637 | Z48: FALSE | AA48: TRUE | AB48: TRUE | AC48: TRUE | AE48: 58670637.62 | AF48: =IF(Swap_Active="No",0,OFFSET(Vectors!$D$6,Vectors!A48,MATCH(Swap_IN,lstInterestRates,0))) -> 0.065619 | AG48: 320825.7142 | AH48: =IF(Swap_Active="No",0,OFFSET(Vectors!$D$6,Vectors!A48,MATCH(Swap_OUT,lstInterestRates,0))) -> 0.04 | AI48: 195568.7921 | AJ48: 125256.9221 | AK48: 1013252.486 | AM48: 125155.7374 | AN48: 125155.7374 | AO48: 0 | AP48: 888096.7484 | AR48: =IF(LiabIntType1="fixed",LiabFxdRate1,OFFSET(Vectors!$D$6,Vectors!A48,MATCH(LiabLoanIndex1,lstInterestRates,0)))+LiabMarg1 -> 0.075619 | AS48: 407998.3698 | AT48: 407998.3698 | AU48: 0 | AV48: 0 | AW48: 0 | AX48: 480098.3786 | AZ48: 480098.3786 | BA48: 480098.3786 | BB48: 0 | BC48: 0 | BD48: 0 | BE48: 0 | BG48: 1000000 | BH48: 0 | BI48: 0 | BJ48: 0 | BK48: 0 | BL48: 0 | BN48: =IF(LiabIntType2="Fixed",LiabFxdRate2,OFFSET(Vectors!$D$6,Vectors!A48,MATCH(LiabLoanIndex2,lstInterestRates,0))) -> 0.04 | BO48: 36834.55036 | BP48: 0 | BQ48: 36834.55036 | BR48: 0 | BT48: -265732.409 | BU48: -265732.409 | BV48: 0 | BW48: 265732.409 | BY48: 265732.409 | BZ48: 0 | CB48: 63999543.23 | CC48: 407998.3698 | CD48: 745830.7876 | CF48: 11316097.52 | CG48: 0 | CH48: -265732.409 | CJ48: 1208821.278 | CK48: 1208821.278 | CL48: 0 | CN48: 963183.4479 | CO48: TRUE | CP48: 0.35
A49: 43 | B49: 2020-09-01 | C49: 0.08333333333 | E49: 97993446.19 | F49: =IF(AssetIntType1="Fixed",AssetFxdRate1,IF(A49=1,OFFSET(Vectors!$D$6,A49,MATCH(AssetFltIndx1,lstInterestRates,0)),IF(MOD($A49,AssetRateReset1)=0,MAX(MIN(OFFSET(Vectors!$D$6,A49,MATCH(AssetFltIndx1,lstInterestRates,0)),(F48-AssetMarg1)+AssetPdCapFl1,AssetLifeCap1),(F48-AssetMarg1)-AssetPdCapFl1,AssetLifeFloor1-AssetMarg1),F48)))+AssetMarg1 -> 0.105 | G49: 914739.2945 | H49: 857442.6542 | I49: 57296.64034 | J49: 97936149.55 | L49: 57943915.5 | M49: =IF(pdrLossTime1="",OFFSET(Vectors!AE48:AE,A49+SeasoningAge1,MATCH(SDA_Loss,lstSDA,0)),OFFSET(Vectors!$X$6,A49+SeasoningAge1,MATCH(pdrLossTime1,lstDefaultCurve,0))) -> 0.008333333333 | N49: 833333.3333 | O49: 0.9793614955 | P49: =OFFSET(Vectors!$L$6,A49+SeasoningAge1,MATCH(pdrPrepay1,lstPrepayCurve,0))*pdrPrepayStress1 -> 0.01 | Q49: 94580.06623 | R49: 33392.483 | S49: 0.105 | T49: 499717.594 | U49: 250000 | V49: 56982609.62 | X49: 877690.1432 | Z49: FALSE | AA49: TRUE | AB49: TRUE | AC49: TRUE | AE49: 57976993.95 | AF49: =IF(Swap_Active="No",0,OFFSET(Vectors!$D$6,Vectors!A49,MATCH(Swap_IN,lstInterestRates,0))) -> 0.066244 | AG49: 320052.3323 | AH49: =IF(Swap_Active="No",0,OFFSET(Vectors!$D$6,Vectors!A49,MATCH(Swap_OUT,lstInterestRates,0))) -> 0.04 | AI49: 193256.6465 | AJ49: 126795.6858 | AK49: 1004485.829 | AM49: 123239.6688 | AN49: 123239.6688 | AO49: 0 | AP49: 881246.1601 | AR49: =IF(LiabIntType1="fixed",LiabFxdRate1,OFFSET(Vectors!$D$6,Vectors!A49,MATCH(LiabLoanIndex1,lstInterestRates,0)))+LiabMarg1 -> 0.076244 | AS49: 406631.7645 | AT49: 406631.7645 | AU49: 0 | AV49: 0 | AW49: 0 | AX49: 474614.3956 | AZ49: 474614.3956 | BA49: 474614.3956 | BB49: 0 | BC49: 0 | BD49: 0 | BE49: 0 | BG49: 1000000 | BH49: 0 | BI49: 0 | BJ49: 0 | BK49: 0 | BL49: 0 | BN49: =IF(LiabIntType2="Fixed",LiabFxdRate2,OFFSET(Vectors!$D$6,Vectors!A49,MATCH(LiabLoanIndex2,lstInterestRates,0))) -> 0.04 | BO49: 37720.32505 | BP49: 0 | BQ49: 37720.32505 | BR49: 0 | BT49: -265214.4081 | BU49: -265214.4081 | BV49: 0 | BW49: 265214.4081 | BY49: 265214.4081 | BZ49: 0 | CB49: 63259714.42 | CC49: 406631.7645 | CD49: 739828.8037 | CF49: 11581311.92 | CG49: 0 | CH49: -265214.4081 | CJ49: 1197742.475 | CK49: 1197742.475 | CL49: 0 | CN49: 961305.8826 | CO49: TRUE | CP49: 0.3583333333
A50: 44 | B50: 2020-10-01 | C50: 0.08333333333 | E50: 97936149.55 | F50: =IF(AssetIntType1="Fixed",AssetFxdRate1,IF(A50=1,OFFSET(Vectors!$D$6,A50,MATCH(AssetFltIndx1,lstInterestRates,0)),IF(MOD($A50,AssetRateReset1)=0,MAX(MIN(OFFSET(Vectors!$D$6,A50,MATCH(AssetFltIndx1,lstInterestRates,0)),(F49-AssetMarg1)+AssetPdCapFl1,AssetLifeCap1),(F49-AssetMarg1)-AssetPdCapFl1,AssetLifeFloor1-AssetMarg1),F49)))+AssetMarg1 -> 0.105 | G50: 914739.2945 | H50: 856941.3086 | I50: 57797.98594 | J50: 97878351.56 | L50: 56982609.62 | M50: =IF(pdrLossTime1="",OFFSET(Vectors!AE49:AE,A50+SeasoningAge1,MATCH(SDA_Loss,lstSDA,0)),OFFSET(Vectors!$X$6,A50+SeasoningAge1,MATCH(pdrLossTime1,lstDefaultCurve,0))) -> 0.008333333333 | N50: 833333.3333 | O50: 0.9787835156 | P50: =OFFSET(Vectors!$L$6,A50+SeasoningAge1,MATCH(pdrPrepay1,lstPrepayCurve,0))*pdrPrepayStress1 -> 0.01 | Q50: 92956.06495 | R50: 33137.04997 | S50: 0.105 | T50: 491306.1675 | U50: 250000 | V50: 56023183.17 | X50: 867399.2824 | Z50: FALSE | AA50: TRUE | AB50: TRUE | AC50: TRUE | AE50: 57290411.99 | AF50: =IF(Swap_Active="No",0,OFFSET(Vectors!$D$6,Vectors!A50,MATCH(Swap_IN,lstInterestRates,0))) -> 0.066869 | AG50: 319246.0466 | AH50: =IF(Swap_Active="No",0,OFFSET(Vectors!$D$6,Vectors!A50,MATCH(Swap_OUT,lstInterestRates,0))) -> 0.04 | AI50: 190968.04 | AJ50: 128278.0066 | AK50: 995677.289 | AM50: 121329.2304 | AN50: 121329.2304 | AO50: 0 | AP50: 874348.0587 | AR50: =IF(LiabIntType1="fixed",LiabFxdRate1,OFFSET(Vectors!$D$6,Vectors!A50,MATCH(LiabLoanIndex1,lstInterestRates,0)))+LiabMarg1 -> 0.076869 | AS50: 405225.9157 | AT50: 405225.9157 | AU50: 0 | AV50: 0 | AW50: 0 | AX50: 469122.143 | AZ50: 469122.143 | BA50: 469122.143 | BB50: 0 | BC50: 0 | BD50: 0 | BE50: 0 | BG50: 1000000 | BH50: 0 | BI50: 0 | BJ50: 0 | BK50: 0 | BL50: 0 | BN50: =IF(LiabIntType2="Fixed",LiabFxdRate2,OFFSET(Vectors!$D$6,Vectors!A50,MATCH(LiabLoanIndex2,lstInterestRates,0))) -> 0.04 | BO50: 38604.37308 | BP50: 0 | BQ50: 38604.37308 | BR50: 0 | BT50: -264695.8915 | BU50: -264695.8915 | BV50: 0 | BW50: 264695.8915 | BY50: 264695.8915 | BZ50: 0 | CB50: 62525896.39 | CC50: 405225.9157 | CD50: 733818.0345 | CF50: 11846007.82 | CG50: 0 | CH50: -264695.8915 | CJ50: 1186645.329 | CK50: 1186645.329 | CL50: 0 | CN50: 959426.4483 | CO50: TRUE | CP50: 0.3666666667
A51: 45 | B51: 2020-11-01 | C51: 0.08333333333 | E51: 97878351.56 | F51: =IF(AssetIntType1="Fixed",AssetFxdRate1,IF(A51=1,OFFSET(Vectors!$D$6,A51,MATCH(AssetFltIndx1,lstInterestRates,0)),IF(MOD($A51,AssetRateReset1)=0,MAX(MIN(OFFSET(Vectors!$D$6,A51,MATCH(AssetFltIndx1,lstInterestRates,0)),(F50-AssetMarg1)+AssetPdCapFl1,AssetLifeCap1),(F50-AssetMarg1)-AssetPdCapFl1,AssetLifeFloor1-AssetMarg1),F50)))+AssetMarg1 -> 0.105 | G51: 914739.2945 | H51: 856435.5762 | I51: 58303.71832 | J51: 97820047.84 | L51: 56023183.17 | M51: =IF(pdrLossTime1="",OFFSET(Vectors!AE50:AE,A51+SeasoningAge1,MATCH(SDA_Loss,lstSDA,0)),OFFSET(Vectors!$X$6,A51+SeasoningAge1,MATCH(pdrLossTime1,lstDefaultCurve,0))) -> 0.008333333333 | N51: 833333.3333 | O51: 0.9782004784 | P51: =OFFSET(Vectors!$L$6,A51+SeasoningAge1,MATCH(pdrPrepay1,lstPrepayCurve,0))*pdrPrepayStress1 -> 0.01 | Q51: 91336.50763 | R51: 32875.23142 | S51: 0.105 | T51: 482911.1861 | U51: 250000 | V51: 55065638.1 | X51: 857122.9251 | Z51: FALSE | AA51: TRUE | AB51: TRUE | AC51: TRUE | AE51: 56610820.81 | AF51: =IF(Swap_Active="No",0,OFFSET(Vectors!$D$6,Vectors!A51,MATCH(Swap_IN,lstInterestRates,0))) -> 0.067494 | AG51: 318407.5616 | AH51: =IF(Swap_Active="No",0,OFFSET(Vectors!$D$6,Vectors!A51,MATCH(Swap_OUT,lstInterestRates,0))) -> 0.04 | AI51: 188702.736 | AJ51: 129704.8256 | AK51: 986827.7507 | AM51: 119424.4288 | AN51: 119424.4288 | AO51: 0 | AP51: 867403.3219 | AR51: =IF(LiabIntType1="fixed",LiabFxdRate1,OFFSET(Vectors!$D$6,Vectors!A51,MATCH(LiabLoanIndex1,lstInterestRates,0)))+LiabMarg1 -> 0.077494 | AS51: 403781.8179 | AT51: 403781.8179 | AU51: 0 | AV51: 0 | AW51: 0 | AX51: 463621.504 | AZ51: 463621.504 | BA51: 463621.504 | BB51: 0 | BC51: 0 | BD51: 0 | BE51: 0 | BG51: 1000000 | BH51: 0 | BI51: 0 | BJ51: 0 | BK51: 0 | BL51: 0 | BN51: =IF(LiabIntType2="Fixed",LiabFxdRate2,OFFSET(Vectors!$D$6,Vectors!A51,MATCH(LiabLoanIndex2,lstInterestRates,0))) -> 0.04 | BO51: 39486.69272 | BP51: 0 | BQ51: 39486.69272 | BR51: 0 | BT51: -264176.8392 | BU51: -264176.8392 | BV51: 0 | BW51: 264176.8392 | BY51: 264176.8392 | BZ51: 0 | CB51: 61798098.05 | CC51: 403781.8179 | CD51: 727798.3433 | CF51: 12110184.65 | CG51: 0 | CH51: -264176.8392 | CJ51: 1175530.487 | CK51: 1175530.487 | CL51: 0 | CN51: 957545.0724 | CO51: TRUE | CP51: 0.375
A52: 46 | B52: 2020-12-01 | C52: 0.08333333333 | E52: 97820047.84 | F52: =IF(AssetIntType1="Fixed",AssetFxdRate1,IF(A52=1,OFFSET(Vectors!$D$6,A52,MATCH(AssetFltIndx1,lstInterestRates,0)),IF(MOD($A52,AssetRateReset1)=0,MAX(MIN(OFFSET(Vectors!$D$6,A52,MATCH(AssetFltIndx1,lstInterestRates,0)),(F51-AssetMarg1)+AssetPdCapFl1,AssetLifeCap1),(F51-AssetMarg1)-AssetPdCapFl1,AssetLifeFloor1-AssetMarg1),F51)))+AssetMarg1 -> 0.105 | G52: 914739.2945 | H52: 855925.4186 | I52: 58813.87585 | J52: 97761233.97 | L52: 55065638.1 | M52: =IF(pdrLossTime1="",OFFSET(Vectors!AE51:AE,A52+SeasoningAge1,MATCH(SDA_Loss,lstSDA,0)),OFFSET(Vectors!$X$6,A52+SeasoningAge1,MATCH(pdrLossTime1,lstDefaultCurve,0))) -> 0.008333333333 | N52: 833333.3333 | O52: 0.9776123397 | P52: =OFFSET(Vectors!$L$6,A52+SeasoningAge1,MATCH(pdrPrepay1,lstPrepayCurve,0))*pdrPrepayStress1 -> 0.01 | Q52: 89721.41216 | R52: 32606.936 | S52: 0.105 | T52: 474532.6667 | U52: 250000 | V52: 54109976.41 | X52: 846861.0148 | Z52: FALSE | AA52: TRUE | AB52: TRUE | AC52: TRUE | AE52: 55938150.17 | AF52: =IF(Swap_Active="No",0,OFFSET(Vectors!$D$6,Vectors!A52,MATCH(Swap_IN,lstInterestRates,0))) -> 0.068119 | AG52: 317537.5709 | AH52: =IF(Swap_Active="No",0,OFFSET(Vectors!$D$6,Vectors!A52,MATCH(Swap_OUT,lstInterestRates,0))) -> 0.04 | AI52: 186460.5006 | AJ52: 131077.0704 | AK52: 977938.0852 | AM52: 117525.271 | AN52: 117525.271 | AO52: 0 | AP52: 860412.8142 | AR52: =IF(LiabIntType1="fixed",LiabFxdRate1,OFFSET(Vectors!$D$6,Vectors!A52,MATCH(LiabLoanIndex1,lstInterestRates,0)))+LiabMarg1 -> 0.078119 | AS52: 402300.4684 | AT52: 402300.4684 | AU52: 0 | AV52: 0 | AW52: 0 | AX52: 458112.3458 | AZ52: 458112.3458 | BA52: 458112.3458 | BB52: 0 | BC52: 0 | BD52: 0 | BE52: 0 | BG52: 1000000 | BH52: 0 | BI52: 0 | BJ52: 0 | BK52: 0 | BL52: 0 | BN52: =IF(LiabIntType2="Fixed",LiabFxdRate2,OFFSET(Vectors!$D$6,Vectors!A52,MATCH(LiabLoanIndex2,lstInterestRates,0))) -> 0.04 | BO52: 40367.28218 | BP52: 0 | BQ52: 40367.28218 | BR52: 0 | BT52: -263657.231 | BU52: -263657.231 | BV52: 0 | BW52: 263657.231 | BY52: 263657.231 | BZ52: 0 | CB52: 61076328.47 | CC52: 402300.4684 | CD52: 721769.5768 | CF52: 12373841.89 | CG52: 0 | CH52: -263657.231 | CJ52: 1164398.586 | CK52: 1164398.586 | CL52: 0 | CN52: 955661.6815 | CO52: TRUE | CP52: 0.3833333333
A53: 47 | B53: 2021-01-01 | C53: 0.08333333333 | E53: 97761233.97 | F53: =IF(AssetIntType1="Fixed",AssetFxdRate1,IF(A53=1,OFFSET(Vectors!$D$6,A53,MATCH(AssetFltIndx1,lstInterestRates,0)),IF(MOD($A53,AssetRateReset1)=0,MAX(MIN(OFFSET(Vectors!$D$6,A53,MATCH(AssetFltIndx1,lstInterestRates,0)),(F52-AssetMarg1)+AssetPdCapFl1,AssetLifeCap1),(F52-AssetMarg1)-AssetPdCapFl1,AssetLifeFloor1-AssetMarg1),F52)))+AssetMarg1 -> 0.105 | G53: 914739.2945 | H53: 855410.7972 | I53: 59328.49727 | J53: 97701905.47 | L53: 54109976.41 | M53: =IF(pdrLossTime1="",OFFSET(Vectors!AE52:AE,A53+SeasoningAge1,MATCH(SDA_Loss,lstSDA,0)),OFFSET(Vectors!$X$6,A53+SeasoningAge1,MATCH(pdrLossTime1,lstDefaultCurve,0))) -> 0.008333333333 | N53: 833333.3333 | O53: 0.9770190547 | P53: =OFFSET(Vectors!$L$6,A53+SeasoningAge1,MATCH(pdrPrepay1,lstPrepayCurve,0))*pdrPrepayStress1 -> 0.01 | Q53: 88110.79668 | R53: 32332.07116 | S53: 0.105 | T53: 466170.627 | U53: 250000 | V53: 53156200.21 | X53: 836613.4948 | Z53: FALSE | AA53: TRUE | AB53: TRUE | AC53: TRUE | AE53: 55272330.55 | AF53: =IF(Swap_Active="No",0,OFFSET(Vectors!$D$6,Vectors!A53,MATCH(Swap_IN,lstInterestRates,0))) -> 0.068744 | AG53: 316636.7576 | AH53: =IF(Swap_Active="No",0,OFFSET(Vectors!$D$6,Vectors!A53,MATCH(Swap_OUT,lstInterestRates,0))) -> 0.04 | AI53: 184241.1018 | AJ53: 132395.6558 | AK53: 969009.1506 | AM53: 115631.7642 | AN53: 115631.7642 | AO53: 0 | AP53: 853377.3864 | AR53: =IF(LiabIntType1="fixed",LiabFxdRate1,OFFSET(Vectors!$D$6,Vectors!A53,MATCH(LiabLoanIndex1,lstInterestRates,0)))+LiabMarg1 -> 0.078744 | AS53: 400782.8674 | AT53: 400782.8674 | AU53: 0 | AV53: 0 | AW53: 0 | AX53: 452594.5189 | AZ53: 452594.5189 | BA53: 452594.5189 | BB53: 0 | BC53: 0 | BD53: 0 | BE53: 0 | BG53: 1000000 | BH53: 0 | BI53: 0 | BJ53: 0 | BK53: 0 | BL53: 0 | BN53: =IF(LiabIntType2="Fixed",LiabFxdRate2,OFFSET(Vectors!$D$6,Vectors!A53,MATCH(LiabLoanIndex2,lstInterestRates,0))) -> 0.04 | BO53: 41246.13962 | BP53: 0 | BQ53: 41246.13962 | BR53: 0 | BT53: -263137.0464 | BU53: -263137.0464 | BV53: 0 | BW53: 263137.0464 | BY53: 263137.0464 | BZ53: 0 | CB53: 60360596.9 | CC53: 400782.8674 | CD53: 715731.5653 | CF53: 12636978.93 | CG53: 0 | CH53: -263137.0464 | CJ53: 1153250.252 | CK53: 1153250.252 | CL53: 0 | CN53: 953776.2012 | CO53: TRUE | CP53: 0.3916666667
A54: 48 | B54: 2021-02-01 | C54: 0.08333333333 | E54: 97701905.47 | F54: =IF(AssetIntType1="Fixed",AssetFxdRate1,IF(A54=1,OFFSET(Vectors!$D$6,A54,MATCH(AssetFltIndx1,lstInterestRates,0)),IF(MOD($A54,AssetRateReset1)=0,MAX(MIN(OFFSET(Vectors!$D$6,A54,MATCH(AssetFltIndx1,lstInterestRates,0)),(F53-AssetMarg1)+AssetPdCapFl1,AssetLifeCap1),(F53-AssetMarg1)-AssetPdCapFl1,AssetLifeFloor1-AssetMarg1),F53)))+AssetMarg1 -> 0.105 | G54: 914739.2945 | H54: 854891.6729 | I54: 59847.62162 | J54: 97642057.85 | L54: 53156200.21 | M54: =IF(pdrLossTime1="",OFFSET(Vectors!AE53:AE,A54+SeasoningAge1,MATCH(SDA_Loss,lstSDA,0)),OFFSET(Vectors!$X$6,A54+SeasoningAge1,MATCH(pdrLossTime1,lstDefaultCurve,0))) -> 0.008333333333 | N54: 833333.3333 | O54: 0.9764205785 | P54: =OFFSET(Vectors!$L$6,A54+SeasoningAge1,MATCH(pdrPrepay1,lstPrepayCurve,0))*pdrPrepayStress1 -> 0.01 | Q54: 86504.67961 | R54: 32050.54317 | S54: 0.105 | T54: 457825.0852 | U54: 250000 | V54: 52204311.66 | X54: 826380.308 | Z54: FALSE | AA54: TRUE | AB54: TRUE | AC54: TRUE | AE54: 54613293.12 | AF54: =IF(Swap_Active="No",0,OFFSET(Vectors!$D$6,Vectors!A54,MATCH(Swap_IN,lstInterestRates,0))) -> 0.069369 | AG54: 315705.7942 | AH54: =IF(Swap_Active="No",0,OFFSET(Vectors!$D$6,Vectors!A54,MATCH(Swap_OUT,lstInterestRates,0))) -> 0.04 | AI54: 182044.3104 | AJ54: 133661.4838 | AK54: 960041.7918 | AM54: 113743.9157 | AN54: 113743.9157 | AO54: 0 | AP54: 846297.876 | AR54: =IF(LiabIntType1="fixed",LiabFxdRate1,OFFSET(Vectors!$D$6,Vectors!A54,MATCH(LiabLoanIndex1,lstInterestRates,0)))+LiabMarg1 -> 0.079369 | AS54: 399230.018 | AT54: 399230.018 | AU54: 0 | AV54: 0 | AW54: 0 | AX54: 447067.8581 | AZ54: 447067.8581 | BA54: 447067.8581 | BB54: 0 | BC54: 0 | BD54: 0 | BE54: 0 | BG54: 1000000 | BH54: 0 | BI54: 0 | BJ54: 0 | BK54: 0 | BL54: 0 | BN54: =IF(LiabIntType2="Fixed",LiabFxdRate2,OFFSET(Vectors!$D$6,Vectors!A54,MATCH(LiabLoanIndex2,lstInterestRates,0))) -> 0.04 | BO54: 42123.26311 | BP54: 0 | BQ54: 42123.26311 | BR54: 0 | BT54: -262616.2645 | BU54: -262616.2645 | BV54: 0 | BW54: 262616.2645 | BY54: 262616.2645 | BZ54: 0 | CB54: 59650912.78 | CC54: 399230.018 | CD54: 709684.1226 | CF54: 12899595.2 | CG54: 0 | CH54: -262616.2645 | CJ54: 1142086.102 | CK54: 1142086.102 | CL54: 0 | CN54: 951888.5561 | CO54: TRUE | CP54: 0.4
A55: 49 | B55: 2021-03-01 | C55: 0.08333333333 | E55: 97642057.85 | F55: =IF(AssetIntType1="Fixed",AssetFxdRate1,IF(A55=1,OFFSET(Vectors!$D$6,A55,MATCH(AssetFltIndx1,lstInterestRates,0)),IF(MOD($A55,AssetRateReset1)=0,MAX(MIN(OFFSET(Vectors!$D$6,A55,MATCH(AssetFltIndx1,lstInterestRates,0)),(F54-AssetMarg1)+AssetPdCapFl1,AssetLifeCap1),(F54-AssetMarg1)-AssetPdCapFl1,AssetLifeFloor1-AssetMarg1),F54)))+AssetMarg1 -> 0.105 | G55: 914739.2945 | H55: 854368.0062 | I55: 60371.28831 | J55: 97581686.56 | L55: 52204311.66 | M55: =IF(pdrLossTime1="",OFFSET(Vectors!AE54:AE,A55+SeasoningAge1,MATCH(SDA_Loss,lstSDA,0)),OFFSET(Vectors!$X$6,A55+SeasoningAge1,MATCH(pdrLossTime1,lstDefaultCurve,0))) -> 0.008333333333 | N55: 833333.3333 | O55: 0.9758168656 | P55: =OFFSET(Vectors!$L$6,A55+SeasoningAge1,MATCH(pdrPrepay1,lstPrepayCurve,0))*pdrPrepayStress1 -> 0.01 | Q55: 84903.07962 | R55: 31762.25708 | S55: 0.105 | T55: 449496.0603 | U55: 250000 | V55: 51254312.99 | X55: 816161.397 | Z55: FALSE | AA55: TRUE | AB55: TRUE | AC55: TRUE | AE55: 53960969.73 | AF55: =IF(Swap_Active="No",0,OFFSET(Vectors!$D$6,Vectors!A55,MATCH(Swap_IN,lstInterestRates,0))) -> 0.069369 | AG55: 311934.8758 | AH55: =IF(Swap_Active="No",0,OFFSET(Vectors!$D$6,Vectors!A55,MATCH(Swap_OUT,lstInterestRates,0))) -> 0.04 | AI55: 179869.8991 | AJ55: 132064.9767 | AK55: 948226.3737 | AM55: 111861.7331 | AN55: 111861.7331 | AO55: 0 | AP55: 836364.6406 | AR55: =IF(LiabIntType1="fixed",LiabFxdRate1,OFFSET(Vectors!$D$6,Vectors!A55,MATCH(LiabLoanIndex1,lstInterestRates,0)))+LiabMarg1 -> 0.079369 | AS55: 394536.108 | AT55: 394536.108 | AU55: 0 | AV55: 0 | AW55: 0 | AX55: 441828.5326 | AZ55: 441828.5326 | BA55: 441828.5326 | BB55: 0 | BC55: 0 | BD55: 0 | BE55: 0 | BG55: 1000000 | BH55: 0 | BI55: 0 | BJ55: 0 | BK55: 0 | BL55: 0 | BN55: =IF(LiabIntType2="Fixed",LiabFxdRate2,OFFSET(Vectors!$D$6,Vectors!A55,MATCH(LiabLoanIndex2,lstInterestRates,0))) -> 0.04 | BO55: 42998.65065 | BP55: 0 | BQ55: 42998.65065 | BR55: 0 | BT55: -262094.8644 | BU55: -262094.8644 | BV55: 0 | BW55: 262094.8644 | BY55: 262094.8644 | BZ55: 0 | CB55: 58946989.38 | CC55: 394536.108 | CD55: 703923.397 | CF55: 13161690.06 | CG55: 0 | CH55: -262094.8644 | CJ55: 1128096.273 | CK55: 1128096.273 | CL55: 0 | CN55: 949998.67 | CO55: TRUE | CP55: 0.4083333333
A56: 50 | B56: 2021-04-01 | C56: 0.08333333333 | E56: 97581686.56 | F56: =IF(AssetIntType1="Fixed",AssetFxdRate1,IF(A56=1,OFFSET(Vectors!$D$6,A56,MATCH(AssetFltIndx1,lstInterestRates,0)),IF(MOD($A56,AssetRateReset1)=0,MAX(MIN(OFFSET(Vectors!$D$6,A56,MATCH(AssetFltIndx1,lstInterestRates,0)),(F55-AssetMarg1)+AssetPdCapFl1,AssetLifeCap1),(F55-AssetMarg1)-AssetPdCapFl1,AssetLifeFloor1-AssetMarg1),F55)))+AssetMarg1 -> 0.105 | G56: 914739.2945 | H56: 853839.7574 | I56: 60899.53708 | J56: 97520787.02 | L56: 51254312.99 | M56: =IF(pdrLossTime1="",OFFSET(Vectors!AE55:AE,A56+SeasoningAge1,MATCH(SDA_Loss,lstSDA,0)),OFFSET(Vectors!$X$6,A56+SeasoningAge1,MATCH(pdrLossTime1,lstDefaultCurve,0))) -> 0.008333333333 | N56: 833333.3333 | O56: 0.9752078702 | P56: =OFFSET(Vectors!$L$6,A56+SeasoningAge1,MATCH(pdrPrepay1,lstPrepayCurve,0))*pdrPrepayStress1 -> 0.01 | Q56: 83306.01568 | R56: 31467.11671 | S56: 0.105 | T56: 441183.572 | U56: 250000 | V56: 50306206.52 | X56: 805956.7044 | Z56: FALSE | AA56: TRUE | AB56: TRUE | AC56: TRUE | AE56: 53315292.94 | AF56: =IF(Swap_Active="No",0,OFFSET(Vectors!$D$6,Vectors!A56,MATCH(Swap_IN,lstInterestRates,0))) -> 0.069369 | AG56: 308202.3797 | AH56: =IF(Swap_Active="No",0,OFFSET(Vectors!$D$6,Vectors!A56,MATCH(Swap_OUT,lstInterestRates,0))) -> 0.04 | AI56: 177717.6431 | AJ56: 130484.7365 | AK56: 936441.4409 | AM56: 109985.1006 | AN56: 109985.1006 | AO56: 0 | AP56: 826456.3403 | AR56: =IF(LiabIntType1="fixed",LiabFxdRate1,OFFSET(Vectors!$D$6,Vectors!A56,MATCH(LiabLoanIndex1,lstInterestRates,0)))+LiabMarg1 -> 0.079369 | AS56: 389880.3 | AT56: 389880.3 | AU56: 0 | AV56: 0 | AW56: 0 | AX56: 436576.0403 | AZ56: 436576.0403 | BA56: 436576.0403 | BB56: 0 | BC56: 0 | BD56: 0 | BE56: 0 | BG56: 1000000 | BH56: 0 | BI56: 0 | BJ56: 0 | BK56: 0 | BL56: 0 | BN56: =IF(LiabIntType2="Fixed",LiabFxdRate2,OFFSET(Vectors!$D$6,Vectors!A56,MATCH(LiabLoanIndex2,lstInterestRates,0))) -> 0.04 | BO56: 43872.3002 | BP56: 0 | BQ56: 43872.3002 | BR56: 0 | BT56: -261572.8247 | BU56: -261572.8247 | BV56: 0 | BW56: 261572.8247 | BY56: 261572.8247 | BZ56: 0 | CB56: 58248840.52 | CC56: 389880.3 | CD56: 698148.865 | CF56: 13423262.89 | CG56: 0 | CH56: -261572.8247 | CJ56: 1114159.084 | CK56: 1114159.084 | CL56: 0 | CN56: 948106.4657 | CO56: TRUE | CP56: 0.4166666667
A57: 51 | B57: 2021-05-01 | C57: 0.08333333333 | E57: 97520787.02 | F57: =IF(AssetIntType1="Fixed",AssetFxdRate1,IF(A57=1,OFFSET(Vectors!$D$6,A57,MATCH(AssetFltIndx1,lstInterestRates,0)),IF(MOD($A57,AssetRateReset1)=0,MAX(MIN(OFFSET(Vectors!$D$6,A57,MATCH(AssetFltIndx1,lstInterestRates,0)),(F56-AssetMarg1)+AssetPdCapFl1,AssetLifeCap1),(F56-AssetMarg1)-AssetPdCapFl1,AssetLifeFloor1-AssetMarg1),F56)))+AssetMarg1 -> 0.105 | G57: 914739.2945 | H57: 853306.8865 | I57: 61432.40803 | J57: 97459354.62 | L57: 50306206.52 | M57: =IF(pdrLossTime1="",OFFSET(Vectors!AE56:AE,A57+SeasoningAge1,MATCH(SDA_Loss,lstSDA,0)),OFFSET(Vectors!$X$6,A57+SeasoningAge1,MATCH(pdrLossTime1,lstDefaultCurve,0))) -> 0.008333333333 | N57: 833333.3333 | O57: 0.9745935462 | P57: =OFFSET(Vectors!$L$6,A57+SeasoningAge1,MATCH(pdrPrepay1,lstPrepayCurve,0))*pdrPrepayStress1 -> 0.01 | Q57: 81713.50701 | R57: 31165.02466 | S57: 0.105 | T57: 432887.6404 | U57: 250000 | V57: 49359994.66 | X57: 795766.1721 | Z57: FALSE | AA57: TRUE | AB57: TRUE | AC57: TRUE | AE57: 52676195.95 | AF57: =IF(Swap_Active="No",0,OFFSET(Vectors!$D$6,Vectors!A57,MATCH(Swap_IN,lstInterestRates,0))) -> 0.069369 | AG57: 304507.9198 | AH57: =IF(Swap_Active="No",0,OFFSET(Vectors!$D$6,Vectors!A57,MATCH(Swap_OUT,lstInterestRates,0))) -> 0.04 | AI57: 175587.3198 | AJ57: 128920.5999 | AK57: 924686.772 | AM57: 108114.0278 | AN57: 108114.0278 | AO57: 0 | AP57: 816572.7442 | AR57: =IF(LiabIntType1="fixed",LiabFxdRate1,OFFSET(Vectors!$D$6,Vectors!A57,MATCH(LiabLoanIndex1,lstInterestRates,0)))+LiabMarg1 -> 0.079369 | AS57: 385262.6853 | AT57: 385262.6853 | AU57: 0 | AV57: 0 | AW57: 0 | AX57: 431310.059 | AZ57: 431310.059 | BA57: 431310.059 | BB57: 0 | BC57: 0 | BD57: 0 | BE57: 0 | BG57: 1000000 | BH57: 0 | BI57: 0 | BJ57: 0 | BK57: 0 | BL57: 0 | BN57: =IF(LiabIntType2="Fixed",LiabFxdRate2,OFFSET(Vectors!$D$6,Vectors!A57,MATCH(LiabLoanIndex2,lstInterestRates,0))) -> 0.04 | BO57: 44744.20962 | BP57: 0 | BQ57: 44744.20962 | BR57: 0 | BT57: -261050.1238 | BU57: -261050.1238 | BV57: 0 | BW57: 261050.1238 | BY57: 261050.1238 | BZ57: 0 | CB57: 57556480.34 | CC57: 385262.6853 | CD57: 692360.1828 | CF57: 13684313.01 | CG57: 0 | CH57: -261050.1238 | CJ57: 1100274.092 | CK57: 1100274.092 | CL57: 0 | CN57: 946211.865 | CO57: TRUE | CP57: 0.425
A58: 52 | B58: 2021-06-01 | C58: 0.08333333333 | E58: 97459354.62 | F58: =IF(AssetIntType1="Fixed",AssetFxdRate1,IF(A58=1,OFFSET(Vectors!$D$6,A58,MATCH(AssetFltIndx1,lstInterestRates,0)),IF(MOD($A58,AssetRateReset1)=0,MAX(MIN(OFFSET(Vectors!$D$6,A58,MATCH(AssetFltIndx1,lstInterestRates,0)),(F57-AssetMarg1)+AssetPdCapFl1,AssetLifeCap1),(F57-AssetMarg1)-AssetPdCapFl1,AssetLifeFloor1-AssetMarg1),F57)))+AssetMarg1 -> 0.105 | G58: 914739.2945 | H58: 852769.3529 | I58: 61969.9416 | J58: 97397384.67 | L58: 49359994.66 | M58: =IF(pdrLossTime1="",OFFSET(Vectors!AE57:AE,A58+SeasoningAge1,MATCH(SDA_Loss,lstSDA,0)),OFFSET(Vectors!$X$6,A58+SeasoningAge1,MATCH(pdrLossTime1,lstDefaultCurve,0))) -> 0.008333333333 | N58: 833333.3333 | O58: 0.9739738467 | P58: =OFFSET(Vectors!$L$6,A58+SeasoningAge1,MATCH(pdrPrepay1,lstPrepayCurve,0))*pdrPrepayStress1 -> 0.01 | Q58: 80125.57312 | R58: 30855.88223 | S58: 0.105 | T58: 424608.2866 | U58: 250000 | V58: 48415679.87 | X58: 785589.7419 | Z58: FALSE | AA58: TRUE | AB58: TRUE | AC58: TRUE | AE58: 52043612.65 | AF58: =IF(Swap_Active="No",0,OFFSET(Vectors!$D$6,Vectors!A58,MATCH(Swap_IN,lstInterestRates,0))) -> 0.069369 | AG58: 300851.1139 | AH58: =IF(Swap_Active="No",0,OFFSET(Vectors!$D$6,Vectors!A58,MATCH(Swap_OUT,lstInterestRates,0))) -> 0.04 | AI58: 173478.7088 | AJ58: 127372.405 | AK58: 912962.1469 | AM58: 106248.5246 | AN58: 106248.5246 | AO58: 0 | AP58: 806713.6224 | AR58: =IF(LiabIntType1="fixed",LiabFxdRate1,OFFSET(Vectors!$D$6,Vectors!A58,MATCH(LiabLoanIndex1,lstInterestRates,0)))+LiabMarg1 -> 0.079369 | AS58: 380683.3573 | AT58: 380683.3573 | AU58: 0 | AV58: 0 | AW58: 0 | AX58: 426030.265 | AZ58: 426030.265 | BA58: 426030.265 | BB58: 0 | BC58: 0 | BD58: 0 | BE58: 0 | BG58: 1000000 | BH58: 0 | BI58: 0 | BJ58: 0 | BK58: 0 | BL58: 0 | BN58: =IF(LiabIntType2="Fixed",LiabFxdRate2,OFFSET(Vectors!$D$6,Vectors!A58,MATCH(LiabLoanIndex2,lstInterestRates,0))) -> 0.04 | BO58: 45614.3767 | BP58: 0 | BQ58: 45614.3767 | BR58: 0 | BT58: -260526.74 | BU58: -260526.74 | BV58: 0 | BW58: 260526.74 | BY58: 260526.74 | BZ58: 0 | CB58: 56869923.33 | CC58: 380683.3573 | CD58: 686557.005 | CF58: 13944839.75 | CG58: 0 | CH58: -260526.74 | CJ58: 1086440.856 | CK58: 1086440.856 | CL58: 0 | CN58: 944314.7887 | CO58: TRUE | CP58: 0.4333333333
A59: 53 | B59: 2021-07-01 | C59: 0.08333333333 | E59: 97397384.67 | F59: =IF(AssetIntType1="Fixed",AssetFxdRate1,IF(A59=1,OFFSET(Vectors!$D$6,A59,MATCH(AssetFltIndx1,lstInterestRates,0)),IF(MOD($A59,AssetRateReset1)=0,MAX(MIN(OFFSET(Vectors!$D$6,A59,MATCH(AssetFltIndx1,lstInterestRates,0)),(F58-AssetMarg1)+AssetPdCapFl1,AssetLifeCap1),(F58-AssetMarg1)-AssetPdCapFl1,AssetLifeFloor1-AssetMarg1),F58)))+AssetMarg1 -> 0.105 | G59: 914739.2945 | H59: 852227.1159 | I59: 62512.17859 | J59: 97334872.5 | L59: 48415679.87 | M59: =IF(pdrLossTime1="",OFFSET(Vectors!AE58:AE,A59+SeasoningAge1,MATCH(SDA_Loss,lstSDA,0)),OFFSET(Vectors!$X$6,A59+SeasoningAge1,MATCH(pdrLossTime1,lstDefaultCurve,0))) -> 0.008333333333 | N59: 833333.3333 | O59: 0.973348725 | P59: =OFFSET(Vectors!$L$6,A59+SeasoningAge1,MATCH(pdrPrepay1,lstPrepayCurve,0))*pdrPrepayStress1 -> 0.01 | Q59: 78542.23378 | R59: 30539.58948 | S59: 0.105 | T59: 416345.5322 | U59: 250000 | V59: 47473264.71 | X59: 775427.3554 | Z59: FALSE | AA59: TRUE | AB59: TRUE | AC59: TRUE | AE59: 51417477.59 | AF59: =IF(Swap_Active="No",0,OFFSET(Vectors!$D$6,Vectors!A59,MATCH(Swap_IN,lstInterestRates,0))) -> 0.069369 | AG59: 297231.5836 | AH59: =IF(Swap_Active="No",0,OFFSET(Vectors!$D$6,Vectors!A59,MATCH(Swap_OUT,lstInterestRates,0))) -> 0.04 | AI59: 171391.592 | AJ59: 125839.9916 | AK59: 901267.3471 | AM59: 104388.6012 | AN59: 104388.6012 | AO59: 0 | AP59: 796878.7459 | AR59: =IF(LiabIntType1="fixed",LiabFxdRate1,OFFSET(Vectors!$D$6,Vectors!A59,MATCH(LiabLoanIndex1,lstInterestRates,0)))+LiabMarg1 -> 0.079369 | AS59: 376142.4121 | AT59: 376142.4121 | AU59: 0 | AV59: 0 | AW59: 0 | AX59: 420736.3338 | AZ59: 420736.3338 | BA59: 420736.3338 | BB59: 0 | BC59: 0 | BD59: 0 | BE59: 0 | BG59: 1000000 | BH59: 0 | BI59: 0 | BJ59: 0 | BK59: 0 | BL59: 0 | BN59: =IF(LiabIntType2="Fixed",LiabFxdRate2,OFFSET(Vectors!$D$6,Vectors!A59,MATCH(LiabLoanIndex2,lstInterestRates,0))) -> 0.04 | BO59: 46482.79916 | BP59: 0 | BQ59: 46482.79916 | BR59: 0 | BT59: -260002.651 | BU59: -260002.651 | BV59: 0 | BW59: 260002.651 | BY59: 260002.651 | BZ59: 0 | CB59: 56189184.35 | CC59: 376142.4121 | CD59: 680738.9848 | CF59: 14204842.4 | CG59: 0 | CH59: -260002.651 | CJ59: 1072658.939 | CK59: 1072658.939 | CL59: 0 | CN59: 942415.1566 | CO59: TRUE | CP59: 0.4416666667
A60: 54 | B60: 2021-08-01 | C60: 0.08333333333 | E60: 97334872.5 | F60: =IF(AssetIntType1="Fixed",AssetFxdRate1,IF(A60=1,OFFSET(Vectors!$D$6,A60,MATCH(AssetFltIndx1,lstInterestRates,0)),IF(MOD($A60,AssetRateReset1)=0,MAX(MIN(OFFSET(Vectors!$D$6,A60,MATCH(AssetFltIndx1,lstInterestRates,0)),(F59-AssetMarg1)+AssetPdCapFl1,AssetLifeCap1),(F59-AssetMarg1)-AssetPdCapFl1,AssetLifeFloor1-AssetMarg1),F59)))+AssetMarg1 -> 0.105 | G60: 914739.2945 | H60: 851680.1343 | I60: 63059.16015 | J60: 97271813.34 | L60: 47473264.71 | M60: =IF(pdrLossTime1="",OFFSET(Vectors!AE59:AE,A60+SeasoningAge1,MATCH(SDA_Loss,lstSDA,0)),OFFSET(Vectors!$X$6,A60+SeasoningAge1,MATCH(pdrLossTime1,lstDefaultCurve,0))) -> 0.008333333333 | N60: 833333.3333 | O60: 0.9727181334 | P60: =OFFSET(Vectors!$L$6,A60+SeasoningAge1,MATCH(pdrPrepay1,lstPrepayCurve,0))*pdrPrepayStress1 -> 0.01 | Q60: 76963.50906 | R60: 30216.04515 | S60: 0.105 | T60: 408099.3996 | U60: 250000 | V60: 46532751.82 | X60: 765278.9538 | Z60: FALSE | AA60: TRUE | AB60: TRUE | AC60: TRUE | AE60: 50797725.97 | AF60: =IF(Swap_Active="No",0,OFFSET(Vectors!$D$6,Vectors!A60,MATCH(Swap_IN,lstInterestRates,0))) -> 0.069369 | AG60: 293648.9544 | AH60: =IF(Swap_Active="No",0,OFFSET(Vectors!$D$6,Vectors!A60,MATCH(Swap_OUT,lstInterestRates,0))) -> 0.04 | AI60: 169325.7532 | AJ60: 124323.2012 | AK60: 889602.1549 | AM60: 102534.268 | AN60: 102534.268 | AO60: 0 | AP60: 787067.8869 | AR60: =IF(LiabIntType1="fixed",LiabFxdRate1,OFFSET(Vectors!$D$6,Vectors!A60,MATCH(LiabLoanIndex1,lstInterestRates,0)))+LiabMarg1 -> 0.079369 | AS60: 371639.9477 | AT60: 371639.9477 | AU60: 0 | AV60: 0 | AW60: 0 | AX60: 415427.9392 | AZ60: 415427.9392 | BA60: 415427.9392 | BB60: 0 | BC60: 0 | BD60: 0 | BE60: 0 | BG60: 1000000 | BH60: 0 | BI60: 0 | BJ60: 0 | BK60: 0 | BL60: 0 | BN60: =IF(LiabIntType2="Fixed",LiabFxdRate2,OFFSET(Vectors!$D$6,Vectors!A60,MATCH(LiabLoanIndex2,lstInterestRates,0))) -> 0.04 | BO60: 47349.47467 | BP60: 0 | BQ60: 47349.47467 | BR60: 0 | BT60: -259477.8346 | BU60: -259477.8346 | BV60: 0 | BW60: 259477.8346 | BY60: 259477.8346 | BZ60: 0 | CB60: 55514278.57 | CC60: 371639.9477 | CD60: 674905.7738 | CF60: 14464320.23 | CG60: 0 | CH60: -259477.8346 | CJ60: 1058927.908 | CK60: 1058927.908 | CL60: 0 | CN60: 940512.8875 | CO60: TRUE | CP60: 0.45
A61: 55 | B61: 2021-09-01 | C61: 0.08333333333 | E61: 97271813.34 | F61: =IF(AssetIntType1="Fixed",AssetFxdRate1,IF(A61=1,OFFSET(Vectors!$D$6,A61,MATCH(AssetFltIndx1,lstInterestRates,0)),IF(MOD($A61,AssetRateReset1)=0,MAX(MIN(OFFSET(Vectors!$D$6,A61,MATCH(AssetFltIndx1,lstInterestRates,0)),(F60-AssetMarg1)+AssetPdCapFl1,AssetLifeCap1),(F60-AssetMarg1)-AssetPdCapFl1,AssetLifeFloor1-AssetMarg1),F60)))+AssetMarg1 -> 0.105 | G61: 914739.2945 | H61: 851128.3667 | I61: 63610.9278 | J61: 97208202.41 | L61: 46532751.82 | M61: =IF(pdrLossTime1="",OFFSET(Vectors!AE60:AE,A61+SeasoningAge1,MATCH(SDA_Loss,lstSDA,0)),OFFSET(Vectors!$X$6,A61+SeasoningAge1,MATCH(pdrLossTime1,lstDefaultCurve,0))) -> 0.008333333333 | N61: 833333.3333 | O61: 0.9720820241 | P61: =OFFSET(Vectors!$L$6,A61+SeasoningAge1,MATCH(pdrPrepay1,lstPrepayCurve,0))*pdrPrepayStress1 -> 0.01 | Q61: 75389.4193 | R61: 29885.14669 | S61: 0.105 | T61: 399869.9118 | U61: 250000 | V61: 45594143.92 | X61: 755144.4778 | Z61: FALSE | AA61: TRUE | AB61: TRUE | AC61: TRUE | AE61: 50184293.64 | AF61: =IF(Swap_Active="No",0,OFFSET(Vectors!$D$6,Vectors!A61,MATCH(Swap_IN,lstInterestRates,0))) -> 0.069369 | AG61: 290102.8555 | AH61: =IF(Swap_Active="No",0,OFFSET(Vectors!$D$6,Vectors!A61,MATCH(Swap_OUT,lstInterestRates,0))) -> 0.04 | AI61: 167280.9788 | AJ61: 122821.8767 | AK61: 877966.3544 | AM61: 100685.5358 | AN61: 100685.5358 | AO61: 0 | AP61: 777280.8187 | AR61: =IF(LiabIntType1="fixed",LiabFxdRate1,OFFSET(Vectors!$D$6,Vectors!A61,MATCH(LiabLoanIndex1,lstInterestRates,0)))+LiabMarg1 -> 0.079369 | AS61: 367176.0647 | AT61: 367176.0647 | AU61: 0 | AV61: 0 | AW61: 0 | AX61: 410104.754 | AZ61: 410104.754 | BA61: 410104.754 | BB61: 0 | BC61: 0 | BD61: 0 | BE61: 0 | BG61: 1000000 | BH61: 0 | BI61: 0 | BJ61: 0 | BK61: 0 | BL61: 0 | BN61: =IF(LiabIntType2="Fixed",LiabFxdRate2,OFFSET(Vectors!$D$6,Vectors!A61,MATCH(LiabLoanIndex2,lstInterestRates,0))) -> 0.04 | BO61: 48214.40078 | BP61: 0 | BQ61: 48214.40078 | BR61: 0 | BT61: -258952.2679 | BU61: -258952.2679 | BV61: 0 | BW61: 258952.2679 | BY61: 258952.2679 | BZ61: 0 | CB61: 54845221.55 | CC61: 367176.0647 | CD61: 669057.0219 | CF61: 14723272.5 | CG61: 0 | CH61: -258952.2679 | CJ61: 1045247.333 | CK61: 1045247.333 | CL61: 0 | CN61: 938607.8993 | CO61: TRUE | CP61: 0.4583333333
A62: 56 | B62: 2021-10-01 | C62: 0.08333333333 | E62: 97208202.41 | F62: =IF(AssetIntType1="Fixed",AssetFxdRate1,IF(A62=1,OFFSET(Vectors!$D$6,A62,MATCH(AssetFltIndx1,lstInterestRates,0)),IF(MOD($A62,AssetRateReset1)=0,MAX(MIN(OFFSET(Vectors!$D$6,A62,MATCH(AssetFltIndx1,lstInterestRates,0)),(F61-AssetMarg1)+AssetPdCapFl1,AssetLifeCap1),(F61-AssetMarg1)-AssetPdCapFl1,AssetLifeFloor1-AssetMarg1),F61)))+AssetMarg1 -> 0.105 | G62: 914739.2945 | H62: 850571.7711 | I62: 64167.52342 | J62: 97144034.88 | L62: 45594143.92 | M62: =IF(pdrLossTime1="",OFFSET(Vectors!AE61:AE,A62+SeasoningAge1,MATCH(SDA_Loss,lstSDA,0)),OFFSET(Vectors!$X$6,A62+SeasoningAge1,MATCH(pdrLossTime1,lstDefaultCurve,0))) -> 0.008333333333 | N62: 833333.3333 | O62: 0.9714403488 | P62: =OFFSET(Vectors!$L$6,A62+SeasoningAge1,MATCH(pdrPrepay1,lstPrepayCurve,0))*pdrPrepayStress1 -> 0.01 | Q62: 73819.98513 | R62: 29546.7902 | S62: 0.105 | T62: 391657.0927 | U62: 250000 | V62: 44657443.82 | X62: 745023.868 | Z62: FALSE | AA62: TRUE | AB62: TRUE | AC62: TRUE | AE62: 49577117.1 | AF62: =IF(Swap_Active="No",0,OFFSET(Vectors!$D$6,Vectors!A62,MATCH(Swap_IN,lstInterestRates,0))) -> 0.069369 | AG62: 286592.9197 | AH62: =IF(Swap_Active="No",0,OFFSET(Vectors!$D$6,Vectors!A62,MATCH(Swap_OUT,lstInterestRates,0))) -> 0.04 | AI62: 165257.057 | AJ62: 121335.8627 | AK62: 866359.7307 | AM62: 98842.41552 | AN62: 98842.41552 | AO62: 0 | AP62: 767517.3152 | AR62: =IF(LiabIntType1="fixed",LiabFxdRate1,OFFSET(Vectors!$D$6,Vectors!A62,MATCH(LiabLoanIndex1,lstInterestRates,0)))+LiabMarg1 -> 0.079369 | AS62: 362750.8658 | AT62: 362750.8658 | AU62: 0 | AV62: 0 | AW62: 0 | AX62: 404766.4494 | AZ62: 404766.4494 | BA62: 404766.4494 | BB62: 0 | BC62: 0 | BD62: 0 | BE62: 0 | BG62: 1000000 | BH62: 0 | BI62: 0 | BJ62: 0 | BK62: 0 | BL62: 0 | BN62: =IF(LiabIntType2="Fixed",LiabFxdRate2,OFFSET(Vectors!$D$6,Vectors!A62,MATCH(LiabLoanIndex2,lstInterestRates,0))) -> 0.04 | BO62: 49077.57501 | BP62: 0 | BQ62: 49077.57501 | BR62: 0 | BT62: -258425.9281 | BU62: -258425.9281 | BV62: 0 | BW62: 258425.9281 | BY62: 258425.9281 | BZ62: 0 | CB62: 54182029.17 | CC62: 362750.8658 | CD62: 663192.3774 | CF62: 14981698.43 | CG62: 0 | CH62: -258425.9281 | CJ62: 1031616.788 | CK62: 1031616.788 | CL62: 0 | CN62: 936700.1087 | CO62: TRUE | CP62: 0.4666666667
A63: 57 | B63: 2021-11-01 | C63: 0.08333333333 | E63: 97144034.88 | F63: =IF(AssetIntType1="Fixed",AssetFxdRate1,IF(A63=1,OFFSET(Vectors!$D$6,A63,MATCH(AssetFltIndx1,lstInterestRates,0)),IF(MOD($A63,AssetRateReset1)=0,MAX(MIN(OFFSET(Vectors!$D$6,A63,MATCH(AssetFltIndx1,lstInterestRates,0)),(F62-AssetMarg1)+AssetPdCapFl1,AssetLifeCap1),(F62-AssetMarg1)-AssetPdCapFl1,AssetLifeFloor1-AssetMarg1),F62)))+AssetMarg1 -> 0.105 | G63: 914739.2945 | H63: 850010.3052 | I63: 64728.98925 | J63: 97079305.9 | L63: 44657443.82 | M63: =IF(pdrLossTime1="",OFFSET(Vectors!AE62:AE,A63+SeasoningAge1,MATCH(SDA_Loss,lstSDA,0)),OFFSET(Vectors!$X$6,A63+SeasoningAge1,MATCH(pdrLossTime1,lstDefaultCurve,0))) -> 0.008333333333 | N63: 833333.3333 | O63: 0.970793059 | P63: =OFFSET(Vectors!$L$6,A63+SeasoningAge1,MATCH(pdrPrepay1,lstPrepayCurve,0))*pdrPrepayStress1 -> 0.01 | Q63: 72255.22748 | R63: 29200.87044 | S63: 0.105 | T63: 383460.9667 | U63: 250000 | V63: 43722654.38 | X63: 734917.0646 | Z63: FALSE | AA63: TRUE | AB63: TRUE | AC63: TRUE | AE63: 48976133.47 | AF63: =IF(Swap_Active="No",0,OFFSET(Vectors!$D$6,Vectors!A63,MATCH(Swap_IN,lstInterestRates,0))) -> 0.069369 | AG63: 283118.7835 | AH63: =IF(Swap_Active="No",0,OFFSET(Vectors!$D$6,Vectors!A63,MATCH(Swap_OUT,lstInterestRates,0))) -> 0.04 | AI63: 163253.7782 | AJ63: 119865.0053 | AK63: 854782.07 | AM63: 97004.91852 | AN63: 97004.91852 | AO63: 0 | AP63: 757777.1514 | AR63: =IF(LiabIntType1="fixed",LiabFxdRate1,OFFSET(Vectors!$D$6,Vectors!A63,MATCH(LiabLoanIndex1,lstInterestRates,0)))+LiabMarg1 -> 0.079369 | AS63: 358364.4561 | AT63: 358364.4561 | AU63: 0 | AV63: 0 | AW63: 0 | AX63: 399412.6953 | AZ63: 399412.6953 | BA63: 399412.6953 | BB63: 0 | BC63: 0 | BD63: 0 | BE63: 0 | BG63: 1000000 | BH63: 0 | BI63: 0 | BJ63: 0 | BK63: 0 | BL63: 0 | BN63: =IF(LiabIntType2="Fixed",LiabFxdRate2,OFFSET(Vectors!$D$6,Vectors!A63,MATCH(LiabLoanIndex2,lstInterestRates,0))) -> 0.04 | BO63: 49938.99477 | BP63: 0 | BQ63: 49938.99477 | BR63: 0 | BT63: -257898.7918 | BU63: -257898.7918 | BV63: 0 | BW63: 257898.7918 | BY63: 257898.7918 | BZ63: 0 | CB63: 53524717.69 | CC63: 358364.4561 | CD63: 657311.4871 | CF63: 15239597.22 | CG63: 0 | CH63: -257898.7918 | CJ63: 1018035.848 | CK63: 1018035.848 | CL63: 0 | CN63: 934789.4312 | CO63: TRUE | CP63: 0.475
A64: 58 | B64: 2021-12-01 | C64: 0.08333333333 | E64: 97079305.9 | F64: =IF(AssetIntType1="Fixed",AssetFxdRate1,IF(A64=1,OFFSET(Vectors!$D$6,A64,MATCH(AssetFltIndx1,lstInterestRates,0)),IF(MOD($A64,AssetRateReset1)=0,MAX(MIN(OFFSET(Vectors!$D$6,A64,MATCH(AssetFltIndx1,lstInterestRates,0)),(F63-AssetMarg1)+AssetPdCapFl1,AssetLifeCap1),(F63-AssetMarg1)-AssetPdCapFl1,AssetLifeFloor1-AssetMarg1),F63)))+AssetMarg1 -> 0.105 | G64: 914739.2945 | H64: 849443.9266 | I64: 65295.36791 | J64: 97014010.53 | L64: 43722654.38 | M64: =IF(pdrLossTime1="",OFFSET(Vectors!AE63:AE,A64+SeasoningAge1,MATCH(SDA_Loss,lstSDA,0)),OFFSET(Vectors!$X$6,A64+SeasoningAge1,MATCH(pdrLossTime1,lstDefaultCurve,0))) -> 0.008333333333 | N64: 833333.3333 | O64: 0.9701401053 | P64: =OFFSET(Vectors!$L$6,A64+SeasoningAge1,MATCH(pdrPrepay1,lstPrepayCurve,0))*pdrPrepayStress1 -> 0.01 | Q64: 70695.16755 | R64: 28847.2808 | S64: 0.105 | T64: 375281.5592 | U64: 250000 | V64: 42789778.6 | X64: 724824.0075 | Z64: FALSE | AA64: TRUE | AB64: TRUE | AC64: TRUE | AE64: 48381280.51 | AF64: =IF(Swap_Active="No",0,OFFSET(Vectors!$D$6,Vectors!A64,MATCH(Swap_IN,lstInterestRates,0))) -> 0.069369 | AG64: 279680.0873 | AH64: =IF(Swap_Active="No",0,OFFSET(Vectors!$D$6,Vectors!A64,MATCH(Swap_OUT,lstInterestRates,0))) -> 0.04 | AI64: 161270.935 | AJ64: 118409.1523 | AK64: 843233.1598 | AM64: 95173.05634 | AN64: 95173.05634 | AO64: 0 | AP64: 748060.1035 | AR64: =IF(LiabIntType1="fixed",LiabFxdRate1,OFFSET(Vectors!$D$6,Vectors!A64,MATCH(LiabLoanIndex1,lstInterestRates,0)))+LiabMarg1 -> 0.079369 | AS64: 354016.9432 | AT64: 354016.9432 | AU64: 0 | AV64: 0 | AW64: 0 | AX64: 394043.1603 | AZ64: 394043.1603 | BA64: 394043.1603 | BB64: 0 | BC64: 0 | BD64: 0 | BE64: 0 | BG64: 1000000 | BH64: 0 | BI64: 0 | BJ64: 0 | BK64: 0 | BL64: 0 | BN64: =IF(LiabIntType2="Fixed",LiabFxdRate2,OFFSET(Vectors!$D$6,Vectors!A64,MATCH(LiabLoanIndex2,lstInterestRates,0))) -> 0.04 | BO64: 50798.65741 | BP64: 0 | BQ64: 50798.65741 | BR64: 0 | BT64: -257370.8356 | BU64: -257370.8356 | BV64: 0 | BW64: 257370.8356 | BY64: 257370.8356 | BZ64: 0 | CB64: 52873303.69 | CC64: 354016.9432 | CD64: 651413.9959 | CF64: 15496968.06 | CG64: 0 | CH64: -257370.8356 | CJ64: 1004504.095 | CK64: 1004504.095 | CL64: 0 | CN64: 932875.7817 | CO64: TRUE | CP64: 0.4833333333
A65: 59 | B65: 2022-01-01 | C65: 0.08333333333 | E65: 97014010.53 | F65: =IF(AssetIntType1="Fixed",AssetFxdRate1,IF(A65=1,OFFSET(Vectors!$D$6,A65,MATCH(AssetFltIndx1,lstInterestRates,0)),IF(MOD($A65,AssetRateReset1)=0,MAX(MIN(OFFSET(Vectors!$D$6,A65,MATCH(AssetFltIndx1,lstInterestRates,0)),(F64-AssetMarg1)+AssetPdCapFl1,AssetLifeCap1),(F64-AssetMarg1)-AssetPdCapFl1,AssetLifeFloor1-AssetMarg1),F64)))+AssetMarg1 -> 0.105 | G65: 914739.2945 | H65: 848872.5921 | I65: 65866.70238 | J65: 96948143.83 | L65: 42789778.6 | M65: =IF(pdrLossTime1="",OFFSET(Vectors!AE64:AE,A65+SeasoningAge1,MATCH(SDA_Loss,lstSDA,0)),OFFSET(Vectors!$X$6,A65+SeasoningAge1,MATCH(pdrLossTime1,lstDefaultCurve,0))) -> 0.008333333333 | N65: 833333.3333 | O65: 0.9694814383 | P65: =OFFSET(Vectors!$L$6,A65+SeasoningAge1,MATCH(pdrPrepay1,lstPrepayCurve,0))*pdrPrepayStress1 -> 0.01 | Q65: 69139.82684 | R65: 28485.91331 | S65: 0.105 | T65: 367118.8961 | U65: 250000 | V65: 41858819.53 | X65: 714744.6363 | Z65: FALSE | AA65: TRUE | AB65: TRUE | AC65: TRUE | AE65: 47792496.61 | AF65: =IF(Swap_Active="No",0,OFFSET(Vectors!$D$6,Vectors!A65,MATCH(Swap_IN,lstInterestRates,0))) -> 0.069369 | AG65: 276276.4748 | AH65: =IF(Swap_Active="No",0,OFFSET(Vectors!$D$6,Vectors!A65,MATCH(Swap_OUT,lstInterestRates,0))) -> 0.04 | AI65: 159308.322 | AJ65: 116968.1527 | AK65: 831712.789 | AM65: 93346.84088 | AN65: 93346.84088 | AO65: 0 | AP65: 738365.9481 | AR65: =IF(LiabIntType1="fixed",LiabFxdRate1,OFFSET(Vectors!$D$6,Vectors!A65,MATCH(LiabLoanIndex1,lstInterestRates,0)))+LiabMarg1 -> 0.079369 | AS65: 349708.4367 | AT65: 349708.4367 | AU65: 0 | AV65: 0 | AW65: 0 | AX65: 388657.5114 | AZ65: 388657.5114 | BA65: 388657.5114 | BB65: 0 | BC65: 0 | BD65: 0 | BE65: 0 | BG65: 1000000 | BH65: 0 | BI65: 0 | BJ65: 0 | BK65: 0 | BL65: 0 | BN65: =IF(LiabIntType2="Fixed",LiabFxdRate2,OFFSET(Vectors!$D$6,Vectors!A65,MATCH(LiabLoanIndex2,lstInterestRates,0))) -> 0.04 | BO65: 51656.56019 | BP65: 0 | BQ65: 51656.56019 | BR65: 0 | BT65: -256842.0355 | BU65: -256842.0355 | BV65: 0 | BW65: 256842.0355 | BY65: 256842.0355 | BZ65: 0 | CB65: 52227804.14 | CC65: 349708.4367 | CD65: 645499.5469 | CF65: 15753810.09 | CG65: 0 | CH65: -256842.0355 | CJ65: 991021.111 | CK65: 991021.111 | CL65: 0 | CN65: 930959.0735 | CO65: TRUE | CP65: 0.4916666667
A66: 60 | B66: 2022-02-01 | C66: 0.08333333333 | E66: 96948143.83 | F66: =IF(AssetIntType1="Fixed",AssetFxdRate1,IF(A66=1,OFFSET(Vectors!$D$6,A66,MATCH(AssetFltIndx1,lstInterestRates,0)),IF(MOD($A66,AssetRateReset1)=0,MAX(MIN(OFFSET(Vectors!$D$6,A66,MATCH(AssetFltIndx1,lstInterestRates,0)),(F65-AssetMarg1)+AssetPdCapFl1,AssetLifeCap1),(F65-AssetMarg1)-AssetPdCapFl1,AssetLifeFloor1-AssetMarg1),F65)))+AssetMarg1 -> 0.105 | G66: 914739.2945 | H66: 848296.2585 | I66: 66443.03602 | J66: 96881700.79 | L66: 41858819.53 | M66: =IF(pdrLossTime1="",OFFSET(Vectors!AE65:AE,A66+SeasoningAge1,MATCH(SDA_Loss,lstSDA,0)),OFFSET(Vectors!$X$6,A66+SeasoningAge1,MATCH(pdrLossTime1,lstDefaultCurve,0))) -> 0.008333333333 | N66: 833333.3333 | O66: 0.9688170079 | P66: =OFFSET(Vectors!$L$6,A66+SeasoningAge1,MATCH(pdrPrepay1,lstPrepayCurve,0))*pdrPrepayStress1 -> 0.01 | Q66: 67589.22715 | R66: 28116.65855 | S66: 0.105 | T66: 358973.0042 | U66: 250000 | V66: 40929780.31 | X66: 704678.8899 | Z66: FALSE | AA66: TRUE | AB66: TRUE | AC66: TRUE | AE66: 47209720.76 | AF66: =IF(Swap_Active="No",0,OFFSET(Vectors!$D$6,Vectors!A66,MATCH(Swap_IN,lstInterestRates,0))) -> 0.069369 | AG66: 272907.5933 | AH66: =IF(Swap_Active="No",0,OFFSET(Vectors!$D$6,Vectors!A66,MATCH(Swap_OUT,lstInterestRates,0))) -> 0.04 | AI66: 157365.7359 | AJ66: 115541.8574 | AK66: 820220.7473 | AM66: 91526.28428 | AN66: 91526.28428 | AO66: 0 | AP66: 728694.4631 | AR66: =IF(LiabIntType1="fixed",LiabFxdRate1,OFFSET(Vectors!$D$6,Vectors!A66,MATCH(LiabLoanIndex1,lstInterestRates,0)))+LiabMarg1 -> 0.079369 | AS66: 345439.0489 | AT66: 345439.0489 | AU66: 0 | AV66: 0 | AW66: 0 | AX66: 383255.4141 | AZ66: 383255.4141 | BA66: 383255.4141 | BB66: 0 | BC66: 0 | BD66: 0 | BE66: 0 | BG66: 1000000 | BH66: 0 | BI66: 0 | BJ66: 0 | BK66: 0 | BL66: 0 | BN66: =IF(LiabIntType2="Fixed",LiabFxdRate2,OFFSET(Vectors!$D$6,Vectors!A66,MATCH(LiabLoanIndex2,lstInterestRates,0))) -> 0.04 | BO66: 52512.70031 | BP66: 0 | BQ66: 52512.70031 | BR66: 0 | BT66: -256312.3674 | BU66: -256312.3674 | BV66: 0 | BW66: 256312.3674 | BY66: 256312.3674 | BZ66: 0 | CB66: 51588236.36 | CC66: 345439.0489 | CD66: 639567.7815 | CF66: 16010122.46 | CG66: 0 | CH66: -256312.3674 | CJ66: 977586.4832 | CK66: 977586.4832 | CL66: 0 | CN66: 929039.219 | CO66: TRUE | CP66: 0.5
A67: 61 | B67: 2022-03-01 | C67: 0.08333333333 | E67: 96881700.79 | F67: =IF(AssetIntType1="Fixed",AssetFxdRate1,IF(A67=1,OFFSET(Vectors!$D$6,A67,MATCH(AssetFltIndx1,lstInterestRates,0)),IF(MOD($A67,AssetRateReset1)=0,MAX(MIN(OFFSET(Vectors!$D$6,A67,MATCH(AssetFltIndx1,lstInterestRates,0)),(F66-AssetMarg1)+AssetPdCapFl1,AssetLifeCap1),(F66-AssetMarg1)-AssetPdCapFl1,AssetLifeFloor1-AssetMarg1),F66)))+AssetMarg1 -> 0.105 | G67: 914739.2945 | H67: 847714.8819 | I67: 67024.41259 | J67: 96814676.38 | L67: 40929780.31 | M67: =IF(pdrLossTime1="",OFFSET(Vectors!AE66:AE,A67+SeasoningAge1,MATCH(SDA_Loss,lstSDA,0)),OFFSET(Vectors!$X$6,A67+SeasoningAge1,MATCH(pdrLossTime1,lstDefaultCurve,0))) -> 0 | N67: 0 | O67: 0.9681467638 | P67: =OFFSET(Vectors!$L$6,A67+SeasoningAge1,MATCH(pdrPrepay1,lstPrepayCurve,0))*pdrPrepayStress1 -> 0.01 | Q67: 66043.39058 | R67: 28315.91993 | S67: 0.105 | T67: 358135.5777 | U67: 250000 | V67: 40835421 | X67: 702494.8882 | Z67: FALSE | AA67: TRUE | AB67: TRUE | AC67: TRUE | AE67: 46632892.57 | AF67: =IF(Swap_Active="No",0,OFFSET(Vectors!$D$6,Vectors!A67,MATCH(Swap_IN,lstInterestRates,0))) -> 0.069369 | AG67: 269573.0937 | AH67: =IF(Swap_Active="No",0,OFFSET(Vectors!$D$6,Vectors!A67,MATCH(Swap_OUT,lstInterestRates,0))) -> 0.04 | AI67: 155442.9752 | AJ67: 114130.1185 | AK67: 816625.0067 | AM67: 89711.399 | AN67: 89711.399 | AO67: 0 | AP67: 726913.6077 | AR67: =IF(LiabIntType1="fixed",LiabFxdRate1,OFFSET(Vectors!$D$6,Vectors!A67,MATCH(LiabLoanIndex1,lstInterestRates,0)))+LiabMarg1 -> 0.079369 | AS67: 341208.8943 | AT67: 341208.8943 | AU67: 0 | AV67: 0 | AW67: 0 | AX67: 385704.7134 | AZ67: 385704.7134 | BA67: 385704.7134 | BB67: 0 | BC67: 0 | BD67: 0 | BE67: 0 | BG67: 1000000 | BH67: 0 | BI67: 0 | BJ67: 0 | BK67: 0 | BL67: 0 | BN67: =IF(LiabIntType2="Fixed",LiabFxdRate2,OFFSET(Vectors!$D$6,Vectors!A67,MATCH(LiabLoanIndex2,lstInterestRates,0))) -> 0.04 | BO67: 53367.07487 | BP67: 0 | BQ67: 53367.07487 | BR67: 0 | BT67: -26032.76349 | BU67: -26032.76349 | BV67: 0 | BW67: 26032.76349 | BY67: 26032.76349 | BZ67: 0 | CB67: 51176498.89 | CC67: 341208.8943 | CD67: 411737.4769 | CF67: 16036155.22 | CG67: 0 | CH67: -26032.76349 | CJ67: 972067.982 | CK67: 972067.982 | CL67: 0 | CN67: 94359.31052 | CO67: TRUE | CP67: 0.5
A68: 62 | B68: 2022-04-01 | C68: 0.08333333333 | E68: 96814676.38 | F68: =IF(AssetIntType1="Fixed",AssetFxdRate1,IF(A68=1,OFFSET(Vectors!$D$6,A68,MATCH(AssetFltIndx1,lstInterestRates,0)),IF(MOD($A68,AssetRateReset1)=0,MAX(MIN(OFFSET(Vectors!$D$6,A68,MATCH(AssetFltIndx1,lstInterestRates,0)),(F67-AssetMarg1)+AssetPdCapFl1,AssetLifeCap1),(F67-AssetMarg1)-AssetPdCapFl1,AssetLifeFloor1-AssetMarg1),F67)))+AssetMarg1 -> 0.105 | G68: 914739.2945 | H68: 847128.4183 | I68: 67610.8762 | J68: 96747065.5 | L68: 40835421 | M68: =IF(pdrLossTime1="",OFFSET(Vectors!AE67:AE,A68+SeasoningAge1,MATCH(SDA_Loss,lstSDA,0)),OFFSET(Vectors!$X$6,A68+SeasoningAge1,MATCH(pdrLossTime1,lstDefaultCurve,0))) -> 0 | N68: 0 | O68: 0.967470655 | P68: =OFFSET(Vectors!$L$6,A68+SeasoningAge1,MATCH(pdrPrepay1,lstPrepayCurve,0))*pdrPrepayStress1 -> 0.01 | Q68: 65845.11917 | R68: 28517.5626 | S68: 0.105 | T68: 357309.9337 | U68: 250000 | V68: 40741058.32 | X68: 701672.6155 | Z68: FALSE | AA68: TRUE | AB68: TRUE | AC68: TRUE | AE68: 46061952.27 | AF68: =IF(Swap_Active="No",0,OFFSET(Vectors!$D$6,Vectors!A68,MATCH(Swap_IN,lstInterestRates,0))) -> 0.069369 | AG68: 266272.6306 | AH68: =IF(Swap_Active="No",0,OFFSET(Vectors!$D$6,Vectors!A68,MATCH(Swap_OUT,lstInterestRates,0))) -> 0.04 | AI68: 153539.8409 | AJ68: 112732.7897 | AK68: 814405.4052 | AM68: 89382.5762 | AN68: 89382.5762 | AO68: 0 | AP68: 725022.829 | AR68: =IF(LiabIntType1="fixed",LiabFxdRate1,OFFSET(Vectors!$D$6,Vectors!A68,MATCH(LiabLoanIndex1,lstInterestRates,0)))+LiabMarg1 -> 0.079369 | AS68: 338485.6283 | AT68: 338485.6283 | AU68: 0 | AV68: 0 | AW68: 0 | AX68: 386537.2007 | AZ68: 386537.2007 | BA68: 386537.2007 | BB68: 0 | BC68: 0 | BD68: 0 | BE68: 0 | BG68: 1000000 | BH68: 0 | BI68: 0 | BJ68: 0 | BK68: 0 | BL68: 0 | BN68: =IF(LiabIntType2="Fixed",LiabFxdRate2,OFFSET(Vectors!$D$6,Vectors!A68,MATCH(LiabLoanIndex2,lstInterestRates,0))) -> 0.04 | BO68: 53453.85075 | BP68: 0 | BQ68: 53453.85075 | BR68: 0 | BT68: -26033.69359 | BU68: -26033.69359 | BV68: 0 | BW68: 26033.69359 | BY68: 26033.69359 | BZ68: 0 | CB68: 50763927.99 | CC68: 338485.6283 | CD68: 412570.8942 | CF68: 16062188.92 | CG68: 0 | CH68: -26033.69359 | CJ68: 967945.2461 | CK68: 967945.2461 | CL68: 0 | CN68: 94362.68177 | CO68: TRUE | CP68: 0.5
A69: 63 | B69: 2022-05-01 | C69: 0.08333333333 | E69: 96747065.5 | F69: =IF(AssetIntType1="Fixed",AssetFxdRate1,IF(A69=1,OFFSET(Vectors!$D$6,A69,MATCH(AssetFltIndx1,lstInterestRates,0)),IF(MOD($A69,AssetRateReset1)=0,MAX(MIN(OFFSET(Vectors!$D$6,A69,MATCH(AssetFltIndx1,lstInterestRates,0)),(F68-AssetMarg1)+AssetPdCapFl1,AssetLifeCap1),(F68-AssetMarg1)-AssetPdCapFl1,AssetLifeFloor1-AssetMarg1),F68)))+AssetMarg1 -> 0.105 | G69: 914739.2945 | H69: 846536.8231 | I69: 68202.47137 | J69: 96678863.03 | L69: 40741058.32 | M69: =IF(pdrLossTime1="",OFFSET(Vectors!AE68:AE,A69+SeasoningAge1,MATCH(SDA_Loss,lstSDA,0)),OFFSET(Vectors!$X$6,A69+SeasoningAge1,MATCH(pdrLossTime1,lstDefaultCurve,0))) -> 0 | N69: 0 | O69: 0.9667886303 | P69: =OFFSET(Vectors!$L$6,A69+SeasoningAge1,MATCH(pdrPrepay1,lstPrepayCurve,0))*pdrPrepayStress1 -> 0.01 | Q69: 65646.65328 | R69: 28720.67332 | S69: 0.105 | T69: 356484.2603 | U69: 250000 | V69: 40646690.99 | X69: 700851.5869 | Z69: FALSE | AA69: TRUE | AB69: TRUE | AC69: TRUE | AE69: 45496840.65 | AF69: =IF(Swap_Active="No",0,OFFSET(Vectors!$D$6,Vectors!A69,MATCH(Swap_IN,lstInterestRates,0))) -> 0.069369 | AG69: 263005.8616 | AH69: =IF(Swap_Active="No",0,OFFSET(Vectors!$D$6,Vectors!A69,MATCH(Swap_OUT,lstInterestRates,0))) -> 0.04 | AI69: 151656.1355 | AJ69: 111349.7261 | AK69: 812201.313 | AM69: 89053.40053 | AN69: 89053.40053 | AO69: 0 | AP69: 723147.9125 | AR69: =IF(LiabIntType1="fixed",LiabFxdRate1,OFFSET(Vectors!$D$6,Vectors!A69,MATCH(LiabLoanIndex1,lstInterestRates,0)))+LiabMarg1 -> 0.079369 | AS69: 335756.8501 | AT69: 335756.8501 | AU69: 0 | AV69: 0 | AW69: 0 | AX69: 387391.0624 | AZ69: 387391.0624 | BA69: 387391.0624 | BB69: 0 | BC69: 0 | BD69: 0 | BE69: 0 | BG69: 1000000 | BH69: 0 | BI69: 0 | BJ69: 0 | BK69: 0 | BL69: 0 | BN69: =IF(LiabIntType2="Fixed",LiabFxdRate2,OFFSET(Vectors!$D$6,Vectors!A69,MATCH(LiabLoanIndex2,lstInterestRates,0))) -> 0.04 | BO69: 53540.62973 | BP69: 0 | BQ69: 53540.62973 | BR69: 0 | BT69: -26034.97505 | BU69: -26034.97505 | BV69: 0 | BW69: 26034.97505 | BY69: 26034.97505 | BZ69: 0 | CB69: 50350501.95 | CC69: 335756.8501 | CD69: 413426.0374 | CF69: 16088223.89 | CG69: 0 | CH69: -26034.97505 | CJ69: 963857.4485 | CK69: 963857.4485 | CL69: 0 | CN69: 94367.3266 | CO69: TRUE | CP69: 0.5
A70: 64 | B70: =IF(A70=0,ClosingDate,IF(A70=1,FirstPayDate,EDATE(B69,PmtFreqAdd))) -> 2022-06-01 | C70: =IF(A70=0,0,IF(DayCountSys="30/360",DAYS360(B69,B70)/360,IF(DayCountSys="Actual/360",(B70-B69)*360,(B70-B69)/365))) -> 0.08333333333 | E70: 96678863.03 | F70: =IF(AssetIntType1="Fixed",AssetFxdRate1,IF(A70=1,OFFSET(Vectors!$D$6,A70,MATCH(AssetFltIndx1,lstInterestRates,0)),IF(MOD($A70,AssetRateReset1)=0,MAX(MIN(OFFSET(Vectors!$D$6,A70,MATCH(AssetFltIndx1,lstInterestRates,0)),(F69-AssetMarg1)+AssetPdCapFl1,AssetLifeCap1),(F69-AssetMarg1)-AssetPdCapFl1,AssetLifeFloor1-AssetMarg1),F69)))+AssetMarg1 -> 0.105 | G70: 914739.2945 | H70: 845940.0515 | I70: 68799.24299 | J70: =IF(A70=0,AssetCurBal1,E70-I70) -> 96610063.79 | L70: 40646690.99 | M70: =IF(pdrLossTime1="",OFFSET(Vectors!AE69:AE,A70+SeasoningAge1,MATCH(SDA_Loss,lstSDA,0)),OFFSET(Vectors!$X$6,A70+SeasoningAge1,MATCH(pdrLossTime1,lstDefaultCurve,0))) -> 0 | N70: 0 | O70: 0.9661006379 | P70: =OFFSET(Vectors!$L$6,A70+SeasoningAge1,MATCH(pdrPrepay1,lstPrepayCurve,0))*pdrPrepayStress1 -> 0.01 | Q70: 65447.99016 | R70: 28925.26332 | S70: 0.105 | T70: 355658.5462 | U70: 250000 | V70: =IF(A70=0,AssetCurBal1,L70-N70-Q70-R70) -> 40552317.74 | X70: 700031.7996 | Z70: FALSE | AA70: TRUE | AB70: TRUE | AC70: TRUE | AE70: 44937499.14 | AF70: =IF(Swap_Active="No",0,OFFSET(Vectors!$D$6,Vectors!A70,MATCH(Swap_IN,lstInterestRates,0))) -> 0.069369 | AG70: 259772.4481 | AH70: =IF(Swap_Active="No",0,OFFSET(Vectors!$D$6,Vectors!A70,MATCH(Swap_OUT,lstInterestRates,0))) -> 0.04 | AI70: 149791.6638 | AJ70: 109980.7843 | AK70: 810012.584 | AM70: 88723.8608 | AN70: 88723.8608 | AO70: 0 | AP70: 721288.7232 | AR70: =IF(LiabIntType1="fixed",LiabFxdRate1,OFFSET(Vectors!$D$6,Vectors!A70,MATCH(LiabLoanIndex1,lstInterestRates,0)))+LiabMarg1 -> 0.079369 | AS70: 333022.4158 | AT70: 333022.4158 | AU70: 0 | AV70: 0 | AW70: 0 | AX70: 388266.3074 | AZ70: 388266.3074 | BA70: 388266.3074 | BB70: 0 | BC70: 0 | BD70: 0 | BE70: 0 | BG70: 1000000 | BH70: 0 | BI70: 0 | BJ70: 0 | BK70: =IF(A70=0,AssetCurBal1*RsrvPercent,BH70-BI70+BJ70) -> 0 | BL70: 0 | BN70: =IF(LiabIntType2="Fixed",LiabFxdRate2,OFFSET(Vectors!$D$6,Vectors!A70,MATCH(LiabLoanIndex2,lstInterestRates,0))) -> 0.04 | BO70: 53627.41298 | BP70: 0 | BQ70: 53627.41298 | BR70: 0 | BT70: -26036.61021 | BU70: -26036.61021 | BV70: 0 | BW70: 26036.61021 | BY70: 26036.61021 | BZ70: 0 | CB70: =IF(A70=0,V70*LiabAdvRate1,CB69-CD70) -> 49936199.04 | CC70: 333022.4158 | CD70: 414302.9176 | CF70: 16114260.5 | CG70: 0 | CH70: -26036.61021 | CJ70: 959804.2478 | CK70: 959804.2478 | CL70: 0 | CN70: 94373.25347 | CO70: TRUE | CP70: 0.5
A71: 65 | B71: 2022-07-01 | C71: 0.08333333333 | E71: 96610063.79 | F71: =IF(AssetIntType1="Fixed",AssetFxdRate1,IF(A71=1,OFFSET(Vectors!$D$6,A71,MATCH(AssetFltIndx1,lstInterestRates,0)),IF(MOD($A71,AssetRateReset1)=0,MAX(MIN(OFFSET(Vectors!$D$6,A71,MATCH(AssetFltIndx1,lstInterestRates,0)),(F70-AssetMarg1)+AssetPdCapFl1,AssetLifeCap1),(F70-AssetMarg1)-AssetPdCapFl1,AssetLifeFloor1-AssetMarg1),F70)))+AssetMarg1 -> 0.105 | G71: =IF(J70<=G70,H71+E71,-PMT($F$7*$C$7,OrgTerm1,AssetOrgBal1)) -> 914739.2945 | H71: 845338.0581 | I71: 69401.23637 | J71: 96540662.55 | L71: 40552317.74 | M71: =IF(pdrLossTime1="",OFFSET(Vectors!AE70:AE,A71+SeasoningAge1,MATCH(SDA_Loss,lstSDA,0)),OFFSET(Vectors!$X$6,A71+SeasoningAge1,MATCH(pdrLossTime1,lstDefaultCurve,0))) -> 0 | N71: =MIN(L71,IF(pdrLossTime1="",L71*M71,$L$7*M71)) -> 0 | O71: =IF(A71=0,1,J71/$J$6) -> 0.9654066255 | P71: =OFFSET(Vectors!$L$6,A71+SeasoningAge1,MATCH(pdrPrepay1,lstPrepayCurve,0))*pdrPrepayStress1 -> 0.01 | Q71: 65249.12704 | R71: 29131.34386 | S71: 0.105 | T71: 354832.7802 | U71: =IF(A71<=pdrRecovLag1,0,OFFSET(N71,-pdrRecovLag1,0)*pdrRecovRate1) -> 250000 | V71: 40457937.27 | X71: 699213.2511 | Z71: FALSE | AA71: =IF(GlobalTrigger="Yes",TRUE,FALSE) -> TRUE | AB71: =IF(AND(A71>=PostDefTriggerMo,PostDefTriggerMo<>0),TRUE,FALSE) -> TRUE | AC71: =IF(CP71>Trigger_Def,TRUE,FALSE) -> TRUE | AE71: 44383869.71 | AF71: =IF(Swap_Active="No",0,OFFSET(Vectors!$D$6,Vectors!A71,MATCH(Swap_IN,lstInterestRates,0))) -> 0.069369 | AG71: 256572.0548 | AH71: =IF(Swap_Active="No",0,OFFSET(Vectors!$D$6,Vectors!A71,MATCH(Swap_OUT,lstInterestRates,0))) -> 0.04 | AI71: 147946.2324 | AJ71: 108625.8225 | AK71: 807839.0736 | AM71: =C71*AssetFee*L71+C71*LiabFees1*CB70+C71*LiabFees2*CF70 -> 88393.94583 | AN71: 88393.94583 | AO71: 0 | AP71: 719445.1277 | AR71: =IF(LiabIntType1="fixed",LiabFxdRate1,OFFSET(Vectors!$D$6,Vectors!A71,MATCH(LiabLoanIndex1,lstInterestRates,0)))+LiabMarg1 -> 0.079369 | AS71: 330282.1818 | AT71: 330282.1818 | AU71: 0 | AV71: =IF(LiabReserveOnOff1="No",0,MIN(AU71,BH71)) -> 0 | AW71: 0 | AX71: 389162.946 | AZ71: =IF(OR(Z71,AB71,AC71),MIN(AX71,AX71+BH71-AV71,CB70),IF(LiabPrinType1="Sequential",MIN((N71+Q71+R71),CB70),MIN((N71+Q71+R71)*LiabAdvRate1,CB70))) -> 389162.946 | BA71: 389162.946 | BB71: 0 | BC71: =IF(LiabReserveOnOff1="No",0,MIN(BB71,BH71-AV71)) -> 0 | BD71: 0 | BE71: 0 | BG71: =AssetCurBal1*RsrvPercent -> 1000000 | BH71: 0 | BI71: 0 | BJ71: 0 | BK71: 0 | BL71: 0 | BN71: =IF(LiabIntType2="Fixed",LiabFxdRate2,OFFSET(Vectors!$D$6,Vectors!A71,MATCH(LiabLoanIndex2,lstInterestRates,0))) -> 0.04 | BO71: 53714.20168 | BP71: 0 | BQ71: 53714.20168 | BR71: 0 | BT71: =IF(AND(LiabPrinType2="sequential",CB70>0),0,IF(LiabPrinType2="sequential",MIN((N71+Q71+R71),CF70),MIN((N71+Q71+R71)*LiabAdvRate2,CF70))) -> -26038.60142 | BU71: -26038.60142 | BV71: 0 | BW71: 26038.60142 | BY71: 26038.60142 | BZ71: 0 | CB71: 49520997.49 | CC71: 330282.1818 | CD71: 415201.5474 | CF71: =IF(A71=0,V71*LiabAdvRate2,CF70-CH71) -> 16140299.1 | CG71: =BP71 -> 0 | CH71: =BU71 -> -26038.60142 | CJ71: 955785.3059 | CK71: 955785.3059 | CL71: 0 | CN71: 94380.4709 | CO71: TRUE | CP71: 0.5
A72: 66 | B72: 2022-08-01 | C72: 0.08333333333 | E72: =J71 -> 96540662.55 | F72: =IF(AssetIntType1="Fixed",AssetFxdRate1,IF(A72=1,OFFSET(Vectors!$D$6,A72,MATCH(AssetFltIndx1,lstInterestRates,0)),IF(MOD($A72,AssetRateReset1)=0,MAX(MIN(OFFSET(Vectors!$D$6,A72,MATCH(AssetFltIndx1,lstInterestRates,0)),(F71-AssetMarg1)+AssetPdCapFl1,AssetLifeCap1),(F71-AssetMarg1)-AssetPdCapFl1,AssetLifeFloor1-AssetMarg1),F71)))+AssetMarg1 -> 0.105 | G72: 914739.2945 | H72: =F72*C72*E72 -> 844730.7973 | I72: =G72-H72 -> 70008.49718 | J72: 96470654.05 | L72: =V71 -> 40457937.27 | M72: =IF(pdrLossTime1="",OFFSET(Vectors!AE71:AE,A72+SeasoningAge1,MATCH(SDA_Loss,lstSDA,0)),OFFSET(Vectors!$X$6,A72+SeasoningAge1,MATCH(pdrLossTime1,lstDefaultCurve,0))) -> 0 | N72: 0 | O72: 0.9647065405 | P72: =OFFSET(Vectors!$L$6,A72+SeasoningAge1,MATCH(pdrPrepay1,lstPrepayCurve,0))*pdrPrepayStress1 -> 0.01 | Q72: =IF(L72=0,0,MAX(MIN((L72-N72),L72*O72/6*P72),0)) -> 65050.06116 | R72: =(L72-N72)*(1-O72/O71) -> 29338.92634 | S72: =F72 -> 0.105 | T72: =S72*C72*(L72-N72) -> 354006.9511 | U72: 0 | V72: 40363548.28 | X72: =Q72+R72+T72+U72 -> 448395.9386 | Z72: FALSE | AA72: TRUE | AB72: TRUE | AC72: TRUE | AE72: 43835894.95 | AF72: =IF(Swap_Active="No",0,OFFSET(Vectors!$D$6,Vectors!A72,MATCH(Swap_IN,lstInterestRates,0))) -> 0.069369 | AG72: =AE72*AF72*C72 -> 253404.3497 | AH72: =IF(Swap_Active="No",0,OFFSET(Vectors!$D$6,Vectors!A72,MATCH(Swap_OUT,lstInterestRates,0))) -> 0.04 | AI72: =AE72*AH72*C72 -> 146119.6498 | AJ72: =AG72-AI72 -> 107284.6999 | AK72: =X72+AJ72 -> 555680.6385 | AM72: 88063.6444 | AN72: =MIN(X72,AM72) -> 88063.6444 | AO72: =AM72-AN72 -> 0 | AP72: =AK72-AN72 -> 467616.9941 | AR72: =IF(LiabIntType1="fixed",LiabFxdRate1,OFFSET(Vectors!$D$6,Vectors!A72,MATCH(LiabLoanIndex1,lstInterestRates,0)))+LiabMarg1 -> 0.079369 | AS72: =C72*AR72*CB71 -> 327536.0041 | AT72: =MIN(AP72,AS72) -> 327536.0041 | AU72: =AS72-AT72 -> 0 | AV72: 0 | AW72: =AU72-AV72 -> 0 | AX72: =AP72-AT72 -> 140080.9899 | AZ72: 140080.9899 | BA72: =MIN(AX72,AZ72) -> 140080.9899 | BB72: =AZ72-BA72 -> 0 | BC72: 0 | BD72: =BB72-BC72 -> 0 | BE72: =AX72-BA72 -> 0 | BG72: 1000000 | BH72: =BK71 -> 0 | BI72: =AV72+BC72 -> 0 | BJ72: =IF(CB71<1,0,MAX(MIN(BG72-BH72,BE72),0)) -> 0 | BK72: 0 | BL72: =BE72-BJ72 -> 0 | BN72: =IF(LiabIntType2="Fixed",LiabFxdRate2,OFFSET(Vectors!$D$6,Vectors!A72,MATCH(LiabLoanIndex2,lstInterestRates,0))) -> 0.04 | BO72: =C72*BN72*CF71 -> 53800.99702 | BP72: =MIN(BL72,BO72) -> 0 | BQ72: =BO72-BP72 -> 53800.99702 | BR72: =BL72-BP72 -> 0 | BT72: -26040.95107 | BU72: =MIN(BR72,BT72) -> -26040.95107 | BV72: =BT72-BU72 -> 0 | BW72: =BR72-BU72 -> 26040.95107 | BY72: =IF(AA72,MIN(BW72,CB71-BA72),0) -> 26040.95107 | BZ72: =BW72-BY72 -> 0 | CB72: 49354875.55 | CC72: =AT72+AV72 -> 327536.0041 | CD72: =BA72+BC72+BY72 -> 166121.941 | CF72: 16166340.06 | CG72: 0 | CH72: -26040.95107 | CJ72: =Q72+R72+T72+U72+AG72+BI72 -> 701800.2883 | CK72: =AI72+AN72+AT72+AV72+BA72+BC72+BJ72+BP72+BU72+BY72+BZ72 -> 701800.2883 | CL72: =CJ72-CK72 -> 0 | CN72: =N72+Q72+R72 -> 94388.9875 | CO72: =OR(Z72:AB72) -> TRUE | CP72: =N72/$L$7+CP71 -> 0.5
A73: 67 | B73: 2022-09-01 | C73: 0.08333333333 | E73: 96470654.05 | F73: =IF(AssetIntType1="Fixed",AssetFxdRate1,IF(A73=1,OFFSET(Vectors!$D$6,A73,MATCH(AssetFltIndx1,lstInterestRates,0)),IF(MOD($A73,AssetRateReset1)=0,MAX(MIN(OFFSET(Vectors!$D$6,A73,MATCH(AssetFltIndx1,lstInterestRates,0)),(F72-AssetMarg1)+AssetPdCapFl1,AssetLifeCap1),(F72-AssetMarg1)-AssetPdCapFl1,AssetLifeFloor1-AssetMarg1),F72)))+AssetMarg1 -> 0.105 | G73: 914739.2945 | H73: 844118.223 | I73: 70621.07153 | J73: 96400032.98 | L73: 40363548.28 | M73: =IF(pdrLossTime1="",OFFSET(Vectors!AE72:AE,A73+SeasoningAge1,MATCH(SDA_Loss,lstSDA,0)),OFFSET(Vectors!$X$6,A73+SeasoningAge1,MATCH(pdrLossTime1,lstDefaultCurve,0))) -> 0 | N73: 0 | O73: 0.9640003298 | P73: =OFFSET(Vectors!$L$6,A73+SeasoningAge1,MATCH(pdrPrepay1,lstPrepayCurve,0))*pdrPrepayStress1 -> 0.01 | Q73: 64850.78976 | R73: 29548.02223 | S73: 0.105 | T73: 353181.0474 | U73: 0 | V73: 40269149.47 | X73: 447579.8594 | Z73: FALSE | AA73: TRUE | AB73: TRUE | AC73: TRUE | AE73: 43293518 | AF73: =IF(Swap_Active="No",0,OFFSET(Vectors!$D$6,Vectors!A73,MATCH(Swap_IN,lstInterestRates,0))) -> 0.069369 | AG73: 250269.0042 | AH73: =IF(Swap_Active="No",0,OFFSET(Vectors!$D$6,Vectors!A73,MATCH(Swap_OUT,lstInterestRates,0))) -> 0.04 | AI73: 144311.7267 | AJ73: 105957.2775 | AK73: 553537.1369 | AM73: 87837.11194 | AN73: 87837.11194 | AO73: 0 | AP73: 465700.025 | AR73: =IF(LiabIntType1="fixed",LiabFxdRate1,OFFSET(Vectors!$D$6,Vectors!A73,MATCH(LiabLoanIndex1,lstInterestRates,0)))+LiabMarg1 -> 0.079369 | AS73: 326437.2598 | AT73: 326437.2598 | AU73: 0 | AV73: 0 | AW73: 0 | AX73: 139262.7652 | AZ73: 139262.7652 | BA73: 139262.7652 | BB73: 0 | BC73: 0 | BD73: 0 | BE73: 0 | BG73: 1000000 | BH73: 0 | BI73: 0 | BJ73: 0 | BK73: 0 | BL73: 0 | BN73: =IF(LiabIntType2="Fixed",LiabFxdRate2,OFFSET(Vectors!$D$6,Vectors!A73,MATCH(LiabLoanIndex2,lstInterestRates,0))) -> 0.04 | BO73: 53887.80019 | BP73: 0 | BQ73: 53887.80019 | BR73: 0 | BT73: -26043.66154 | BU73: -26043.66154 | BV73: 0 | BW73: 26043.66154 | BY73: 26043.66154 | BZ73: 0 | CB73: 49189569.12 | CC73: 326437.2598 | CD73: 165306.4268 | CF73: 16192383.72 | CG73: 0 | CH73: -26043.66154 | CJ73: 697848.8636 | CK73: 697848.8636 | CL73: 0 | CN73: 94398.81199 | CO73: TRUE | CP73: 0.5
A74: 68 | B74: 2022-10-01 | C74: 0.08333333333 | E74: 96400032.98 | F74: =IF(AssetIntType1="Fixed",AssetFxdRate1,IF(A74=1,OFFSET(Vectors!$D$6,A74,MATCH(AssetFltIndx1,lstInterestRates,0)),IF(MOD($A74,AssetRateReset1)=0,MAX(MIN(OFFSET(Vectors!$D$6,A74,MATCH(AssetFltIndx1,lstInterestRates,0)),(F73-AssetMarg1)+AssetPdCapFl1,AssetLifeCap1),(F73-AssetMarg1)-AssetPdCapFl1,AssetLifeFloor1-AssetMarg1),F73)))+AssetMarg1 -> 0.105 | G74: 914739.2945 | H74: 843500.2886 | I74: 71239.00591 | J74: 96328793.97 | L74: 40269149.47 | M74: =IF(pdrLossTime1="",OFFSET(Vectors!AE73:AE,A74+SeasoningAge1,MATCH(SDA_Loss,lstSDA,0)),OFFSET(Vectors!$X$6,A74+SeasoningAge1,MATCH(pdrLossTime1,lstDefaultCurve,0))) -> 0 | N74: 0 | O74: 0.9632879397 | P74: =OFFSET(Vectors!$L$6,A74+SeasoningAge1,MATCH(pdrPrepay1,lstPrepayCurve,0))*pdrPrepayStress1 -> 0.01 | Q74: 64651.31004 | R74: 29758.64311 | S74: 0.105 | T74: 352355.0578 | U74: 0 | V74: 40174739.51 | X74: 446765.011 | Z74: FALSE | AA74: TRUE | AB74: TRUE | AC74: TRUE | AE74: 42756682.58 | AF74: =IF(Swap_Active="No",0,OFFSET(Vectors!$D$6,Vectors!A74,MATCH(Swap_IN,lstInterestRates,0))) -> 0.069369 | AG74: 247165.6928 | AH74: =IF(Swap_Active="No",0,OFFSET(Vectors!$D$6,Vectors!A74,MATCH(Swap_OUT,lstInterestRates,0))) -> 0.04 | AI74: 142522.2753 | AJ74: 104643.4176 | AK74: 551408.4286 | AM74: 87610.90291 | AN74: 87610.90291 | AO74: 0 | AP74: 463797.5256 | AR74: =IF(LiabIntType1="fixed",LiabFxdRate1,OFFSET(Vectors!$D$6,Vectors!A74,MATCH(LiabLoanIndex1,lstInterestRates,0)))+LiabMarg1 -> 0.079369 | AS74: 325343.9093 | AT74: 325343.9093 | AU74: 0 | AV74: 0 | AW74: 0 | AX74: 138453.6163 | AZ74: 138453.6163 | BA74: 138453.6163 | BB74: 0 | BC74: 0 | BD74: 0 | BE74: 0 | BG74: 1000000 | BH74: 0 | BI74: 0 | BJ74: 0 | BK74: 0 | BL74: 0 | BN74: =IF(LiabIntType2="Fixed",LiabFxdRate2,OFFSET(Vectors!$D$6,Vectors!A74,MATCH(LiabLoanIndex2,lstInterestRates,0))) -> 0.04 | BO74: 53974.61239 | BP74: 0 | BQ74: 53974.61239 | BR74: 0 | BT74: -26046.73527 | BU74: -26046.73527 | BV74: 0 | BW74: 26046.73527 | BY74: 26046.73527 | BZ74: 0 | CB74: 49025068.77 | CC74: 325343.9093 | CD74: 164500.3516 | CF74: 16218430.45 | CG74: 0 | CH74: -26046.73527 | CJ74: 693930.7038 | CK74: 693930.7038 | CL74: 0 | CN74: 94409.95315 | CO74: TRUE | CP74: 0.5
A75: 69 | B75: 2022-11-01 | C75: 0.08333333333 | E75: 96328793.97 | F75: =IF(AssetIntType1="Fixed",AssetFxdRate1,IF(A75=1,OFFSET(Vectors!$D$6,A75,MATCH(AssetFltIndx1,lstInterestRates,0)),IF(MOD($A75,AssetRateReset1)=0,MAX(MIN(OFFSET(Vectors!$D$6,A75,MATCH(AssetFltIndx1,lstInterestRates,0)),(F74-AssetMarg1)+AssetPdCapFl1,AssetLifeCap1),(F74-AssetMarg1)-AssetPdCapFl1,AssetLifeFloor1-AssetMarg1),F74)))+AssetMarg1 -> 0.105 | G75: 914739.2945 | H75: 842876.9473 | I75: 71862.34721 | J75: 96256931.63 | L75: 40174739.51 | M75: =IF(pdrLossTime1="",OFFSET(Vectors!AE74:AE,A75+SeasoningAge1,MATCH(SDA_Loss,lstSDA,0)),OFFSET(Vectors!$X$6,A75+SeasoningAge1,MATCH(pdrLossTime1,lstDefaultCurve,0))) -> 0 | N75: 0 | O75: 0.9625693163 | P75: =OFFSET(Vectors!$L$6,A75+SeasoningAge1,MATCH(pdrPrepay1,lstPrepayCurve,0))*pdrPrepayStress1 -> 0.01 | Q75: 64451.61924 | R75: 29970.80064 | S75: 0.105 | T75: 351528.9708 | U75: 0 | V75: 40080317.09 | X75: 445951.3906 | Z75: FALSE | AA75: TRUE | AB75: TRUE | AC75: TRUE | AE75: 42225332.97 | AF75: =IF(Swap_Active="No",0,OFFSET(Vectors!$D$6,Vectors!A75,MATCH(Swap_IN,lstInterestRates,0))) -> 0.069369 | AG75: 244094.0936 | AH75: =IF(Swap_Active="No",0,OFFSET(Vectors!$D$6,Vectors!A75,MATCH(Swap_OUT,lstInterestRates,0))) -> 0.04 | AI75: 140751.1099 | AJ75: 103342.9837 | AK75: 549294.3743 | AM75: 87385.01118 | AN75: 87385.01118 | AO75: 0 | AP75: 461909.3631 | AR75: =IF(LiabIntType1="fixed",LiabFxdRate1,OFFSET(Vectors!$D$6,Vectors!A75,MATCH(LiabLoanIndex1,lstInterestRates,0)))+LiabMarg1 -> 0.079369 | AS75: 324255.8903 | AT75: 324255.8903 | AU75: 0 | AV75: 0 | AW75: 0 | AX75: 137653.4729 | AZ75: 137653.4729 | BA75: 137653.4729 | BB75: 0 | BC75: 0 | BD75: 0 | BE75: 0 | BG75: 1000000 | BH75: 0 | BI75: 0 | BJ75: 0 | BK75: 0 | BL75: 0 | BN75: =IF(LiabIntType2="Fixed",LiabFxdRate2,OFFSET(Vectors!$D$6,Vectors!A75,MATCH(LiabLoanIndex2,lstInterestRates,0))) -> 0.04 | BO75: 54061.43484 | BP75: 0 | BQ75: 54061.43484 | BR75: 0 | BT75: -26050.17472 | BU75: -26050.17472 | BV75: 0 | BW75: 26050.17472 | BY75: 26050.17472 | BZ75: 0 | CB75: 48861365.12 | CC75: 324255.8903 | CD75: 163703.6476 | CF75: 16244480.63 | CG75: 0 | CH75: -26050.17472 | CJ75: 690045.4842 | CK75: 690045.4842 | CL75: 0 | CN75: 94422.41988 | CO75: TRUE | CP75: 0.5
A76: 70 | B76: 2022-12-01 | C76: 0.08333333333 | E76: 96256931.63 | F76: =IF(AssetIntType1="Fixed",AssetFxdRate1,IF(A76=1,OFFSET(Vectors!$D$6,A76,MATCH(AssetFltIndx1,lstInterestRates,0)),IF(MOD($A76,AssetRateReset1)=0,MAX(MIN(OFFSET(Vectors!$D$6,A76,MATCH(AssetFltIndx1,lstInterestRates,0)),(F75-AssetMarg1)+AssetPdCapFl1,AssetLifeCap1),(F75-AssetMarg1)-AssetPdCapFl1,AssetLifeFloor1-AssetMarg1),F75)))+AssetMarg1 -> 0.105 | G76: 914739.2945 | H76: 842248.1517 | I76: 72491.14275 | J76: 96184440.48 | L76: 40080317.09 | M76: =IF(pdrLossTime1="",OFFSET(Vectors!AE75:AE,A76+SeasoningAge1,MATCH(SDA_Loss,lstSDA,0)),OFFSET(Vectors!$X$6,A76+SeasoningAge1,MATCH(pdrLossTime1,lstDefaultCurve,0))) -> 0 | N76: 0 | O76: 0.9618444048 | P76: =OFFSET(Vectors!$L$6,A76+SeasoningAge1,MATCH(pdrPrepay1,lstPrepayCurve,0))*pdrPrepayStress1 -> 0.01 | Q76: 64251.71457 | R76: 30184.5066 | S76: 0.105 | T76: 350702.7746 | U76: 0 | V76: 39985880.87 | X76: 445138.9957 | Z76: FALSE | AA76: TRUE | AB76: TRUE | AC76: TRUE | AE76: 41699414.02 | AF76: =IF(Swap_Active="No",0,OFFSET(Vectors!$D$6,Vectors!A76,MATCH(Swap_IN,lstInterestRates,0))) -> 0.069369 | AG76: 241053.8876 | AH76: =IF(Swap_Active="No",0,OFFSET(Vectors!$D$6,Vectors!A76,MATCH(Swap_OUT,lstInterestRates,0))) -> 0.04 | AI76: 138998.0467 | AJ76: 102055.8409 | AK76: 547194.8366 | AM76: 87159.43063 | AN76: 87159.43063 | AO76: 0 | AP76: 460035.406 | AR76: =IF(LiabIntType1="fixed",LiabFxdRate1,OFFSET(Vectors!$D$6,Vectors!A76,MATCH(LiabLoanIndex1,lstInterestRates,0)))+LiabMarg1 -> 0.079369 | AS76: 323173.1407 | AT76: 323173.1407 | AU76: 0 | AV76: 0 | AW76: 0 | AX76: 136862.2653 | AZ76: 136862.2653 | BA76: 136862.2653 | BB76: 0 | BC76: 0 | BD76: 0 | BE76: 0 | BG76: 1000000 | BH76: 0 | BI76: 0 | BJ76: 0 | BK76: 0 | BL76: 0 | BN76: =IF(LiabIntType2="Fixed",LiabFxdRate2,OFFSET(Vectors!$D$6,Vectors!A76,MATCH(LiabLoanIndex2,lstInterestRates,0))) -> 0.04 | BO76: 54148.26876 | BP76: 0 | BQ76: 54148.26876 | BR76: 0 | BT76: -26053.98235 | BU76: -26053.98235 | BV76: 0 | BW76: 26053.98235 | BY76: 26053.98235 | BZ76: 0 | CB76: 48698448.87 | CC76: 323173.1407 | CD76: 162916.2476 | CF76: 16270534.61 | CG76: 0 | CH76: -26053.98235 | CJ76: 686192.8833 | CK76: 686192.8833 | CL76: 0 | CN76: 94436.22117 | CO76: TRUE | CP76: 0.5
A77: 71 | B77: 2023-01-01 | C77: 0.08333333333 | E77: 96184440.48 | F77: =IF(AssetIntType1="Fixed",AssetFxdRate1,IF(A77=1,OFFSET(Vectors!$D$6,A77,MATCH(AssetFltIndx1,lstInterestRates,0)),IF(MOD($A77,AssetRateReset1)=0,MAX(MIN(OFFSET(Vectors!$D$6,A77,MATCH(AssetFltIndx1,lstInterestRates,0)),(F76-AssetMarg1)+AssetPdCapFl1,AssetLifeCap1),(F76-AssetMarg1)-AssetPdCapFl1,AssetLifeFloor1-AssetMarg1),F76)))+AssetMarg1 -> 0.105 | G77: 914739.2945 | H77: 841613.8542 | I77: 73125.44025 | J77: 96111315.04 | L77: 39985880.87 | M77: =IF(pdrLossTime1="",OFFSET(Vectors!AE76:AE,A77+SeasoningAge1,MATCH(SDA_Loss,lstSDA,0)),OFFSET(Vectors!$X$6,A77+SeasoningAge1,MATCH(pdrLossTime1,lstDefaultCurve,0))) -> 0 | N77: 0 | O77: 0.9611131504 | P77: =OFFSET(Vectors!$L$6,A77+SeasoningAge1,MATCH(pdrPrepay1,lstPrepayCurve,0))*pdrPrepayStress1 -> 0.01 | Q77: 64051.59323 | R77: 30399.77285 | S77: 0.105 | T77: 349876.4576 | U77: 0 | V77: 39891429.51 | X77: 444327.8237 | Z77: FALSE | AA77: TRUE | AB77: TRUE | AC77: TRUE | AE77: 41178871.11 | AF77: =IF(Swap_Active="No",0,OFFSET(Vectors!$D$6,Vectors!A77,MATCH(Swap_IN,lstInterestRates,0))) -> 0.069369 | AG77: 238044.7591 | AH77: =IF(Swap_Active="No",0,OFFSET(Vectors!$D$6,Vectors!A77,MATCH(Swap_OUT,lstInterestRates,0))) -> 0.04 | AI77: 137262.9037 | AJ77: 100781.8555 | AK77: 545109.6792 | AM77: 86934.15515 | AN77: 86934.15515 | AO77: 0 | AP77: 458175.524 | AR77: =IF(LiabIntType1="fixed",LiabFxdRate1,OFFSET(Vectors!$D$6,Vectors!A77,MATCH(LiabLoanIndex1,lstInterestRates,0)))+LiabMarg1 -> 0.079369 | AS77: 322095.5991 | AT77: 322095.5991 | AU77: 0 | AV77: 0 | AW77: 0 | AX77: 136079.925 | AZ77: 136079.925 | BA77: 136079.925 | BB77: 0 | BC77: 0 | BD77: 0 | BE77: 0 | BG77: 1000000 | BH77: 0 | BI77: 0 | BJ77: 0 | BK77: 0 | BL77: 0 | BN77: =IF(LiabIntType2="Fixed",LiabFxdRate2,OFFSET(Vectors!$D$6,Vectors!A77,MATCH(LiabLoanIndex2,lstInterestRates,0))) -> 0.04 | BO77: 54235.11537 | BP77: 0 | BQ77: 54235.11537 | BR77: 0 | BT77: -26058.16068 | BU77: -26058.16068 | BV77: 0 | BW77: 26058.16068 | BY77: 26058.16068 | BZ77: 0 | CB77: 48536310.79 | CC77: 322095.5991 | CD77: 162138.0857 | CF77: 16296592.77 | CG77: 0 | CH77: -26058.16068 | CJ77: 682372.5829 | CK77: 682372.5829 | CL77: 0 | CN77: 94451.36609 | CO77: TRUE | CP77: 0.5
A78: 72 | B78: 2023-02-01 | C78: 0.08333333333 | E78: 96111315.04 | F78: =IF(AssetIntType1="Fixed",AssetFxdRate1,IF(A78=1,OFFSET(Vectors!$D$6,A78,MATCH(AssetFltIndx1,lstInterestRates,0)),IF(MOD($A78,AssetRateReset1)=0,MAX(MIN(OFFSET(Vectors!$D$6,A78,MATCH(AssetFltIndx1,lstInterestRates,0)),(F77-AssetMarg1)+AssetPdCapFl1,AssetLifeCap1),(F77-AssetMarg1)-AssetPdCapFl1,AssetLifeFloor1-AssetMarg1),F77)))+AssetMarg1 -> 0.105 | G78: 914739.2945 | H78: 840974.0066 | I78: 73765.28785 | J78: 96037549.76 | L78: 39891429.51 | M78: =IF(pdrLossTime1="",OFFSET(Vectors!AE77:AE,A78+SeasoningAge1,MATCH(SDA_Loss,lstSDA,0)),OFFSET(Vectors!$X$6,A78+SeasoningAge1,MATCH(pdrLossTime1,lstDefaultCurve,0))) -> 0 | N78: 0 | O78: 0.9603754976 | P78: =OFFSET(Vectors!$L$6,A78+SeasoningAge1,MATCH(pdrPrepay1,lstPrepayCurve,0))*pdrPrepayStress1 -> 0.01 | Q78: 63851.25244 | R78: 30616.61136 | S78: 0.105 | T78: 349050.0082 | U78: 0 | V78: 39796961.64 | X78: 443517.872 | Z78: FALSE | AA78: TRUE | AB78: TRUE | AC78: TRUE | AE78: 40663650.18 | AF78: =IF(Swap_Active="No",0,OFFSET(Vectors!$D$6,Vectors!A78,MATCH(Swap_IN,lstInterestRates,0))) -> 0.069369 | AG78: 235066.3958 | AH78: =IF(Swap_Active="No",0,OFFSET(Vectors!$D$6,Vectors!A78,MATCH(Swap_OUT,lstInterestRates,0))) -> 0.04 | AI78: 135545.5006 | AJ78: 99520.89517 | AK78: 543038.7672 | AM78: 86709.17867 | AN78: 86709.17867 | AO78: 0 | AP78: 456329.5885 | AR78: =IF(LiabIntType1="fixed",LiabFxdRate1,OFFSET(Vectors!$D$6,Vectors!A78,MATCH(LiabLoanIndex1,lstInterestRates,0)))+LiabMarg1 -> 0.079369 | AS78: 321023.2042 | AT78: 321023.2042 | AU78: 0 | AV78: 0 | AW78: 0 | AX78: 135306.3842 | AZ78: 135306.3842 | BA78: 135306.3842 | BB78: 0 | BC78: 0 | BD78: 0 | BE78: 0 | BG78: 1000000 | BH78: 0 | BI78: 0 | BJ78: 0 | BK78: 0 | BL78: 0 | BN78: =IF(LiabIntType2="Fixed",LiabFxdRate2,OFFSET(Vectors!$D$6,Vectors!A78,MATCH(LiabLoanIndex2,lstInterestRates,0))) -> 0.04 | BO78: 54321.9759 | BP78: 0 | BQ78: 54321.9759 | BR78: 0 | BT78: -26062.71223 | BU78: -26062.71223 | BV78: 0 | BW78: 26062.71223 | BY78: 26062.71223 | BZ78: 0 | CB78: 48374941.69 | CC78: 321023.2042 | CD78: 161369.0965 | CF78: 16322655.48 | CG78: 0 | CH78: -26062.71223 | CJ78: 678584.2677 | CK78: 678584.2677 | CL78: 0 | CN78: 94467.8638 | CO78: TRUE | CP78: 0.5
A79: 73 | B79: 2023-03-01 | C79: 0.08333333333 | E79: 96037549.76 | F79: =IF(AssetIntType1="Fixed",AssetFxdRate1,IF(A79=1,OFFSET(Vectors!$D$6,A79,MATCH(AssetFltIndx1,lstInterestRates,0)),IF(MOD($A79,AssetRateReset1)=0,MAX(MIN(OFFSET(Vectors!$D$6,A79,MATCH(AssetFltIndx1,lstInterestRates,0)),(F78-AssetMarg1)+AssetPdCapFl1,AssetLifeCap1),(F78-AssetMarg1)-AssetPdCapFl1,AssetLifeFloor1-AssetMarg1),F78)))+AssetMarg1 -> 0.105 | G79: 914739.2945 | H79: 840328.5604 | I79: 74410.73412 | J79: 95963139.02 | L79: 39796961.64 | M79: =IF(pdrLossTime1="",OFFSET(Vectors!AE78:AE,A79+SeasoningAge1,MATCH(SDA_Loss,lstSDA,0)),OFFSET(Vectors!$X$6,A79+SeasoningAge1,MATCH(pdrLossTime1,lstDefaultCurve,0))) -> 0 | N79: 0 | O79: 0.9596313902 | P79: =OFFSET(Vectors!$L$6,A79+SeasoningAge1,MATCH(pdrPrepay1,lstPrepayCurve,0))*pdrPrepayStress1 -> 0.01 | Q79: 63650.68938 | R79: 30835.0342 | S79: 0.105 | T79: 348223.4144 | U79: 0 | V79: 39702475.92 | X79: 442709.138 | Z79: FALSE | AA79: TRUE | AB79: TRUE | AC79: TRUE | AE79: 40153697.71 | AF79: =IF(Swap_Active="No",0,OFFSET(Vectors!$D$6,Vectors!A79,MATCH(Swap_IN,lstInterestRates,0))) -> 0.069369 | AG79: 232118.488 | AH79: =IF(Swap_Active="No",0,OFFSET(Vectors!$D$6,Vectors!A79,MATCH(Swap_OUT,lstInterestRates,0))) -> 0.04 | AI79: 133845.659 | AJ79: 98272.829 | AK79: 540981.967 | AM79: 86484.49511 | AN79: 86484.49511 | AO79: 0 | AP79: 454497.4719 | AR79: =IF(LiabIntType1="fixed",LiabFxdRate1,OFFSET(Vectors!$D$6,Vectors!A79,MATCH(LiabLoanIndex1,lstInterestRates,0)))+LiabMarg1 -> 0.079369 | AS79: 319955.8956 | AT79: 319955.8956 | AU79: 0 | AV79: 0 | AW79: 0 | AX79: 134541.5763 | AZ79: 134541.5763 | BA79: 134541.5763 | BB79: 0 | BC79: 0 | BD79: 0 | BE79: 0 | BG79: 1000000 | BH79: 0 | BI79: 0 | BJ79: 0 | BK79: 0 | BL79: 0 | BN79: =IF(LiabIntType2="Fixed",LiabFxdRate2,OFFSET(Vectors!$D$6,Vectors!A79,MATCH(LiabLoanIndex2,lstInterestRates,0))) -> 0.04 | BO79: 54408.85161 | BP79: 0 | BQ79: 54408.85161 | BR79: 0 | BT79: -26067.63956 | BU79: -26067.63956 | BV79: 0 | BW79: 26067.63956 | BY79: 26067.63956 | BZ79: 0 | CB79: 48214332.48 | CC79: 319955.8956 | CD79: 160609.2158 | CF79: 16348723.12 | CG79: 0 | CH79: -26067.63956 | CJ79: 674827.626 | CK79: 674827.626 | CL79: 0 | CN79: 94485.72359 | CO79: TRUE | CP79: 0.5
A80: 74 | B80: 2023-04-01 | C80: 0.08333333333 | E80: 95963139.02 | F80: =IF(AssetIntType1="Fixed",AssetFxdRate1,IF(A80=1,OFFSET(Vectors!$D$6,A80,MATCH(AssetFltIndx1,lstInterestRates,0)),IF(MOD($A80,AssetRateReset1)=0,MAX(MIN(OFFSET(Vectors!$D$6,A80,MATCH(AssetFltIndx1,lstInterestRates,0)),(F79-AssetMarg1)+AssetPdCapFl1,AssetLifeCap1),(F79-AssetMarg1)-AssetPdCapFl1,AssetLifeFloor1-AssetMarg1),F79)))+AssetMarg1 -> 0.105 | G80: 914739.2945 | H80: 839677.4664 | I80: 75061.82804 | J80: 95888077.19 | L80: 39702475.92 | M80: =IF(pdrLossTime1="",OFFSET(Vectors!AE79:AE,A80+SeasoningAge1,MATCH(SDA_Loss,lstSDA,0)),OFFSET(Vectors!$X$6,A80+SeasoningAge1,MATCH(pdrLossTime1,lstDefaultCurve,0))) -> 0 | N80: 0 | O80: 0.9588807719 | P80: =OFFSET(Vectors!$L$6,A80+SeasoningAge1,MATCH(pdrPrepay1,lstPrepayCurve,0))*pdrPrepayStress1 -> 0.01 | Q80: 63449.90126 | R80: 31055.05354 | S80: 0.105 | T80: 347396.6643 | U80: 0 | V80: 39607970.97 | X80: 441901.6191 | Z80: FALSE | AA80: TRUE | AB80: TRUE | AC80: TRUE | AE80: 39648960.72 | AF80: =IF(Swap_Active="No",0,OFFSET(Vectors!$D$6,Vectors!A80,MATCH(Swap_IN,lstInterestRates,0))) -> 0.069369 | AG80: 229200.7297 | AH80: =IF(Swap_Active="No",0,OFFSET(Vectors!$D$6,Vectors!A80,MATCH(Swap_OUT,lstInterestRates,0))) -> 0.04 | AI80: 132163.2024 | AJ80: 97037.52727 | AK80: 538939.1464 | AM80: 86260.0984 | AN80: 86260.0984 | AO80: 0 | AP80: 452679.048 | AR80: =IF(LiabIntType1="fixed",LiabFxdRate1,OFFSET(Vectors!$D$6,Vectors!A80,MATCH(LiabLoanIndex1,lstInterestRates,0)))+LiabMarg1 -> 0.079369 | AS80: 318893.6129 | AT80: 318893.6129 | AU80: 0 | AV80: 0 | AW80: 0 | AX80: 133785.4351 | AZ80: 133785.4351 | BA80: 133785.4351 | BB80: 0 | BC80: 0 | BD80: 0 | BE80: 0 | BG80: 1000000 | BH80: 0 | BI80: 0 | BJ80: 0 | BK80: 0 | BL80: 0 | BN80: =IF(LiabIntType2="Fixed",LiabFxdRate2,OFFSET(Vectors!$D$6,Vectors!A80,MATCH(LiabLoanIndex2,lstInterestRates,0))) -> 0.04 | BO80: 54495.74374 | BP80: 0 | BQ80: 54495.74374 | BR80: 0 | BT80: -26072.94525 | BU80: -26072.94525 | BV80: 0 | BW80: 26072.94525 | BY80: 26072.94525 | BZ80: 0 | CB80: 48054474.1 | CC80: 318893.6129 | CD80: 159858.3804 | CF80: 16374796.07 | CG80: 0 | CH80: -26072.94525 | CJ80: 671102.3488 | CK80: 671102.3488 | CL80: 0 | CN80: 94504.95481 | CO80: TRUE | CP80: 0.5
A81: 75 | B81: 2023-05-01 | C81: 0.08333333333 | E81: 95888077.19 | F81: =IF(AssetIntType1="Fixed",AssetFxdRate1,IF(A81=1,OFFSET(Vectors!$D$6,A81,MATCH(AssetFltIndx1,lstInterestRates,0)),IF(MOD($A81,AssetRateReset1)=0,MAX(MIN(OFFSET(Vectors!$D$6,A81,MATCH(AssetFltIndx1,lstInterestRates,0)),(F80-AssetMarg1)+AssetPdCapFl1,AssetLifeCap1),(F80-AssetMarg1)-AssetPdCapFl1,AssetLifeFloor1-AssetMarg1),F80)))+AssetMarg1 -> 0.105 | G81: 914739.2945 | H81: 839020.6755 | I81: 75718.61904 | J81: 95812358.58 | L81: 39607970.97 | M81: =IF(pdrLossTime1="",OFFSET(Vectors!AE80:AE,A81+SeasoningAge1,MATCH(SDA_Loss,lstSDA,0)),OFFSET(Vectors!$X$6,A81+SeasoningAge1,MATCH(pdrLossTime1,lstDefaultCurve,0))) -> 0 | N81: 0 | O81: 0.9581235858 | P81: =OFFSET(Vectors!$L$6,A81+SeasoningAge1,MATCH(pdrPrepay1,lstPrepayCurve,0))*pdrPrepayStress1 -> 0.01 | Q81: 63248.88528 | R81: 31276.68165 | S81: 0.105 | T81: 346569.7459 | U81: 0 | V81: 39513445.4 | X81: 441095.3129 | Z81: FALSE | AA81: TRUE | AB81: TRUE | AC81: TRUE | AE81: 39149386.75 | AF81: =IF(Swap_Active="No",0,OFFSET(Vectors!$D$6,Vectors!A81,MATCH(Swap_IN,lstInterestRates,0))) -> 0.069369 | AG81: 226312.8174 | AH81: =IF(Swap_Active="No",0,OFFSET(Vectors!$D$6,Vectors!A81,MATCH(Swap_OUT,lstInterestRates,0))) -> 0.04 | AI81: 130497.9558 | AJ81: 95814.86162 | AK81: 536910.1745 | AM81: 86035.98248 | AN81: 86035.98248 | AO81: 0 | AP81: 450874.192 | AR81: =IF(LiabIntType1="fixed",LiabFxdRate1,OFFSET(Vectors!$D$6,Vectors!A81,MATCH(LiabLoanIndex1,lstInterestRates,0)))+LiabMarg1 -> 0.079369 | AS81: 317836.2962 | AT81: 317836.2962 | AU81: 0 | AV81: 0 | AW81: 0 | AX81: 133037.8958 | AZ81: 133037.8958 | BA81: 133037.8958 | BB81: 0 | BC81: 0 | BD81: 0 | BE81: 0 | BG81: 1000000 | BH81: 0 | BI81: 0 | BJ81: 0 | BK81: 0 | BL81: 0 | BN81: =IF(LiabIntType2="Fixed",LiabFxdRate2,OFFSET(Vectors!$D$6,Vectors!A81,MATCH(LiabLoanIndex2,lstInterestRates,0))) -> 0.04 | BO81: 54582.65356 | BP81: 0 | BQ81: 54582.65356 | BR81: 0 | BT81: -26078.63193 | BU81: -26078.63193 | BV81: 0 | BW81: 26078.63193 | BY81: 26078.63193 | BZ81: 0 | CB81: 47895357.57 | CC81: 317836.2962 | CD81: 159116.5277 | CF81: 16400874.7 | CG81: 0 | CH81: -26078.63193 | CJ81: 667408.1303 | CK81: 667408.1303 | CL81: 0 | CN81: 94525.56693 | CO81: TRUE | CP81: 0.5
A82: 76 | B82: 2023-06-01 | C82: 0.08333333333 | E82: 95812358.58 | F82: =IF(AssetIntType1="Fixed",AssetFxdRate1,IF(A82=1,OFFSET(Vectors!$D$6,A82,MATCH(AssetFltIndx1,lstInterestRates,0)),IF(MOD($A82,AssetRateReset1)=0,MAX(MIN(OFFSET(Vectors!$D$6,A82,MATCH(AssetFltIndx1,lstInterestRates,0)),(F81-AssetMarg1)+AssetPdCapFl1,AssetLifeCap1),(F81-AssetMarg1)-AssetPdCapFl1,AssetLifeFloor1-AssetMarg1),F81)))+AssetMarg1 -> 0.105 | G82: 914739.2945 | H82: 838358.1375 | I82: 76381.15696 | J82: 95735977.42 | L82: 39513445.4 | M82: =IF(pdrLossTime1="",OFFSET(Vectors!AE81:AE,A82+SeasoningAge1,MATCH(SDA_Loss,lstSDA,0)),OFFSET(Vectors!$X$6,A82+SeasoningAge1,MATCH(pdrLossTime1,lstDefaultCurve,0))) -> 0 | N82: 0 | O82: 0.9573597742 | P82: =OFFSET(Vectors!$L$6,A82+SeasoningAge1,MATCH(pdrPrepay1,lstPrepayCurve,0))*pdrPrepayStress1 -> 0.01 | Q82: 63047.63861 | R82: 31499.9309 | S82: 0.105 | T82: 345742.6472 | U82: 0 | V82: 39418897.83 | X82: 440290.2167 | Z82: FALSE | AA82: TRUE | AB82: TRUE | AC82: TRUE | AE82: 38654923.88 | AF82: =IF(Swap_Active="No",0,OFFSET(Vectors!$D$6,Vectors!A82,MATCH(Swap_IN,lstInterestRates,0))) -> 0.069369 | AG82: 223454.4512 | AH82: =IF(Swap_Active="No",0,OFFSET(Vectors!$D$6,Vectors!A82,MATCH(Swap_OUT,lstInterestRates,0))) -> 0.04 | AI82: 128849.7463 | AJ82: 94604.70495 | AK82: 534894.9217 | AM82: 85812.14132 | AN82: 85812.14132 | AO82: 0 | AP82: 449082.7804 | AR82: =IF(LiabIntType1="fixed",LiabFxdRate1,OFFSET(Vectors!$D$6,Vectors!A82,MATCH(LiabLoanIndex1,lstInterestRates,0)))+LiabMarg1 -> 0.079369 | AS82: 316783.8862 | AT82: 316783.8862 | AU82: 0 | AV82: 0 | AW82: 0 | AX82: 132298.8941 | AZ82: 132298.8941 | BA82: 132298.8941 | BB82: 0 | BC82: 0 | BD82: 0 | BE82: 0 | BG82: 1000000 | BH82: 0 | BI82: 0 | BJ82: 0 | BK82: 0 | BL82: 0 | BN82: =IF(LiabIntType2="Fixed",LiabFxdRate2,OFFSET(Vectors!$D$6,Vectors!A82,MATCH(LiabLoanIndex2,lstInterestRates,0))) -> 0.04 | BO82: 54669.58233 | BP82: 0 | BQ82: 54669.58233 | BR82: 0 | BT82: -26084.70221 | BU82: -26084.70221 | BV82: 0 | BW82: 26084.70221 | BY82: 26084.70221 | BZ82: 0 | CB82: 47736973.97 | CC82: 316783.8862 | CD82: 158383.5964 | CF82: 16426959.4 | CG82: 0 | CH82: -26084.70221 | CJ82: 663744.668 | CK82: 663744.668 | CL82: 0 | CN82: 94547.56951 | CO82: TRUE | CP82: 0.5
A83: 77 | B83: 2023-07-01 | C83: 0.08333333333 | E83: 95735977.42 | F83: =IF(AssetIntType1="Fixed",AssetFxdRate1,IF(A83=1,OFFSET(Vectors!$D$6,A83,MATCH(AssetFltIndx1,lstInterestRates,0)),IF(MOD($A83,AssetRateReset1)=0,MAX(MIN(OFFSET(Vectors!$D$6,A83,MATCH(AssetFltIndx1,lstInterestRates,0)),(F82-AssetMarg1)+AssetPdCapFl1,AssetLifeCap1),(F82-AssetMarg1)-AssetPdCapFl1,AssetLifeFloor1-AssetMarg1),F82)))+AssetMarg1 -> 0.105 | G83: 914739.2945 | H83: 837689.8024 | I83: 77049.49208 | J83: 95658927.93 | L83: 39418897.83 | M83: =IF(pdrLossTime1="",OFFSET(Vectors!AE82:AE,A83+SeasoningAge1,MATCH(SDA_Loss,lstSDA,0)),OFFSET(Vectors!$X$6,A83+SeasoningAge1,MATCH(pdrLossTime1,lstDefaultCurve,0))) -> 0 | N83: 0 | O83: 0.9565892793 | P83: =OFFSET(Vectors!$L$6,A83+SeasoningAge1,MATCH(pdrPrepay1,lstPrepayCurve,0))*pdrPrepayStress1 -> 0.01 | Q83: 62846.15844 | R83: 31724.81378 | S83: 0.105 | T83: 344915.356 | U83: 0 | V83: 39324326.86 | X83: 439486.3282 | Z83: FALSE | AA83: TRUE | AB83: TRUE | AC83: TRUE | AE83: 38165520.7 | AF83: =IF(Swap_Active="No",0,OFFSET(Vectors!$D$6,Vectors!A83,MATCH(Swap_IN,lstInterestRates,0))) -> 0.069369 | AG83: 220625.3338 | AH83: =IF(Swap_Active="No",0,OFFSET(Vectors!$D$6,Vectors!A83,MATCH(Swap_OUT,lstInterestRates,0))) -> 0.04 | AI83: 127218.4023 | AJ83: 93406.93145 | AK83: 532893.2597 | AM83: 85588.56887 | AN83: 85588.56887 | AO83: 0 | AP83: 447304.6908 | AR83: =IF(LiabIntType1="fixed",LiabFxdRate1,OFFSET(Vectors!$D$6,Vectors!A83,MATCH(LiabLoanIndex1,lstInterestRates,0)))+LiabMarg1 -> 0.079369 | AS83: 315736.3239 | AT83: 315736.3239 | AU83: 0 | AV83: 0 | AW83: 0 | AX83: 131568.3669 | AZ83: 131568.3669 | BA83: 131568.3669 | BB83: 0 | BC83: 0 | BD83: 0 | BE83: 0 | BG83: 1000000 | BH83: 0 | BI83: 0 | BJ83: 0 | BK83: 0 | BL83: 0 | BN83: =IF(LiabIntType2="Fixed",LiabFxdRate2,OFFSET(Vectors!$D$6,Vectors!A83,MATCH(LiabLoanIndex2,lstInterestRates,0))) -> 0.04 | BO83: 54756.53134 | BP83: 0 | BQ83: 54756.53134 | BR83: 0 | BT83: -26091.15878 | BU83: -26091.15878 | BV83: 0 | BW83: 26091.15878 | BY83: 26091.15878 | BZ83: 0 | CB83: 47579314.45 | CC83: 315736.3239 | CD83: 157659.5257 | CF83: 16453050.56 | CG83: 0 | CH83: -26091.15878 | CJ83: 660111.662 | CK83: 660111.662 | CL83: 0 | CN83: 94570.97222 | CO83: TRUE | CP83: 0.5
A84: 78 | B84: 2023-08-01 | C84: 0.08333333333 | E84: 95658927.93 | F84: =IF(AssetIntType1="Fixed",AssetFxdRate1,IF(A84=1,OFFSET(Vectors!$D$6,A84,MATCH(AssetFltIndx1,lstInterestRates,0)),IF(MOD($A84,AssetRateReset1)=0,MAX(MIN(OFFSET(Vectors!$D$6,A84,MATCH(AssetFltIndx1,lstInterestRates,0)),(F83-AssetMarg1)+AssetPdCapFl1,AssetLifeCap1),(F83-AssetMarg1)-AssetPdCapFl1,AssetLifeFloor1-AssetMarg1),F83)))+AssetMarg1 -> 0.105 | G84: 914739.2945 | H84: 837015.6194 | I84: 77723.67513 | J84: 95581204.25 | L84: 39324326.86 | M84: =IF(pdrLossTime1="",OFFSET(Vectors!AE83:AE,A84+SeasoningAge1,MATCH(SDA_Loss,lstSDA,0)),OFFSET(Vectors!$X$6,A84+SeasoningAge1,MATCH(pdrLossTime1,lstDefaultCurve,0))) -> 0 | N84: 0 | O84: 0.9558120425 | P84: =OFFSET(Vectors!$L$6,A84+SeasoningAge1,MATCH(pdrPrepay1,lstPrepayCurve,0))*pdrPrepayStress1 -> 0.01 | Q84: 62644.44196 | R84: 31951.34288 | S84: 0.105 | T84: 344087.86 | U84: 0 | V84: 39229731.07 | X84: 438683.6448 | Z84: FALSE | AA84: TRUE | AB84: TRUE | AC84: TRUE | AE84: 37681126.31 | AF84: =IF(Swap_Active="No",0,OFFSET(Vectors!$D$6,Vectors!A84,MATCH(Swap_IN,lstInterestRates,0))) -> 0.069369 | AG84: 217825.1709 | AH84: =IF(Swap_Active="No",0,OFFSET(Vectors!$D$6,Vectors!A84,MATCH(Swap_OUT,lstInterestRates,0))) -> 0.04 | AI84: 125603.7544 | AJ84: 92221.41655 | AK84: 530905.0614 | AM84: 85365.25911 | AN84: 85365.25911 | AO84: 0 | AP84: 445539.8023 | AR84: =IF(LiabIntType1="fixed",LiabFxdRate1,OFFSET(Vectors!$D$6,Vectors!A84,MATCH(LiabLoanIndex1,lstInterestRates,0)))+LiabMarg1 -> 0.079369 | AS84: 314693.5507 | AT84: 314693.5507 | AU84: 0 | AV84: 0 | AW84: 0 | AX84: 130846.2516 | AZ84: 130846.2516 | BA84: 130846.2516 | BB84: 0 | BC84: 0 | BD84: 0 | BE84: 0 | BG84: 1000000 | BH84: 0 | BI84: 0 | BJ84: 0 | BK84: 0 | BL84: 0 | BN84: =IF(LiabIntType2="Fixed",LiabFxdRate2,OFFSET(Vectors!$D$6,Vectors!A84,MATCH(LiabLoanIndex2,lstInterestRates,0))) -> 0.04 | BO84: 54843.50187 | BP84: 0 | BQ84: 54843.50187 | BR84: 0 | BT84: -26098.00433 | BU84: -26098.00433 | BV84: 0 | BW84: 26098.00433 | BY84: 26098.00433 | BZ84: 0 | CB84: 47422370.19 | CC84: 314693.5507 | CD84: 156944.2559 | CF84: 16479148.56 | CG84: 0 | CH84: -26098.00433 | CJ84: 656508.8157 | CK84: 656508.8157 | CL84: 0 | CN84: 94595.78483 | CO84: TRUE | CP84: 0.5
A85: 79 | B85: 2023-09-01 | C85: 0.08333333333 | E85: 95581204.25 | F85: =IF(AssetIntType1="Fixed",AssetFxdRate1,IF(A85=1,OFFSET(Vectors!$D$6,A85,MATCH(AssetFltIndx1,lstInterestRates,0)),IF(MOD($A85,AssetRateReset1)=0,MAX(MIN(OFFSET(Vectors!$D$6,A85,MATCH(AssetFltIndx1,lstInterestRates,0)),(F84-AssetMarg1)+AssetPdCapFl1,AssetLifeCap1),(F84-AssetMarg1)-AssetPdCapFl1,AssetLifeFloor1-AssetMarg1),F84)))+AssetMarg1 -> 0.105 | G85: 914739.2945 | H85: 836335.5372 | I85: 78403.75729 | J85: 95502800.49 | L85: 39229731.07 | M85: =IF(pdrLossTime1="",OFFSET(Vectors!AE84:AE,A85+SeasoningAge1,MATCH(SDA_Loss,lstSDA,0)),OFFSET(Vectors!$X$6,A85+SeasoningAge1,MATCH(pdrLossTime1,lstDefaultCurve,0))) -> 0 | N85: 0 | O85: 0.9550280049 | P85: =OFFSET(Vectors!$L$6,A85+SeasoningAge1,MATCH(pdrPrepay1,lstPrepayCurve,0))*pdrPrepayStress1 -> 0.01 | Q85: 62442.48633 | R85: 32179.53088 | S85: 0.105 | T85: 343260.1469 | U85: 0 | V85: 39135109.05 | X85: 437882.1641 | Z85: FALSE | AA85: TRUE | AB85: TRUE | AC85: TRUE | AE85: 37201690.34 | AF85: =IF(Swap_Active="No",0,OFFSET(Vectors!$D$6,Vectors!A85,MATCH(Swap_IN,lstInterestRates,0))) -> 0.069369 | AG85: 215053.6714 | AH85: =IF(Swap_Active="No",0,OFFSET(Vectors!$D$6,Vectors!A85,MATCH(Swap_OUT,lstInterestRates,0))) -> 0.04 | AI85: 124005.6345 | AJ85: 91048.03696 | AK85: 528930.201 | AM85: 85142.20603 | AN85: 85142.20603 | AO85: 0 | AP85: 443787.995 | AR85: =IF(LiabIntType1="fixed",LiabFxdRate1,OFFSET(Vectors!$D$6,Vectors!A85,MATCH(LiabLoanIndex1,lstInterestRates,0)))+LiabMarg1 -> 0.079369 | AS85: 313655.5083 | AT85: 313655.5083 | AU85: 0 | AV85: 0 | AW85: 0 | AX85: 130132.4867 | AZ85: 130132.4867 | BA85: 130132.4867 | BB85: 0 | BC85: 0 | BD85: 0 | BE85: 0 | BG85: 1000000 | BH85: 0 | BI85: 0 | BJ85: 0 | BK85: 0 | BL85: 0 | BN85: =IF(LiabIntType2="Fixed",LiabFxdRate2,OFFSET(Vectors!$D$6,Vectors!A85,MATCH(LiabLoanIndex2,lstInterestRates,0))) -> 0.04 | BO85: 54930.49522 | BP85: 0 | BQ85: 54930.49522 | BR85: 0 | BT85: -26105.24157 | BU85: -26105.24157 | BV85: 0 | BW85: 26105.24157 | BY85: 26105.24157 | BZ85: 0 | CB85: 47266132.46 | CC85: 313655.5083 | CD85: 156237.7283 | CF85: 16505253.81 | CG85: 0 | CH85: -26105.24157 | CJ85: 652935.8355 | CK85: 652935.8355 | CL85: 0 | CN85: 94622.01721 | CO85: TRUE | CP85: 0.5
A86: 80 | B86: 2023-10-01 | C86: 0.08333333333 | E86: 95502800.49 | F86: =IF(AssetIntType1="Fixed",AssetFxdRate1,IF(A86=1,OFFSET(Vectors!$D$6,A86,MATCH(AssetFltIndx1,lstInterestRates,0)),IF(MOD($A86,AssetRateReset1)=0,MAX(MIN(OFFSET(Vectors!$D$6,A86,MATCH(AssetFltIndx1,lstInterestRates,0)),(F85-AssetMarg1)+AssetPdCapFl1,AssetLifeCap1),(F85-AssetMarg1)-AssetPdCapFl1,AssetLifeFloor1-AssetMarg1),F85)))+AssetMarg1 -> 0.105 | G86: 914739.2945 | H86: 835649.5043 | I86: 79089.79017 | J86: 95423710.7 | L86: 39135109.05 | M86: =IF(pdrLossTime1="",OFFSET(Vectors!AE85:AE,A86+SeasoningAge1,MATCH(SDA_Loss,lstSDA,0)),OFFSET(Vectors!$X$6,A86+SeasoningAge1,MATCH(pdrLossTime1,lstDefaultCurve,0))) -> 0 | N86: 0 | O86: 0.954237107 | P86: =OFFSET(Vectors!$L$6,A86+SeasoningAge1,MATCH(pdrPrepay1,lstPrepayCurve,0))*pdrPrepayStress1 -> 0.01 | Q86: 62240.28875 | R86: 32409.39059 | S86: 0.105 | T86: 342432.2042 | U86: 0 | V86: 39040459.38 | X86: 437081.8836 | Z86: FALSE | AA86: TRUE | AB86: TRUE | AC86: TRUE | AE86: 36727162.89 | AF86: =IF(Swap_Active="No",0,OFFSET(Vectors!$D$6,Vectors!A86,MATCH(Swap_IN,lstInterestRates,0))) -> 0.069369 | AG86: 212310.5469 | AH86: =IF(Swap_Active="No",0,OFFSET(Vectors!$D$6,Vectors!A86,MATCH(Swap_OUT,lstInterestRates,0))) -> 0.04 | AI86: 122423.8763 | AJ86: 89886.67059 | AK86: 526968.5541 | AM86: 84919.40362 | AN86: 84919.40362 | AO86: 0 | AP86: 442049.1505 | AR86: =IF(LiabIntType1="fixed",LiabFxdRate1,OFFSET(Vectors!$D$6,Vectors!A86,MATCH(LiabLoanIndex1,lstInterestRates,0)))+LiabMarg1 -> 0.079369 | AS86: 312622.1389 | AT86: 312622.1389 | AU86: 0 | AV86: 0 | AW86: 0 | AX86: 129427.0116 | AZ86: 129427.0116 | BA86: 129427.0116 | BB86: 0 | BC86: 0 | BD86: 0 | BE86: 0 | BG86: 1000000 | BH86: 0 | BI86: 0 | BJ86: 0 | BK86: 0 | BL86: 0 | BN86: =IF(LiabIntType2="Fixed",LiabFxdRate2,OFFSET(Vectors!$D$6,Vectors!A86,MATCH(LiabLoanIndex2,lstInterestRates,0))) -> 0.04 | BO86: 55017.51269 | BP86: 0 | BQ86: 55017.51269 | BR86: 0 | BT86: -26112.87326 | BU86: -26112.87326 | BV86: 0 | BW86: 26112.87326 | BY86: 26112.87326 | BZ86: 0 | CB86: 47110592.58 | CC86: 312622.1389 | CD86: 155539.8848 | CF86: 16531366.68 | CG86: 0 | CH86: -26112.87326 | CJ86: 649392.4305 | CK86: 649392.4305 | CL86: 0 | CN86: 94649.67933 | CO86: TRUE | CP86: 0.5
A87: 81 | B87: 2023-11-01 | C87: 0.08333333333 | E87: 95423710.7 | F87: =IF(AssetIntType1="Fixed",AssetFxdRate1,IF(A87=1,OFFSET(Vectors!$D$6,A87,MATCH(AssetFltIndx1,lstInterestRates,0)),IF(MOD($A87,AssetRateReset1)=0,MAX(MIN(OFFSET(Vectors!$D$6,A87,MATCH(AssetFltIndx1,lstInterestRates,0)),(F86-AssetMarg1)+AssetPdCapFl1,AssetLifeCap1),(F86-AssetMarg1)-AssetPdCapFl1,AssetLifeFloor1-AssetMarg1),F86)))+AssetMarg1 -> 0.105 | G87: 914739.2945 | H87: 834957.4687 | I87: 79781.82583 | J87: 95343928.88 | L87: 39040459.38 | M87: =IF(pdrLossTime1="",OFFSET(Vectors!AE86:AE,A87+SeasoningAge1,MATCH(SDA_Loss,lstSDA,0)),OFFSET(Vectors!$X$6,A87+SeasoningAge1,MATCH(pdrLossTime1,lstDefaultCurve,0))) -> 0 | N87: 0 | O87: 0.9534392888 | P87: =OFFSET(Vectors!$L$6,A87+SeasoningAge1,MATCH(pdrPrepay1,lstPrepayCurve,0))*pdrPrepayStress1 -> 0.01 | Q87: 62037.84637 | R87: 32640.93491 | S87: 0.105 | T87: 341604.0195 | U87: 0 | V87: 38945780.59 | X87: 436282.8008 | Z87: FALSE | AA87: TRUE | AB87: TRUE | AC87: TRUE | AE87: 36257494.61 | AF87: =IF(Swap_Active="No",0,OFFSET(Vectors!$D$6,Vectors!A87,MATCH(Swap_IN,lstInterestRates,0))) -> 0.069369 | AG87: 209595.5119 | AH87: =IF(Swap_Active="No",0,OFFSET(Vectors!$D$6,Vectors!A87,MATCH(Swap_OUT,lstInterestRates,0))) -> 0.04 | AI87: 120858.3154 | AJ87: 88737.19659 | AK87: 525019.9974 | AM87: 84696.84587 | AN87: 84696.84587 | AO87: 0 | AP87: 440323.1515 | AR87: =IF(LiabIntType1="fixed",LiabFxdRate1,OFFSET(Vectors!$D$6,Vectors!A87,MATCH(LiabLoanIndex1,lstInterestRates,0)))+LiabMarg1 -> 0.079369 | AS87: 311593.3852 | AT87: 311593.3852 | AU87: 0 | AV87: 0 | AW87: 0 | AX87: 128729.7664 | AZ87: 128729.7664 | BA87: 128729.7664 | BB87: 0 | BC87: 0 | BD87: 0 | BE87: 0 | BG87: 1000000 | BH87: 0 | BI87: 0 | BJ87: 0 | BK87: 0 | BL87: 0 | BN87: =IF(LiabIntType2="Fixed",LiabFxdRate2,OFFSET(Vectors!$D$6,Vectors!A87,MATCH(LiabLoanIndex2,lstInterestRates,0))) -> 0.04 | BO87: 55104.5556 | BP87: 0 | BQ87: 55104.5556 | BR87: 0 | BT87: -26120.90219 | BU87: -26120.90219 | BV87: 0 | BW87: 26120.90219 | BY87: 26120.90219 | BZ87: 0 | CB87: 46955741.91 | CC87: 311593.3852 | CD87: 154850.6685 | CF87: 16557487.58 | CG87: 0 | CH87: -26120.90219 | CJ87: 645878.3128 | CK87: 645878.3128 | CL87: 0 | CN87: 94678.78128 | CO87: TRUE | CP87: 0.5
A88: 82 | B88: 2023-12-01 | C88: 0.08333333333 | E88: 95343928.88 | F88: =IF(AssetIntType1="Fixed",AssetFxdRate1,IF(A88=1,OFFSET(Vectors!$D$6,A88,MATCH(AssetFltIndx1,lstInterestRates,0)),IF(MOD($A88,AssetRateReset1)=0,MAX(MIN(OFFSET(Vectors!$D$6,A88,MATCH(AssetFltIndx1,lstInterestRates,0)),(F87-AssetMarg1)+AssetPdCapFl1,AssetLifeCap1),(F87-AssetMarg1)-AssetPdCapFl1,AssetLifeFloor1-AssetMarg1),F87)))+AssetMarg1 -> 0.105 | G88: 914739.2945 | H88: 834259.3777 | I88: 80479.91681 | J88: 95263448.96 | L88: 38945780.59 | M88: =IF(pdrLossTime1="",OFFSET(Vectors!AE87:AE,A88+SeasoningAge1,MATCH(SDA_Loss,lstSDA,0)),OFFSET(Vectors!$X$6,A88+SeasoningAge1,MATCH(pdrLossTime1,lstDefaultCurve,0))) -> 0 | N88: 0 | O88: 0.9526344896 | P88: =OFFSET(Vectors!$L$6,A88+SeasoningAge1,MATCH(pdrPrepay1,lstPrepayCurve,0))*pdrPrepayStress1 -> 0.01 | Q88: 61835.15636 | R88: 32874.17688 | S88: 0.105 | T88: 340775.5802 | U88: 0 | V88: 38851071.26 | X88: 435484.9134 | Z88: FALSE | AA88: TRUE | AB88: TRUE | AC88: TRUE | AE88: 35792636.59 | AF88: =IF(Swap_Active="No",0,OFFSET(Vectors!$D$6,Vectors!A88,MATCH(Swap_IN,lstInterestRates,0))) -> 0.069369 | AG88: 206908.284 | AH88: =IF(Swap_Active="No",0,OFFSET(Vectors!$D$6,Vectors!A88,MATCH(Swap_OUT,lstInterestRates,0))) -> 0.04 | AI88: 119308.7886 | AJ88: 87599.49533 | AK88: 523084.4088 | AM88: 84474.52679 | AN88: 84474.52679 | AO88: 0 | AP88: 438609.882 | AR88: =IF(LiabIntType1="fixed",LiabFxdRate1,OFFSET(Vectors!$D$6,Vectors!A88,MATCH(LiabLoanIndex1,lstInterestRates,0)))+LiabMarg1 -> 0.079369 | AS88: 310569.19 | AT88: 310569.19 | AU88: 0 | AV88: 0 | AW88: 0 | AX88: 128040.692 | AZ88: 128040.692 | BA88: 128040.692 | BB88: 0 | BC88: 0 | BD88: 0 | BE88: 0 | BG88: 1000000 | BH88: 0 | BI88: 0 | BJ88: 0 | BK88: 0 | BL88: 0 | BN88: =IF(LiabIntType2="Fixed",LiabFxdRate2,OFFSET(Vectors!$D$6,Vectors!A88,MATCH(LiabLoanIndex2,lstInterestRates,0))) -> 0.04 | BO88: 55191.62527 | BP88: 0 | BQ88: 55191.62527 | BR88: 0 | BT88: -26129.33116 | BU88: -26129.33116 | BV88: 0 | BW88: 26129.33116 | BY88: 26129.33116 | BZ88: 0 | CB88: 46801571.89 | CC88: 310569.19 | CD88: 154170.0232 | CF88: 16583616.91 | CG88: 0 | CH88: -26129.33116 | CJ88: 642393.1974 | CK88: 642393.1974 | CL88: 0 | CN88: 94709.33324 | CO88: TRUE | CP88: 0.5
A89: 83 | B89: 2024-01-01 | C89: 0.08333333333 | E89: 95263448.96 | F89: =IF(AssetIntType1="Fixed",AssetFxdRate1,IF(A89=1,OFFSET(Vectors!$D$6,A89,MATCH(AssetFltIndx1,lstInterestRates,0)),IF(MOD($A89,AssetRateReset1)=0,MAX(MIN(OFFSET(Vectors!$D$6,A89,MATCH(AssetFltIndx1,lstInterestRates,0)),(F88-AssetMarg1)+AssetPdCapFl1,AssetLifeCap1),(F88-AssetMarg1)-AssetPdCapFl1,AssetLifeFloor1-AssetMarg1),F88)))+AssetMarg1 -> 0.105 | G89: 914739.2945 | H89: 833555.1784 | I89: 81184.11608 | J89: 95182264.85 | L89: 38851071.26 | M89: =IF(pdrLossTime1="",OFFSET(Vectors!AE88:AE,A89+SeasoningAge1,MATCH(SDA_Loss,lstSDA,0)),OFFSET(Vectors!$X$6,A89+SeasoningAge1,MATCH(pdrLossTime1,lstDefaultCurve,0))) -> 0 | N89: 0 | O89: 0.9518226485 | P89: =OFFSET(Vectors!$L$6,A89+SeasoningAge1,MATCH(pdrPrepay1,lstPrepayCurve,0))*pdrPrepayStress1 -> 0.01 | Q89: 61632.2159 | R89: 33109.12961 | S89: 0.105 | T89: 339946.8735 | U89: 0 | V89: 38756329.92 | X89: 434688.219 | Z89: FALSE | AA89: TRUE | AB89: TRUE | AC89: TRUE | AE89: 35332540.44 | AF89: =IF(Swap_Active="No",0,OFFSET(Vectors!$D$6,Vectors!A89,MATCH(Swap_IN,lstInterestRates,0))) -> 0.069369 | AG89: 204248.5832 | AH89: =IF(Swap_Active="No",0,OFFSET(Vectors!$D$6,Vectors!A89,MATCH(Swap_OUT,lstInterestRates,0))) -> 0.04 | AI89: 117775.1348 | AJ89: 86473.44835 | AK89: 521161.6674 | AM89: 84252.44039 | AN89: 84252.44039 | AO89: 0 | AP89: 436909.227 | AR89: =IF(LiabIntType1="fixed",LiabFxdRate1,OFFSET(Vectors!$D$6,Vectors!A89,MATCH(LiabLoanIndex1,lstInterestRates,0)))+LiabMarg1 -> 0.079369 | AS89: 309549.4966 | AT89: 309549.4966 | AU89: 0 | AV89: 0 | AW89: 0 | AX89: 127359.7304 | AZ89: 127359.7304 | BA89: 127359.7304 | BB89: 0 | BC89: 0 | BD89: 0 | BE89: 0 | BG89: 1000000 | BH89: 0 | BI89: 0 | BJ89: 0 | BK89: 0 | BL89: 0 | BN89: =IF(LiabIntType2="Fixed",LiabFxdRate2,OFFSET(Vectors!$D$6,Vectors!A89,MATCH(LiabLoanIndex2,lstInterestRates,0))) -> 0.04 | BO89: 55278.72304 | BP89: 0 | BQ89: 55278.72304 | BR89: 0 | BT89: -26138.16302 | BU89: -26138.16302 | BV89: 0 | BW89: 26138.16302 | BY89: 26138.16302 | BZ89: 0 | CB89: 46648073.99 | CC89: 309549.4966 | CD89: 153497.8935 | CF89: 16609755.08 | CG89: 0 | CH89: -26138.16302 | CJ89: 638936.8022 | CK89: 638936.8022 | CL89: 0 | CN89: 94741.34552 | CO89: TRUE | CP89: 0.5
A90: 84 | B90: 2024-02-01 | C90: 0.08333333333 | E90: 95182264.85 | F90: =IF(AssetIntType1="Fixed",AssetFxdRate1,IF(A90=1,OFFSET(Vectors!$D$6,A90,MATCH(AssetFltIndx1,lstInterestRates,0)),IF(MOD($A90,AssetRateReset1)=0,MAX(MIN(OFFSET(Vectors!$D$6,A90,MATCH(AssetFltIndx1,lstInterestRates,0)),(F89-AssetMarg1)+AssetPdCapFl1,AssetLifeCap1),(F89-AssetMarg1)-AssetPdCapFl1,AssetLifeFloor1-AssetMarg1),F89)))+AssetMarg1 -> 0.105 | G90: 914739.2945 | H90: 832844.8174 | I90: 81894.4771 | J90: 95100370.37 | L90: 38756329.92 | M90: =IF(pdrLossTime1="",OFFSET(Vectors!AE89:AE,A90+SeasoningAge1,MATCH(SDA_Loss,lstSDA,0)),OFFSET(Vectors!$X$6,A90+SeasoningAge1,MATCH(pdrLossTime1,lstDefaultCurve,0))) -> 0 | N90: 0 | O90: 0.9510037037 | P90: =OFFSET(Vectors!$L$6,A90+SeasoningAge1,MATCH(pdrPrepay1,lstPrepayCurve,0))*pdrPrepayStress1 -> 0.01 | Q90: 61429.02215 | R90: 33345.80636 | S90: 0.105 | T90: 339117.8868 | U90: 0 | V90: 38661555.09 | X90: 433892.7153 | Z90: FALSE | AA90: TRUE | AB90: TRUE | AC90: TRUE | AE90: 34877158.26 | AF90: =IF(Swap_Active="No",0,OFFSET(Vectors!$D$6,Vectors!A90,MATCH(Swap_IN,lstInterestRates,0))) -> 0.069369 | AG90: 201616.1326 | AH90: =IF(Swap_Active="No",0,OFFSET(Vectors!$D$6,Vectors!A90,MATCH(Swap_OUT,lstInterestRates,0))) -> 0.04 | AI90: 116257.1942 | AJ90: 85358.93841 | AK90: 519251.6537 | AM90: 84030.58069 | AN90: 84030.58069 | AO90: 0 | AP90: 435221.073 | AR90: =IF(LiabIntType1="fixed",LiabFxdRate1,OFFSET(Vectors!$D$6,Vectors!A90,MATCH(LiabLoanIndex1,lstInterestRates,0)))+LiabMarg1 -> 0.079369 | AS90: 308534.2487 | AT90: 308534.2487 | AU90: 0 | AV90: 0 | AW90: 0 | AX90: 126686.8243 | AZ90: 126686.8243 | BA90: 126686.8243 | BB90: 0 | BC90: 0 | BD90: 0 | BE90: 0 | BG90: 1000000 | BH90: 0 | BI90: 0 | BJ90: 0 | BK90: 0 | BL90: 0 | BN90: =IF(LiabIntType2="Fixed",LiabFxdRate2,OFFSET(Vectors!$D$6,Vectors!A90,MATCH(LiabLoanIndex2,lstInterestRates,0))) -> 0.04 | BO90: 55365.85025 | BP90: 0 | BQ90: 55365.85025 | BR90: 0 | BT90: -26147.40063 | BU90: -26147.40063 | BV90: 0 | BW90: 26147.40063 | BY90: 26147.40063 | BZ90: 0 | CB90: 46495239.77 | CC90: 308534.2487 | CD90: 152834.2249 | CF90: 16635902.48 | CG90: 0 | CH90: -26147.40063 | CJ90: 635508.8479 | CK90: 635508.8479 | CL90: 0 | CN90: 94774.82851 | CO90: TRUE | CP90: 0.5
A91: 85 | B91: 2024-03-01 | C91: 0.08333333333 | E91: 95100370.37 | F91: =IF(AssetIntType1="Fixed",AssetFxdRate1,IF(A91=1,OFFSET(Vectors!$D$6,A91,MATCH(AssetFltIndx1,lstInterestRates,0)),IF(MOD($A91,AssetRateReset1)=0,MAX(MIN(OFFSET(Vectors!$D$6,A91,MATCH(AssetFltIndx1,lstInterestRates,0)),(F90-AssetMarg1)+AssetPdCapFl1,AssetLifeCap1),(F90-AssetMarg1)-AssetPdCapFl1,AssetLifeFloor1-AssetMarg1),F90)))+AssetMarg1 -> 0.105 | G91: 914739.2945 | H91: 832128.2407 | I91: 82611.05377 | J91: 95017759.31 | L91: 38661555.09 | M91: =IF(pdrLossTime1="",OFFSET(Vectors!AE90:AE,A91+SeasoningAge1,MATCH(SDA_Loss,lstSDA,0)),OFFSET(Vectors!$X$6,A91+SeasoningAge1,MATCH(pdrLossTime1,lstDefaultCurve,0))) -> 0 | N91: 0 | O91: 0.9501775931 | P91: =OFFSET(Vectors!$L$6,A91+SeasoningAge1,MATCH(pdrPrepay1,lstPrepayCurve,0))*pdrPrepayStress1 -> 0.01 | Q91: 61225.57227 | R91: 33584.22048 | S91: 0.105 | T91: 338288.607 | U91: 0 | V91: 38566745.29 | X91: 433098.3998 | Z91: FALSE | AA91: TRUE | AB91: TRUE | AC91: TRUE | AE91: 34426442.61 | AF91: =IF(Swap_Active="No",0,OFFSET(Vectors!$D$6,Vectors!A91,MATCH(Swap_IN,lstInterestRates,0))) -> 0.069369 | AG91: 199010.6581 | AH91: =IF(Swap_Active="No",0,OFFSET(Vectors!$D$6,Vectors!A91,MATCH(Swap_OUT,lstInterestRates,0))) -> 0.04 | AI91: 114754.8087 | AJ91: 84255.84942 | AK91: 517354.2492 | AM91: 83808.94171 | AN91: 83808.94171 | AO91: 0 | AP91: 433545.3075 | AR91: =IF(LiabIntType1="fixed",LiabFxdRate1,OFFSET(Vectors!$D$6,Vectors!A91,MATCH(LiabLoanIndex1,lstInterestRates,0)))+LiabMarg1 -> 0.079369 | AS91: 307523.3904 | AT91: 307523.3904 | AU91: 0 | AV91: 0 | AW91: 0 | AX91: 126021.917 | AZ91: 126021.917 | BA91: 126021.917 | BB91: 0 | BC91: 0 | BD91: 0 | BE91: 0 | BG91: 1000000 | BH91: 0 | BI91: 0 | BJ91: 0 | BK91: 0 | BL91: 0 | BN91: =IF(LiabIntType2="Fixed",LiabFxdRate2,OFFSET(Vectors!$D$6,Vectors!A91,MATCH(LiabLoanIndex2,lstInterestRates,0))) -> 0.04 | BO91: 55453.00826 | BP91: 0 | BQ91: 55453.00826 | BR91: 0 | BT91: -26157.04691 | BU91: -26157.04691 | BV91: 0 | BW91: 26157.04691 | BY91: 26157.04691 | BZ91: 0 | CB91: 46343060.8 | CC91: 307523.3904 | CD91: 152178.9639 | CF91: 16662059.52 | CG91: 0 | CH91: -26157.04691 | CJ91: 632109.0579 | CK91: 632109.0579 | CL91: 0 | CN91: 94809.79275 | CO91: TRUE | CP91: 0.5
A92: 86 | B92: 2024-04-01 | C92: 0.08333333333 | E92: 95017759.31 | F92: =IF(AssetIntType1="Fixed",AssetFxdRate1,IF(A92=1,OFFSET(Vectors!$D$6,A92,MATCH(AssetFltIndx1,lstInterestRates,0)),IF(MOD($A92,AssetRateReset1)=0,MAX(MIN(OFFSET(Vectors!$D$6,A92,MATCH(AssetFltIndx1,lstInterestRates,0)),(F91-AssetMarg1)+AssetPdCapFl1,AssetLifeCap1),(F91-AssetMarg1)-AssetPdCapFl1,AssetLifeFloor1-AssetMarg1),F91)))+AssetMarg1 -> 0.105 | G92: 914739.2945 | H92: 831405.394 | I92: 83333.90049 | J92: 94934425.41 | L92: 38566745.29 | M92: =IF(pdrLossTime1="",OFFSET(Vectors!AE91:AE,A92+SeasoningAge1,MATCH(SDA_Loss,lstSDA,0)),OFFSET(Vectors!$X$6,A92+SeasoningAge1,MATCH(pdrLossTime1,lstDefaultCurve,0))) -> 0 | N92: 0 | O92: 0.9493442541 | P92: =OFFSET(Vectors!$L$6,A92+SeasoningAge1,MATCH(pdrPrepay1,lstPrepayCurve,0))*pdrPrepayStress1 -> 0.01 | Q92: 61021.86341 | R92: 33824.38544 | S92: 0.105 | T92: 337459.0213 | U92: 0 | V92: 38471899.05 | X92: 432305.2702 | Z92: FALSE | AA92: TRUE | AB92: TRUE | AC92: TRUE | AE92: 33980346.54 | AF92: =IF(Swap_Active="No",0,OFFSET(Vectors!$D$6,Vectors!A92,MATCH(Swap_IN,lstInterestRates,0))) -> 0.069369 | AG92: 196431.8882 | AH92: =IF(Swap_Active="No",0,OFFSET(Vectors!$D$6,Vectors!A92,MATCH(Swap_OUT,lstInterestRates,0))) -> 0.04 | AI92: 113267.8218 | AJ92: 83164.06645 | AK92: 515469.3366 | AM92: 83587.51749 | AN92: 83587.51749 | AO92: 0 | AP92: 431881.8191 | AR92: =IF(LiabIntType1="fixed",LiabFxdRate1,OFFSET(Vectors!$D$6,Vectors!A92,MATCH(LiabLoanIndex1,lstInterestRates,0)))+LiabMarg1 -> 0.079369 | AS92: 306516.8661 | AT92: 306516.8661 | AU92: 0 | AV92: 0 | AW92: 0 | AX92: 125364.9531 | AZ92: 125364.9531 | BA92: 125364.9531 | BB92: 0 | BC92: 0 | BD92: 0 | BE92: 0 | BG92: 1000000 | BH92: 0 | BI92: 0 | BJ92: 0 | BK92: 0 | BL92: 0 | BN92: =IF(LiabIntType2="Fixed",LiabFxdRate2,OFFSET(Vectors!$D$6,Vectors!A92,MATCH(LiabLoanIndex2,lstInterestRates,0))) -> 0.04 | BO92: 55540.19841 | BP92: 0 | BQ92: 55540.19841 | BR92: 0 | BT92: -26167.10477 | BU92: -26167.10477 | BV92: 0 | BW92: 26167.10477 | BY92: 26167.10477 | BZ92: 0 | CB92: 46191528.75 | CC92: 306516.8661 | CD92: 151532.0578 | CF92: 16688226.63 | CG92: 0 | CH92: -26167.10477 | CJ92: 628737.1584 | CK92: 628737.1584 | CL92: 0 | CN92: 94846.24885 | CO92: TRUE | CP92: 0.5
A93: 87 | B93: 2024-05-01 | C93: 0.08333333333 | E93: 94934425.41 | F93: =IF(AssetIntType1="Fixed",AssetFxdRate1,IF(A93=1,OFFSET(Vectors!$D$6,A93,MATCH(AssetFltIndx1,lstInterestRates,0)),IF(MOD($A93,AssetRateReset1)=0,MAX(MIN(OFFSET(Vectors!$D$6,A93,MATCH(AssetFltIndx1,lstInterestRates,0)),(F92-AssetMarg1)+AssetPdCapFl1,AssetLifeCap1),(F92-AssetMarg1)-AssetPdCapFl1,AssetLifeFloor1-AssetMarg1),F92)))+AssetMarg1 -> 0.105 | G93: 914739.2945 | H93: 830676.2224 | I93: 84063.07212 | J93: 94850362.34 | L93: 38471899.05 | M93: =IF(pdrLossTime1="",OFFSET(Vectors!AE92:AE,A93+SeasoningAge1,MATCH(SDA_Loss,lstSDA,0)),OFFSET(Vectors!$X$6,A93+SeasoningAge1,MATCH(pdrLossTime1,lstDefaultCurve,0))) -> 0 | N93: 0 | O93: 0.9485036234 | P93: =OFFSET(Vectors!$L$6,A93+SeasoningAge1,MATCH(pdrPrepay1,lstPrepayCurve,0))*pdrPrepayStress1 -> 0.01 | Q93: 60817.89274 | R93: 34066.31483 | S93: 0.105 | T93: 336629.1166 | U93: 0 | V93: 38377014.84 | X93: 431513.3242 | Z93: FALSE | AA93: TRUE | AB93: TRUE | AC93: TRUE | AE93: 33538823.56 | AF93: =IF(Swap_Active="No",0,OFFSET(Vectors!$D$6,Vectors!A93,MATCH(Swap_IN,lstInterestRates,0))) -> 0.069369 | AG93: 193879.5543 | AH93: =IF(Swap_Active="No",0,OFFSET(Vectors!$D$6,Vectors!A93,MATCH(Swap_OUT,lstInterestRates,0))) -> 0.04 | AI93: 111796.0785 | AJ93: 82083.47575 | AK93: 513596.8 | AM93: 83366.30205 | AN93: 83366.30205 | AO93: 0 | AP93: 430230.4979 | AR93: =IF(LiabIntType1="fixed",LiabFxdRate1,OFFSET(Vectors!$D$6,Vectors!A93,MATCH(LiabLoanIndex1,lstInterestRates,0)))+LiabMarg1 -> 0.079369 | AS93: 305514.6204 | AT93: 305514.6204 | AU93: 0 | AV93: 0 | AW93: 0 | AX93: 124715.8775 | AZ93: 124715.8775 | BA93: 124715.8775 | BB93: 0 | BC93: 0 | BD93: 0 | BE93: 0 | BG93: 1000000 | BH93: 0 | BI93: 0 | BJ93: 0 | BK93: 0 | BL93: 0 | BN93: =IF(LiabIntType2="Fixed",LiabFxdRate2,OFFSET(Vectors!$D$6,Vectors!A93,MATCH(LiabLoanIndex2,lstInterestRates,0))) -> 0.04 | BO93: 55627.42209 | BP93: 0 | BQ93: 55627.42209 | BR93: 0 | BT93: -26177.57719 | BU93: -26177.57719 | BV93: 0 | BW93: 26177.57719 | BY93: 26177.57719 | BZ93: 0 | CB93: 46040635.29 | CC93: 305514.6204 | CD93: 150893.4547 | CF93: 16714404.21 | CG93: 0 | CH93: -26177.57719 | CJ93: 625392.8785 | CK93: 625392.8785 | CL93: 0 | CN93: 94884.20757 | CO93: TRUE | CP93: 0.5
A94: 88 | B94: 2024-06-01 | C94: 0.08333333333 | E94: 94850362.34 | F94: =IF(AssetIntType1="Fixed",AssetFxdRate1,IF(A94=1,OFFSET(Vectors!$D$6,A94,MATCH(AssetFltIndx1,lstInterestRates,0)),IF(MOD($A94,AssetRateReset1)=0,MAX(MIN(OFFSET(Vectors!$D$6,A94,MATCH(AssetFltIndx1,lstInterestRates,0)),(F93-AssetMarg1)+AssetPdCapFl1,AssetLifeCap1),(F93-AssetMarg1)-AssetPdCapFl1,AssetLifeFloor1-AssetMarg1),F93)))+AssetMarg1 -> 0.105 | G94: 914739.2945 | H94: 829940.6705 | I94: 84798.624 | J94: 94765563.72 | L94: 38377014.84 | M94: =IF(pdrLossTime1="",OFFSET(Vectors!AE93:AE,A94+SeasoningAge1,MATCH(SDA_Loss,lstSDA,0)),OFFSET(Vectors!$X$6,A94+SeasoningAge1,MATCH(pdrLossTime1,lstDefaultCurve,0))) -> 0 | N94: 0 | O94: 0.9476556372 | P94: =OFFSET(Vectors!$L$6,A94+SeasoningAge1,MATCH(pdrPrepay1,lstPrepayCurve,0))*pdrPrepayStress1 -> 0.01 | Q94: 60613.65741 | R94: 34310.02235 | S94: 0.105 | T94: 335798.8798 | U94: 0 | V94: 38282091.16 | X94: 430722.5596 | Z94: FALSE | AA94: TRUE | AB94: TRUE | AC94: TRUE | AE94: 33101827.65 | AF94: =IF(Swap_Active="No",0,OFFSET(Vectors!$D$6,Vectors!A94,MATCH(Swap_IN,lstInterestRates,0))) -> 0.069369 | AG94: 191353.3902 | AH94: =IF(Swap_Active="No",0,OFFSET(Vectors!$D$6,Vectors!A94,MATCH(Swap_OUT,lstInterestRates,0))) -> 0.04 | AI94: 110339.4255 | AJ94: 81013.96468 | AK94: 511736.5243 | AM94: 83145.28943 | AN94: 83145.28943 | AO94: 0 | AP94: 428591.2348 | AR94: =IF(LiabIntType1="fixed",LiabFxdRate1,OFFSET(Vectors!$D$6,Vectors!A94,MATCH(LiabLoanIndex1,lstInterestRates,0)))+LiabMarg1 -> 0.079369 | AS94: 304516.5985 | AT94: 304516.5985 | AU94: 0 | AV94: 0 | AW94: 0 | AX94: 124074.6363 | AZ94: 124074.6363 | BA94: 124074.6363 | BB94: 0 | BC94: 0 | BD94: 0 | BE94: 0 | BG94: 1000000 | BH94: 0 | BI94: 0 | BJ94: 0 | BK94: 0 | BL94: 0 | BN94: =IF(LiabIntType2="Fixed",LiabFxdRate2,OFFSET(Vectors!$D$6,Vectors!A94,MATCH(LiabLoanIndex2,lstInterestRates,0))) -> 0.04 | BO94: 55714.68069 | BP94: 0 | BQ94: 55714.68069 | BR94: 0 | BT94: -26188.46716 | BU94: -26188.46716 | BV94: 0 | BW94: 26188.46716 | BY94: 26188.46716 | BZ94: 0 | CB94: 45890372.19 | CC94: 304516.5985 | CD94: 150263.1035 | CF94: 16740592.67 | CG94: 0 | CH94: -26188.46716 | CJ94: 622075.9498 | CK94: 622075.9498 | CL94: 0 | CN94: 94923.67976 | CO94: TRUE | CP94: 0.5
A95: 89 | B95: 2024-07-01 | C95: 0.08333333333 | E95: 94765563.72 | F95: =IF(AssetIntType1="Fixed",AssetFxdRate1,IF(A95=1,OFFSET(Vectors!$D$6,A95,MATCH(AssetFltIndx1,lstInterestRates,0)),IF(MOD($A95,AssetRateReset1)=0,MAX(MIN(OFFSET(Vectors!$D$6,A95,MATCH(AssetFltIndx1,lstInterestRates,0)),(F94-AssetMarg1)+AssetPdCapFl1,AssetLifeCap1),(F94-AssetMarg1)-AssetPdCapFl1,AssetLifeFloor1-AssetMarg1),F94)))+AssetMarg1 -> 0.105 | G95: 914739.2945 | H95: 829198.6825 | I95: 85540.61196 | J95: 94680023.11 | L95: 38282091.16 | M95: =IF(pdrLossTime1="",OFFSET(Vectors!AE94:AE,A95+SeasoningAge1,MATCH(SDA_Loss,lstSDA,0)),OFFSET(Vectors!$X$6,A95+SeasoningAge1,MATCH(pdrLossTime1,lstDefaultCurve,0))) -> 0 | N95: 0 | O95: 0.9468002311 | P95: =OFFSET(Vectors!$L$6,A95+SeasoningAge1,MATCH(pdrPrepay1,lstPrepayCurve,0))*pdrPrepayStress1 -> 0.01 | Q95: 60409.15459 | R95: 34555.52182 | S95: 0.105 | T95: 334968.2976 | U95: 0 | V95: 38187126.48 | X95: 429932.974 | Z95: FALSE | AA95: TRUE | AB95: TRUE | AC95: TRUE | AE95: 32669313.25 | AF95: =IF(Swap_Active="No",0,OFFSET(Vectors!$D$6,Vectors!A95,MATCH(Swap_IN,lstInterestRates,0))) -> 0.069369 | AG95: 188853.1326 | AH95: =IF(Swap_Active="No",0,OFFSET(Vectors!$D$6,Vectors!A95,MATCH(Swap_OUT,lstInterestRates,0))) -> 0.04 | AI95: 108897.7108 | AJ95: 79955.42174 | AK95: 509888.3958 | AM95: 82924.47367 | AN95: 82924.47367 | AO95: 0 | AP95: 426963.9221 | AR95: =IF(LiabIntType1="fixed",LiabFxdRate1,OFFSET(Vectors!$D$6,Vectors!A95,MATCH(LiabLoanIndex1,lstInterestRates,0)))+LiabMarg1 -> 0.079369 | AS95: 303522.7458 | AT95: 303522.7458 | AU95: 0 | AV95: 0 | AW95: 0 | AX95: 123441.1763 | AZ95: 123441.1763 | BA95: 123441.1763 | BB95: 0 | BC95: 0 | BD95: 0 | BE95: 0 | BG95: 1000000 | BH95: 0 | BI95: 0 | BJ95: 0 | BK95: 0 | BL95: 0 | BN95: =IF(LiabIntType2="Fixed",LiabFxdRate2,OFFSET(Vectors!$D$6,Vectors!A95,MATCH(LiabLoanIndex2,lstInterestRates,0))) -> 0.04 | BO95: 55801.97558 | BP95: 0 | BQ95: 55801.97558 | BR95: 0 | BT95: -26199.77772 | BU95: -26199.77772 | BV95: 0 | BW95: 26199.77772 | BY95: 26199.77772 | BZ95: 0 | CB95: 45740731.23 | CC95: 303522.7458 | CD95: 149640.954 | CF95: 16766792.45 | CG95: 0 | CH95: -26199.77772 | CJ95: 618786.1066 | CK95: 618786.1066 | CL95: 0 | CN95: 94964.67641 | CO95: TRUE | CP95: 0.5
